Workbook

Sheet Summary
K1: Graph End
C2: Valuation Assumptions
D3: WACC | F3: ='Model Parameters'!G42 -> 0.075
D4: Terminal Growth | F4: ='Model Parameters'!G43 -> 0.005
D5: Long-term ROIC | F5: ='Model Parameters'!G44 -> 0.06
D6: EV/EBITDA | F6: ='Model Parameters'!$G$45 -> 6.5
D7: Explicit Period (Years) | F7: ='Master Scenario'!$K$18 -> 10
C9: Assumptions
D10: Demand Reduction and Rebound
D12: Base Capital Expenditures/Depreciation | F12: ='Model Parameters'!$G$24 -> 1.2
D13: Cost of Goods Sold Percent | F13: ='Model Parameters'!G15 -> 0.592
D14: Price Increase Percent | F14: ='Model Parameters'!$I$14 -> 0
D15: Fixed SG&A Percent | F15: ='Model Parameters'!$G$20 -> 0.43
D16: SG&A Fixed Increase | F16: ='Model Parameters'!$G$21 -> 0.01
D17: Minimum Purchase Percent | F17: ='Model Parameters'!G17 -> 0.3
D18: Reduced Capital Expenditure | F18: ='Model Parameters'!$G$27 -> 0.15
C20: Valuation | F20: Value/Share | H20: Base Case | I20: Difference
C21: Terminal Growth | F21: =Valuation!H85 -> 6.195898019 | H21: =TRANSPOSE('Master Scenario'!G22:J22) -> 15.61200024 | I21: =H21-F21 -> 9.416102225
C22: EV/EBITDA | F22: =Valuation!H95 -> 5.815798499 | H22: 15.07823677 | I22: =H22-F22 -> 9.262438272
C23: Value Driver Basic | F23: =Valuation!H105 -> 15.92509103 | H23: 25.30843053 | I23: 9.383339497
C24: Value Driver Inv Cap | F24: =Valuation!H115 -> 8.705109382 | H24: 17.80589758 | I24: 9.100788198
C26: Pre-Crisis Share Price | F26: ='M Stock Price (2)'!F1459 -> 17.100603
C27: Post-Crisis Share Price | F27: ='M Stock Price (2)'!F1471 -> 4.81

Sheet Model Parameters
B2: Time Parameters
C3: First Historic Period | G3: =Historical!E4 -> 2016-02-29
C4: Last Historic Period | G4: 5
C5: Months Per Period Forecast | G5: 1
C6: Months Per Period Historic | G6: 12
C7: Terminal Period | G7: 20
C8: Fiscal Year End Month | G8: 3
C9: Shock Period | G9: 2020-03-31
C10: Post Crisis Start | G10: 2023-01-31
B12: General Price and Expense Assumptions
C13: Year | G13: 2016 | H13: 2017 | I13: 2020
C14: Price Increase | G14: 0.01 | H14: 0 | I14: ='Master Scenario'!O18/10000 -> 0
C15: Cost of Goods Sold Percent | G15: ='Master Scenario'!N18/10000 -> 0.592
C17: Minimum Purchase Percent | G17: ='Master Scenario'!R18/10000 -> 0.3
C18: Traditional Inventory Method (False is Units) | G18: FALSE
C20: Percent of SG&A Fixed | G20: ='Master Scenario'!P18/10000 -> 0.43
C21: Growth in Administrative Costs | G21: ='Master Scenario'!Q18/10000 -> 0.01
B23: Capital Expenditures
C24: Capital Expenditure Percent of Depreciation - Base | G24: ='Master Scenario'!L18/10000 -> 1.2
C25: Crisis Scenario | G25: =Scenarios!E2 -> 2
C26: Apply Reduced Capital Expenditures | G26: =G25>1 -> TRUE
C27: Capital Expenditure Percent of Revenue - Crisis | G27: ='Master Scenario'!M18/10000 -> 0.15
C28: Capital Expenditure Percent of Revenue - Applied | G28: =IF(G26,G27,G24) -> 0.15
C29: Include Make-up Capital Expenditures | G29: TRUE
C31: Start of Make-up Period | G31: =G10 -> 2023-01-31
C32: Months of Make-up Period | G32: =I32 -> 24 | I32: 24
C33: End of Make-up Period | G33: =EOMONTH(G31,G32) -> 2025-01-31
B35: Valuation Assumptions
C36: Valuation Period | G36: 2020-02-29
C37: Explicit Period | G37: ='Master Scenario'!K18 -> 10
C38: Explicit Period Start | G38: =EOMONTH(G36,1) -> 2020-03-31
C39: Terminal Valuation | G39: =EOMONTH(G36,'Master Scenario'!K18*12) -> 2030-02-28
C41: Valuation Parameters
C42: WACC | G42: ='Master Scenario'!G18/10000 -> 0.075
C43: Growth Rate | G43: ='Master Scenario'!H18/10000 -> 0.005
C44: Long-term ROIC | G44: ='Master Scenario'!I18/10000 -> 0.06
C45: Terminal EV/EBITDA Ratio | G45: ='Master Scenario'!J18/10 -> 6.5
G48: =Scenarios!G8 -> 2016-02-29 | H48: =Scenarios!K8 -> 2020-03-31 | I48: =Scenarios!L8 -> 2020-04-30 | J48: =Scenarios!M8 -> 2020-05-31 | K48: =Scenarios!N8 -> 2020-07-31 | L48: =Scenarios!P8 -> 2021-02-28 | M48: =Scenarios!Q8 -> 2021-07-31
C49: Periods for Using Annual Growth Rates | G49: 1 | H49: 1 | I49: 1 | J49: 1 | K49: 1 | L49: 1 | M49: 0
C64: Start of the Model | G64: =G48 -> 2016-02-29

Sheet Scenarios
B2: Virus Scenario Number | E2: 2
K3: Shock Period
C4: Year | G4: =Historical!E85 -> 2016 | H4: 2017 | I4: 2018 | J4: 2019 | K4: 2020 | L4: 2020 | M4: 2020 | N4: 2020 | O4: 2020 | P4: 2021 | Q4: 2021 | R4: 2022 | S4: 2025 | T4: 2027 | U4: 2028 | V4: 2032 | W4: 2033 | X4: 2034 | Y4: 2035 | Z4: 2036 | AA4: 2037 | AB4: 2038 | AC4: 2039 | AD4: 2040 | AE4: 2041
C5: Month | K5: 3 | L5: 4 | M5: 5 | N5: 8 | O5: 8 | P5: 3 | Q5: 8 | R5: 12 | S5: 12 | T5: 12 | U5: 12 | V5: 12 | W5: 12 | X5: 12 | Y5: 12 | Z5: 12 | AA5: 12 | AB5: 12 | AC5: 12 | AD5: 12 | AE5: 12
C7: Start of Month | K7: =DATE(K4,K5,1) -> 2020-03-01 | L7: 2020-04-01 | M7: 2020-05-01 | N7: 2020-08-01 | O7: 2020-08-01 | P7: 2021-03-01 | Q7: 2021-08-01 | R7: 2022-12-01 | S7: 2025-12-01 | T7: 2027-12-01 | U7: =DATE(U4,U5,1) -> 2028-12-01 | V7: =DATE(V4,V5,1) -> 2032-12-01 | W7: =DATE(W4,W5,1) -> 2033-12-01 | X7: =DATE(X4,X5,1) -> 2034-12-01 | Y7: =DATE(Y4,Y5,1) -> 2035-12-01 | Z7: =DATE(Z4,Z5,1) -> 2036-12-01 | AA7: =DATE(AA4,AA5,1) -> 2037-12-01 | AB7: =DATE(AB4,AB5,1) -> 2038-12-01 | AC7: =DATE(AC4,AC5,1) -> 2039-12-01 | AD7: =DATE(AD4,AD5,1) -> 2040-12-01 | AE7: =DATE(AE4,AE5,1) -> 2041-12-01
C8: End of Month | G8: ='Model Parameters'!G3 -> 2016-02-29 | K8: =EOMONTH(K7,0) -> 2020-03-31 | L8: =EOMONTH(L7,0) -> 2020-04-30 | M8: =EOMONTH(M7,0) -> 2020-05-31 | N8: =N7-1 -> 2020-07-31 | O8: 2020-07-31 | P8: 2021-02-28 | Q8: 2021-07-31 | R8: 2022-11-30 | S8: 2025-11-30 | T8: 2027-11-30 | U8: =U7-1 -> 2028-11-30 | V8: 2032-11-30 | W8: 2033-11-30 | X8: 2034-11-30 | Y8: 2035-11-30 | Z8: 2036-11-30 | AA8: 2037-11-30 | AB8: 2038-11-30 | AC8: 2039-11-30 | AD8: 2040-11-30 | AE8: 2041-11-30
K9: =LOOKUP(K8,Forecast!8:8,Forecast!134:134) -> 1 | L9: =LOOKUP(L8,Forecast!8:8,Forecast!134:134) -> 1 | M9: =LOOKUP(M8,Forecast!8:8,Forecast!134:134) -> 1 | N9: =LOOKUP(N8,Forecast!8:8,Forecast!134:134) -> 1 | O9: =LOOKUP(O8,Forecast!8:8,Forecast!134:134) -> 1 | P9: =LOOKUP(P8,Forecast!8:8,Forecast!134:134) -> 1 | Q9: =LOOKUP(Q8,Forecast!8:8,Forecast!134:134) -> 0 | R9: =LOOKUP(R8,Forecast!8:8,Forecast!134:134) -> 0 | S9: =LOOKUP(S8,Forecast!8:8,Forecast!134:134) -> 0 | T9: =LOOKUP(T8,Forecast!8:8,Forecast!134:134) -> 0 | U9: =LOOKUP(U8,Forecast!8:8,Forecast!134:134) -> 0 | V9: =LOOKUP(V8,Forecast!8:8,Forecast!134:134) -> 0 | W9: =LOOKUP(W8,Forecast!8:8,Forecast!134:134) -> 0 | X9: =LOOKUP(X8,Forecast!8:8,Forecast!134:134) -> 0 | Y9: =LOOKUP(Y8,Forecast!8:8,Forecast!134:134) -> 0 | Z9: =LOOKUP(Z8,Forecast!8:8,Forecast!134:134) -> 0 | AA9: =LOOKUP(AA8,Forecast!8:8,Forecast!134:134) -> 0 | AB9: =LOOKUP(AB8,Forecast!8:8,Forecast!134:134) -> 0 | AC9: =LOOKUP(AC8,Forecast!8:8,Forecast!134:134) -> 0 | AD9: =LOOKUP(AD8,Forecast!8:8,Forecast!134:134) -> 0 | AE9: =LOOKUP(AE8,Forecast!8:8,Forecast!134:134) -> 0
C11: Annual Unit Sales Growth
D12: No Virus Case | K12: -0.015 | L12: -0.000833 | M12: -0.000833 | N12: -0.000833 | O12: -0.000833 | P12: -0.000833 | Q12: -0.01 | R12: -0.01 | S12: 0.015 | T12: 0.015 | U12: 0.015 | V12: 0.015 | W12: -0.005 | X12: -0.005 | Y12: -0.005 | Z12: -0.005 | AA12: -0.005 | AB12: -0.005 | AC12: -0.005 | AD12: -0.005 | AE12: -0.005
D13: Base Rebound Case | K13: -0.7 | L13: -0.2 | M13: 0 | N13: 0.8 | O13: 0.2 | P13: 0.04 | Q13: 0.02 | R13: 0.01 | S13: 0.015 | T13: 0.018 | U13: 0.015 | V13: 0.015 | W13: -0.005 | X13: -0.005 | Y13: -0.005 | Z13: -0.005 | AA13: -0.005 | AB13: -0.005 | AC13: -0.005 | AD13: -0.005 | AE13: -0.005
D14: Slow Rebound Case | K14: -0.7 | L14: -0.2 | M14: 0 | N14: 0.4 | O14: 0.1 | P14: 0.05 | Q14: 0.07 | R14: 0.06 | S14: 0.06 | T14: 0.05 | U14: 0.0065 | V14: 0.011 | W14: -0.005 | X14: -0.005 | Y14: -0.005 | Z14: -0.005 | AA14: -0.005 | AB14: -0.005 | AC14: -0.005 | AD14: -0.005 | AE14: -0.005
D15: Fast Rebound Case | K15: -0.7 | L15: -0.2 | M15: 0 | N15: 2.6 | O15: 0.05 | P15: 0.005 | Q15: -0.01 | R15: -0.006883516896 | S15: 0.003 | T15: 0.001 | U15: 0.015 | V15: 0.015 | W15: -0.005 | X15: -0.005 | Y15: -0.005 | Z15: -0.005 | AA15: -0.005 | AB15: -0.005 | AC15: -0.005 | AD15: -0.005 | AE15: -0.005
D16: Base Recovery without Full Rebound | K16: -0.7 | L16: -0.2 | M16: 0 | N16: 0.8 | O16: 0.2 | P16: 0.03 | Q16: 0.01 | R16: 0.01 | S16: 0.02 | T16: 0.018 | U16: 0.015 | V16: 0.015 | W16: -0.005 | X16: -0.005 | Y16: -0.005 | Z16: -0.005 | AA16: -0.005 | AB16: -0.005 | AC16: -0.005 | AD16: -0.005 | AE16: -0.005
D17: Slow Recovery without Full Rebound | K17: -0.7 | L17: -0.2 | M17: 0 | N17: 0.4 | O17: 0.1 | P17: 0.05 | Q17: 0.07 | R17: 0.06 | S17: 0.04 | T17: 0.03 | U17: 0.0065 | V17: 0.011 | W17: -0.005 | X17: -0.005 | Y17: -0.005 | Z17: -0.005 | AA17: -0.005 | AB17: -0.005 | AC17: -0.005 | AD17: -0.005 | AE17: -0.005
D18: More Extreme Decline with Rebound | K18: -0.85 | L18: -0.2 | M18: 0 | N18: 0.4 | O18: 0.2 | P18: 0.16 | Q18: 0.03 | R18: 0.15 | S18: 0.03 | T18: 0.018 | U18: 0.015 | V18: 0.015 | W18: -0.005 | X18: -0.005 | Y18: -0.005 | Z18: -0.005 | AA18: -0.005 | AB18: -0.005 | AC18: -0.005 | AD18: -0.005 | AE18: -0.005 | AH18: =AF27 -> 25544237.96
D19: More Extreme Decline without Rebound | K19: -0.85 | L19: -0.2 | M19: 0 | N19: 0.4 | O19: 0.2 | P19: 0.14 | Q19: 0.02 | R19: 0.12 | S19: 0.03 | T19: 0.018 | U19: 0.015 | V19: 0.015 | W19: -0.005 | X19: -0.005 | Y19: -0.005 | Z19: -0.005 | AA19: -0.005 | AB19: -0.005 | AC19: -0.005 | AD19: -0.005 | AE19: -0.005 | AH19: =AF28 -> 25536452.67
D20: Less Extreme Decline | K20: -0.6 | L20: -0.2 | M20: 0 | N20: 0.36 | O20: 0.2 | P20: 0.04 | Q20: 0.02 | R20: 0.01 | S20: 0.015 | T20: 0.018 | U20: 0.015 | V20: 0.015 | W20: -0.005 | X20: -0.005 | Y20: -0.005 | Z20: -0.005 | AA20: -0.005 | AB20: -0.005 | AC20: -0.005 | AD20: -0.005 | AE20: -0.005 | AH20: =AF29 -> 25503882.92
D22: =INDEX(D12:D15,$E$2) -> Base Rebound Case | K22: =INDEX(K12:K21,$E$2) -> -0.7 | L22: =INDEX(L12:L21,$E$2) -> -0.2 | M22: =INDEX(M12:M21,$E$2) -> 0 | N22: =INDEX(N12:N21,$E$2) -> 0.8 | O22: =INDEX(O12:O21,$E$2) -> 0.2 | P22: =INDEX(P12:P21,$E$2) -> 0.04 | Q22: =INDEX(Q12:Q21,$E$2) -> 0.02 | R22: =INDEX(R12:R21,$E$2) -> 0.01 | S22: =INDEX(S12:S21,$E$2) -> 0.015 | T22: =INDEX(T12:T21,$E$2) -> 0.018 | U22: =INDEX(U12:U21,$E$2) -> 0.015 | V22: =INDEX(V12:V21,$E$2) -> 0.015 | W22: =INDEX(W12:W21,$E$2) -> -0.005 | X22: =INDEX(X12:X21,$E$2) -> -0.005 | Y22: =INDEX(Y12:Y21,$E$2) -> -0.005 | Z22: =INDEX(Z12:Z21,$E$2) -> -0.005 | AA22: =INDEX(AA12:AA21,$E$2) -> -0.005 | AB22: =INDEX(AB12:AB21,$E$2) -> -0.005 | AC22: =INDEX(AC12:AC21,$E$2) -> -0.005 | AD22: =INDEX(AD12:AD21,$E$2) -> -0.005 | AE22: =INDEX(AE12:AE21,$E$2) -> -0.005
C25: Revenues | H25: 2016 | I25: 2017 | J25: 2018 | K25: 2019 | L25: 2020 | M25: 2021 | N25: 2022 | O25: 2023 | P25: 2024 | Q25: 2025 | R25: 2026 | S25: 2027 | T25: 2028 | U25: 2029 | V25: 2030 | W25: 2031 | X25: 2032 | Y25: 2033 | Z25: 2034 | AA25: 2035 | AB25: 2036 | AC25: 2037 | AD25: 2038 | AE25: 2039 | AF25: 2040
C26: Revenues | H26: =SUMIF(Forecast!10:10,Scenarios!H25,Forecast!142:142) -> 27080000 | I26: =SUMIF(Forecast!10:10,Scenarios!I25,Forecast!142:142) -> 25780000 | J26: =SUMIF(Forecast!10:10,Scenarios!J25,Forecast!142:142) -> 25640000 | K26: =SUMIF(Forecast!10:10,Scenarios!K25,Forecast!142:142) -> 25740000 | L26: =SUMIF(Forecast!10:10,Scenarios!L25,Forecast!142:142) -> 25330000 | M26: =SUMIF(Forecast!10:10,Scenarios!M25,Forecast!142:142) -> 12736226.62 | N26: =SUMIF(Forecast!10:10,Scenarios!N25,Forecast!142:142) -> 21811220.81 | O26: =SUMIF(Forecast!10:10,Scenarios!O25,Forecast!142:142) -> 22378264.19 | P26: =SUMIF(Forecast!10:10,Scenarios!P25,Forecast!142:142) -> 22620305.43 | Q26: =SUMIF(Forecast!10:10,Scenarios!Q25,Forecast!142:142) -> 22891614.69 | R26: =SUMIF(Forecast!10:10,Scenarios!R25,Forecast!142:142) -> 23205829.52 | S26: =SUMIF(Forecast!10:10,Scenarios!S25,Forecast!142:142) -> 23564209.68 | T26: =SUMIF(Forecast!10:10,Scenarios!T25,Forecast!142:142) -> 23962978.44 | U26: =SUMIF(Forecast!10:10,Scenarios!U25,Forecast!142:142) -> 24364460.23 | V26: =SUMIF(Forecast!10:10,Scenarios!V25,Forecast!142:142) -> 24733243.68 | W26: =SUMIF(Forecast!10:10,Scenarios!W25,Forecast!142:142) -> 25104242.34 | X26: =SUMIF(Forecast!10:10,Scenarios!X25,Forecast!142:142) -> 25480805.98 | Y26: =SUMIF(Forecast!10:10,Scenarios!Y25,Forecast!142:142) -> 25863018.06 | Z26: =SUMIF(Forecast!10:10,Scenarios!Z25,Forecast!142:142) -> 26214571.67 | AA26: =SUMIF(Forecast!10:10,Scenarios!AA25,Forecast!142:142) -> 26184553 | AB26: =SUMIF(Forecast!10:10,Scenarios!AB25,Forecast!142:142) -> 26053630.24 | AC26: =SUMIF(Forecast!10:10,Scenarios!AC25,Forecast!142:142) -> 25923362.09 | AD26: =SUMIF(Forecast!10:10,Scenarios!AD25,Forecast!142:142) -> 25793745.28 | AE26: =SUMIF(Forecast!10:10,Scenarios!AE25,Forecast!142:142) -> 25664776.55 | AF26: =SUMIF(Forecast!10:10,Scenarios!AF25,Forecast!142:142) -> 25536452.67
D27: =D12 -> No Virus Case | G27: 1 | H27: 27080000 | I27: 25780000 | J27: 25640000 | K27: 25740000 | L27: 25330000 | M27: 24836058.15 | N27: 24388934.57 | O27: 24098798.73 | P27: 23857810.74 | Q27: 23619232.63 | R27: 23423510.25 | S27: 23660032.28 | T27: 24014932.76 | U27: 24375156.76 | V27: 24740784.11 | W27: 25111895.87 | X27: 25488574.31 | Y27: 25870902.92 | Z27: 26222563.7 | AA27: 26192535.89 | AB27: 26061573.21 | AC27: 25931265.34 | AD27: 25801609.01 | AE27: 25672600.97 | AF27: 25544237.96
D28: =D13 -> Base Rebound Case | G28: 2 | H28: 27080000 | I28: 25780000 | J28: 25640000 | K28: 25740000 | L28: 25330000 | M28: 12736226.62 | N28: 21811220.81 | O28: 22378264.19 | P28: 22620305.43 | Q28: 22891614.69 | R28: 23205829.52 | S28: 23564209.68 | T28: 23962978.44 | U28: 24364460.23 | V28: 24733243.68 | W28: 25104242.34 | X28: 25480805.98 | Y28: 25863018.06 | Z28: 26214571.67 | AA28: 26184553 | AB28: 26053630.24 | AC28: 25923362.09 | AD28: 25793745.28 | AE28: 25664776.55 | AF28: 25536452.67
D29: Slow Rebound Case | G29: 3 | H29: 27080000 | I29: 25780000 | J29: 25640000 | K29: 25740000 | L29: 25330000 | M29: 9546096.848 | N29: 16824676.82 | O29: 18378584.93 | P29: 19487491.83 | Q29: 20656741.34 | R29: 21895474.65 | S29: 23164446.29 | T29: 24384182.75 | U29: 25071596.04 | V29: 25266501.44 | W29: 25462469.87 | X29: 25687700.75 | Y29: 25946681.98 | Z29: 26201195.87 | AA29: 26151156.65 | AB29: 26020400.87 | AC29: 25890298.87 | AD29: 25760847.37 | AE29: 25632043.13 | AF29: 25503882.92
D30: Fast Rebound Case | G30: 4 | H30: 27080000 | I30: 25780000 | J30: 25640000 | K30: 25740000 | L30: 25330000 | M30: 17868775.23 | N30: 24879746.87 | O30: 24743934.37 | P30: 24571169.43 | Q30: 24402033.37 | R30: 24250482.38 | S30: 24263686.36 | T30: 24300133.68 | U30: 24402004.61 | V30: 24735738.12 | W30: 25106774.19 | X30: 25483375.81 | Y30: 25865626.44 | Z30: 26217215.5 | AA30: 26187193.81 | AB30: 26056257.84 | AC30: 25925976.55 | AD30: 25796346.67 | AE30: 25667364.93 | AF30: 25539028.11
D31: Base Recovery without Full Rebound | G31: 5 | H31: 27080000 | I31: 25780000 | J31: 25640000 | K31: 25740000 | L31: 25330000 | M31: 12364367.56 | N31: 19600577.57 | O31: 19930543.71 | P31: 20148899.38 | Q31: 20424350.56 | R31: 20775472.48 | S31: 21178286.42 | T31: 21572905.02 | U31: 21937025.39 | V31: 22269066.9 | W31: 22603102.9 | X31: 22942149.45 | Y31: 23286281.69 | Z31: 23602809.95 | AA31: 23575782.05 | AB31: 23457903.14 | AC31: 23340613.63 | AD31: 23223910.56 | AE31: 23107791.01 | AF31: 22992252.05
D32: Slow Recovery without Full Rebound | G32: 6 | H32: 27080000 | I32: 25780000 | J32: 25640000 | K32: 25740000 | L32: 25330000 | M32: 9546096.848 | N32: 16824676.82 | O32: 18377753.1 | P32: 19431747.38 | Q32: 20406276.05 | R32: 21300305.51 | S32: 22113097.58 | T32: 22839468.27 | U32: 23274535.07 | V32: 23448486.69 | W32: 23630354.49 | X32: 23839379.2 | Y32: 24079725.81 | Z32: 24315926.52 | AA32: 24269487.81 | AB32: 24148140.37 | AC32: 24027399.67 | AD32: 23907262.67 | AE32: 23787726.35 | AF32: 23668787.72
D33: More Extreme Decline with Rebound | G33: 7 | H33: 27080000 | I33: 25780000 | J33: 25640000 | K33: 25740000 | L33: 25330000 | M33: 6522842.547 | N33: 17353647.58 | O33: 19083277.28 | P33: 21307971.38 | Q33: 22900951.57 | R33: 23905066.01 | S33: 24577877.9 | T33: 25105204.3 | U33: 25533603.54 | V33: 25920083.3 | W33: 26308884.55 | X33: 26703517.82 | Y33: 27104070.58 | Z33: 27472493.7 | AA33: 27441034.57 | AB33: 27303829.4 | AC33: 27167310.25 | AD33: 27031473.7 | AE33: 26896316.33 | AF33: 26761834.75
D34: More Extreme Decline without Rebound | G34: 8 | H34: 27080000 | I34: 25780000 | J34: 25640000 | K34: 25740000 | L34: 25330000 | M34: 6318848.164 | N34: 15195966.63 | O34: 16328141.37 | P34: 17883972.69 | Q34: 19059457.92 | R34: 19850203.96 | S34: 20406386.63 | T34: 20844212.32 | U34: 21199901.31 | V34: 21520785.62 | W34: 21843597.4 | X34: 22171251.36 | Y34: 22503820.13 | Z34: 22809712.47 | AA34: 22783592.76 | AB34: 22669674.79 | AC34: 22556326.42 | AD34: 22443544.79 | AE34: 22331327.06 | AF34: 22219670.43
D35: Less Extreme Decline | G35: 9 | H35: 27080000 | I35: 25780000 | J35: 25640000 | K35: 25740000 | L35: 25330000 | M35: 13532303.85 | N35: 21972785.41 | O35: 22544029.11 | P35: 22787863.25 | Q35: 23061182.21 | R35: 23377724.56 | S35: 23738759.38 | T35: 24140481.99 | U35: 24544937.71 | V35: 24916452.9 | W35: 25290199.69 | X35: 25669552.69 | Y35: 26054595.98 | Z35: 26408753.68 | AA35: 26378512.65 | AB35: 26246620.09 | AC35: 26115386.99 | AD35: 25984810.06 | AE35: 25854886.01 | AF35: 25725611.58
H38: 2016 | I38: 2017 | J38: 2018 | K38: 2019 | L38: 2020 | M38: 2021 | N38: 2022 | O38: 2023 | P38: 2024 | Q38: 2025 | R38: 2026 | S38: 2027 | T38: 2028 | U38: 2029 | V38: 2030 | W38: 2031 | X38: 2032 | Y38: 2033 | Z38: 2034 | AA38: 2035 | AB38: 2036 | AC38: 2037 | AD38: 2038 | AE38: 2039 | AF38: 2040
C39: Capital Expenditures without Make-up | H39: =SUMIF(Forecast!10:10,Scenarios!H38,Forecast!238:238) -> 1116000 | I39: =SUMIF(Forecast!10:10,Scenarios!I38,Forecast!238:238) -> 235000 | J39: =SUMIF(Forecast!10:10,Scenarios!J38,Forecast!238:238) -> 336000 | K39: =SUMIF(Forecast!10:10,Scenarios!K38,Forecast!238:238) -> 451000 | L39: =SUMIF(Forecast!10:10,Scenarios!L38,Forecast!238:238) -> 972000 | M39: =SUMIF(Forecast!10:10,Scenarios!M38,Forecast!238:238) -> 75102.17013 | N39: =SUMIF(Forecast!10:10,Scenarios!N38,Forecast!238:238) -> 71665.40628 | O39: =SUMIF(Forecast!10:10,Scenarios!O38,Forecast!238:238) -> 147197.4943 | P39: =SUMIF(Forecast!10:10,Scenarios!P38,Forecast!238:238) -> 573874.0687 | Q39: =SUMIF(Forecast!10:10,Scenarios!Q38,Forecast!238:238) -> 632170.7181 | R39: =SUMIF(Forecast!10:10,Scenarios!R38,Forecast!238:238) -> 659186.4119 | S39: =SUMIF(Forecast!10:10,Scenarios!S38,Forecast!238:238) -> 666474.1317 | T39: =SUMIF(Forecast!10:10,Scenarios!T38,Forecast!238:238) -> 673842.4219 | U39: =SUMIF(Forecast!10:10,Scenarios!U38,Forecast!238:238) -> 681292.1731 | V39: =SUMIF(Forecast!10:10,Scenarios!V38,Forecast!238:238) -> 688824.286 | W39: =SUMIF(Forecast!10:10,Scenarios!W38,Forecast!238:238) -> 696439.6712 | X39: =SUMIF(Forecast!10:10,Scenarios!X38,Forecast!238:238) -> 704139.2492 | Y39: =SUMIF(Forecast!10:10,Scenarios!Y38,Forecast!238:238) -> 711923.9509 | Z39: =SUMIF(Forecast!10:10,Scenarios!Z38,Forecast!238:238) -> 719794.7174 | AA39: =SUMIF(Forecast!10:10,Scenarios!AA38,Forecast!238:238) -> 727752.5001 | AB39: =SUMIF(Forecast!10:10,Scenarios!AB38,Forecast!238:238) -> 735798.2611 | AC39: =SUMIF(Forecast!10:10,Scenarios!AC38,Forecast!238:238) -> 743932.9731 | AD39: =SUMIF(Forecast!10:10,Scenarios!AD38,Forecast!238:238) -> 752157.6194 | AE39: =SUMIF(Forecast!10:10,Scenarios!AE38,Forecast!238:238) -> 760473.1943 | AF39: =SUMIF(Forecast!10:10,Scenarios!AF38,Forecast!238:238) -> 768880.7032
D40: No Virus Case | G40: 1 | H40: 1116000 | I40: 235000 | J40: 336000 | K40: 451000 | L40: 972000 | M40: 616904.0502 | N40: 623724.312 | O40: 630619.976 | P40: 637591.876 | Q40: 644640.8546 | R40: 651767.7642 | S40: 658973.4663 | T40: 666258.8318 | U40: 673624.7417 | V40: 681072.0864 | W40: 688601.7661 | X40: 696214.6912 | Y40: 703911.7819 | Z40: 711693.9688 | AA40: 719562.1927 | AB40: 727517.4047 | AC40: 735560.5666 | AD40: 743692.6507 | AE40: 751914.6401 | AF40: 760227.5287
D41: Base Rebound Case | G41: 2 | H41: 1116000 | I41: 235000 | J41: 336000 | K41: 451000 | L41: 972000 | M41: 75102.17013 | N41: 71665.40628 | O41: 147197.4943 | P41: 573874.0687 | Q41: 632170.7181 | R41: 659186.4119 | S41: 666474.1317 | T41: 673842.4219 | U41: 681292.1731 | V41: 688824.286 | W41: 696439.6712 | X41: 704139.2492 | Y41: 711923.9509 | Z41: 719794.7174 | AA41: 727752.5001 | AB41: 735798.2611 | AC41: 743932.9731 | AD41: 752157.6194 | AE41: 760473.1943 | AF41: 768880.7032
D42: Slow Rebound Case | G42: 3 | H42: 1116000 | I42: 235000 | J42: 336000 | K42: 451000 | L42: 972000 | M42: 75102.17013 | N42: 71665.40628 | O42: 147197.4943 | P42: 573874.0687 | Q42: 632170.7181 | R42: 659186.4119 | S42: 666474.1317 | T42: 673842.4219 | U42: 681292.1731 | V42: 688824.286 | W42: 696439.6712 | X42: 704139.2492 | Y42: 711923.9509 | Z42: 719794.7174 | AA42: 727752.5001 | AB42: 735798.2611 | AC42: 743932.9731 | AD42: 752157.6194 | AE42: 760473.1943 | AF42: 768880.7032
D43: Fast Rebound Case | G43: 4 | H43: 1116000 | I43: 235000 | J43: 336000 | K43: 451000 | L43: 972000 | M43: 75102.17013 | N43: 71665.40628 | O43: 147197.4943 | P43: 573874.0687 | Q43: 632170.7181 | R43: 659186.4119 | S43: 666474.1317 | T43: 673842.4219 | U43: 681292.1731 | V43: 688824.286 | W43: 696439.6712 | X43: 704139.2492 | Y43: 711923.9509 | Z43: 719794.7174 | AA43: 727752.5001 | AB43: 735798.2611 | AC43: 743932.9731 | AD43: 752157.6194 | AE43: 760473.1943 | AF43: 768880.7032
C45: Capital Expenditure versus Base Case | G45: ='Model Parameters'!G32 -> 24
D46: No Virus Case | H46: =H40-H$40 -> 0 | I46: =I40-I$40 -> 0 | J46: 0 | K46: 0 | L46: 0 | M46: 0 | N46: 0 | O46: 0 | P46: 0 | Q46: 0 | R46: 0 | S46: 0 | T46: 0 | U46: 0 | V46: 0 | W46: 0 | X46: 0 | Y46: 0 | Z46: 0 | AA46: 0 | AB46: 0 | AC46: 0 | AD46: 0 | AE46: 0 | AF46: 0
D47: Base Rebound Case | F47: =-SUM(H47:O47) -> 1577283.267 | G47: =F47/$G$45 -> 65720.13614 | H47: =H41-H$40 -> 0 | I47: 0 | J47: 0 | K47: 0 | L47: 0 | M47: -541801.88 | N47: -552058.9057 | O47: -483422.4817 | P47: -63717.80722 | Q47: -12470.13653 | R47: 7418.647645 | S47: 7500.665455 | T47: 7583.590023 | U47: 7667.431374 | V47: 7752.199644 | W47: 7837.905081 | X47: 7924.558045 | Y47: 8012.169012 | Z47: 8100.748573 | AA47: 8190.307437 | AB47: 8280.85643 | AC47: 8372.4065 | AD47: 8464.968713 | AE47: 8558.554259 | AF47: 8653.174452
D48: Slow Rebound Case | F48: =-SUM(H48:O48) -> 1577283.267 | G48: =F48/$G$45 -> 65720.13614 | H48: 0 | I48: 0 | J48: 0 | K48: 0 | L48: 0 | M48: -541801.88 | N48: -552058.9057 | O48: -483422.4817 | P48: -63717.80722 | Q48: -12470.13653 | R48: 7418.647645 | S48: 7500.665455 | T48: 7583.590023 | U48: 7667.431374 | V48: 7752.199644 | W48: 7837.905081 | X48: 7924.558045 | Y48: 8012.169012 | Z48: 8100.748573 | AA48: 8190.307437 | AB48: 8280.85643 | AC48: 8372.4065 | AD48: 8464.968713 | AE48: 8558.554259 | AF48: 8653.174452
D49: Fast Rebound Case | F49: 1577283.267 | G49: 65720.13614 | H49: 0 | I49: 0 | J49: 0 | K49: 0 | L49: 0 | M49: -541801.88 | N49: -552058.9057 | O49: -483422.4817 | P49: -63717.80722 | Q49: -12470.13653 | R49: 7418.647645 | S49: 7500.665455 | T49: 7583.590023 | U49: 7667.431374 | V49: 7752.199644 | W49: 7837.905081 | X49: 7924.558045 | Y49: 8012.169012 | Z49: 8100.748573 | AA49: 8190.307437 | AB49: 8280.85643 | AC49: 8372.4065 | AD49: 8464.968713 | AE49: 8558.554259 | AF49: 8653.174452
B56: General Assumptions Other Than Volumes
C57: Minimum Purchases to Meet Sales
C58: Administrative Expense Fixed Percent
B77: Price Increase Scenario | G77: 1
C79: Price Increase | G79: =G8 -> 2016-02-29 | H79: =EOMONTH(G79,12) -> 2017-02-28 | I79: =EOMONTH(H79,12) -> 2018-02-28 | J79: 2019-02-28 | K79: =K8 -> 2020-03-31 | L79: =L8 -> 2020-04-30 | M79: 2020-05-31 | N79: 2020-07-31 | O79: 2020-07-31 | P79: 2021-02-28 | Q79: 2021-07-31 | R79: 2022-11-30 | S79: 2025-11-30 | T79: 2027-11-30 | U79: 2028-11-30 | V79: 2032-11-30 | W79: 2033-11-30 | X79: 2034-11-30 | Y79: 2035-11-30 | Z79: 2036-11-30 | AA79: 2037-11-30 | AB79: 2038-11-30 | AC79: 2039-11-30 | AD79: 2040-11-30 | AE79: 2041-11-30
D80: No Virus Case | G80: 0.01 | H80: 0 | I80: 0 | J80: 0 | K80: 0.0005 | L80: 0.0005 | M80: 0.0005 | N80: 0.0005 | O80: 0.0005 | P80: 0.0005 | Q80: 0.0005 | R80: 0.0005 | S80: 0.0005 | T80: 0.0005 | U80: 0.0005 | V80: 0.0005 | W80: 0.0005 | X80: 0.0005 | Y80: 0.0005 | Z80: 0.0005 | AA80: 0.0005 | AB80: 0.0005 | AC80: 0.0005 | AD80: 0.0005 | AE80: 0.0005
D81: Base | G81: 0.01 | H81: 0 | I81: 0 | J81: 0 | K81: 0 | L81: 0 | M81: 0 | N81: 0 | O81: 0 | P81: 0 | Q81: 0 | R81: 0 | S81: 0 | T81: 0 | U81: 0 | V81: 0 | W81: 0 | X81: 0 | Y81: 0 | Z81: 0 | AA81: 0 | AB81: 0 | AC81: 0 | AD81: 0 | AE81: 0
D82: Base Rebound Case | G82: 0.01 | H82: 0 | I82: 0 | J82: 0 | K82: 0 | L82: 0 | M82: 0 | N82: -0.05 | O82: -0.05 | P82: 0.025 | Q82: 0 | R82: 0.03 | S82: 0.03 | T82: 0.03 | U82: 0.03 | V82: 0.03 | W82: 0.03 | X82: 0.03 | Y82: 0.03 | Z82: 0.03 | AA82: 0.03 | AB82: 0.03 | AC82: 0.03 | AD82: 0.03 | AE82: 0.03
D83: Slow Rebound Case | G83: 0.01 | H83: 0 | I83: 0 | J83: 0 | K83: 0 | L83: 0 | M83: 0 | N83: -0.05 | O83: -0.05 | P83: 0.025 | Q83: 0 | R83: 0.03 | S83: 0.03 | T83: 0.03 | U83: 0.03 | V83: 0.03 | W83: 0.03 | X83: 0.03 | Y83: 0.03 | Z83: 0.03 | AA83: 0.03 | AB83: 0.03 | AC83: 0.03 | AD83: 0.03 | AE83: 0.03
D84: Fast Rebound Case | G84: 0.01 | H84: 0 | I84: 0 | J84: 0 | K84: 0 | L84: 0 | M84: 0 | N84: -0.05 | O84: -0.05 | P84: 0 | Q84: 0.01 | R84: 0.02 | S84: 0.03 | T84: 0.03 | U84: 0.03 | V84: 0.03 | W84: 0.03 | X84: 0.03 | Y84: 0.03 | Z84: 0.03 | AA84: 0.03 | AB84: 0.03 | AC84: 0.03 | AD84: 0.03 | AE84: 0.03
C86: Cost of Goods Sold Margin | G86: 2016 | K86: 2017 | L86: 2018 | M86: 2019 | N86: 2020 | O86: 2021 | P86: 2022 | Q86: 2023 | R86: 2024 | S86: 2025
D87: No Virus Case | G87: =Forecast!I149 -> 0.6093057607
D88: Short-term Reduced Margin
D89: Long-term Reduced Margin
C98: Months of Inventory
D99: No Virus Case | K99: 4 | L99: 4 | M99: 4 | N99: 4 | O99: 4 | P99: 4 | Q99: 4 | R99: 4 | S99: 4 | T99: 4 | U99: 4 | V99: 4 | W99: 4 | X99: 4 | Y99: 4 | Z99: 4 | AA99: 4 | AB99: 4 | AC99: 4 | AD99: 4 | AE99: 4
D100: Base Rebound Case | K100: 4 | L100: 4 | M100: 4 | N100: 4 | O100: 4 | P100: 4 | Q100: 4 | R100: 4 | S100: 4 | T100: 4 | U100: 4 | V100: 4 | W100: 4 | X100: 4 | Y100: 4 | Z100: 4 | AA100: 4 | AB100: 4 | AC100: 4 | AD100: 4 | AE100: 4
D101: Slow Rebound Case | K101: 4 | L101: 4 | M101: 4 | N101: 4 | O101: 4 | P101: 4 | Q101: 4 | R101: 4 | S101: 4 | T101: 4 | U101: 4 | V101: 4 | W101: 4 | X101: 4 | Y101: 4 | Z101: 4 | AA101: 4 | AB101: 4 | AC101: 4 | AD101: 4 | AE101: 4
D102: Fast Rebound Case | K102: 4 | L102: 4 | M102: 4 | N102: 4 | O102: 4 | P102: 4 | Q102: 4 | R102: 4 | S102: 4 | T102: 4 | U102: 4 | V102: 4 | W102: 4 | X102: 4 | Y102: 4 | Z102: 4 | AA102: 4 | AB102: 4 | AC102: 4 | AD102: 4 | AE102: 4
D104: =INDEX(D99:D102,$E$2) -> Base Rebound Case | K104: =INDEX(K99:K102,$E$2) -> 4 | L104: =INDEX(L99:L102,$E$2) -> 4 | M104: =INDEX(M99:M102,$E$2) -> 4 | N104: =INDEX(N99:N102,$E$2) -> 4 | O104: =INDEX(O99:O102,$E$2) -> 4 | P104: =INDEX(P99:P102,$E$2) -> 4 | Q104: =INDEX(Q99:Q102,$E$2) -> 4 | R104: =INDEX(R99:R102,$E$2) -> 4 | S104: =INDEX(S99:S102,$E$2) -> 4 | T104: =INDEX(T99:T102,$E$2) -> 4 | U104: =INDEX(U99:U102,$E$2) -> 4 | V104: =INDEX(V99:V102,$E$2) -> 4 | W104: =INDEX(W99:W102,$E$2) -> 4 | X104: =INDEX(X99:X102,$E$2) -> 4 | Y104: =INDEX(Y99:Y102,$E$2) -> 4 | Z104: =INDEX(Z99:Z102,$E$2) -> 4 | AA104: =INDEX(AA99:AA102,$E$2) -> 4 | AB104: =INDEX(AB99:AB102,$E$2) -> 4 | AC104: =INDEX(AC99:AC102,$E$2) -> 4 | AD104: =INDEX(AD99:AD102,$E$2) -> 4 | AE104: =INDEX(AE99:AE102,$E$2) -> 4
D112: Graph Year End | G112: 2020 | H112: =DATE(G112,1,1) -> 2020-01-01
G113: 2021 | H113: =DATE(G113,1,1) -> 2021-01-01 | K113: 10
G114: 2022 | H114: 2022-01-01
G115: 2023 | H115: 2023-01-01 | K115: =INDEX(H112:H225,K113) -> 2029-01-01
G116: 2024 | H116: 2024-01-01
G117: 2025 | H117: 2025-01-01
G118: 2026 | H118: 2026-01-01
G119: 2027 | H119: 2027-01-01
G120: 2028 | H120: 2028-01-01
G121: 2029 | H121: 2029-01-01
G122: 2030 | H122: 2030-01-01
G123: 2031 | H123: 2031-01-01
G124: 2032 | H124: 2032-01-01
G125: 2033 | H125: 2033-01-01
G126: 2034 | H126: 2034-01-01
G127: 2035 | H127: 2035-01-01
G128: 2036 | H128: 2036-01-01
G129: 2037 | H129: 2037-01-01
G130: 2038 | H130: 2038-01-01
G131: 2039 | H131: 2039-01-01
G132: 2040 | H132: 2040-01-01
G133: 2041 | H133: 2041-01-01
G134: 2042 | H134: 2042-01-01
G135: 2043 | H135: 2043-01-01
G136: 2044 | H136: 2044-01-01
G137: 2045 | H137: 2045-01-01
G138: 2046 | H138: 2046-01-01
G139: 2047 | H139: 2047-01-01
G140: 2048 | H140: 2048-01-01
G141: 2049 | H141: 2049-01-01
G142: 2050 | H142: 2050-01-01

Sheet Master Scenario
E2: Scenario Number | F2: 1
B3: Scenario Definition
E4: Demand Scenario | G4: WACC | H4: Terminal Growth | I4: Long-term ROIC | J4: EV/EBITDA | K4: Explicit Period (Years) | L4: Base Cap Exp/Dep | M4: Reduced Cap Exp/Dep | N4: COGS Percent | O4: Price Increase Percent | P4: Fixed SG&A Percent | Q4: SG&A Fixed Increase | R4: Min Purchase %
C5: 1 | D5: Base Case | E5: 1 | F5: =INDEX(Scenarios!$D$12:$D$20,'Master Scenario'!E5) -> No Virus Case | G5: 0.075 | H5: 0.005 | I5: 0.06 | J5: 6.5 | K5: 10 | L5: 1.2 | M5: 0.15 | N5: 0.592 | O5: 0 | P5: 0.43 | Q5: 0.01 | R5: 0.3
C6: 2 | D6: Low WACC Case | E6: 1 | F6: =INDEX(Scenarios!$D$12:$D$20,'Master Scenario'!E6) -> No Virus Case | G6: 0.06 | H6: 0 | I6: 0.065 | J6: 8 | K6: 10 | L6: 1.2 | M6: 0.15 | N6: 0.592 | O6: 0 | P6: 0.43 | Q6: 0.01 | R6: 0.3
C7: 3 | D7: Higher Income | E7: 1 | F7: =INDEX(Scenarios!$D$12:$D$20,'Master Scenario'!E7) -> No Virus Case | G7: 0.075 | H7: 0.005 | I7: 0.06 | J7: 6.5 | K7: 10 | L7: 1.2 | M7: 0.15 | N7: 0.59 | O7: 0.01 | P7: 0.43 | Q7: 0.01 | R7: 0.3
C8: 4 | D8: Lower Income | E8: 1 | F8: =INDEX(Scenarios!$D$12:$D$20,'Master Scenario'!E8) -> No Virus Case | G8: 0.075 | H8: 0.005 | I8: 0.06 | J8: 6.5 | K8: 10 | L8: 1.35 | M8: 0.15 | N8: 0.59 | O8: 0 | P8: 0.43 | Q8: 0.01 | R8: 0.3
C9: 5 | D9: Higher Price | E9: 1 | F9: =INDEX(Scenarios!$D$12:$D$20,'Master Scenario'!E9) -> No Virus Case | G9: 0.075 | H9: 0.005 | I9: 0.06 | J9: 6.5 | K9: 10 | L9: 1.2 | M9: 0.15 | N9: 0.592 | O9: 0.005 | P9: 0.43 | Q9: 0.01 | R9: 0.3
C10: 6 | D10: Higher Capital Expenditures | E10: 1 | F10: =INDEX(Scenarios!$D$12:$D$20,'Master Scenario'!E10) -> No Virus Case | G10: 0.075 | H10: 0.005 | I10: 0.06 | J10: 6.5 | K10: 10 | L10: 1.2 | M10: 0.15 | N10: 0.592 | O10: 0 | P10: 0.43 | Q10: 0.01 | R10: 0.3
C11: 7 | D11: Virus Case with Higher Variable Percent | E11: 2 | F11: =INDEX(Scenarios!$D$12:$D$20,'Master Scenario'!E11) -> Base Rebound Case | G11: 0.075 | H11: 0.005 | I11: 0.06 | J11: 6.5 | K11: 10 | L11: 1.2 | M11: 0.15 | N11: 0.592 | O11: 0 | P11: 0.2 | Q11: 0.01 | R11: 0.3
C12: 8 | D12: Virus Case with Lower Purchase Percent | E12: 2 | F12: =INDEX(Scenarios!$D$12:$D$20,'Master Scenario'!E12) -> Base Rebound Case | G12: 0.075 | H12: 0.005 | I12: 0.06 | J12: 6.5 | K12: 10 | L12: 1.2 | M12: 0.15 | N12: 0.592 | O12: 0 | P12: 0.43 | Q12: 0.01 | R12: 0.15
C13: 9 | D13: Virus Case with Lower Capital Exp | E13: 2 | F13: =INDEX(Scenarios!$D$12:$D$20,'Master Scenario'!E13) -> Base Rebound Case | G13: 0.075 | H13: 0.005 | I13: 0.06 | J13: 6.5 | K13: 10 | L13: 1.2 | M13: 0.05 | N13: 0.592 | O13: 0 | P13: 0.43 | Q13: 0.01 | R13: 0.3
C14: 10 | D14: Mitigated Virus Case | E14: 2 | F14: =INDEX(Scenarios!$D$12:$D$20,'Master Scenario'!E14) -> Base Rebound Case | G14: 0.075 | H14: 0.005 | I14: 0.06 | J14: 6.5 | K14: 10 | L14: 1.2 | M14: 0.05 | N14: 0.592 | O14: 0 | P14: 0.2 | Q14: 0.01 | R14: 0.15
D16: =INDEX(D5:D14,$F$2) -> Base Case | E16: =INDEX(E5:E14,$F$2) -> 1 | F16: =INDEX(F5:F14,$F$2) -> No Virus Case | G16: =INDEX(G5:G14,$F$2) -> 0.075 | H16: =INDEX(H5:H14,$F$2) -> 0.005 | I16: =INDEX(I5:I14,$F$2) -> 0.06 | J16: =INDEX(J5:J14,$F$2) -> 6.5 | K16: =INDEX(K5:K14,$F$2) -> 10 | L16: =INDEX(L5:L14,$F$2) -> 1.2 | M16: =INDEX(M5:M14,$F$2) -> 0.15 | N16: =INDEX(N5:N14,$F$2) -> 0.592 | O16: =INDEX(O5:O14,$F$2) -> 0 | P16: =INDEX(P5:P14,$F$2) -> 0.43 | Q16: =INDEX(Q5:Q14,$F$2) -> 0.01 | R16: =INDEX(R5:R14,$F$2) -> 0.3
G18: 750 | H18: 50 | I18: 600 | J18: 65 | K18: 10 | L18: 12000 | M18: 1500 | N18: 5920 | O18: 0 | P18: 4300 | Q18: 100 | R18: 3000
B19: Summary of Cases
F20: Terminal Value | G20: Growth | H20: EV/EBITDA | I20: Driver 1 | J20: Driver 2
E22: 1 | F22: =D5 -> Base Case | G22: 15.61200024 | H22: 15.07823677 | I22: 25.30843053 | J22: 17.80589758
E23: 2 | F23: =D6 -> Low WACC Case | G23: 23.38298913 | H23: 24.18347868 | I23: 39.8660685 | J23: 31.71703826
E24: 3 | F24: Higher Income | G24: 33.88247518 | H24: 27.78287716 | I24: 44.73536842 | J24: 23.48597053
E25: 4 | F25: Lower Income | G25: 11.8120958 | H25: 14.05163017 | I25: 24.02834827 | J25: 17.37702235
E26: 5 | F26: Higher Price | G26: 23.66783108 | H26: 20.61819451 | I26: 33.85523915 | J26: 20.1785976
E27: 6 | F27: Higher Capital Expenditures | G27: 15.61200024 | H27: 15.07823677 | I27: 25.30843053 | J27: 17.80589758
E28: 7 | F28: Virus Case with Higher Variable Percent | G28: 22.52033379 | H28: 20.38149184 | I28: 32.93104047 | J28: 20.84576077
E29: 8 | F29: Virus Case with Lower Purchase Percent | G29: 15.61200024 | H29: 15.07823677 | I29: 25.30843053 | J29: 17.80589758
E30: 9 | F30: Virus Case with Lower Capital Exp | G30: 15.61200024 | H30: 15.07823677 | I30: 25.30843053 | J30: 17.80589758
E31: 10 | F31: Mitigated Virus Case | G31: 22.52033379 | H31: 20.38149184 | I31: 32.93104047 | J31: 20.84576077
G43: =Valuation!M10 -> 6.195898019 | H43: =Valuation!M11 -> 5.815798499 | I43: =Valuation!M12 -> 15.92509103 | J43: =Valuation!M13 -> 8.705109382

Sheet Historical
A1: Profit and Loss | E1: Macys
C2: All values USD millions.
C3: Fiscal Year | E3: 2016 | F3: 2017 | G3: 2018 | H3: 2019 | I3: 2020
C4: Income Statement | E4: 2016-02-29 | F4: 2017-02-28 | G4: 2018-02-28 | H4: 2019-02-28 | I4: 2020-02-29
D5: Sales/Revenue | E5: 27080000 | F5: 25780000 | G5: 25640000 | H5: 25740000 | I5: 25330000
D6: COGS excluding D&A | E6: 16500000 | F6: 15620000 | G6: 15180000 | H6: 15220000 | I6: 15170000
D7: Cash Gross Margin | E7: 10580000 | F7: 10160000 | G7: 10460000 | H7: 10520000 | I7: 10160000
D8: Research & Development | E8: 0 | F8: 0 | G8: 0 | H8: 0 | I8: 0
D9: Other SG&A | E9: 7200000 | F9: 7270000 | G9: 7820000 | H9: 7950000 | I9: 7900000
D10: Other Operating Expense | E10: 0 | F10: 145000 | G10: 144000 | H10: 130000 | I10: 120000
D11: EBITDA Calculated | E11: 3380000 | F11: 2745000 | G11: 2496000 | H11: 2440000 | I11: 2140000
D12: Unusual Expense | E12: 288000 | F12: 577000 | G12: 176000 | H12: 169000 | I12: 384000
D13: Depreciation | E13: 1039999.938 | F13: 1050000 | G13: 981000 | H13: 952000 | I13: 693000
D14: Amortization of Intangibles | E14: 23000 | F14: 10000 | G14: 10000 | H14: 10000 | I14: 288000
D15: EBIT Computed | E15: 2029000.062 | F15: 1108000 | G15: 1329000 | H15: 1309000 | I15: 775000
D16: Non Operating Income/Expense | E16: 0 | F16: 209000 | G16: 496000 | H16: 340000 | I16: 135000
D17: Non-Operating Interest Income | E17: 2000 | F17: 4000 | G17: 11000 | H17: 25000 | I17: 20000
D18: Equity in Affiliates (Pretax) | E18: 0 | F18: 0 | G18: 0 | H18: 0 | I18: 0
D19: Interest Expense | E19: 363000 | F19: 367000 | G19: 321000 | H19: 261000 | I19: 205000
D20: Pretax Income Computed | E20: 1668000.062 | F20: 954000 | G20: 1515000 | H20: 1413000 | I20: 725000
D21: Income Tax | E21: 608000 | F21: 341000 | G21: -39000 | H21: 322000 | I21: 164000
D22: Equity in Affiliates | E22: 0 | F22: 0 | G22: 0 | H22: 0 | I22: 0
D23: Other After Tax Income (Expense) | E23: 0 | F23: 0 | G23: 0 | H23: 0 | I23: 0
D24: Consolidated Net Income | E24: 1070000 | F24: 611000 | G24: 1560000 | H24: 1100000 | I24: 564000
D25: Other Reconciling Item (Income) | E25: 9999.9375 | F25: -2000 | G25: 6000 | H25: 9000 | I25: 3000
D26: Net Income Computed | E26: 1070000 | F26: 611000 | G26: 1560000 | H26: 1100000 | I26: 564000
D27: Minority Interest Expense | E27: -2000 | F27: -8000 | G27: -11000 | H27: -10000 | I27: 0
D28: Net Income | E28: 1070000 | F28: 619000 | G28: 1570000 | H28: 1110000 | I28: 564000
D29: Extraordinaries & Discontinued Operations | E29: 0 | F29: 0 | G29: 0 | H29: 0 | I29: 0
D30: Net Income After Extraordinaries | E30: 1070000 | F30: 619000 | G30: 1570000 | H30: 1110000 | I30: 564000
D31: Preferred Dividends | E31: 0 | F31: 0 | G31: 0 | H31: 0 | I31: 0
D32: Net Income Available to Common | E32: 1070000 | F32: 619000 | G32: 1570000 | H32: 1110000 | I32: 564000
D34: EPS (Basic) | E34: 3.26 | F34: 2.01 | G34: 5.13 | H34: 3.6 | I34: 1.82
D35: Basic Shares Outstanding | E35: 328400 | F35: 308500 | G35: 305400 | H35: 307700 | I35: 309700
D36: EPS (Diluted) | E36: 3.22 | F36: 1.99 | G36: 5.1 | H36: 3.56 | I36: 1.81
D37: Diluted Shares Outstanding | E37: 333000 | F37: 310800 | G37: 306800 | H37: 311400 | I37: 311400
A39: Cash Flow
B40: View Ratios
B41: All values USD millions.
B42: Fiscal Year | E42: 2016 | F42: 2017 | G42: 2018 | H42: 2019 | I42: 2020
D43: Net Income before Extraordinaries | E43: 1070000 | F43: 611000 | G43: 1560000 | H43: 1100000 | I43: 564000
D44: Depreciation, Depletion & Amortization | E44: 1060000 | F44: 1060000 | G44: 991000 | H44: 962000 | I44: 981000
D45: Deferred Taxes & Investment Tax Credit | E45: -1000 | F45: -139000 | G45: -421000 | H45: 112000 | I45: -6000
D46: Other Funds | E46: 335000 | F46: 415000 | G46: -240000 | H46: -117000 | I46: 320000
D47: Funds from Operations | E47: =SUM(E43:E46) -> 2464000 | F47: =SUM(F43:F46) -> 1947000 | G47: 1890000 | H47: 2057000 | I47: 1859000
D48: Extraordinaries | E48: 0 | F48: 0 | G48: 0 | H48: 0 | I48: 0
D49: Changes in Working Capital | E49: -485000 | F49: -144000 | G49: 91000 | H49: -320000 | I49: -254000
D50: Net Operating Cash Flow | E50: =E47+E49 -> 1979000 | F50: =F47+F49 -> 1803000 | G50: 1981000 | H50: 1737000 | I50: 1605000
D51: Investing Activities
D52: Capital Expenditures (Fixed Assets) | E52: -777000 | F52: -596000 | G52: -487000 | H52: -657000 | I52: -902000
D53: Capital Expenditures (Other Assets) | E53: -336000 | F53: -316000 | G53: -273000 | H53: -275000 | I53: -255000
D54: Net Assets from Acquisitions | E54: -212000 | F54: 0 | G54: 0 | H54: 0 | I54: 0
D55: Sale of Fixed Assets & Businesses | E55: 209000 | F55: 677000 | G55: 424000 | H55: 481000 | I55: 185000
E56: FALSE | F56: FALSE | G56: FALSE | H56: FALSE | I56: FALSE
D57: Purchase/Sale of Investments | E57: 0 | F57: 0 | G57: 0 | H57: 0 | I57: 0
D58: Other Uses | E58: 0 | F58: 0 | G58: -2000 | H58: 0 | I58: -30000
D59: Other Sources | E59: 29000 | F59: 52000 | G59: 0 | H59: 2000 | I59: 0
D60: Net Investing Cash Flow | E60: -1087000 | F60: -183000 | G60: -338000 | H60: -449000 | I60: -1002000
D61: Financing Activities
D62: Common Dividends | E62: -456000 | F62: -459000 | G62: -461000 | H62: -463000 | I62: -466000
D63: Preferred Dividends | E63: 0 | F63: 0 | G63: 0 | H63: 0 | I63: 0
D64: Change in Capital Stock | E64: -1840000 | F64: -280000 | G64: 5000 | H64: 45000 | I64: 5000
D65: Repurchase of Common & Preferred Stk. | E65: -2000000 | F65: -316000 | G65: -1000 | H65: 0 | I65: -1000
D66: Sale of Common & Preferred Stock | E66: 163000 | F66: 36000 | G66: 6000 | H66: 45000 | I66: 6000
D67: Issuance/Reduction of Debt, Net | E67: 260000 | F67: -691000 | G67: -1000000 | H67: -1130000 | I67: -659000
D68: Change in Current Debt | E68: 0 | F68: 0 | G68: 0 | H68: 0 | I68: 0
D69: Change in Long-Term Debt | E69: 343000 | F69: -752000 | G69: -988000 | H69: -1150000 | I69: -597000
D70: Issuance of Long-Term Debt | E70: 495000 | F70: -1000 | G70: 0 | H70: 0 | I70: 0
D71: Reduction in Long-Term Debt | E71: -152000 | F71: -751000 | G71: -988000 | H71: -1150000 | I71: -597000
D72: Other Funds | E72: 335000 | F72: 415000 | G72: -240000 | H72: -117000 | I72: 320000
D73: Other Uses | E73: 0 | F73: 0 | G73: -2000 | H73: 0 | I73: -30000
D74: Other Sources | E74: 29000 | F74: 52000 | G74: 0 | H74: 2000 | I74: 0
D75: Net Financing Cash Flow | E75: 0 | F75: 0 | G75: 0 | H75: 0 | I75: 0
D77: Exchange Rate Effect | E77: 0 | F77: 0 | G77: 0 | H77: 0 | I77: 0
D78: Miscellaneous Funds | E78: 0 | F78: 0 | G78: 0 | H78: 0 | I78: 0
D79: Net Change in Cash | E79: -1140000 | F79: 188000 | G79: 179000 | H79: -265000 | I79: -517000
D80: Free Cash Flow | E80: 1210000 | F80: 1210000 | G80: 1490000 | H80: 1080000 | I80: 703000
A82: Balance Sheet
B83: View Ratios
B84: All values USD millions.
B85: Fiscal Year | E85: 2016 | F85: 2017 | G85: 2018 | H85: 2019 | I85: 2020
C86: Assets
D87: Cash & Short Term Investments | E87: 1150000 | F87: 1330000 | G87: 1490000 | H87: 1200000 | I87: 722000
D88: Total Accounts Receivable | E88: 558000 | F88: 522000 | G88: 363000 | H88: 400000 | I88: 556000
D89: Inventories | E89: 5510000 | F89: 5400000 | G89: 5180000 | H89: 5260000 | I89: 5190000
D90: Progress Payments & Other | E90: 0 | F90: 0 | G90: 0 | H90: 0 | I90: 0
D91: Other Current Assets | E91: 442000 | F91: 371000 | G91: 613000 | H91: 583000 | I91: 344000
D92: Total Current Assets | E92: 7660000 | F92: 7623000 | G92: 7646000 | H92: 7443000 | I92: 6812000
D93: Property, Plant & Equipment - Gross | E93: 12940000 | F93: 11870000 | G93: 11280000 | H93: 11130000 | I93: 13710000
D94: Accumulated Depreciation | E94: 5320000 | F94: 4860000 | G94: 4610000 | H94: 4500000 | I94: 4400000
D95: Net Property, Plant & Equipment | E95: 7620000 | F95: 7020000 | G95: 6670000 | H95: 6640000 | I95: 9300000
D96: Total Investments and Advances | E96: 0 | F96: 0 | G96: 0 | H96: 0 | I96: 0
D97: Intangible Assets | E97: 4410000 | F97: 4400000 | G97: 4390000 | H97: 4390000 | I97: 4990000
D98: Other Assets | E98: 897000 | F98: 813000 | G98: 880000 | H98: 726000 | I98: 72000
D99: Total Assets | E99: 20587000 | F99: 19856000 | G99: 19586000 | H99: 19199000 | I99: 21174000
C101: Liabilities & Shareholders' Equity
D102: ST Debt & Current Portion LT Debt | E102: 642000 | F102: 309000 | G102: 22000 | H102: 43000 | I102: 872000
D103: Accounts Payable | E103: 2340000 | F103: 2180000 | G103: 2330000 | H103: 2640000 | I103: 2660000
D104: Income Tax Payable | E104: 227000 | F104: 352000 | G104: 296000 | H104: 168000 | I104: 81000
D105: Other Current Liabilities | E105: 2520000 | F105: 2810000 | G105: 2540000 | H105: 2380000 | I105: 2140000
D106: Total Current Liabilities | E106: 5729000 | F106: 5651000 | G106: 5188000 | H106: 5231000 | I106: 5753000
D107: Long-Term Debt | E107: 7000000 | F107: 6560000 | G107: 5860000 | H107: 4710000 | I107: 6540000
D108: Provision for Risks & Charges | E108: 1630000 | F108: 1350000 | G108: 1180000 | H108: 1090000 | I108: 1100000
D109: Deferred Taxes | E109: 1480000 | F109: 1440000 | G109: 1150000 | H109: 1240000 | I109: 1170000
D110: Other Liabilities | E110: 497000 | F110: 532000 | G110: 483000 | H110: 492000 | I110: 240000
D111: Reconciling Liabilities | E111: 1000 | F111: 3000 | G111: -5000 | H111: -4000 | I111: -9000
D112: Total Liabilities | E112: 16337000 | F112: 15536000 | G112: 13856000 | H112: 12759000 | I112: 14794000
D113: Total Shareholders' Equity | E113: 4250000 | F113: 4320000 | G113: 5750000 | H113: 6440000 | I113: 6380000
D114: Accumulated Minority Interest | E114: 3000 | F114: -1000 | G114: -12000 | H114: 0 | I114: 0
D115: Total Equity | E115: 4250000 | F115: 4320000 | G115: 5730000 | H115: 6440000 | I115: 6380000
D116: Liabilities & Shareholders' Equity | E116: 20587000 | F116: 19856000 | G116: 19586000 | H116: 19199000 | I116: 21174000

Sheet Forecast
B1: Profit and Loss | F1: Units | G1: Driver | H1: Sum
D2: All values USD millions.
D3: Period | I3: 1 | J3: 2 | K3: 3 | L3: 4 | M3: 5 | N3: 6 | O3: 7 | P3: 8 | Q3: 9 | R3: 10 | S3: 11 | T3: 12 | U3: 13 | V3: 14 | W3: 15 | X3: 16 | Y3: 17 | Z3: 18 | AA3: 19 | AB3: 20 | AC3: 21 | AD3: 22 | AE3: 23 | AF3: 24 | AG3: 25 | AH3: 26 | AI3: 27 | AJ3: 28 | AK3: 29 | AL3: 30 | AM3: 31 | AN3: 32 | AO3: 33 | AP3: 34 | AQ3: 35 | AR3: 36 | AS3: 37 | AT3: 38 | AU3: 39 | AV3: 40 | AW3: 41 | AX3: 42 | AY3: 43 | AZ3: 44 | BA3: 45 | BB3: 46 | BC3: 47 | BD3: 48 | BE3: 49 | BF3: 50 | BG3: 51 | BH3: 52 | BI3: 53 | BJ3: 54 | BK3: 55 | BL3: 56 | BM3: 57 | BN3: 58 | BO3: 59 | BP3: 60 | BQ3: 61 | BR3: 62 | BS3: 63 | BT3: 64 | BU3: 65 | BV3: 66 | BW3: 67 | BX3: 68 | BY3: 69 | BZ3: 70 | CA3: 71 | CB3: 72 | CC3: 73 | CD3: 74 | CE3: 75 | CF3: 76 | CG3: 77 | CH3: 78 | CI3: 79 | CJ3: 80 | CK3: 81 | CL3: 82 | CM3: 83 | CN3: 84 | CO3: 85 | CP3: 86 | CQ3: 87 | CR3: 88 | CS3: 89 | CT3: 90 | CU3: 91 | CV3: 92 | CW3: 93 | CX3: 94 | CY3: 95 | CZ3: 96 | DA3: 97 | DB3: 98 | DC3: 99 | DD3: 100 | DE3: 101 | DF3: 102 | DG3: 103 | DH3: 104 | DI3: 105 | DJ3: 106 | DK3: 107 | DL3: 108 | DM3: 109 | DN3: 110 | DO3: 111 | DP3: 112 | DQ3: 113 | DR3: 114 | DS3: 115 | DT3: 116 | DU3: 117 | DV3: 118 | DW3: 119 | DX3: 120 | DY3: 121 | DZ3: 122 | EA3: 123 | EB3: 124 | EC3: 125 | ED3: 126 | EE3: 127 | EF3: 128 | EG3: 129 | EH3: 130 | EI3: 131 | EJ3: 132 | EK3: 133 | EL3: 134 | EM3: 135 | EN3: 136 | EO3: 137 | EP3: 138 | EQ3: 139 | ER3: 140 | ES3: 141 | ET3: 142 | EU3: 143 | EV3: 144 | EW3: 145 | EX3: 146 | EY3: 147 | EZ3: 148 | FA3: 149 | FB3: 150 | FC3: 151 | FD3: 152 | FE3: 153 | FF3: 154 | FG3: 155 | FH3: 156 | FI3: 157 | FJ3: 158 | FK3: 159 | FL3: 160 | FM3: 161 | FN3: 162 | FO3: 163 | FP3: 164 | FQ3: 165 | FR3: 166 | FS3: 167 | FT3: 168 | FU3: 169 | FV3: 170 | FW3: 171 | FX3: 172 | FY3: 173 | FZ3: 174 | GA3: 175 | GB3: 176 | GC3: 177 | GD3: 178 | GE3: 179 | GF3: 180 | GG3: 181 | GH3: 182 | GI3: 183 | GJ3: 184 | GK3: 185 | GL3: 186 | GM3: 187 | GN3: 188 | GO3: 189 | GP3: 190 | GQ3: 191 | GR3: 192 | GS3: 193 | GT3: 194 | GU3: 195 | GV3: 196 | GW3: 197 | GX3: 198 | GY3: 199 | GZ3: 200 | HA3: 201 | HB3: 202 | HC3: 203 | HD3: 204 | HE3: 205 | HF3: 206 | HG3: 207 | HH3: 208 | HI3: 209 | HJ3: 210 | HK3: 211 | HL3: 212 | HM3: 213 | HN3: 214 | HO3: 215 | HP3: 216 | HQ3: 217 | HR3: 218 | HS3: 219 | HT3: 220 | HU3: 221 | HV3: 222 | HW3: 223 | HX3: 224 | HY3: 225 | HZ3: 226 | IA3: 227 | IB3: 228 | IC3: 229 | ID3: 230 | IE3: 231 | IF3: 232 | IG3: 233 | IH3: 234 | II3: 235 | IJ3: 236 | IK3: 237 | IL3: 238 | IM3: 239 | IN3: 240 | IO3: 241 | IP3: 242 | IQ3: 243 | IR3: 244 | IS3: 245
D4: Historic Flag | G4: ='Model Parameters'!G4 -> 5 | I4: =(I3<=$G$4)*1 -> 1 | J4: 1 | K4: 1 | L4: 1 | M4: 1 | N4: 0 | O4: 0 | P4: 0 | Q4: 0 | R4: 0 | S4: 0 | T4: 0 | U4: 0 | V4: 0 | W4: 0 | X4: 0 | Y4: 0 | Z4: 0 | AA4: 0 | AB4: 0 | AC4: 0 | AD4: 0 | AE4: 0 | AF4: 0 | AG4: 0 | AH4: 0 | AI4: 0 | AJ4: 0 | AK4: 0 | AL4: 0 | AM4: 0 | AN4: 0 | AO4: =(AO3<=$G$4)*1 -> 0 | AP4: 0 | AQ4: 0 | AR4: 0 | AS4: 0 | AT4: 0 | AU4: 0 | AV4: 0 | AW4: 0 | AX4: 0 | AY4: 0 | AZ4: 0 | BA4: 0 | BB4: 0 | BC4: 0 | BD4: 0 | BE4: 0 | BF4: 0 | BG4: 0 | BH4: 0 | BI4: 0 | BJ4: 0 | BK4: 0 | BL4: 0 | BM4: 0 | BN4: 0 | BO4: 0 | BP4: 0 | BQ4: 0 | BR4: 0 | BS4: =(BS3<=$G$4)*1 -> 0 | BT4: 0 | BU4: 0 | BV4: 0 | BW4: 0 | BX4: 0 | BY4: 0 | BZ4: 0 | CA4: 0 | CB4: 0 | CC4: 0 | CD4: 0 | CE4: 0 | CF4: 0 | CG4: 0 | CH4: 0 | CI4: 0 | CJ4: 0 | CK4: 0 | CL4: 0 | CM4: 0 | CN4: 0 | CO4: 0 | CP4: 0 | CQ4: 0 | CR4: 0 | CS4: 0 | CT4: =(CT3<=$G$4)*1 -> 0 | CU4: 0 | CV4: 0 | CW4: 0 | CX4: 0 | CY4: 0 | CZ4: 0 | DA4: 0 | DB4: 0 | DC4: 0 | DD4: 0 | DE4: 0 | DF4: 0 | DG4: 0 | DH4: =(DH3<=$G$4)*1 -> 0 | DI4: 0 | DJ4: 0 | DK4: 0 | DL4: 0 | DM4: 0 | DN4: 0 | DO4: 0 | DP4: 0 | DQ4: 0 | DR4: 0 | DS4: 0 | DT4: 0 | DU4: 0 | DV4: 0 | DW4: 0 | DX4: 0 | DY4: 0 | DZ4: 0 | EA4: =(EA3<=$G$4)*1 -> 0 | EB4: 0 | EC4: 0 | ED4: 0 | EE4: 0 | EF4: 0 | EG4: 0 | EH4: 0 | EI4: 0 | EJ4: 0 | EK4: 0 | EL4: =(EL3<=$G$4)*1 -> 0 | EM4: 0 | EN4: 0 | EO4: 0 | EP4: 0 | EQ4: 0 | ER4: 0 | ES4: 0 | ET4: 0 | EU4: 0 | EV4: 0 | EW4: 0 | EX4: 0 | EY4: 0 | EZ4: 0 | FA4: 0 | FB4: 0 | FC4: 0 | FD4: 0 | FE4: 0 | FF4: 0 | FG4: 0 | FH4: 0 | FI4: 0 | FJ4: 0 | FK4: 0 | FL4: 0 | FM4: 0 | FN4: 0 | FO4: 0 | FP4: 0 | FQ4: 0 | FR4: 0 | FS4: 0 | FT4: 0 | FU4: 0 | FV4: 0 | FW4: 0 | FX4: 0 | FY4: 0 | FZ4: 0 | GA4: 0 | GB4: 0 | GC4: 0 | GD4: 0 | GE4: 0 | GF4: 0 | GG4: 0 | GH4: 0 | GI4: 0 | GJ4: 0 | GK4: 0 | GL4: 0 | GM4: 0 | GN4: 0 | GO4: 0 | GP4: 0 | GQ4: 0 | GR4: 0 | GS4: 0 | GT4: 0 | GU4: 0 | GV4: 0 | GW4: 0 | GX4: =(GX3<=$G$4)*1 -> 0 | GY4: 0 | GZ4: 0 | HA4: 0 | HB4: 0 | HC4: 0 | HD4: 0 | HE4: 0 | HF4: 0 | HG4: 0 | HH4: 0 | HI4: 0 | HJ4: 0 | HK4: 0 | HL4: 0 | HM4: 0 | HN4: 0 | HO4: 0 | HP4: 0 | HQ4: 0 | HR4: 0 | HS4: 0 | HT4: 0 | HU4: 0 | HV4: 0 | HW4: 0 | HX4: 0 | HY4: 0 | HZ4: 0 | IA4: 0 | IB4: 0 | IC4: 0 | ID4: 0 | IE4: 0 | IF4: 0 | IG4: 0 | IH4: 0 | II4: 0 | IJ4: 0 | IK4: 0 | IL4: 0 | IM4: 0 | IN4: 0 | IO4: 0 | IP4: 0 | IQ4: 0 | IR4: 0 | IS4: 0
D5: Periods per Year | F5: ='Model Parameters'!G6 -> 12 | G5: ='Model Parameters'!G5 -> 1 | I5: =IF(I4,$F$5,$G$5) -> 12 | J5: =IF(J4,$F$5,$G$5) -> 12 | K5: 12 | L5: 12 | M5: 12 | N5: 1 | O5: 1 | P5: 1 | Q5: 1 | R5: 1 | S5: 1 | T5: 1 | U5: 1 | V5: 1 | W5: 1 | X5: 1 | Y5: 1 | Z5: 1 | AA5: 1 | AB5: 1 | AC5: 1 | AD5: 1 | AE5: 1 | AF5: 1 | AG5: 1 | AH5: 1 | AI5: 1 | AJ5: 1 | AK5: 1 | AL5: 1 | AM5: 1 | AN5: 1 | AO5: 1 | AP5: 1 | AQ5: 1 | AR5: 1 | AS5: 1 | AT5: 1 | AU5: 1 | AV5: 1 | AW5: 1 | AX5: 1 | AY5: 1 | AZ5: 1 | BA5: 1 | BB5: 1 | BC5: 1 | BD5: 1 | BE5: 1 | BF5: 1 | BG5: 1 | BH5: 1 | BI5: 1 | BJ5: 1 | BK5: 1 | BL5: 1 | BM5: 1 | BN5: 1 | BO5: 1 | BP5: 1 | BQ5: 1 | BR5: 1 | BS5: =IF(BS4,$F$5,$G$5) -> 1 | BT5: =IF(BT4,$F$5,$G$5) -> 1 | BU5: =IF(BU4,$F$5,$G$5) -> 1 | BV5: =IF(BV4,$F$5,$G$5) -> 1 | BW5: =IF(BW4,$F$5,$G$5) -> 1 | BX5: =IF(BX4,$F$5,$G$5) -> 1 | BY5: =IF(BY4,$F$5,$G$5) -> 1 | BZ5: =IF(BZ4,$F$5,$G$5) -> 1 | CA5: =IF(CA4,$F$5,$G$5) -> 1 | CB5: =IF(CB4,$F$5,$G$5) -> 1 | CC5: =IF(CC4,$F$5,$G$5) -> 1 | CD5: =IF(CD4,$F$5,$G$5) -> 1 | CE5: =IF(CE4,$F$5,$G$5) -> 1 | CF5: =IF(CF4,$F$5,$G$5) -> 1 | CG5: =IF(CG4,$F$5,$G$5) -> 1 | CH5: =IF(CH4,$F$5,$G$5) -> 1 | CI5: =IF(CI4,$F$5,$G$5) -> 1 | CJ5: =IF(CJ4,$F$5,$G$5) -> 1 | CK5: =IF(CK4,$F$5,$G$5) -> 1 | CL5: =IF(CL4,$F$5,$G$5) -> 1 | CM5: =IF(CM4,$F$5,$G$5) -> 1 | CN5: =IF(CN4,$F$5,$G$5) -> 1 | CO5: =IF(CO4,$F$5,$G$5) -> 1 | CP5: =IF(CP4,$F$5,$G$5) -> 1 | CQ5: =IF(CQ4,$F$5,$G$5) -> 1 | CR5: =IF(CR4,$F$5,$G$5) -> 1 | CS5: =IF(CS4,$F$5,$G$5) -> 1 | CT5: 1 | CU5: 1 | CV5: 1 | CW5: 1 | CX5: 1 | CY5: 1 | CZ5: 1 | DA5: 1 | DB5: 1 | DC5: 1 | DD5: 1 | DE5: 1 | DF5: 1 | DG5: 1 | DH5: =IF(DH4,$F$5,$G$5) -> 1 | DI5: 1 | DJ5: 1 | DK5: 1 | DL5: 1 | DM5: 1 | DN5: 1 | DO5: 1 | DP5: 1 | DQ5: 1 | DR5: 1 | DS5: 1 | DT5: 1 | DU5: 1 | DV5: 1 | DW5: 1 | DX5: 1 | DY5: 1 | DZ5: 1 | EA5: =IF(EA4,$F$5,$G$5) -> 1 | EB5: 1 | EC5: 1 | ED5: 1 | EE5: 1 | EF5: 1 | EG5: 1 | EH5: 1 | EI5: 1 | EJ5: 1 | EK5: 1 | EL5: =IF(EL4,$F$5,$G$5) -> 1 | EM5: 1 | EN5: 1 | EO5: 1 | EP5: 1 | EQ5: 1 | ER5: 1 | ES5: 1 | ET5: 1 | EU5: 1 | EV5: 1 | EW5: 1 | EX5: 1 | EY5: 1 | EZ5: 1 | FA5: 1 | FB5: 1 | FC5: 1 | FD5: 1 | FE5: 1 | FF5: 1 | FG5: 1 | FH5: 1 | FI5: 1 | FJ5: 1 | FK5: 1 | FL5: 1 | FM5: 1 | FN5: 1 | FO5: 1 | FP5: 1 | FQ5: 1 | FR5: 1 | FS5: 1 | FT5: 1 | FU5: 1 | FV5: 1 | FW5: 1 | FX5: 1 | FY5: 1 | FZ5: 1 | GA5: 1 | GB5: 1 | GC5: 1 | GD5: 1 | GE5: 1 | GF5: 1 | GG5: 1 | GH5: 1 | GI5: 1 | GJ5: 1 | GK5: 1 | GL5: 1 | GM5: 1 | GN5: 1 | GO5: 1 | GP5: 1 | GQ5: 1 | GR5: 1 | GS5: 1 | GT5: 1 | GU5: 1 | GV5: 1 | GW5: 1 | GX5: =IF(GX4,$F$5,$G$5) -> 1 | GY5: 1 | GZ5: 1 | HA5: 1 | HB5: 1 | HC5: 1 | HD5: 1 | HE5: 1 | HF5: 1 | HG5: 1 | HH5: 1 | HI5: 1 | HJ5: 1 | HK5: 1 | HL5: 1 | HM5: 1 | HN5: 1 | HO5: 1 | HP5: 1 | HQ5: 1 | HR5: 1 | HS5: 1 | HT5: 1 | HU5: 1 | HV5: 1 | HW5: 1 | HX5: 1 | HY5: 1 | HZ5: 1 | IA5: 1 | IB5: 1 | IC5: 1 | ID5: 1 | IE5: 1 | IF5: 1 | IG5: 1 | IH5: 1 | II5: 1 | IJ5: 1 | IK5: 1 | IL5: 1 | IM5: 1 | IN5: 1 | IO5: 1 | IP5: 1 | IQ5: 1 | IR5: 1 | IS5: 1
D6: Calander Year | I6: =IF(I4,Historical!E3,YEAR(I8)) -> 2016 | J6: =IF(J4,Historical!F3,YEAR(J8)) -> 2017 | K6: =IF(K4,Historical!G3,YEAR(K8)) -> 2018 | L6: =IF(L4,Historical!H3,YEAR(L8)) -> 2019 | M6: =IF(M4,Historical!I3,YEAR(M8)) -> 2020 | N6: =IF(N4,Historical!J3,YEAR(N8)) -> 2020 | O6: =IF(O4,Historical!K3,YEAR(O8)) -> 2020 | P6: =IF(P4,Historical!L3,YEAR(P8)) -> 2020 | Q6: =IF(Q4,Historical!M3,YEAR(Q8)) -> 2020 | R6: =IF(R4,Historical!N3,YEAR(R8)) -> 2020 | S6: =IF(S4,Historical!O3,YEAR(S8)) -> 2020 | T6: =IF(T4,Historical!P3,YEAR(T8)) -> 2020 | U6: =IF(U4,Historical!Q3,YEAR(U8)) -> 2020 | V6: =IF(V4,Historical!R3,YEAR(V8)) -> 2020 | W6: =IF(W4,Historical!S3,YEAR(W8)) -> 2020 | X6: =IF(X4,Historical!T3,YEAR(X8)) -> 2021 | Y6: =IF(Y4,Historical!U3,YEAR(Y8)) -> 2021 | Z6: =IF(Z4,Historical!V3,YEAR(Z8)) -> 2021 | AA6: =IF(AA4,Historical!W3,YEAR(AA8)) -> 2021 | AB6: =IF(AB4,Historical!X3,YEAR(AB8)) -> 2021 | AC6: =IF(AC4,Historical!Y3,YEAR(AC8)) -> 2021 | AD6: =IF(AD4,Historical!Z3,YEAR(AD8)) -> 2021 | AE6: =IF(AE4,Historical!AA3,YEAR(AE8)) -> 2021 | AF6: =IF(AF4,Historical!AB3,YEAR(AF8)) -> 2021 | AG6: =IF(AG4,Historical!AC3,YEAR(AG8)) -> 2021 | AH6: =IF(AH4,Historical!AD3,YEAR(AH8)) -> 2021 | AI6: =IF(AI4,Historical!AE3,YEAR(AI8)) -> 2021 | AJ6: =IF(AJ4,Historical!AF3,YEAR(AJ8)) -> 2022 | AK6: =IF(AK4,Historical!AG3,YEAR(AK8)) -> 2022 | AL6: =IF(AL4,Historical!AH3,YEAR(AL8)) -> 2022 | AM6: =IF(AM4,Historical!AI3,YEAR(AM8)) -> 2022 | AN6: =IF(AN4,Historical!AJ3,YEAR(AN8)) -> 2022 | AO6: =IF(AO4,Historical!AK3,YEAR(AO8)) -> 2022 | AP6: =IF(AP4,Historical!AL3,YEAR(AP8)) -> 2022 | AQ6: =IF(AQ4,Historical!AM3,YEAR(AQ8)) -> 2022 | AR6: =IF(AR4,Historical!AN3,YEAR(AR8)) -> 2022 | AS6: =IF(AS4,Historical!AO3,YEAR(AS8)) -> 2022 | AT6: =IF(AT4,Historical!AP3,YEAR(AT8)) -> 2022 | AU6: =IF(AU4,Historical!AQ3,YEAR(AU8)) -> 2022 | AV6: =IF(AV4,Historical!AR3,YEAR(AV8)) -> 2023 | AW6: =IF(AW4,Historical!AS3,YEAR(AW8)) -> 2023 | AX6: =IF(AX4,Historical!AT3,YEAR(AX8)) -> 2023 | AY6: =IF(AY4,Historical!AU3,YEAR(AY8)) -> 2023 | AZ6: =IF(AZ4,Historical!AV3,YEAR(AZ8)) -> 2023 | BA6: =IF(BA4,Historical!AW3,YEAR(BA8)) -> 2023 | BB6: =IF(BB4,Historical!AX3,YEAR(BB8)) -> 2023 | BC6: =IF(BC4,Historical!AY3,YEAR(BC8)) -> 2023 | BD6: =IF(BD4,Historical!AZ3,YEAR(BD8)) -> 2023 | BE6: =IF(BE4,Historical!BA3,YEAR(BE8)) -> 2023 | BF6: =IF(BF4,Historical!BB3,YEAR(BF8)) -> 2023 | BG6: =IF(BG4,Historical!BC3,YEAR(BG8)) -> 2023 | BH6: =IF(BH4,Historical!BD3,YEAR(BH8)) -> 2024 | BI6: =IF(BI4,Historical!BE3,YEAR(BI8)) -> 2024 | BJ6: =IF(BJ4,Historical!BF3,YEAR(BJ8)) -> 2024 | BK6: =IF(BK4,Historical!BG3,YEAR(BK8)) -> 2024 | BL6: =IF(BL4,Historical!BH3,YEAR(BL8)) -> 2024 | BM6: =IF(BM4,Historical!BI3,YEAR(BM8)) -> 2024 | BN6: =IF(BN4,Historical!BJ3,YEAR(BN8)) -> 2024 | BO6: =IF(BO4,Historical!BK3,YEAR(BO8)) -> 2024 | BP6: =IF(BP4,Historical!BL3,YEAR(BP8)) -> 2024 | BQ6: =IF(BQ4,Historical!BM3,YEAR(BQ8)) -> 2024 | BR6: =IF(BR4,Historical!BN3,YEAR(BR8)) -> 2024 | BS6: =IF(BS4,Historical!BO3,YEAR(BS8)) -> 2024 | BT6: =IF(BT4,Historical!BP3,YEAR(BT8)) -> 2025 | BU6: =IF(BU4,Historical!BQ3,YEAR(BU8)) -> 2025 | BV6: =IF(BV4,Historical!BR3,YEAR(BV8)) -> 2025 | BW6: =IF(BW4,Historical!BS3,YEAR(BW8)) -> 2025 | BX6: =IF(BX4,Historical!BT3,YEAR(BX8)) -> 2025 | BY6: =IF(BY4,Historical!BU3,YEAR(BY8)) -> 2025 | BZ6: =IF(BZ4,Historical!BV3,YEAR(BZ8)) -> 2025 | CA6: =IF(CA4,Historical!BW3,YEAR(CA8)) -> 2025 | CB6: =IF(CB4,Historical!BX3,YEAR(CB8)) -> 2025 | CC6: =IF(CC4,Historical!BY3,YEAR(CC8)) -> 2025 | CD6: =IF(CD4,Historical!BZ3,YEAR(CD8)) -> 2025 | CE6: =IF(CE4,Historical!CA3,YEAR(CE8)) -> 2025 | CF6: =IF(CF4,Historical!CB3,YEAR(CF8)) -> 2026 | CG6: =IF(CG4,Historical!CC3,YEAR(CG8)) -> 2026 | CH6: =IF(CH4,Historical!CD3,YEAR(CH8)) -> 2026 | CI6: =IF(CI4,Historical!CE3,YEAR(CI8)) -> 2026 | CJ6: =IF(CJ4,Historical!CF3,YEAR(CJ8)) -> 2026 | CK6: =IF(CK4,Historical!CG3,YEAR(CK8)) -> 2026 | CL6: =IF(CL4,Historical!CH3,YEAR(CL8)) -> 2026 | CM6: =IF(CM4,Historical!CI3,YEAR(CM8)) -> 2026 | CN6: =IF(CN4,Historical!CJ3,YEAR(CN8)) -> 2026 | CO6: =IF(CO4,Historical!CK3,YEAR(CO8)) -> 2026 | CP6: =IF(CP4,Historical!CL3,YEAR(CP8)) -> 2026 | CQ6: =IF(CQ4,Historical!CM3,YEAR(CQ8)) -> 2026 | CR6: =IF(CR4,Historical!CN3,YEAR(CR8)) -> 2027 | CS6: =IF(CS4,Historical!CO3,YEAR(CS8)) -> 2027 | CT6: =IF(CT4,Historical!CP3,YEAR(CT8)) -> 2027 | CU6: =IF(CU4,Historical!CQ3,YEAR(CU8)) -> 2027 | CV6: =IF(CV4,Historical!CR3,YEAR(CV8)) -> 2027 | CW6: =IF(CW4,Historical!CS3,YEAR(CW8)) -> 2027 | CX6: =IF(CX4,Historical!CT3,YEAR(CX8)) -> 2027 | CY6: =IF(CY4,Historical!CU3,YEAR(CY8)) -> 2027 | CZ6: =IF(CZ4,Historical!CV3,YEAR(CZ8)) -> 2027 | DA6: =IF(DA4,Historical!CW3,YEAR(DA8)) -> 2027 | DB6: =IF(DB4,Historical!CX3,YEAR(DB8)) -> 2027 | DC6: =IF(DC4,Historical!CY3,YEAR(DC8)) -> 2027 | DD6: =IF(DD4,Historical!CZ3,YEAR(DD8)) -> 2028 | DE6: =IF(DE4,Historical!DA3,YEAR(DE8)) -> 2028 | DF6: =IF(DF4,Historical!DB3,YEAR(DF8)) -> 2028 | DG6: =IF(DG4,Historical!DC3,YEAR(DG8)) -> 2028 | DH6: =IF(DH4,Historical!DD3,YEAR(DH8)) -> 2028 | DI6: =IF(DI4,Historical!DE3,YEAR(DI8)) -> 2028 | DJ6: =IF(DJ4,Historical!DF3,YEAR(DJ8)) -> 2028 | DK6: =IF(DK4,Historical!DG3,YEAR(DK8)) -> 2028 | DL6: =IF(DL4,Historical!DH3,YEAR(DL8)) -> 2028 | DM6: =IF(DM4,Historical!DI3,YEAR(DM8)) -> 2028 | DN6: =IF(DN4,Historical!DJ3,YEAR(DN8)) -> 2028 | DO6: =IF(DO4,Historical!DK3,YEAR(DO8)) -> 2028 | DP6: =IF(DP4,Historical!DL3,YEAR(DP8)) -> 2029 | DQ6: =IF(DQ4,Historical!DM3,YEAR(DQ8)) -> 2029 | DR6: =IF(DR4,Historical!DN3,YEAR(DR8)) -> 2029 | DS6: =IF(DS4,Historical!DO3,YEAR(DS8)) -> 2029 | DT6: =IF(DT4,Historical!DP3,YEAR(DT8)) -> 2029 | DU6: =IF(DU4,Historical!DQ3,YEAR(DU8)) -> 2029 | DV6: =IF(DV4,Historical!DR3,YEAR(DV8)) -> 2029 | DW6: =IF(DW4,Historical!DS3,YEAR(DW8)) -> 2029 | DX6: =IF(DX4,Historical!DT3,YEAR(DX8)) -> 2029 | DY6: =IF(DY4,Historical!DU3,YEAR(DY8)) -> 2029 | DZ6: =IF(DZ4,Historical!DV3,YEAR(DZ8)) -> 2029 | EA6: =IF(EA4,Historical!DW3,YEAR(EA8)) -> 2029 | EB6: =IF(EB4,Historical!DX3,YEAR(EB8)) -> 2030 | EC6: =IF(EC4,Historical!DY3,YEAR(EC8)) -> 2030 | ED6: =IF(ED4,Historical!DZ3,YEAR(ED8)) -> 2030 | EE6: =IF(EE4,Historical!EA3,YEAR(EE8)) -> 2030 | EF6: =IF(EF4,Historical!EB3,YEAR(EF8)) -> 2030 | EG6: =IF(EG4,Historical!EC3,YEAR(EG8)) -> 2030 | EH6: =IF(EH4,Historical!ED3,YEAR(EH8)) -> 2030 | EI6: =IF(EI4,Historical!EE3,YEAR(EI8)) -> 2030 | EJ6: =IF(EJ4,Historical!EF3,YEAR(EJ8)) -> 2030 | EK6: =IF(EK4,Historical!EG3,YEAR(EK8)) -> 2030 | EL6: =IF(EL4,Historical!EH3,YEAR(EL8)) -> 2030 | EM6: =IF(EM4,Historical!EI3,YEAR(EM8)) -> 2030 | EN6: =IF(EN4,Historical!EJ3,YEAR(EN8)) -> 2031 | EO6: =IF(EO4,Historical!EK3,YEAR(EO8)) -> 2031 | EP6: =IF(EP4,Historical!EL3,YEAR(EP8)) -> 2031 | EQ6: =IF(EQ4,Historical!EM3,YEAR(EQ8)) -> 2031 | ER6: =IF(ER4,Historical!EN3,YEAR(ER8)) -> 2031 | ES6: =IF(ES4,Historical!EO3,YEAR(ES8)) -> 2031 | ET6: =IF(ET4,Historical!EP3,YEAR(ET8)) -> 2031 | EU6: =IF(EU4,Historical!EQ3,YEAR(EU8)) -> 2031 | EV6: =IF(EV4,Historical!ER3,YEAR(EV8)) -> 2031 | EW6: =IF(EW4,Historical!ES3,YEAR(EW8)) -> 2031 | EX6: =IF(EX4,Historical!ET3,YEAR(EX8)) -> 2031 | EY6: =IF(EY4,Historical!EU3,YEAR(EY8)) -> 2031 | EZ6: =IF(EZ4,Historical!EV3,YEAR(EZ8)) -> 2032 | FA6: =IF(FA4,Historical!EW3,YEAR(FA8)) -> 2032 | FB6: =IF(FB4,Historical!EX3,YEAR(FB8)) -> 2032 | FC6: =IF(FC4,Historical!EY3,YEAR(FC8)) -> 2032 | FD6: =IF(FD4,Historical!EZ3,YEAR(FD8)) -> 2032 | FE6: =IF(FE4,Historical!FA3,YEAR(FE8)) -> 2032 | FF6: =IF(FF4,Historical!FB3,YEAR(FF8)) -> 2032 | FG6: =IF(FG4,Historical!FC3,YEAR(FG8)) -> 2032 | FH6: =IF(FH4,Historical!FD3,YEAR(FH8)) -> 2032 | FI6: =IF(FI4,Historical!FE3,YEAR(FI8)) -> 2032 | FJ6: =IF(FJ4,Historical!FF3,YEAR(FJ8)) -> 2032 | FK6: =IF(FK4,Historical!FG3,YEAR(FK8)) -> 2032 | FL6: =IF(FL4,Historical!FH3,YEAR(FL8)) -> 2033 | FM6: =IF(FM4,Historical!FI3,YEAR(FM8)) -> 2033 | FN6: =IF(FN4,Historical!FJ3,YEAR(FN8)) -> 2033 | FO6: =IF(FO4,Historical!FK3,YEAR(FO8)) -> 2033 | FP6: =IF(FP4,Historical!FL3,YEAR(FP8)) -> 2033 | FQ6: =IF(FQ4,Historical!FM3,YEAR(FQ8)) -> 2033 | FR6: =IF(FR4,Historical!FN3,YEAR(FR8)) -> 2033 | FS6: =IF(FS4,Historical!FO3,YEAR(FS8)) -> 2033 | FT6: =IF(FT4,Historical!FP3,YEAR(FT8)) -> 2033 | FU6: =IF(FU4,Historical!FQ3,YEAR(FU8)) -> 2033 | FV6: =IF(FV4,Historical!FR3,YEAR(FV8)) -> 2033 | FW6: =IF(FW4,Historical!FS3,YEAR(FW8)) -> 2033 | FX6: =IF(FX4,Historical!FT3,YEAR(FX8)) -> 2034 | FY6: =IF(FY4,Historical!FU3,YEAR(FY8)) -> 2034 | FZ6: =IF(FZ4,Historical!FV3,YEAR(FZ8)) -> 2034 | GA6: =IF(GA4,Historical!FW3,YEAR(GA8)) -> 2034 | GB6: =IF(GB4,Historical!FX3,YEAR(GB8)) -> 2034 | GC6: =IF(GC4,Historical!FY3,YEAR(GC8)) -> 2034 | GD6: =IF(GD4,Historical!FZ3,YEAR(GD8)) -> 2034 | GE6: =IF(GE4,Historical!GA3,YEAR(GE8)) -> 2034 | GF6: =IF(GF4,Historical!GB3,YEAR(GF8)) -> 2034 | GG6: =IF(GG4,Historical!GC3,YEAR(GG8)) -> 2034 | GH6: =IF(GH4,Historical!GD3,YEAR(GH8)) -> 2034 | GI6: =IF(GI4,Historical!GE3,YEAR(GI8)) -> 2034 | GJ6: =IF(GJ4,Historical!GF3,YEAR(GJ8)) -> 2035 | GK6: =IF(GK4,Historical!GG3,YEAR(GK8)) -> 2035 | GL6: =IF(GL4,Historical!GH3,YEAR(GL8)) -> 2035 | GM6: =IF(GM4,Historical!GI3,YEAR(GM8)) -> 2035 | GN6: =IF(GN4,Historical!GJ3,YEAR(GN8)) -> 2035 | GO6: =IF(GO4,Historical!GK3,YEAR(GO8)) -> 2035 | GP6: =IF(GP4,Historical!GL3,YEAR(GP8)) -> 2035 | GQ6: =IF(GQ4,Historical!GM3,YEAR(GQ8)) -> 2035 | GR6: =IF(GR4,Historical!GN3,YEAR(GR8)) -> 2035 | GS6: =IF(GS4,Historical!GO3,YEAR(GS8)) -> 2035 | GT6: =IF(GT4,Historical!GP3,YEAR(GT8)) -> 2035 | GU6: =IF(GU4,Historical!GQ3,YEAR(GU8)) -> 2035 | GV6: =IF(GV4,Historical!GR3,YEAR(GV8)) -> 2036 | GW6: =IF(GW4,Historical!GS3,YEAR(GW8)) -> 2036 | GX6: =IF(GX4,Historical!GT3,YEAR(GX8)) -> 2036 | GY6: =IF(GY4,Historical!GU3,YEAR(GY8)) -> 2036 | GZ6: =IF(GZ4,Historical!GV3,YEAR(GZ8)) -> 2036 | HA6: =IF(HA4,Historical!GW3,YEAR(HA8)) -> 2036 | HB6: =IF(HB4,Historical!GX3,YEAR(HB8)) -> 2036 | HC6: =IF(HC4,Historical!GY3,YEAR(HC8)) -> 2036 | HD6: =IF(HD4,Historical!GZ3,YEAR(HD8)) -> 2036 | HE6: =IF(HE4,Historical!HA3,YEAR(HE8)) -> 2036 | HF6: =IF(HF4,Historical!HB3,YEAR(HF8)) -> 2036 | HG6: =IF(HG4,Historical!HC3,YEAR(HG8)) -> 2036 | HH6: =IF(HH4,Historical!HD3,YEAR(HH8)) -> 2037 | HI6: =IF(HI4,Historical!HE3,YEAR(HI8)) -> 2037 | HJ6: =IF(HJ4,Historical!HF3,YEAR(HJ8)) -> 2037 | HK6: =IF(HK4,Historical!HG3,YEAR(HK8)) -> 2037 | HL6: =IF(HL4,Historical!HH3,YEAR(HL8)) -> 2037 | HM6: =IF(HM4,Historical!HI3,YEAR(HM8)) -> 2037 | HN6: =IF(HN4,Historical!HJ3,YEAR(HN8)) -> 2037 | HO6: =IF(HO4,Historical!HK3,YEAR(HO8)) -> 2037 | HP6: =IF(HP4,Historical!HL3,YEAR(HP8)) -> 2037 | HQ6: =IF(HQ4,Historical!HM3,YEAR(HQ8)) -> 2037 | HR6: =IF(HR4,Historical!HN3,YEAR(HR8)) -> 2037 | HS6: =IF(HS4,Historical!HO3,YEAR(HS8)) -> 2037 | HT6: =IF(HT4,Historical!HP3,YEAR(HT8)) -> 2038 | HU6: =IF(HU4,Historical!HQ3,YEAR(HU8)) -> 2038 | HV6: =IF(HV4,Historical!HR3,YEAR(HV8)) -> 2038 | HW6: =IF(HW4,Historical!HS3,YEAR(HW8)) -> 2038 | HX6: =IF(HX4,Historical!HT3,YEAR(HX8)) -> 2038 | HY6: =IF(HY4,Historical!HU3,YEAR(HY8)) -> 2038 | HZ6: =IF(HZ4,Historical!HV3,YEAR(HZ8)) -> 2038 | IA6: =IF(IA4,Historical!HW3,YEAR(IA8)) -> 2038 | IB6: =IF(IB4,Historical!HX3,YEAR(IB8)) -> 2038 | IC6: =IF(IC4,Historical!HY3,YEAR(IC8)) -> 2038 | ID6: =IF(ID4,Historical!HZ3,YEAR(ID8)) -> 2038 | IE6: =IF(IE4,Historical!IA3,YEAR(IE8)) -> 2038 | IF6: =IF(IF4,Historical!IB3,YEAR(IF8)) -> 2039 | IG6: =IF(IG4,Historical!IC3,YEAR(IG8)) -> 2039 | IH6: =IF(IH4,Historical!ID3,YEAR(IH8)) -> 2039 | II6: =IF(II4,Historical!IE3,YEAR(II8)) -> 2039 | IJ6: =IF(IJ4,Historical!IF3,YEAR(IJ8)) -> 2039 | IK6: =IF(IK4,Historical!IG3,YEAR(IK8)) -> 2039 | IL6: =IF(IL4,Historical!IH3,YEAR(IL8)) -> 2039 | IM6: =IF(IM4,Historical!II3,YEAR(IM8)) -> 2039 | IN6: =IF(IN4,Historical!IJ3,YEAR(IN8)) -> 2039 | IO6: =IF(IO4,Historical!IK3,YEAR(IO8)) -> 2039 | IP6: =IF(IP4,Historical!IL3,YEAR(IP8)) -> 2039 | IQ6: =IF(IQ4,Historical!IM3,YEAR(IQ8)) -> 2039 | IR6: =IF(IR4,Historical!IN3,YEAR(IR8)) -> 2040 | IS6: =IF(IS4,Historical!IO3,YEAR(IS8)) -> 2040
D7: Historic Dates | I7: 2016-02-29 | J7: 2017-02-28 | K7: 2018-02-28 | L7: 2019-02-28 | M7: 2020-02-29
D8: Model Dates | G8: ='Model Parameters'!G5 -> 1 | I8: =IF(I4,I7,EOMONTH(G8,$G$8)) -> 2016-02-29 | J8: =IF(J4,J7,EOMONTH(I8,$G$8)) -> 2017-02-28 | K8: 2018-02-28 | L8: 2019-02-28 | M8: 2020-02-29 | N8: 2020-03-31 | O8: 2020-04-30 | P8: 2020-05-31 | Q8: 2020-06-30 | R8: 2020-07-31 | S8: 2020-08-31 | T8: 2020-09-30 | U8: 2020-10-31 | V8: 2020-11-30 | W8: 2020-12-31 | X8: 2021-01-31 | Y8: 2021-02-28 | Z8: 2021-03-31 | AA8: 2021-04-30 | AB8: 2021-05-31 | AC8: 2021-06-30 | AD8: 2021-07-31 | AE8: 2021-08-31 | AF8: 2021-09-30 | AG8: 2021-10-31 | AH8: 2021-11-30 | AI8: 2021-12-31 | AJ8: 2022-01-31 | AK8: 2022-02-28 | AL8: 2022-03-31 | AM8: 2022-04-30 | AN8: 2022-05-31 | AO8: =IF(AO4,AO7,EOMONTH(AN8,$G$8)) -> 2022-06-30 | AP8: 2022-07-31 | AQ8: 2022-08-31 | AR8: 2022-09-30 | AS8: 2022-10-31 | AT8: 2022-11-30 | AU8: 2022-12-31 | AV8: 2023-01-31 | AW8: 2023-02-28 | AX8: 2023-03-31 | AY8: 2023-04-30 | AZ8: 2023-05-31 | BA8: 2023-06-30 | BB8: 2023-07-31 | BC8: 2023-08-31 | BD8: 2023-09-30 | BE8: 2023-10-31 | BF8: 2023-11-30 | BG8: 2023-12-31 | BH8: 2024-01-31 | BI8: 2024-02-29 | BJ8: 2024-03-31 | BK8: 2024-04-30 | BL8: 2024-05-31 | BM8: 2024-06-30 | BN8: 2024-07-31 | BO8: 2024-08-31 | BP8: 2024-09-30 | BQ8: 2024-10-31 | BR8: 2024-11-30 | BS8: 2024-12-31 | BT8: 2025-01-31 | BU8: =IF(BU4,BU7,EOMONTH(BT8,$G$8)) -> 2025-02-28 | BV8: 2025-03-31 | BW8: 2025-04-30 | BX8: 2025-05-31 | BY8: 2025-06-30 | BZ8: 2025-07-31 | CA8: 2025-08-31 | CB8: 2025-09-30 | CC8: 2025-10-31 | CD8: 2025-11-30 | CE8: 2025-12-31 | CF8: 2026-01-31 | CG8: 2026-02-28 | CH8: 2026-03-31 | CI8: 2026-04-30 | CJ8: 2026-05-31 | CK8: 2026-06-30 | CL8: 2026-07-31 | CM8: 2026-08-31 | CN8: 2026-09-30 | CO8: 2026-10-31 | CP8: 2026-11-30 | CQ8: 2026-12-31 | CR8: 2027-01-31 | CS8: 2027-02-28 | CT8: =IF(CT4,CT7,EOMONTH(CS8,$G$8)) -> 2027-03-31 | CU8: 2027-04-30 | CV8: 2027-05-31 | CW8: 2027-06-30 | CX8: 2027-07-31 | CY8: 2027-08-31 | CZ8: 2027-09-30 | DA8: 2027-10-31 | DB8: 2027-11-30 | DC8: 2027-12-31 | DD8: 2028-01-31 | DE8: 2028-02-29 | DF8: 2028-03-31 | DG8: 2028-04-30 | DH8: =IF(DH4,DH7,EOMONTH(DG8,$G$8)) -> 2028-05-31 | DI8: =IF(DI4,DI7,EOMONTH(DH8,$G$8)) -> 2028-06-30 | DJ8: =IF(DJ4,DJ7,EOMONTH(DI8,$G$8)) -> 2028-07-31 | DK8: =IF(DK4,DK7,EOMONTH(DJ8,$G$8)) -> 2028-08-31 | DL8: =IF(DL4,DL7,EOMONTH(DK8,$G$8)) -> 2028-09-30 | DM8: =IF(DM4,DM7,EOMONTH(DL8,$G$8)) -> 2028-10-31 | DN8: =IF(DN4,DN7,EOMONTH(DM8,$G$8)) -> 2028-11-30 | DO8: =IF(DO4,DO7,EOMONTH(DN8,$G$8)) -> 2028-12-31 | DP8: =IF(DP4,DP7,EOMONTH(DO8,$G$8)) -> 2029-01-31 | DQ8: =IF(DQ4,DQ7,EOMONTH(DP8,$G$8)) -> 2029-02-28 | DR8: =IF(DR4,DR7,EOMONTH(DQ8,$G$8)) -> 2029-03-31 | DS8: =IF(DS4,DS7,EOMONTH(DR8,$G$8)) -> 2029-04-30 | DT8: =IF(DT4,DT7,EOMONTH(DS8,$G$8)) -> 2029-05-31 | DU8: =IF(DU4,DU7,EOMONTH(DT8,$G$8)) -> 2029-06-30 | DV8: =IF(DV4,DV7,EOMONTH(DU8,$G$8)) -> 2029-07-31 | DW8: =IF(DW4,DW7,EOMONTH(DV8,$G$8)) -> 2029-08-31 | DX8: =IF(DX4,DX7,EOMONTH(DW8,$G$8)) -> 2029-09-30 | DY8: =IF(DY4,DY7,EOMONTH(DX8,$G$8)) -> 2029-10-31 | DZ8: =IF(DZ4,DZ7,EOMONTH(DY8,$G$8)) -> 2029-11-30 | EA8: =IF(EA4,EA7,EOMONTH(DZ8,$G$8)) -> 2029-12-31 | EB8: =IF(EB4,EB7,EOMONTH(EA8,$G$8)) -> 2030-01-31 | EC8: =IF(EC4,EC7,EOMONTH(EB8,$G$8)) -> 2030-02-28 | ED8: =IF(ED4,ED7,EOMONTH(EC8,$G$8)) -> 2030-03-31 | EE8: =IF(EE4,EE7,EOMONTH(ED8,$G$8)) -> 2030-04-30 | EF8: =IF(EF4,EF7,EOMONTH(EE8,$G$8)) -> 2030-05-31 | EG8: =IF(EG4,EG7,EOMONTH(EF8,$G$8)) -> 2030-06-30 | EH8: =IF(EH4,EH7,EOMONTH(EG8,$G$8)) -> 2030-07-31 | EI8: =IF(EI4,EI7,EOMONTH(EH8,$G$8)) -> 2030-08-31 | EJ8: =IF(EJ4,EJ7,EOMONTH(EI8,$G$8)) -> 2030-09-30 | EK8: =IF(EK4,EK7,EOMONTH(EJ8,$G$8)) -> 2030-10-31 | EL8: =IF(EL4,EL7,EOMONTH(EK8,$G$8)) -> 2030-11-30 | EM8: =IF(EM4,EM7,EOMONTH(EL8,$G$8)) -> 2030-12-31 | EN8: =IF(EN4,EN7,EOMONTH(EM8,$G$8)) -> 2031-01-31 | EO8: =IF(EO4,EO7,EOMONTH(EN8,$G$8)) -> 2031-02-28 | EP8: =IF(EP4,EP7,EOMONTH(EO8,$G$8)) -> 2031-03-31 | EQ8: =IF(EQ4,EQ7,EOMONTH(EP8,$G$8)) -> 2031-04-30 | ER8: =IF(ER4,ER7,EOMONTH(EQ8,$G$8)) -> 2031-05-31 | ES8: =IF(ES4,ES7,EOMONTH(ER8,$G$8)) -> 2031-06-30 | ET8: =IF(ET4,ET7,EOMONTH(ES8,$G$8)) -> 2031-07-31 | EU8: =IF(EU4,EU7,EOMONTH(ET8,$G$8)) -> 2031-08-31 | EV8: =IF(EV4,EV7,EOMONTH(EU8,$G$8)) -> 2031-09-30 | EW8: =IF(EW4,EW7,EOMONTH(EV8,$G$8)) -> 2031-10-31 | EX8: =IF(EX4,EX7,EOMONTH(EW8,$G$8)) -> 2031-11-30 | EY8: =IF(EY4,EY7,EOMONTH(EX8,$G$8)) -> 2031-12-31 | EZ8: =IF(EZ4,EZ7,EOMONTH(EY8,$G$8)) -> 2032-01-31 | FA8: =IF(FA4,FA7,EOMONTH(EZ8,$G$8)) -> 2032-02-29 | FB8: =IF(FB4,FB7,EOMONTH(FA8,$G$8)) -> 2032-03-31 | FC8: =IF(FC4,FC7,EOMONTH(FB8,$G$8)) -> 2032-04-30 | FD8: =IF(FD4,FD7,EOMONTH(FC8,$G$8)) -> 2032-05-31 | FE8: =IF(FE4,FE7,EOMONTH(FD8,$G$8)) -> 2032-06-30 | FF8: =IF(FF4,FF7,EOMONTH(FE8,$G$8)) -> 2032-07-31 | FG8: =IF(FG4,FG7,EOMONTH(FF8,$G$8)) -> 2032-08-31 | FH8: =IF(FH4,FH7,EOMONTH(FG8,$G$8)) -> 2032-09-30 | FI8: =IF(FI4,FI7,EOMONTH(FH8,$G$8)) -> 2032-10-31 | FJ8: =IF(FJ4,FJ7,EOMONTH(FI8,$G$8)) -> 2032-11-30 | FK8: =IF(FK4,FK7,EOMONTH(FJ8,$G$8)) -> 2032-12-31 | FL8: =IF(FL4,FL7,EOMONTH(FK8,$G$8)) -> 2033-01-31 | FM8: =IF(FM4,FM7,EOMONTH(FL8,$G$8)) -> 2033-02-28 | FN8: =IF(FN4,FN7,EOMONTH(FM8,$G$8)) -> 2033-03-31 | FO8: =IF(FO4,FO7,EOMONTH(FN8,$G$8)) -> 2033-04-30 | FP8: =IF(FP4,FP7,EOMONTH(FO8,$G$8)) -> 2033-05-31 | FQ8: =IF(FQ4,FQ7,EOMONTH(FP8,$G$8)) -> 2033-06-30 | FR8: =IF(FR4,FR7,EOMONTH(FQ8,$G$8)) -> 2033-07-31 | FS8: =IF(FS4,FS7,EOMONTH(FR8,$G$8)) -> 2033-08-31 | FT8: =IF(FT4,FT7,EOMONTH(FS8,$G$8)) -> 2033-09-30 | FU8: =IF(FU4,FU7,EOMONTH(FT8,$G$8)) -> 2033-10-31 | FV8: =IF(FV4,FV7,EOMONTH(FU8,$G$8)) -> 2033-11-30 | FW8: =IF(FW4,FW7,EOMONTH(FV8,$G$8)) -> 2033-12-31 | FX8: =IF(FX4,FX7,EOMONTH(FW8,$G$8)) -> 2034-01-31 | FY8: =IF(FY4,FY7,EOMONTH(FX8,$G$8)) -> 2034-02-28 | FZ8: =IF(FZ4,FZ7,EOMONTH(FY8,$G$8)) -> 2034-03-31 | GA8: =IF(GA4,GA7,EOMONTH(FZ8,$G$8)) -> 2034-04-30 | GB8: =IF(GB4,GB7,EOMONTH(GA8,$G$8)) -> 2034-05-31 | GC8: =IF(GC4,GC7,EOMONTH(GB8,$G$8)) -> 2034-06-30 | GD8: =IF(GD4,GD7,EOMONTH(GC8,$G$8)) -> 2034-07-31 | GE8: =IF(GE4,GE7,EOMONTH(GD8,$G$8)) -> 2034-08-31 | GF8: =IF(GF4,GF7,EOMONTH(GE8,$G$8)) -> 2034-09-30 | GG8: =IF(GG4,GG7,EOMONTH(GF8,$G$8)) -> 2034-10-31 | GH8: =IF(GH4,GH7,EOMONTH(GG8,$G$8)) -> 2034-11-30 | GI8: =IF(GI4,GI7,EOMONTH(GH8,$G$8)) -> 2034-12-31 | GJ8: =IF(GJ4,GJ7,EOMONTH(GI8,$G$8)) -> 2035-01-31 | GK8: =IF(GK4,GK7,EOMONTH(GJ8,$G$8)) -> 2035-02-28 | GL8: =IF(GL4,GL7,EOMONTH(GK8,$G$8)) -> 2035-03-31 | GM8: =IF(GM4,GM7,EOMONTH(GL8,$G$8)) -> 2035-04-30 | GN8: =IF(GN4,GN7,EOMONTH(GM8,$G$8)) -> 2035-05-31 | GO8: =IF(GO4,GO7,EOMONTH(GN8,$G$8)) -> 2035-06-30 | GP8: =IF(GP4,GP7,EOMONTH(GO8,$G$8)) -> 2035-07-31 | GQ8: =IF(GQ4,GQ7,EOMONTH(GP8,$G$8)) -> 2035-08-31 | GR8: =IF(GR4,GR7,EOMONTH(GQ8,$G$8)) -> 2035-09-30 | GS8: =IF(GS4,GS7,EOMONTH(GR8,$G$8)) -> 2035-10-31 | GT8: =IF(GT4,GT7,EOMONTH(GS8,$G$8)) -> 2035-11-30 | GU8: =IF(GU4,GU7,EOMONTH(GT8,$G$8)) -> 2035-12-31 | GV8: =IF(GV4,GV7,EOMONTH(GU8,$G$8)) -> 2036-01-31 | GW8: =IF(GW4,GW7,EOMONTH(GV8,$G$8)) -> 2036-02-29 | GX8: =IF(GX4,GX7,EOMONTH(GW8,$G$8)) -> 2036-03-31 | GY8: =IF(GY4,GY7,EOMONTH(GX8,$G$8)) -> 2036-04-30 | GZ8: =IF(GZ4,GZ7,EOMONTH(GY8,$G$8)) -> 2036-05-31 | HA8: =IF(HA4,HA7,EOMONTH(GZ8,$G$8)) -> 2036-06-30 | HB8: =IF(HB4,HB7,EOMONTH(HA8,$G$8)) -> 2036-07-31 | HC8: =IF(HC4,HC7,EOMONTH(HB8,$G$8)) -> 2036-08-31 | HD8: =IF(HD4,HD7,EOMONTH(HC8,$G$8)) -> 2036-09-30 | HE8: =IF(HE4,HE7,EOMONTH(HD8,$G$8)) -> 2036-10-31 | HF8: =IF(HF4,HF7,EOMONTH(HE8,$G$8)) -> 2036-11-30 | HG8: =IF(HG4,HG7,EOMONTH(HF8,$G$8)) -> 2036-12-31 | HH8: =IF(HH4,HH7,EOMONTH(HG8,$G$8)) -> 2037-01-31 | HI8: =IF(HI4,HI7,EOMONTH(HH8,$G$8)) -> 2037-02-28 | HJ8: =IF(HJ4,HJ7,EOMONTH(HI8,$G$8)) -> 2037-03-31 | HK8: =IF(HK4,HK7,EOMONTH(HJ8,$G$8)) -> 2037-04-30 | HL8: =IF(HL4,HL7,EOMONTH(HK8,$G$8)) -> 2037-05-31 | HM8: =IF(HM4,HM7,EOMONTH(HL8,$G$8)) -> 2037-06-30 | HN8: =IF(HN4,HN7,EOMONTH(HM8,$G$8)) -> 2037-07-31 | HO8: =IF(HO4,HO7,EOMONTH(HN8,$G$8)) -> 2037-08-31 | HP8: =IF(HP4,HP7,EOMONTH(HO8,$G$8)) -> 2037-09-30 | HQ8: =IF(HQ4,HQ7,EOMONTH(HP8,$G$8)) -> 2037-10-31 | HR8: =IF(HR4,HR7,EOMONTH(HQ8,$G$8)) -> 2037-11-30 | HS8: =IF(HS4,HS7,EOMONTH(HR8,$G$8)) -> 2037-12-31 | HT8: =IF(HT4,HT7,EOMONTH(HS8,$G$8)) -> 2038-01-31 | HU8: =IF(HU4,HU7,EOMONTH(HT8,$G$8)) -> 2038-02-28 | HV8: =IF(HV4,HV7,EOMONTH(HU8,$G$8)) -> 2038-03-31 | HW8: =IF(HW4,HW7,EOMONTH(HV8,$G$8)) -> 2038-04-30 | HX8: =IF(HX4,HX7,EOMONTH(HW8,$G$8)) -> 2038-05-31 | HY8: =IF(HY4,HY7,EOMONTH(HX8,$G$8)) -> 2038-06-30 | HZ8: =IF(HZ4,HZ7,EOMONTH(HY8,$G$8)) -> 2038-07-31 | IA8: =IF(IA4,IA7,EOMONTH(HZ8,$G$8)) -> 2038-08-31 | IB8: =IF(IB4,IB7,EOMONTH(IA8,$G$8)) -> 2038-09-30 | IC8: =IF(IC4,IC7,EOMONTH(IB8,$G$8)) -> 2038-10-31 | ID8: =IF(ID4,ID7,EOMONTH(IC8,$G$8)) -> 2038-11-30 | IE8: =IF(IE4,IE7,EOMONTH(ID8,$G$8)) -> 2038-12-31 | IF8: =IF(IF4,IF7,EOMONTH(IE8,$G$8)) -> 2039-01-31 | IG8: =IF(IG4,IG7,EOMONTH(IF8,$G$8)) -> 2039-02-28 | IH8: =IF(IH4,IH7,EOMONTH(IG8,$G$8)) -> 2039-03-31 | II8: =IF(II4,II7,EOMONTH(IH8,$G$8)) -> 2039-04-30 | IJ8: =IF(IJ4,IJ7,EOMONTH(II8,$G$8)) -> 2039-05-31 | IK8: =IF(IK4,IK7,EOMONTH(IJ8,$G$8)) -> 2039-06-30 | IL8: =IF(IL4,IL7,EOMONTH(IK8,$G$8)) -> 2039-07-31 | IM8: =IF(IM4,IM7,EOMONTH(IL8,$G$8)) -> 2039-08-31 | IN8: =IF(IN4,IN7,EOMONTH(IM8,$G$8)) -> 2039-09-30 | IO8: =IF(IO4,IO7,EOMONTH(IN8,$G$8)) -> 2039-10-31 | IP8: =IF(IP4,IP7,EOMONTH(IO8,$G$8)) -> 2039-11-30 | IQ8: =IF(IQ4,IQ7,EOMONTH(IP8,$G$8)) -> 2039-12-31 | IR8: =IF(IR4,IR7,EOMONTH(IQ8,$G$8)) -> 2040-01-31 | IS8: =IF(IS4,IS7,EOMONTH(IR8,$G$8)) -> 2040-02-29
D9: Fiscal Year Month End | G9: ='Model Parameters'!G8 -> 3 | I9: =AND(NOT(I4),MONTH(I8)=$G$9)*1 -> 0 | J9: =AND(NOT(J4),MONTH(J8)=$G$9)*1 -> 0 | K9: 0 | L9: 0 | M9: 0 | N9: 1 | O9: 0 | P9: 0 | Q9: 0 | R9: 0 | S9: 0 | T9: 0 | U9: 0 | V9: 0 | W9: 0 | X9: 0 | Y9: 0 | Z9: 1 | AA9: 0 | AB9: 0 | AC9: 0 | AD9: 0 | AE9: 0 | AF9: 0 | AG9: 0 | AH9: 0 | AI9: 0 | AJ9: 0 | AK9: 0 | AL9: 1 | AM9: 0 | AN9: 0 | AO9: 0 | AP9: 0 | AQ9: 0 | AR9: 0 | AS9: 0 | AT9: 0 | AU9: 0 | AV9: 0 | AW9: 0 | AX9: 1 | AY9: 0 | AZ9: 0 | BA9: 0 | BB9: 0 | BC9: 0 | BD9: 0 | BE9: 0 | BF9: 0 | BG9: 0 | BH9: 0 | BI9: 0 | BJ9: 1 | BK9: 0 | BL9: 0 | BM9: 0 | BN9: 0 | BO9: 0 | BP9: 0 | BQ9: 0 | BR9: 0 | BS9: 0 | BT9: 0 | BU9: 0 | BV9: =AND(NOT(BV4),MONTH(BV8)=$G$9)*1 -> 1 | BW9: 0 | BX9: 0 | BY9: 0 | BZ9: 0 | CA9: 0 | CB9: 0 | CC9: 0 | CD9: 0 | CE9: 0 | CF9: 0 | CG9: 0 | CH9: 1 | CI9: 0 | CJ9: 0 | CK9: 0 | CL9: 0 | CM9: 0 | CN9: 0 | CO9: 0 | CP9: 0 | CQ9: 0 | CR9: 0 | CS9: 0 | CT9: =AND(NOT(CT4),MONTH(CT8)=$G$9)*1 -> 1 | CU9: =AND(NOT(CU4),MONTH(CU8)=$G$9)*1 -> 0 | CV9: =AND(NOT(CV4),MONTH(CV8)=$G$9)*1 -> 0 | CW9: =AND(NOT(CW4),MONTH(CW8)=$G$9)*1 -> 0 | CX9: =AND(NOT(CX4),MONTH(CX8)=$G$9)*1 -> 0 | CY9: =AND(NOT(CY4),MONTH(CY8)=$G$9)*1 -> 0 | CZ9: =AND(NOT(CZ4),MONTH(CZ8)=$G$9)*1 -> 0 | DA9: =AND(NOT(DA4),MONTH(DA8)=$G$9)*1 -> 0 | DB9: =AND(NOT(DB4),MONTH(DB8)=$G$9)*1 -> 0 | DC9: =AND(NOT(DC4),MONTH(DC8)=$G$9)*1 -> 0 | DD9: =AND(NOT(DD4),MONTH(DD8)=$G$9)*1 -> 0 | DE9: =AND(NOT(DE4),MONTH(DE8)=$G$9)*1 -> 0 | DF9: =AND(NOT(DF4),MONTH(DF8)=$G$9)*1 -> 1 | DG9: =AND(NOT(DG4),MONTH(DG8)=$G$9)*1 -> 0 | DH9: =AND(NOT(DH4),MONTH(DH8)=$G$9)*1 -> 0 | DI9: =AND(NOT(DI4),MONTH(DI8)=$G$9)*1 -> 0 | DJ9: =AND(NOT(DJ4),MONTH(DJ8)=$G$9)*1 -> 0 | DK9: =AND(NOT(DK4),MONTH(DK8)=$G$9)*1 -> 0 | DL9: =AND(NOT(DL4),MONTH(DL8)=$G$9)*1 -> 0 | DM9: =AND(NOT(DM4),MONTH(DM8)=$G$9)*1 -> 0 | DN9: =AND(NOT(DN4),MONTH(DN8)=$G$9)*1 -> 0 | DO9: =AND(NOT(DO4),MONTH(DO8)=$G$9)*1 -> 0 | DP9: =AND(NOT(DP4),MONTH(DP8)=$G$9)*1 -> 0 | DQ9: =AND(NOT(DQ4),MONTH(DQ8)=$G$9)*1 -> 0 | DR9: =AND(NOT(DR4),MONTH(DR8)=$G$9)*1 -> 1 | DS9: =AND(NOT(DS4),MONTH(DS8)=$G$9)*1 -> 0 | DT9: =AND(NOT(DT4),MONTH(DT8)=$G$9)*1 -> 0 | DU9: =AND(NOT(DU4),MONTH(DU8)=$G$9)*1 -> 0 | DV9: =AND(NOT(DV4),MONTH(DV8)=$G$9)*1 -> 0 | DW9: =AND(NOT(DW4),MONTH(DW8)=$G$9)*1 -> 0 | DX9: =AND(NOT(DX4),MONTH(DX8)=$G$9)*1 -> 0 | DY9: =AND(NOT(DY4),MONTH(DY8)=$G$9)*1 -> 0 | DZ9: =AND(NOT(DZ4),MONTH(DZ8)=$G$9)*1 -> 0 | EA9: =AND(NOT(EA4),MONTH(EA8)=$G$9)*1 -> 0 | EB9: =AND(NOT(EB4),MONTH(EB8)=$G$9)*1 -> 0 | EC9: =AND(NOT(EC4),MONTH(EC8)=$G$9)*1 -> 0 | ED9: =AND(NOT(ED4),MONTH(ED8)=$G$9)*1 -> 1 | EE9: =AND(NOT(EE4),MONTH(EE8)=$G$9)*1 -> 0 | EF9: =AND(NOT(EF4),MONTH(EF8)=$G$9)*1 -> 0 | EG9: =AND(NOT(EG4),MONTH(EG8)=$G$9)*1 -> 0 | EH9: =AND(NOT(EH4),MONTH(EH8)=$G$9)*1 -> 0 | EI9: =AND(NOT(EI4),MONTH(EI8)=$G$9)*1 -> 0 | EJ9: =AND(NOT(EJ4),MONTH(EJ8)=$G$9)*1 -> 0 | EK9: =AND(NOT(EK4),MONTH(EK8)=$G$9)*1 -> 0 | EL9: =AND(NOT(EL4),MONTH(EL8)=$G$9)*1 -> 0 | EM9: =AND(NOT(EM4),MONTH(EM8)=$G$9)*1 -> 0 | EN9: =AND(NOT(EN4),MONTH(EN8)=$G$9)*1 -> 0 | EO9: =AND(NOT(EO4),MONTH(EO8)=$G$9)*1 -> 0 | EP9: =AND(NOT(EP4),MONTH(EP8)=$G$9)*1 -> 1 | EQ9: =AND(NOT(EQ4),MONTH(EQ8)=$G$9)*1 -> 0 | ER9: =AND(NOT(ER4),MONTH(ER8)=$G$9)*1 -> 0 | ES9: =AND(NOT(ES4),MONTH(ES8)=$G$9)*1 -> 0 | ET9: =AND(NOT(ET4),MONTH(ET8)=$G$9)*1 -> 0 | EU9: =AND(NOT(EU4),MONTH(EU8)=$G$9)*1 -> 0 | EV9: =AND(NOT(EV4),MONTH(EV8)=$G$9)*1 -> 0 | EW9: =AND(NOT(EW4),MONTH(EW8)=$G$9)*1 -> 0 | EX9: =AND(NOT(EX4),MONTH(EX8)=$G$9)*1 -> 0 | EY9: =AND(NOT(EY4),MONTH(EY8)=$G$9)*1 -> 0 | EZ9: =AND(NOT(EZ4),MONTH(EZ8)=$G$9)*1 -> 0 | FA9: =AND(NOT(FA4),MONTH(FA8)=$G$9)*1 -> 0 | FB9: =AND(NOT(FB4),MONTH(FB8)=$G$9)*1 -> 1 | FC9: =AND(NOT(FC4),MONTH(FC8)=$G$9)*1 -> 0 | FD9: =AND(NOT(FD4),MONTH(FD8)=$G$9)*1 -> 0 | FE9: =AND(NOT(FE4),MONTH(FE8)=$G$9)*1 -> 0 | FF9: =AND(NOT(FF4),MONTH(FF8)=$G$9)*1 -> 0 | FG9: =AND(NOT(FG4),MONTH(FG8)=$G$9)*1 -> 0 | FH9: =AND(NOT(FH4),MONTH(FH8)=$G$9)*1 -> 0 | FI9: =AND(NOT(FI4),MONTH(FI8)=$G$9)*1 -> 0 | FJ9: =AND(NOT(FJ4),MONTH(FJ8)=$G$9)*1 -> 0 | FK9: =AND(NOT(FK4),MONTH(FK8)=$G$9)*1 -> 0 | FL9: =AND(NOT(FL4),MONTH(FL8)=$G$9)*1 -> 0 | FM9: =AND(NOT(FM4),MONTH(FM8)=$G$9)*1 -> 0 | FN9: =AND(NOT(FN4),MONTH(FN8)=$G$9)*1 -> 1 | FO9: =AND(NOT(FO4),MONTH(FO8)=$G$9)*1 -> 0 | FP9: =AND(NOT(FP4),MONTH(FP8)=$G$9)*1 -> 0 | FQ9: =AND(NOT(FQ4),MONTH(FQ8)=$G$9)*1 -> 0 | FR9: =AND(NOT(FR4),MONTH(FR8)=$G$9)*1 -> 0 | FS9: =AND(NOT(FS4),MONTH(FS8)=$G$9)*1 -> 0 | FT9: =AND(NOT(FT4),MONTH(FT8)=$G$9)*1 -> 0 | FU9: =AND(NOT(FU4),MONTH(FU8)=$G$9)*1 -> 0 | FV9: =AND(NOT(FV4),MONTH(FV8)=$G$9)*1 -> 0 | FW9: =AND(NOT(FW4),MONTH(FW8)=$G$9)*1 -> 0 | FX9: =AND(NOT(FX4),MONTH(FX8)=$G$9)*1 -> 0 | FY9: =AND(NOT(FY4),MONTH(FY8)=$G$9)*1 -> 0 | FZ9: =AND(NOT(FZ4),MONTH(FZ8)=$G$9)*1 -> 1 | GA9: =AND(NOT(GA4),MONTH(GA8)=$G$9)*1 -> 0 | GB9: =AND(NOT(GB4),MONTH(GB8)=$G$9)*1 -> 0 | GC9: =AND(NOT(GC4),MONTH(GC8)=$G$9)*1 -> 0 | GD9: =AND(NOT(GD4),MONTH(GD8)=$G$9)*1 -> 0 | GE9: =AND(NOT(GE4),MONTH(GE8)=$G$9)*1 -> 0 | GF9: =AND(NOT(GF4),MONTH(GF8)=$G$9)*1 -> 0 | GG9: =AND(NOT(GG4),MONTH(GG8)=$G$9)*1 -> 0 | GH9: =AND(NOT(GH4),MONTH(GH8)=$G$9)*1 -> 0 | GI9: =AND(NOT(GI4),MONTH(GI8)=$G$9)*1 -> 0 | GJ9: =AND(NOT(GJ4),MONTH(GJ8)=$G$9)*1 -> 0 | GK9: =AND(NOT(GK4),MONTH(GK8)=$G$9)*1 -> 0 | GL9: =AND(NOT(GL4),MONTH(GL8)=$G$9)*1 -> 1 | GM9: =AND(NOT(GM4),MONTH(GM8)=$G$9)*1 -> 0 | GN9: =AND(NOT(GN4),MONTH(GN8)=$G$9)*1 -> 0 | GO9: =AND(NOT(GO4),MONTH(GO8)=$G$9)*1 -> 0 | GP9: =AND(NOT(GP4),MONTH(GP8)=$G$9)*1 -> 0 | GQ9: =AND(NOT(GQ4),MONTH(GQ8)=$G$9)*1 -> 0 | GR9: =AND(NOT(GR4),MONTH(GR8)=$G$9)*1 -> 0 | GS9: =AND(NOT(GS4),MONTH(GS8)=$G$9)*1 -> 0 | GT9: =AND(NOT(GT4),MONTH(GT8)=$G$9)*1 -> 0 | GU9: =AND(NOT(GU4),MONTH(GU8)=$G$9)*1 -> 0 | GV9: =AND(NOT(GV4),MONTH(GV8)=$G$9)*1 -> 0 | GW9: =AND(NOT(GW4),MONTH(GW8)=$G$9)*1 -> 0 | GX9: =AND(NOT(GX4),MONTH(GX8)=$G$9)*1 -> 1 | GY9: =AND(NOT(GY4),MONTH(GY8)=$G$9)*1 -> 0 | GZ9: =AND(NOT(GZ4),MONTH(GZ8)=$G$9)*1 -> 0 | HA9: =AND(NOT(HA4),MONTH(HA8)=$G$9)*1 -> 0 | HB9: =AND(NOT(HB4),MONTH(HB8)=$G$9)*1 -> 0 | HC9: =AND(NOT(HC4),MONTH(HC8)=$G$9)*1 -> 0 | HD9: =AND(NOT(HD4),MONTH(HD8)=$G$9)*1 -> 0 | HE9: =AND(NOT(HE4),MONTH(HE8)=$G$9)*1 -> 0 | HF9: =AND(NOT(HF4),MONTH(HF8)=$G$9)*1 -> 0 | HG9: =AND(NOT(HG4),MONTH(HG8)=$G$9)*1 -> 0 | HH9: =AND(NOT(HH4),MONTH(HH8)=$G$9)*1 -> 0 | HI9: =AND(NOT(HI4),MONTH(HI8)=$G$9)*1 -> 0 | HJ9: =AND(NOT(HJ4),MONTH(HJ8)=$G$9)*1 -> 1 | HK9: =AND(NOT(HK4),MONTH(HK8)=$G$9)*1 -> 0 | HL9: =AND(NOT(HL4),MONTH(HL8)=$G$9)*1 -> 0 | HM9: =AND(NOT(HM4),MONTH(HM8)=$G$9)*1 -> 0 | HN9: =AND(NOT(HN4),MONTH(HN8)=$G$9)*1 -> 0 | HO9: =AND(NOT(HO4),MONTH(HO8)=$G$9)*1 -> 0 | HP9: =AND(NOT(HP4),MONTH(HP8)=$G$9)*1 -> 0 | HQ9: =AND(NOT(HQ4),MONTH(HQ8)=$G$9)*1 -> 0 | HR9: =AND(NOT(HR4),MONTH(HR8)=$G$9)*1 -> 0 | HS9: =AND(NOT(HS4),MONTH(HS8)=$G$9)*1 -> 0 | HT9: =AND(NOT(HT4),MONTH(HT8)=$G$9)*1 -> 0 | HU9: =AND(NOT(HU4),MONTH(HU8)=$G$9)*1 -> 0 | HV9: =AND(NOT(HV4),MONTH(HV8)=$G$9)*1 -> 1 | HW9: =AND(NOT(HW4),MONTH(HW8)=$G$9)*1 -> 0 | HX9: =AND(NOT(HX4),MONTH(HX8)=$G$9)*1 -> 0 | HY9: =AND(NOT(HY4),MONTH(HY8)=$G$9)*1 -> 0 | HZ9: =AND(NOT(HZ4),MONTH(HZ8)=$G$9)*1 -> 0 | IA9: =AND(NOT(IA4),MONTH(IA8)=$G$9)*1 -> 0 | IB9: =AND(NOT(IB4),MONTH(IB8)=$G$9)*1 -> 0 | IC9: =AND(NOT(IC4),MONTH(IC8)=$G$9)*1 -> 0 | ID9: =AND(NOT(ID4),MONTH(ID8)=$G$9)*1 -> 0 | IE9: =AND(NOT(IE4),MONTH(IE8)=$G$9)*1 -> 0 | IF9: =AND(NOT(IF4),MONTH(IF8)=$G$9)*1 -> 0 | IG9: =AND(NOT(IG4),MONTH(IG8)=$G$9)*1 -> 0 | IH9: =AND(NOT(IH4),MONTH(IH8)=$G$9)*1 -> 1 | II9: =AND(NOT(II4),MONTH(II8)=$G$9)*1 -> 0 | IJ9: =AND(NOT(IJ4),MONTH(IJ8)=$G$9)*1 -> 0 | IK9: =AND(NOT(IK4),MONTH(IK8)=$G$9)*1 -> 0 | IL9: =AND(NOT(IL4),MONTH(IL8)=$G$9)*1 -> 0 | IM9: =AND(NOT(IM4),MONTH(IM8)=$G$9)*1 -> 0 | IN9: =AND(NOT(IN4),MONTH(IN8)=$G$9)*1 -> 0 | IO9: =AND(NOT(IO4),MONTH(IO8)=$G$9)*1 -> 0 | IP9: =AND(NOT(IP4),MONTH(IP8)=$G$9)*1 -> 0 | IQ9: =AND(NOT(IQ4),MONTH(IQ8)=$G$9)*1 -> 0 | IR9: =AND(NOT(IR4),MONTH(IR8)=$G$9)*1 -> 0 | IS9: =AND(NOT(IS4),MONTH(IS8)=$G$9)*1 -> 0
D10: Fiscal Year | I10: =IF(I4,I6,G10+I9) -> 2016 | J10: =IF(J4,J6,I10+J9) -> 2017 | K10: 2018 | L10: 2019 | M10: 2020 | N10: 2021 | O10: 2021 | P10: 2021 | Q10: 2021 | R10: 2021 | S10: 2021 | T10: 2021 | U10: 2021 | V10: 2021 | W10: 2021 | X10: 2021 | Y10: 2021 | Z10: 2022 | AA10: 2022 | AB10: 2022 | AC10: 2022 | AD10: 2022 | AE10: 2022 | AF10: 2022 | AG10: 2022 | AH10: 2022 | AI10: 2022 | AJ10: 2022 | AK10: 2022 | AL10: 2023 | AM10: 2023 | AN10: 2023 | AO10: 2023 | AP10: 2023 | AQ10: 2023 | AR10: 2023 | AS10: 2023 | AT10: 2023 | AU10: 2023 | AV10: 2023 | AW10: 2023 | AX10: 2024 | AY10: 2024 | AZ10: 2024 | BA10: 2024 | BB10: 2024 | BC10: 2024 | BD10: 2024 | BE10: 2024 | BF10: 2024 | BG10: 2024 | BH10: 2024 | BI10: 2024 | BJ10: 2025 | BK10: 2025 | BL10: 2025 | BM10: 2025 | BN10: 2025 | BO10: 2025 | BP10: 2025 | BQ10: 2025 | BR10: 2025 | BS10: 2025 | BT10: 2025 | BU10: 2025 | BV10: =IF(BV4,BV6,BU10+BV9) -> 2026 | BW10: 2026 | BX10: 2026 | BY10: 2026 | BZ10: 2026 | CA10: 2026 | CB10: 2026 | CC10: 2026 | CD10: 2026 | CE10: 2026 | CF10: 2026 | CG10: 2026 | CH10: 2027 | CI10: 2027 | CJ10: 2027 | CK10: 2027 | CL10: 2027 | CM10: 2027 | CN10: 2027 | CO10: 2027 | CP10: 2027 | CQ10: 2027 | CR10: 2027 | CS10: 2027 | CT10: 2028 | CU10: 2028 | CV10: 2028 | CW10: 2028 | CX10: 2028 | CY10: 2028 | CZ10: 2028 | DA10: 2028 | DB10: 2028 | DC10: 2028 | DD10: 2028 | DE10: 2028 | DF10: 2029 | DG10: 2029 | DH10: 2029 | DI10: 2029 | DJ10: 2029 | DK10: 2029 | DL10: 2029 | DM10: 2029 | DN10: 2029 | DO10: 2029 | DP10: 2029 | DQ10: 2029 | DR10: 2030 | DS10: 2030 | DT10: 2030 | DU10: 2030 | DV10: 2030 | DW10: 2030 | DX10: 2030 | DY10: 2030 | DZ10: 2030 | EA10: 2030 | EB10: 2030 | EC10: 2030 | ED10: 2031 | EE10: 2031 | EF10: 2031 | EG10: 2031 | EH10: =IF(EH4,EH6,EG10+EH9) -> 2031 | EI10: 2031 | EJ10: 2031 | EK10: 2031 | EL10: =IF(EL4,EL6,EK10+EL9) -> 2031 | EM10: =IF(EM4,EM6,EL10+EM9) -> 2031 | EN10: =IF(EN4,EN6,EM10+EN9) -> 2031 | EO10: =IF(EO4,EO6,EN10+EO9) -> 2031 | EP10: =IF(EP4,EP6,EO10+EP9) -> 2032 | EQ10: =IF(EQ4,EQ6,EP10+EQ9) -> 2032 | ER10: =IF(ER4,ER6,EQ10+ER9) -> 2032 | ES10: =IF(ES4,ES6,ER10+ES9) -> 2032 | ET10: =IF(ET4,ET6,ES10+ET9) -> 2032 | EU10: =IF(EU4,EU6,ET10+EU9) -> 2032 | EV10: =IF(EV4,EV6,EU10+EV9) -> 2032 | EW10: =IF(EW4,EW6,EV10+EW9) -> 2032 | EX10: =IF(EX4,EX6,EW10+EX9) -> 2032 | EY10: =IF(EY4,EY6,EX10+EY9) -> 2032 | EZ10: =IF(EZ4,EZ6,EY10+EZ9) -> 2032 | FA10: =IF(FA4,FA6,EZ10+FA9) -> 2032 | FB10: =IF(FB4,FB6,FA10+FB9) -> 2033 | FC10: =IF(FC4,FC6,FB10+FC9) -> 2033 | FD10: =IF(FD4,FD6,FC10+FD9) -> 2033 | FE10: =IF(FE4,FE6,FD10+FE9) -> 2033 | FF10: =IF(FF4,FF6,FE10+FF9) -> 2033 | FG10: =IF(FG4,FG6,FF10+FG9) -> 2033 | FH10: =IF(FH4,FH6,FG10+FH9) -> 2033 | FI10: =IF(FI4,FI6,FH10+FI9) -> 2033 | FJ10: =IF(FJ4,FJ6,FI10+FJ9) -> 2033 | FK10: =IF(FK4,FK6,FJ10+FK9) -> 2033 | FL10: =IF(FL4,FL6,FK10+FL9) -> 2033 | FM10: =IF(FM4,FM6,FL10+FM9) -> 2033 | FN10: =IF(FN4,FN6,FM10+FN9) -> 2034 | FO10: =IF(FO4,FO6,FN10+FO9) -> 2034 | FP10: =IF(FP4,FP6,FO10+FP9) -> 2034 | FQ10: =IF(FQ4,FQ6,FP10+FQ9) -> 2034 | FR10: =IF(FR4,FR6,FQ10+FR9) -> 2034 | FS10: =IF(FS4,FS6,FR10+FS9) -> 2034 | FT10: =IF(FT4,FT6,FS10+FT9) -> 2034 | FU10: =IF(FU4,FU6,FT10+FU9) -> 2034 | FV10: =IF(FV4,FV6,FU10+FV9) -> 2034 | FW10: =IF(FW4,FW6,FV10+FW9) -> 2034 | FX10: =IF(FX4,FX6,FW10+FX9) -> 2034 | FY10: =IF(FY4,FY6,FX10+FY9) -> 2034 | FZ10: =IF(FZ4,FZ6,FY10+FZ9) -> 2035 | GA10: =IF(GA4,GA6,FZ10+GA9) -> 2035 | GB10: =IF(GB4,GB6,GA10+GB9) -> 2035 | GC10: =IF(GC4,GC6,GB10+GC9) -> 2035 | GD10: =IF(GD4,GD6,GC10+GD9) -> 2035 | GE10: =IF(GE4,GE6,GD10+GE9) -> 2035 | GF10: =IF(GF4,GF6,GE10+GF9) -> 2035 | GG10: =IF(GG4,GG6,GF10+GG9) -> 2035 | GH10: =IF(GH4,GH6,GG10+GH9) -> 2035 | GI10: =IF(GI4,GI6,GH10+GI9) -> 2035 | GJ10: =IF(GJ4,GJ6,GI10+GJ9) -> 2035 | GK10: =IF(GK4,GK6,GJ10+GK9) -> 2035 | GL10: =IF(GL4,GL6,GK10+GL9) -> 2036 | GM10: =IF(GM4,GM6,GL10+GM9) -> 2036 | GN10: =IF(GN4,GN6,GM10+GN9) -> 2036 | GO10: =IF(GO4,GO6,GN10+GO9) -> 2036 | GP10: =IF(GP4,GP6,GO10+GP9) -> 2036 | GQ10: =IF(GQ4,GQ6,GP10+GQ9) -> 2036 | GR10: =IF(GR4,GR6,GQ10+GR9) -> 2036 | GS10: =IF(GS4,GS6,GR10+GS9) -> 2036 | GT10: =IF(GT4,GT6,GS10+GT9) -> 2036 | GU10: =IF(GU4,GU6,GT10+GU9) -> 2036 | GV10: =IF(GV4,GV6,GU10+GV9) -> 2036 | GW10: =IF(GW4,GW6,GV10+GW9) -> 2036 | GX10: =IF(GX4,GX6,GW10+GX9) -> 2037 | GY10: =IF(GY4,GY6,GX10+GY9) -> 2037 | GZ10: =IF(GZ4,GZ6,GY10+GZ9) -> 2037 | HA10: =IF(HA4,HA6,GZ10+HA9) -> 2037 | HB10: =IF(HB4,HB6,HA10+HB9) -> 2037 | HC10: =IF(HC4,HC6,HB10+HC9) -> 2037 | HD10: =IF(HD4,HD6,HC10+HD9) -> 2037 | HE10: =IF(HE4,HE6,HD10+HE9) -> 2037 | HF10: =IF(HF4,HF6,HE10+HF9) -> 2037 | HG10: =IF(HG4,HG6,HF10+HG9) -> 2037 | HH10: =IF(HH4,HH6,HG10+HH9) -> 2037 | HI10: =IF(HI4,HI6,HH10+HI9) -> 2037 | HJ10: =IF(HJ4,HJ6,HI10+HJ9) -> 2038 | HK10: =IF(HK4,HK6,HJ10+HK9) -> 2038 | HL10: =IF(HL4,HL6,HK10+HL9) -> 2038 | HM10: =IF(HM4,HM6,HL10+HM9) -> 2038 | HN10: =IF(HN4,HN6,HM10+HN9) -> 2038 | HO10: =IF(HO4,HO6,HN10+HO9) -> 2038 | HP10: =IF(HP4,HP6,HO10+HP9) -> 2038 | HQ10: =IF(HQ4,HQ6,HP10+HQ9) -> 2038 | HR10: =IF(HR4,HR6,HQ10+HR9) -> 2038 | HS10: =IF(HS4,HS6,HR10+HS9) -> 2038 | HT10: =IF(HT4,HT6,HS10+HT9) -> 2038 | HU10: =IF(HU4,HU6,HT10+HU9) -> 2038 | HV10: =IF(HV4,HV6,HU10+HV9) -> 2039 | HW10: =IF(HW4,HW6,HV10+HW9) -> 2039 | HX10: =IF(HX4,HX6,HW10+HX9) -> 2039 | HY10: =IF(HY4,HY6,HX10+HY9) -> 2039 | HZ10: =IF(HZ4,HZ6,HY10+HZ9) -> 2039 | IA10: =IF(IA4,IA6,HZ10+IA9) -> 2039 | IB10: =IF(IB4,IB6,IA10+IB9) -> 2039 | IC10: =IF(IC4,IC6,IB10+IC9) -> 2039 | ID10: =IF(ID4,ID6,IC10+ID9) -> 2039 | IE10: =IF(IE4,IE6,ID10+IE9) -> 2039 | IF10: =IF(IF4,IF6,IE10+IF9) -> 2039 | IG10: =IF(IG4,IG6,IF10+IG9) -> 2039 | IH10: =IF(IH4,IH6,IG10+IH9) -> 2040 | II10: =IF(II4,II6,IH10+II9) -> 2040 | IJ10: =IF(IJ4,IJ6,II10+IJ9) -> 2040 | IK10: =IF(IK4,IK6,IJ10+IK9) -> 2040 | IL10: =IF(IL4,IL6,IK10+IL9) -> 2040 | IM10: =IF(IM4,IM6,IL10+IM9) -> 2040 | IN10: =IF(IN4,IN6,IM10+IN9) -> 2040 | IO10: =IF(IO4,IO6,IN10+IO9) -> 2040 | IP10: =IF(IP4,IP6,IO10+IP9) -> 2040 | IQ10: =IF(IQ4,IQ6,IP10+IQ9) -> 2040 | IR10: =IF(IR4,IR6,IQ10+IR9) -> 2040 | IS10: =IF(IS4,IS6,IR10+IS9) -> 2040
B12: Income Statement
E13: Sales/Revenue | I13: =Historical!E5 -> 27080000 | J13: =Historical!F5 -> 25780000 | K13: =Historical!G5 -> 25640000 | L13: =Historical!H5 -> 25740000 | M13: =Historical!I5 -> 25330000
E14: COGS excluding D&A | I14: =Historical!E6 -> 16500000 | J14: =Historical!F6 -> 15620000 | K14: =Historical!G6 -> 15180000 | L14: =Historical!H6 -> 15220000 | M14: =Historical!I6 -> 15170000
E15: Cash Gross Margin | I15: =Historical!E7 -> 10580000 | J15: =Historical!F7 -> 10160000 | K15: =Historical!G7 -> 10460000 | L15: =Historical!H7 -> 10520000 | M15: =Historical!I7 -> 10160000
E16: Research & Development | I16: =Historical!E8 -> 0 | J16: =Historical!F8 -> 0 | K16: =Historical!G8 -> 0 | L16: =Historical!H8 -> 0 | M16: =Historical!I8 -> 0
E17: Other SG&A | I17: =Historical!E9 -> 7200000 | J17: =Historical!F9 -> 7270000 | K17: =Historical!G9 -> 7820000 | L17: =Historical!H9 -> 7950000 | M17: =Historical!I9 -> 7900000
E18: Other Operating Expense | I18: =Historical!E10 -> 0 | J18: =Historical!F10 -> 145000 | K18: =Historical!G10 -> 144000 | L18: =Historical!H10 -> 130000 | M18: =Historical!I10 -> 120000
E19: EBITDA Calculated | I19: =Historical!E11 -> 3380000 | J19: =Historical!F11 -> 2745000 | K19: =Historical!G11 -> 2496000 | L19: =Historical!H11 -> 2440000 | M19: =Historical!I11 -> 2140000
E20: Unusual Expense | I20: =Historical!E12 -> 288000 | J20: =Historical!F12 -> 577000 | K20: =Historical!G12 -> 176000 | L20: =Historical!H12 -> 169000 | M20: =Historical!I12 -> 384000
E21: Depreciation | I21: =Historical!E13 -> 1039999.938 | J21: =Historical!F13 -> 1050000 | K21: =Historical!G13 -> 981000 | L21: =Historical!H13 -> 952000 | M21: =Historical!I13 -> 693000
E22: Amortization of Intangibles | I22: =Historical!E14 -> 23000 | J22: =Historical!F14 -> 10000 | K22: =Historical!G14 -> 10000 | L22: =Historical!H14 -> 10000 | M22: =Historical!I14 -> 288000
E23: EBIT Computed | I23: =Historical!E15 -> 2029000.062 | J23: =Historical!F15 -> 1108000 | K23: =Historical!G15 -> 1329000 | L23: =Historical!H15 -> 1309000 | M23: =Historical!I15 -> 775000
E24: Non Operating Income/Expense | I24: =Historical!E16 -> 0 | J24: =Historical!F16 -> 209000 | K24: =Historical!G16 -> 496000 | L24: =Historical!H16 -> 340000 | M24: =Historical!I16 -> 135000
E25: Non-Operating Interest Income | I25: =Historical!E17 -> 2000 | J25: =Historical!F17 -> 4000 | K25: =Historical!G17 -> 11000 | L25: =Historical!H17 -> 25000 | M25: =Historical!I17 -> 20000
E26: Equity in Affiliates (Pretax) | I26: =Historical!E18 -> 0 | J26: =Historical!F18 -> 0 | K26: =Historical!G18 -> 0 | L26: =Historical!H18 -> 0 | M26: =Historical!I18 -> 0
E27: Interest Expense | I27: =Historical!E19 -> 363000 | J27: =Historical!F19 -> 367000 | K27: =Historical!G19 -> 321000 | L27: =Historical!H19 -> 261000 | M27: =Historical!I19 -> 205000
E28: Pretax Income Computed | I28: =Historical!E20 -> 1668000.062 | J28: =Historical!F20 -> 954000 | K28: =Historical!G20 -> 1515000 | L28: =Historical!H20 -> 1413000 | M28: =Historical!I20 -> 725000
E29: Income Tax | I29: =Historical!E21 -> 608000 | J29: =Historical!F21 -> 341000 | K29: =Historical!G21 -> -39000 | L29: =Historical!H21 -> 322000 | M29: =Historical!I21 -> 164000
E30: Equity in Affiliates | I30: =Historical!E22 -> 0 | J30: =Historical!F22 -> 0 | K30: =Historical!G22 -> 0 | L30: =Historical!H22 -> 0 | M30: =Historical!I22 -> 0
E31: Other After Tax Income (Expense) | I31: =Historical!E23 -> 0 | J31: =Historical!F23 -> 0 | K31: =Historical!G23 -> 0 | L31: =Historical!H23 -> 0 | M31: =Historical!I23 -> 0
E32: Consolidated Net Income | I32: =Historical!E24 -> 1070000 | J32: =Historical!F24 -> 611000 | K32: =Historical!G24 -> 1560000 | L32: =Historical!H24 -> 1100000 | M32: =Historical!I24 -> 564000
E33: Other Reconciling Item (Income) | I33: =Historical!E25 -> 9999.9375 | J33: =Historical!F25 -> -2000 | K33: =Historical!G25 -> 6000 | L33: =Historical!H25 -> 9000 | M33: =Historical!I25 -> 3000
E34: Net Income Computed | I34: =Historical!E26 -> 1070000 | J34: =Historical!F26 -> 611000 | K34: =Historical!G26 -> 1560000 | L34: =Historical!H26 -> 1100000 | M34: =Historical!I26 -> 564000
E35: Minority Interest Expense | I35: =Historical!E27 -> -2000 | J35: =Historical!F27 -> -8000 | K35: =Historical!G27 -> -11000 | L35: =Historical!H27 -> -10000 | M35: =Historical!I27 -> 0
E36: Net Income | I36: =Historical!E28 -> 1070000 | J36: =Historical!F28 -> 619000 | K36: =Historical!G28 -> 1570000 | L36: =Historical!H28 -> 1110000 | M36: =Historical!I28 -> 564000
E37: Extraordinaries & Discontinued Operations | I37: =Historical!E29 -> 0 | J37: =Historical!F29 -> 0 | K37: =Historical!G29 -> 0 | L37: =Historical!H29 -> 0 | M37: =Historical!I29 -> 0
E38: Net Income After Extraordinaries | I38: =Historical!E30 -> 1070000 | J38: =Historical!F30 -> 619000 | K38: =Historical!G30 -> 1570000 | L38: =Historical!H30 -> 1110000 | M38: =Historical!I30 -> 564000
E39: Preferred Dividends | I39: =Historical!E31 -> 0 | J39: =Historical!F31 -> 0 | K39: =Historical!G31 -> 0 | L39: =Historical!H31 -> 0 | M39: =Historical!I31 -> 0
E40: Net Income Available to Common | I40: =Historical!E32 -> 1070000 | J40: =Historical!F32 -> 619000 | K40: =Historical!G32 -> 1570000 | L40: =Historical!H32 -> 1110000 | M40: =Historical!I32 -> 564000
I41: =Historical!E33 -> 0 | J41: =Historical!F33 -> 0 | K41: =Historical!G33 -> 0 | L41: =Historical!H33 -> 0 | M41: =Historical!I33 -> 0
E42: EPS (Basic) | I42: =Historical!E34 -> 3.26 | J42: =Historical!F34 -> 2.01 | K42: =Historical!G34 -> 5.13 | L42: =Historical!H34 -> 3.6 | M42: =Historical!I34 -> 1.82
E43: Basic Shares Outstanding | I43: =Historical!E35 -> 328400 | J43: =Historical!F35 -> 308500 | K43: =Historical!G35 -> 305400 | L43: =Historical!H35 -> 307700 | M43: =Historical!I35 -> 309700
E44: EPS (Diluted) | I44: =Historical!E36 -> 3.22 | J44: =Historical!F36 -> 1.99 | K44: =Historical!G36 -> 5.1 | L44: =Historical!H36 -> 3.56 | M44: =Historical!I36 -> 1.81
E45: Diluted Shares Outstanding | I45: =Historical!E37 -> 333000 | J45: =Historical!F37 -> 310800 | K45: =Historical!G37 -> 306800 | L45: =Historical!H37 -> 311400 | M45: =Historical!I37 -> 311400
B47: Cash Flow
E49: Cash at Start of Period | I49: =F85 -> 0 | J49: =I85 -> 1150000 | K49: 1330000 | L49: 1490000 | M49: 1200000
E51: Net Income before Extraordinaries | I51: =Historical!E43 -> 1070000 | J51: =Historical!F43 -> 611000 | K51: =Historical!G43 -> 1560000 | L51: =Historical!H43 -> 1100000 | M51: =Historical!I43 -> 564000
E52: Depreciation, Depletion & Amortization | I52: =Historical!E44 -> 1060000 | J52: =Historical!F44 -> 1060000 | K52: =Historical!G44 -> 991000 | L52: =Historical!H44 -> 962000 | M52: =Historical!I44 -> 981000
E53: Deferred Taxes & Investment Tax Credit | I53: =Historical!E45 -> -1000 | J53: =Historical!F45 -> -139000 | K53: =Historical!G45 -> -421000 | L53: =Historical!H45 -> 112000 | M53: =Historical!I45 -> -6000
E54: Other Funds | I54: =Historical!E46 -> 335000 | J54: =Historical!F46 -> 415000 | K54: =Historical!G46 -> -240000 | L54: =Historical!H46 -> -117000 | M54: =Historical!I46 -> 320000
E55: Funds from Operations | I55: =Historical!E47 -> 2464000 | J55: =Historical!F47 -> 1947000 | K55: =Historical!G47 -> 1890000 | L55: =Historical!H47 -> 2057000 | M55: =Historical!I47 -> 1859000
E56: Extraordinaries | I56: =Historical!E48 -> 0 | J56: =Historical!F48 -> 0 | K56: =Historical!G48 -> 0 | L56: =Historical!H48 -> 0 | M56: =Historical!I48 -> 0
E57: Changes in Working Capital | I57: =Historical!E49 -> -485000 | J57: =Historical!F49 -> -144000 | K57: =Historical!G49 -> 91000 | L57: =Historical!H49 -> -320000 | M57: =Historical!I49 -> -254000
E58: Net Operating Cash Flow | I58: =Historical!E50 -> 1979000 | J58: =Historical!F50 -> 1803000 | K58: =Historical!G50 -> 1981000 | L58: =Historical!H50 -> 1737000 | M58: =Historical!I50 -> 1605000
E59: Investing Activities | I59: =Historical!E51 -> 0 | J59: =Historical!F51 -> 0 | K59: =Historical!G51 -> 0 | L59: =Historical!H51 -> 0 | M59: =Historical!I51 -> 0
E60: Capital Expenditures (Fixed Assets) | I60: =Historical!E52 -> -777000 | J60: =Historical!F52 -> -596000 | K60: =Historical!G52 -> -487000 | L60: =Historical!H52 -> -657000 | M60: =Historical!I52 -> -902000
E61: Capital Expenditures (Other Assets) | I61: =Historical!E53 -> -336000 | J61: =Historical!F53 -> -316000 | K61: =Historical!G53 -> -273000 | L61: =Historical!H53 -> -275000 | M61: =Historical!I53 -> -255000
E62: Net Assets from Acquisitions | I62: =Historical!E54 -> -212000 | J62: =Historical!F54 -> 0 | K62: =Historical!G54 -> 0 | L62: =Historical!H54 -> 0 | M62: =Historical!I54 -> 0
E63: Sale of Fixed Assets & Businesses | I63: =Historical!E55 -> 209000 | J63: =Historical!F55 -> 677000 | K63: =Historical!G55 -> 424000 | L63: =Historical!H55 -> 481000 | M63: =Historical!I55 -> 185000
I64: =Historical!E56 -> FALSE | J64: =Historical!F56 -> FALSE | K64: =Historical!G56 -> FALSE | L64: =Historical!H56 -> FALSE | M64: =Historical!I56 -> FALSE
E65: Purchase/Sale of Investments | I65: =Historical!E57 -> 0 | J65: =Historical!F57 -> 0 | K65: =Historical!G57 -> 0 | L65: =Historical!H57 -> 0 | M65: =Historical!I57 -> 0
E66: Other Uses | I66: =Historical!E58 -> 0 | J66: =Historical!F58 -> 0 | K66: =Historical!G58 -> -2000 | L66: =Historical!H58 -> 0 | M66: =Historical!I58 -> -30000
E67: Other Sources | I67: =Historical!E59 -> 29000 | J67: =Historical!F59 -> 52000 | K67: =Historical!G59 -> 0 | L67: =Historical!H59 -> 2000 | M67: =Historical!I59 -> 0
E68: Net Investing Cash Flow | I68: =Historical!E60 -> -1087000 | J68: =Historical!F60 -> -183000 | K68: =Historical!G60 -> -338000 | L68: =Historical!H60 -> -449000 | M68: =Historical!I60 -> -1002000
E69: Financing Activities | I69: =Historical!E61 -> 0 | J69: =Historical!F61 -> 0 | K69: =Historical!G61 -> 0 | L69: =Historical!H61 -> 0 | M69: =Historical!I61 -> 0
E70: Common Dividends | I70: =Historical!E62 -> -456000 | J70: =Historical!F62 -> -459000 | K70: =Historical!G62 -> -461000 | L70: =Historical!H62 -> -463000 | M70: =Historical!I62 -> -466000
E71: Preferred Dividends | I71: =Historical!E63 -> 0 | J71: =Historical!F63 -> 0 | K71: =Historical!G63 -> 0 | L71: =Historical!H63 -> 0 | M71: =Historical!I63 -> 0
E72: Change in Capital Stock | I72: =Historical!E64 -> -1840000 | J72: =Historical!F64 -> -280000 | K72: =Historical!G64 -> 5000 | L72: =Historical!H64 -> 45000 | M72: =Historical!I64 -> 5000
E73: Repurchase of Common & Preferred Stk. | I73: =Historical!E65 -> -2000000 | J73: =Historical!F65 -> -316000 | K73: =Historical!G65 -> -1000 | L73: =Historical!H65 -> 0 | M73: =Historical!I65 -> -1000
E74: Sale of Common & Preferred Stock | I74: =Historical!E66 -> 163000 | J74: =Historical!F66 -> 36000 | K74: =Historical!G66 -> 6000 | L74: =Historical!H66 -> 45000 | M74: =Historical!I66 -> 6000
E75: Issuance/Reduction of Debt, Net | I75: =Historical!E67 -> 260000 | J75: =Historical!F67 -> -691000 | K75: =Historical!G67 -> -1000000 | L75: =Historical!H67 -> -1130000 | M75: =Historical!I67 -> -659000
E76: Change in Current Debt | I76: =Historical!E68 -> 0 | J76: =Historical!F68 -> 0 | K76: =Historical!G68 -> 0 | L76: =Historical!H68 -> 0 | M76: =Historical!I68 -> 0
E77: Change in Long-Term Debt | I77: =Historical!E69 -> 343000 | J77: =Historical!F69 -> -752000 | K77: =Historical!G69 -> -988000 | L77: =Historical!H69 -> -1150000 | M77: =Historical!I69 -> -597000
E78: Issuance of Long-Term Debt | I78: =Historical!E70 -> 495000 | J78: =Historical!F70 -> -1000 | K78: =Historical!G70 -> 0 | L78: =Historical!H70 -> 0 | M78: =Historical!I70 -> 0
E79: Reduction in Long-Term Debt | I79: =Historical!E71 -> -152000 | J79: =Historical!F71 -> -751000 | K79: =Historical!G71 -> -988000 | L79: =Historical!H71 -> -1150000 | M79: =Historical!I71 -> -597000
E80: Other Funds | I80: =Historical!E72 -> 335000 | J80: =Historical!F72 -> 415000 | K80: =Historical!G72 -> -240000 | L80: =Historical!H72 -> -117000 | M80: =Historical!I72 -> 320000
E81: Other Uses | I81: =Historical!E73 -> 0 | J81: =Historical!F73 -> 0 | K81: =Historical!G73 -> -2000 | L81: =Historical!H73 -> 0 | M81: =Historical!I73 -> -30000
E82: Other Sources | I82: =Historical!E74 -> 29000 | J82: =Historical!F74 -> 52000 | K82: =Historical!G74 -> 0 | L82: =Historical!H74 -> 2000 | M82: =Historical!I74 -> 0
E83: Net Financing Cash Flow | I83: =Historical!E75 -> 0 | J83: =Historical!F75 -> 0 | K83: =Historical!G75 -> 0 | L83: =Historical!H75 -> 0 | M83: =Historical!I75 -> 0
I84: =Historical!E76 -> 0 | J84: =Historical!F76 -> 0 | K84: =Historical!G76 -> 0 | L84: =Historical!H76 -> 0 | M84: =Historical!I76 -> 0
E85: Cash at End of Period | I85: =IF(I4,I94,I49+I58+I68+I83) -> 1150000 | J85: 1330000 | K85: 1490000 | L85: 1200000 | M85: 722000 | N85: 0 | O85: 0
E87: Exchange Rate Effect | I87: =Historical!E77 -> 0 | J87: =Historical!F77 -> 0 | K87: =Historical!G77 -> 0 | L87: =Historical!H77 -> 0 | M87: =Historical!I77 -> 0
E88: Miscellaneous Funds | I88: =Historical!E78 -> 0 | J88: =Historical!F78 -> 0 | K88: =Historical!G78 -> 0 | L88: =Historical!H78 -> 0 | M88: =Historical!I78 -> 0
E89: Net Change in Cash | I89: =Historical!E79 -> -1140000 | J89: =Historical!F79 -> 188000 | K89: =Historical!G79 -> 179000 | L89: =Historical!H79 -> -265000 | M89: =Historical!I79 -> -517000
E90: Free Cash Flow | I90: =Historical!E80 -> 1210000 | J90: =Historical!F80 -> 1210000 | K90: =Historical!G80 -> 1490000 | L90: =Historical!H80 -> 1080000 | M90: =Historical!I80 -> 703000
B92: Balance Sheet
D93: Assets
E94: Cash & Short Term Investments | I94: =Historical!E87 -> 1150000 | J94: =Historical!F87 -> 1330000 | K94: =Historical!G87 -> 1490000 | L94: =Historical!H87 -> 1200000 | M94: =Historical!I87 -> 722000
E95: Total Accounts Receivable | I95: =Historical!E88 -> 558000 | J95: =Historical!F88 -> 522000 | K95: =Historical!G88 -> 363000 | L95: =Historical!H88 -> 400000 | M95: =Historical!I88 -> 556000
E96: Inventories | I96: =Historical!E89 -> 5510000 | J96: =Historical!F89 -> 5400000 | K96: =Historical!G89 -> 5180000 | L96: =Historical!H89 -> 5260000 | M96: =Historical!I89 -> 5190000
E97: Progress Payments & Other | I97: =Historical!E90 -> 0 | J97: =Historical!F90 -> 0 | K97: =Historical!G90 -> 0 | L97: =Historical!H90 -> 0 | M97: =Historical!I90 -> 0
E98: Other Current Assets | I98: =Historical!E91 -> 442000 | J98: =Historical!F91 -> 371000 | K98: =Historical!G91 -> 613000 | L98: =Historical!H91 -> 583000 | M98: =Historical!I91 -> 344000
E99: Total Current Assets | I99: =Historical!E92 -> 7660000 | J99: =Historical!F92 -> 7623000 | K99: =Historical!G92 -> 7646000 | L99: =Historical!H92 -> 7443000 | M99: =Historical!I92 -> 6812000
E100: Property, Plant & Equipment - Gross | I100: =Historical!E93 -> 12940000 | J100: =Historical!F93 -> 11870000 | K100: =Historical!G93 -> 11280000 | L100: =Historical!H93 -> 11130000 | M100: =Historical!I93 -> 13710000
E101: Accumulated Depreciation | I101: =Historical!E94 -> 5320000 | J101: =Historical!F94 -> 4860000 | K101: =Historical!G94 -> 4610000 | L101: =Historical!H94 -> 4500000 | M101: =Historical!I94 -> 4400000
E102: Net Property, Plant & Equipment | I102: =Historical!E95 -> 7620000 | J102: =Historical!F95 -> 7020000 | K102: =Historical!G95 -> 6670000 | L102: =Historical!H95 -> 6640000 | M102: =Historical!I95 -> 9300000
E103: Total Investments and Advances
E104: Intangible Assets | I104: =Historical!E97 -> 4410000 | J104: =Historical!F97 -> 4400000 | K104: =Historical!G97 -> 4390000 | L104: =Historical!H97 -> 4390000 | M104: =Historical!I97 -> 4990000
E105: Other Assets | I105: =Historical!E98 -> 897000 | J105: =Historical!F98 -> 813000 | K105: =Historical!G98 -> 880000 | L105: =Historical!H98 -> 726000 | M105: =Historical!I98 -> 72000
E106: Total Assets | I106: =Historical!E99 -> 20587000 | J106: =Historical!F99 -> 19856000 | K106: =Historical!G99 -> 19586000 | L106: =Historical!H99 -> 19199000 | M106: =Historical!I99 -> 21174000
D108: Liabilities & Shareholders' Equity
E109: ST Debt & Current Portion LT Debt | I109: =Historical!E102 -> 642000 | J109: =Historical!F102 -> 309000 | K109: =Historical!G102 -> 22000 | L109: =Historical!H102 -> 43000 | M109: =Historical!I102 -> 872000
E110: Accounts Payable | I110: =Historical!E103 -> 2340000 | J110: =Historical!F103 -> 2180000 | K110: =Historical!G103 -> 2330000 | L110: =Historical!H103 -> 2640000 | M110: =Historical!I103 -> 2660000
E111: Income Tax Payable | I111: =Historical!E104 -> 227000 | J111: =Historical!F104 -> 352000 | K111: =Historical!G104 -> 296000 | L111: =Historical!H104 -> 168000 | M111: =Historical!I104 -> 81000
E112: Other Current Liabilities | I112: =Historical!E105 -> 2520000 | J112: =Historical!F105 -> 2810000 | K112: =Historical!G105 -> 2540000 | L112: =Historical!H105 -> 2380000 | M112: =Historical!I105 -> 2140000
E113: Total Current Liabilities | I113: =Historical!E106 -> 5729000 | J113: =Historical!F106 -> 5651000 | K113: =Historical!G106 -> 5188000 | L113: =Historical!H106 -> 5231000 | M113: =Historical!I106 -> 5753000
E114: Long-Term Debt | I114: =Historical!E107 -> 7000000 | J114: =Historical!F107 -> 6560000 | K114: =Historical!G107 -> 5860000 | L114: =Historical!H107 -> 4710000 | M114: =Historical!I107 -> 6540000
E115: Provision for Risks & Charges | I115: =Historical!E108 -> 1630000 | J115: =Historical!F108 -> 1350000 | K115: =Historical!G108 -> 1180000 | L115: =Historical!H108 -> 1090000 | M115: =Historical!I108 -> 1100000
E116: Deferred Taxes | I116: =Historical!E109 -> 1480000 | J116: =Historical!F109 -> 1440000 | K116: =Historical!G109 -> 1150000 | L116: =Historical!H109 -> 1240000 | M116: =Historical!I109 -> 1170000
E117: Other Liabilities | I117: =Historical!E110 -> 497000 | J117: =Historical!F110 -> 532000 | K117: =Historical!G110 -> 483000 | L117: =Historical!H110 -> 492000 | M117: =Historical!I110 -> 240000
E118: Reconciling Liabilities | I118: =Historical!E111 -> 1000 | J118: =Historical!F111 -> 3000 | K118: =Historical!G111 -> -5000 | L118: =Historical!H111 -> -4000 | M118: =Historical!I111 -> -9000
E119: Total Liabilities | I119: =Historical!E112 -> 16337000 | J119: =Historical!F112 -> 15536000 | K119: =Historical!G112 -> 13856000 | L119: =Historical!H112 -> 12759000 | M119: =Historical!I112 -> 14794000
E120: Total Shareholders' Equity | I120: =Historical!E113 -> 4250000 | J120: =Historical!F113 -> 4320000 | K120: =Historical!G113 -> 5750000 | L120: =Historical!H113 -> 6440000 | M120: =Historical!I113 -> 6380000
E121: Accumulated Minority Interest | I121: =Historical!E114 -> 3000 | J121: =Historical!F114 -> -1000 | K121: =Historical!G114 -> -12000 | L121: =Historical!H114 -> 0 | M121: =Historical!I114 -> 0
E122: Total Equity | I122: =Historical!E115 -> 4250000 | J122: =Historical!F115 -> 4320000 | K122: =Historical!G115 -> 5730000 | L122: =Historical!H115 -> 6440000 | M122: =Historical!I115 -> 6380000
E123: Liabilities & Shareholders' Equity | I123: =Historical!E116 -> 20587000 | J123: =Historical!F116 -> 19856000 | K123: =Historical!G116 -> 19586000 | L123: =Historical!H116 -> 19199000 | M123: =Historical!I116 -> 21174000
B125: Revenue Assumptions
D126: Base Unit Price | F126: USD/Unit | G126: 10 | I126: =G126 -> 10 | J126: =I126 -> 10 | K126: 10 | L126: 10 | M126: 10 | N126: 10 | O126: 10 | P126: 10 | Q126: 10 | R126: 10 | S126: 10 | T126: 10 | U126: 10 | V126: 10 | W126: 10 | X126: 10 | Y126: 10 | Z126: 10 | AA126: 10 | AB126: 10 | AC126: 10 | AD126: 10 | AE126: 10 | AF126: 10 | AG126: 10 | AH126: 10 | AI126: 10 | AJ126: 10 | AK126: 10 | AL126: 10 | AM126: 10 | AN126: 10 | AO126: 10 | AP126: 10 | AQ126: 10 | AR126: 10 | AS126: 10 | AT126: 10 | AU126: 10 | AV126: 10 | AW126: 10 | AX126: 10 | AY126: 10 | AZ126: 10 | BA126: 10 | BB126: 10 | BC126: 10 | BD126: 10 | BE126: 10 | BF126: 10 | BG126: 10 | BH126: 10 | BI126: 10 | BJ126: 10 | BK126: 10 | BL126: 10 | BM126: 10 | BN126: 10 | BO126: 10 | BP126: 10 | BQ126: 10 | BR126: 10 | BS126: 10 | BT126: 10 | BU126: 10 | BV126: =BU126 -> 10 | BW126: 10 | BX126: 10 | BY126: 10 | BZ126: 10 | CA126: 10 | CB126: 10 | CC126: 10 | CD126: 10 | CE126: 10 | CF126: 10 | CG126: 10 | CH126: 10 | CI126: 10 | CJ126: 10 | CK126: 10 | CL126: 10 | CM126: 10 | CN126: 10 | CO126: 10 | CP126: 10 | CQ126: 10 | CR126: 10 | CS126: 10 | CT126: =CS126 -> 10 | CU126: 10 | CV126: 10 | CW126: 10 | CX126: 10 | CY126: 10 | CZ126: 10 | DA126: 10 | DB126: 10 | DC126: 10 | DD126: 10 | DE126: 10 | DF126: 10 | DG126: 10 | DH126: =DG126 -> 10 | DI126: 10 | DJ126: 10 | DK126: 10 | DL126: 10 | DM126: 10 | DN126: 10 | DO126: 10 | DP126: 10 | DQ126: 10 | DR126: 10 | DS126: 10 | DT126: 10 | DU126: 10 | DV126: 10 | DW126: 10 | DX126: 10 | DY126: 10 | DZ126: 10 | EA126: =DZ126 -> 10 | EB126: 10 | EC126: 10 | ED126: 10 | EE126: 10 | EF126: 10 | EG126: 10 | EH126: 10 | EI126: 10 | EJ126: 10 | EK126: 10 | EL126: =EK126 -> 10 | EM126: 10 | EN126: 10 | EO126: 10 | EP126: 10 | EQ126: 10 | ER126: 10 | ES126: 10 | ET126: 10 | EU126: 10 | EV126: 10 | EW126: 10 | EX126: 10 | EY126: 10 | EZ126: 10 | FA126: 10 | FB126: 10 | FC126: 10 | FD126: 10 | FE126: 10 | FF126: 10 | FG126: 10 | FH126: 10 | FI126: 10 | FJ126: 10 | FK126: 10 | FL126: 10 | FM126: 10 | FN126: 10 | FO126: 10 | FP126: 10 | FQ126: 10 | FR126: 10 | FS126: 10 | FT126: 10 | FU126: 10 | FV126: 10 | FW126: 10 | FX126: 10 | FY126: 10 | FZ126: 10 | GA126: 10 | GB126: 10 | GC126: 10 | GD126: 10 | GE126: 10 | GF126: 10 | GG126: 10 | GH126: 10 | GI126: 10 | GJ126: 10 | GK126: 10 | GL126: 10 | GM126: 10 | GN126: 10 | GO126: 10 | GP126: 10 | GQ126: 10 | GR126: 10 | GS126: 10 | GT126: 10 | GU126: 10 | GV126: 10 | GW126: 10 | GX126: =GW126 -> 10 | GY126: 10 | GZ126: 10 | HA126: 10 | HB126: 10 | HC126: 10 | HD126: 10 | HE126: 10 | HF126: 10 | HG126: 10 | HH126: 10 | HI126: 10 | HJ126: 10 | HK126: 10 | HL126: 10 | HM126: 10 | HN126: 10 | HO126: 10 | HP126: 10 | HQ126: 10 | HR126: 10 | HS126: 10 | HT126: 10 | HU126: 10 | HV126: 10 | HW126: 10 | HX126: 10 | HY126: 10 | HZ126: 10 | IA126: 10 | IB126: 10 | IC126: 10 | ID126: 10 | IE126: 10 | IF126: 10 | IG126: 10 | IH126: 10 | II126: 10 | IJ126: 10 | IK126: 10 | IL126: 10 | IM126: 10 | IN126: 10 | IO126: 10 | IP126: 10 | IQ126: 10 | IR126: 10 | IS126: 10
D127: Assumed Price Increase | F127: % p.a. | G127: ='Model Parameters'!I14 -> 0 | I127: =LOOKUP(I10,'Model Parameters'!13:13,'Model Parameters'!14:14) -> 0.01 | J127: =LOOKUP(J10,'Model Parameters'!13:13,'Model Parameters'!14:14) -> 0 | K127: =LOOKUP(K10,'Model Parameters'!13:13,'Model Parameters'!14:14) -> 0 | L127: =LOOKUP(L10,'Model Parameters'!13:13,'Model Parameters'!14:14) -> 0 | M127: =LOOKUP(M10,'Model Parameters'!13:13,'Model Parameters'!14:14) -> 0 | N127: =LOOKUP(N10,'Model Parameters'!13:13,'Model Parameters'!14:14) -> 0 | O127: =LOOKUP(O10,'Model Parameters'!13:13,'Model Parameters'!14:14) -> 0 | P127: =LOOKUP(P10,'Model Parameters'!13:13,'Model Parameters'!14:14) -> 0 | Q127: =LOOKUP(Q10,'Model Parameters'!13:13,'Model Parameters'!14:14) -> 0 | R127: =LOOKUP(R10,'Model Parameters'!13:13,'Model Parameters'!14:14) -> 0 | S127: =LOOKUP(S10,'Model Parameters'!13:13,'Model Parameters'!14:14) -> 0 | T127: =LOOKUP(T10,'Model Parameters'!13:13,'Model Parameters'!14:14) -> 0 | U127: =LOOKUP(U10,'Model Parameters'!13:13,'Model Parameters'!14:14) -> 0 | V127: =LOOKUP(V10,'Model Parameters'!13:13,'Model Parameters'!14:14) -> 0 | W127: =LOOKUP(W10,'Model Parameters'!13:13,'Model Parameters'!14:14) -> 0 | X127: =LOOKUP(X10,'Model Parameters'!13:13,'Model Parameters'!14:14) -> 0 | Y127: =LOOKUP(Y10,'Model Parameters'!13:13,'Model Parameters'!14:14) -> 0 | Z127: =LOOKUP(Z10,'Model Parameters'!13:13,'Model Parameters'!14:14) -> 0 | AA127: =LOOKUP(AA10,'Model Parameters'!13:13,'Model Parameters'!14:14) -> 0 | AB127: =LOOKUP(AB10,'Model Parameters'!13:13,'Model Parameters'!14:14) -> 0 | AC127: =LOOKUP(AC10,'Model Parameters'!13:13,'Model Parameters'!14:14) -> 0 | AD127: =LOOKUP(AD10,'Model Parameters'!13:13,'Model Parameters'!14:14) -> 0 | AE127: =LOOKUP(AE10,'Model Parameters'!13:13,'Model Parameters'!14:14) -> 0 | AF127: =LOOKUP(AF10,'Model Parameters'!13:13,'Model Parameters'!14:14) -> 0 | AG127: =LOOKUP(AG10,'Model Parameters'!13:13,'Model Parameters'!14:14) -> 0 | AH127: =LOOKUP(AH10,'Model Parameters'!13:13,'Model Parameters'!14:14) -> 0 | AI127: =LOOKUP(AI10,'Model Parameters'!13:13,'Model Parameters'!14:14) -> 0 | AJ127: =LOOKUP(AJ10,'Model Parameters'!13:13,'Model Parameters'!14:14) -> 0 | AK127: =LOOKUP(AK10,'Model Parameters'!13:13,'Model Parameters'!14:14) -> 0 | AL127: =LOOKUP(AL10,'Model Parameters'!13:13,'Model Parameters'!14:14) -> 0 | AM127: =LOOKUP(AM10,'Model Parameters'!13:13,'Model Parameters'!14:14) -> 0 | AN127: =LOOKUP(AN10,'Model Parameters'!13:13,'Model Parameters'!14:14) -> 0 | AO127: =LOOKUP(AO10,'Model Parameters'!13:13,'Model Parameters'!14:14) -> 0 | AP127: =LOOKUP(AP10,'Model Parameters'!13:13,'Model Parameters'!14:14) -> 0 | AQ127: =LOOKUP(AQ10,'Model Parameters'!13:13,'Model Parameters'!14:14) -> 0 | AR127: =LOOKUP(AR10,'Model Parameters'!13:13,'Model Parameters'!14:14) -> 0 | AS127: =LOOKUP(AS10,'Model Parameters'!13:13,'Model Parameters'!14:14) -> 0 | AT127: =LOOKUP(AT10,'Model Parameters'!13:13,'Model Parameters'!14:14) -> 0 | AU127: =LOOKUP(AU10,'Model Parameters'!13:13,'Model Parameters'!14:14) -> 0 | AV127: =LOOKUP(AV10,'Model Parameters'!13:13,'Model Parameters'!14:14) -> 0 | AW127: =LOOKUP(AW10,'Model Parameters'!13:13,'Model Parameters'!14:14) -> 0 | AX127: =LOOKUP(AX10,'Model Parameters'!13:13,'Model Parameters'!14:14) -> 0 | AY127: =LOOKUP(AY10,'Model Parameters'!13:13,'Model Parameters'!14:14) -> 0 | AZ127: =LOOKUP(AZ10,'Model Parameters'!13:13,'Model Parameters'!14:14) -> 0 | BA127: =LOOKUP(BA10,'Model Parameters'!13:13,'Model Parameters'!14:14) -> 0 | BB127: =LOOKUP(BB10,'Model Parameters'!13:13,'Model Parameters'!14:14) -> 0 | BC127: =LOOKUP(BC10,'Model Parameters'!13:13,'Model Parameters'!14:14) -> 0 | BD127: =LOOKUP(BD10,'Model Parameters'!13:13,'Model Parameters'!14:14) -> 0 | BE127: =LOOKUP(BE10,'Model Parameters'!13:13,'Model Parameters'!14:14) -> 0 | BF127: =LOOKUP(BF10,'Model Parameters'!13:13,'Model Parameters'!14:14) -> 0 | BG127: =LOOKUP(BG10,'Model Parameters'!13:13,'Model Parameters'!14:14) -> 0 | BH127: =LOOKUP(BH10,'Model Parameters'!13:13,'Model Parameters'!14:14) -> 0 | BI127: =LOOKUP(BI10,'Model Parameters'!13:13,'Model Parameters'!14:14) -> 0 | BJ127: =LOOKUP(BJ10,'Model Parameters'!13:13,'Model Parameters'!14:14) -> 0 | BK127: =LOOKUP(BK10,'Model Parameters'!13:13,'Model Parameters'!14:14) -> 0 | BL127: =LOOKUP(BL10,'Model Parameters'!13:13,'Model Parameters'!14:14) -> 0 | BM127: =LOOKUP(BM10,'Model Parameters'!13:13,'Model Parameters'!14:14) -> 0 | BN127: =LOOKUP(BN10,'Model Parameters'!13:13,'Model Parameters'!14:14) -> 0 | BO127: =LOOKUP(BO10,'Model Parameters'!13:13,'Model Parameters'!14:14) -> 0 | BP127: =LOOKUP(BP10,'Model Parameters'!13:13,'Model Parameters'!14:14) -> 0 | BQ127: =LOOKUP(BQ10,'Model Parameters'!13:13,'Model Parameters'!14:14) -> 0 | BR127: =LOOKUP(BR10,'Model Parameters'!13:13,'Model Parameters'!14:14) -> 0 | BS127: =LOOKUP(BS10,'Model Parameters'!13:13,'Model Parameters'!14:14) -> 0 | BT127: =LOOKUP(BT10,'Model Parameters'!13:13,'Model Parameters'!14:14) -> 0 | BU127: =LOOKUP(BU10,'Model Parameters'!13:13,'Model Parameters'!14:14) -> 0 | BV127: =LOOKUP(BV10,'Model Parameters'!13:13,'Model Parameters'!14:14) -> 0 | BW127: =LOOKUP(BW10,'Model Parameters'!13:13,'Model Parameters'!14:14) -> 0 | BX127: =LOOKUP(BX10,'Model Parameters'!13:13,'Model Parameters'!14:14) -> 0 | BY127: =LOOKUP(BY10,'Model Parameters'!13:13,'Model Parameters'!14:14) -> 0 | BZ127: =LOOKUP(BZ10,'Model Parameters'!13:13,'Model Parameters'!14:14) -> 0 | CA127: =LOOKUP(CA10,'Model Parameters'!13:13,'Model Parameters'!14:14) -> 0 | CB127: =LOOKUP(CB10,'Model Parameters'!13:13,'Model Parameters'!14:14) -> 0 | CC127: =LOOKUP(CC10,'Model Parameters'!13:13,'Model Parameters'!14:14) -> 0 | CD127: =LOOKUP(CD10,'Model Parameters'!13:13,'Model Parameters'!14:14) -> 0 | CE127: =LOOKUP(CE10,'Model Parameters'!13:13,'Model Parameters'!14:14) -> 0 | CF127: =LOOKUP(CF10,'Model Parameters'!13:13,'Model Parameters'!14:14) -> 0 | CG127: =LOOKUP(CG10,'Model Parameters'!13:13,'Model Parameters'!14:14) -> 0 | CH127: =LOOKUP(CH10,'Model Parameters'!13:13,'Model Parameters'!14:14) -> 0 | CI127: =LOOKUP(CI10,'Model Parameters'!13:13,'Model Parameters'!14:14) -> 0 | CJ127: =LOOKUP(CJ10,'Model Parameters'!13:13,'Model Parameters'!14:14) -> 0 | CK127: =LOOKUP(CK10,'Model Parameters'!13:13,'Model Parameters'!14:14) -> 0 | CL127: =LOOKUP(CL10,'Model Parameters'!13:13,'Model Parameters'!14:14) -> 0 | CM127: =LOOKUP(CM10,'Model Parameters'!13:13,'Model Parameters'!14:14) -> 0 | CN127: =LOOKUP(CN10,'Model Parameters'!13:13,'Model Parameters'!14:14) -> 0 | CO127: =LOOKUP(CO10,'Model Parameters'!13:13,'Model Parameters'!14:14) -> 0 | CP127: =LOOKUP(CP10,'Model Parameters'!13:13,'Model Parameters'!14:14) -> 0 | CQ127: =LOOKUP(CQ10,'Model Parameters'!13:13,'Model Parameters'!14:14) -> 0 | CR127: =LOOKUP(CR10,'Model Parameters'!13:13,'Model Parameters'!14:14) -> 0 | CS127: =LOOKUP(CS10,'Model Parameters'!13:13,'Model Parameters'!14:14) -> 0 | CT127: =LOOKUP(CT10,'Model Parameters'!13:13,'Model Parameters'!14:14) -> 0 | CU127: =LOOKUP(CU10,'Model Parameters'!13:13,'Model Parameters'!14:14) -> 0 | CV127: =LOOKUP(CV10,'Model Parameters'!13:13,'Model Parameters'!14:14) -> 0 | CW127: =LOOKUP(CW10,'Model Parameters'!13:13,'Model Parameters'!14:14) -> 0 | CX127: =LOOKUP(CX10,'Model Parameters'!13:13,'Model Parameters'!14:14) -> 0 | CY127: =LOOKUP(CY10,'Model Parameters'!13:13,'Model Parameters'!14:14) -> 0 | CZ127: =LOOKUP(CZ10,'Model Parameters'!13:13,'Model Parameters'!14:14) -> 0 | DA127: =LOOKUP(DA10,'Model Parameters'!13:13,'Model Parameters'!14:14) -> 0 | DB127: =LOOKUP(DB10,'Model Parameters'!13:13,'Model Parameters'!14:14) -> 0 | DC127: =LOOKUP(DC10,'Model Parameters'!13:13,'Model Parameters'!14:14) -> 0 | DD127: =LOOKUP(DD10,'Model Parameters'!13:13,'Model Parameters'!14:14) -> 0 | DE127: =LOOKUP(DE10,'Model Parameters'!13:13,'Model Parameters'!14:14) -> 0 | DF127: =LOOKUP(DF10,'Model Parameters'!13:13,'Model Parameters'!14:14) -> 0 | DG127: =LOOKUP(DG10,'Model Parameters'!13:13,'Model Parameters'!14:14) -> 0 | DH127: =LOOKUP(DH10,'Model Parameters'!13:13,'Model Parameters'!14:14) -> 0 | DI127: =LOOKUP(DI10,'Model Parameters'!13:13,'Model Parameters'!14:14) -> 0 | DJ127: =LOOKUP(DJ10,'Model Parameters'!13:13,'Model Parameters'!14:14) -> 0 | DK127: =LOOKUP(DK10,'Model Parameters'!13:13,'Model Parameters'!14:14) -> 0 | DL127: =LOOKUP(DL10,'Model Parameters'!13:13,'Model Parameters'!14:14) -> 0 | DM127: =LOOKUP(DM10,'Model Parameters'!13:13,'Model Parameters'!14:14) -> 0 | DN127: =LOOKUP(DN10,'Model Parameters'!13:13,'Model Parameters'!14:14) -> 0 | DO127: =LOOKUP(DO10,'Model Parameters'!13:13,'Model Parameters'!14:14) -> 0 | DP127: =LOOKUP(DP10,'Model Parameters'!13:13,'Model Parameters'!14:14) -> 0 | DQ127: =LOOKUP(DQ10,'Model Parameters'!13:13,'Model Parameters'!14:14) -> 0 | DR127: =LOOKUP(DR10,'Model Parameters'!13:13,'Model Parameters'!14:14) -> 0 | DS127: =LOOKUP(DS10,'Model Parameters'!13:13,'Model Parameters'!14:14) -> 0 | DT127: =LOOKUP(DT10,'Model Parameters'!13:13,'Model Parameters'!14:14) -> 0 | DU127: =LOOKUP(DU10,'Model Parameters'!13:13,'Model Parameters'!14:14) -> 0 | DV127: =LOOKUP(DV10,'Model Parameters'!13:13,'Model Parameters'!14:14) -> 0 | DW127: =LOOKUP(DW10,'Model Parameters'!13:13,'Model Parameters'!14:14) -> 0 | DX127: =LOOKUP(DX10,'Model Parameters'!13:13,'Model Parameters'!14:14) -> 0 | DY127: =LOOKUP(DY10,'Model Parameters'!13:13,'Model Parameters'!14:14) -> 0 | DZ127: =LOOKUP(DZ10,'Model Parameters'!13:13,'Model Parameters'!14:14) -> 0 | EA127: =LOOKUP(EA10,'Model Parameters'!13:13,'Model Parameters'!14:14) -> 0 | EB127: =LOOKUP(EB10,'Model Parameters'!13:13,'Model Parameters'!14:14) -> 0 | EC127: =LOOKUP(EC10,'Model Parameters'!13:13,'Model Parameters'!14:14) -> 0 | ED127: =LOOKUP(ED10,'Model Parameters'!13:13,'Model Parameters'!14:14) -> 0 | EE127: =LOOKUP(EE10,'Model Parameters'!13:13,'Model Parameters'!14:14) -> 0 | EF127: =LOOKUP(EF10,'Model Parameters'!13:13,'Model Parameters'!14:14) -> 0 | EG127: =LOOKUP(EG10,'Model Parameters'!13:13,'Model Parameters'!14:14) -> 0 | EH127: =LOOKUP(EH10,'Model Parameters'!13:13,'Model Parameters'!14:14) -> 0 | EI127: =LOOKUP(EI10,'Model Parameters'!13:13,'Model Parameters'!14:14) -> 0 | EJ127: =LOOKUP(EJ10,'Model Parameters'!13:13,'Model Parameters'!14:14) -> 0 | EK127: =LOOKUP(EK10,'Model Parameters'!13:13,'Model Parameters'!14:14) -> 0 | EL127: =LOOKUP(EL10,'Model Parameters'!13:13,'Model Parameters'!14:14) -> 0 | EM127: =LOOKUP(EM10,'Model Parameters'!13:13,'Model Parameters'!14:14) -> 0 | EN127: =LOOKUP(EN10,'Model Parameters'!13:13,'Model Parameters'!14:14) -> 0 | EO127: =LOOKUP(EO10,'Model Parameters'!13:13,'Model Parameters'!14:14) -> 0 | EP127: =LOOKUP(EP10,'Model Parameters'!13:13,'Model Parameters'!14:14) -> 0 | EQ127: =LOOKUP(EQ10,'Model Parameters'!13:13,'Model Parameters'!14:14) -> 0 | ER127: =LOOKUP(ER10,'Model Parameters'!13:13,'Model Parameters'!14:14) -> 0 | ES127: =LOOKUP(ES10,'Model Parameters'!13:13,'Model Parameters'!14:14) -> 0 | ET127: =LOOKUP(ET10,'Model Parameters'!13:13,'Model Parameters'!14:14) -> 0 | EU127: =LOOKUP(EU10,'Model Parameters'!13:13,'Model Parameters'!14:14) -> 0 | EV127: =LOOKUP(EV10,'Model Parameters'!13:13,'Model Parameters'!14:14) -> 0 | EW127: =LOOKUP(EW10,'Model Parameters'!13:13,'Model Parameters'!14:14) -> 0 | EX127: =LOOKUP(EX10,'Model Parameters'!13:13,'Model Parameters'!14:14) -> 0 | EY127: =LOOKUP(EY10,'Model Parameters'!13:13,'Model Parameters'!14:14) -> 0 | EZ127: =LOOKUP(EZ10,'Model Parameters'!13:13,'Model Parameters'!14:14) -> 0 | FA127: =LOOKUP(FA10,'Model Parameters'!13:13,'Model Parameters'!14:14) -> 0 | FB127: =LOOKUP(FB10,'Model Parameters'!13:13,'Model Parameters'!14:14) -> 0 | FC127: =LOOKUP(FC10,'Model Parameters'!13:13,'Model Parameters'!14:14) -> 0 | FD127: =LOOKUP(FD10,'Model Parameters'!13:13,'Model Parameters'!14:14) -> 0 | FE127: =LOOKUP(FE10,'Model Parameters'!13:13,'Model Parameters'!14:14) -> 0 | FF127: =LOOKUP(FF10,'Model Parameters'!13:13,'Model Parameters'!14:14) -> 0 | FG127: =LOOKUP(FG10,'Model Parameters'!13:13,'Model Parameters'!14:14) -> 0 | FH127: =LOOKUP(FH10,'Model Parameters'!13:13,'Model Parameters'!14:14) -> 0 | FI127: =LOOKUP(FI10,'Model Parameters'!13:13,'Model Parameters'!14:14) -> 0 | FJ127: =LOOKUP(FJ10,'Model Parameters'!13:13,'Model Parameters'!14:14) -> 0 | FK127: =LOOKUP(FK10,'Model Parameters'!13:13,'Model Parameters'!14:14) -> 0 | FL127: =LOOKUP(FL10,'Model Parameters'!13:13,'Model Parameters'!14:14) -> 0 | FM127: =LOOKUP(FM10,'Model Parameters'!13:13,'Model Parameters'!14:14) -> 0 | FN127: =LOOKUP(FN10,'Model Parameters'!13:13,'Model Parameters'!14:14) -> 0 | FO127: =LOOKUP(FO10,'Model Parameters'!13:13,'Model Parameters'!14:14) -> 0 | FP127: =LOOKUP(FP10,'Model Parameters'!13:13,'Model Parameters'!14:14) -> 0 | FQ127: =LOOKUP(FQ10,'Model Parameters'!13:13,'Model Parameters'!14:14) -> 0 | FR127: =LOOKUP(FR10,'Model Parameters'!13:13,'Model Parameters'!14:14) -> 0 | FS127: =LOOKUP(FS10,'Model Parameters'!13:13,'Model Parameters'!14:14) -> 0 | FT127: =LOOKUP(FT10,'Model Parameters'!13:13,'Model Parameters'!14:14) -> 0 | FU127: =LOOKUP(FU10,'Model Parameters'!13:13,'Model Parameters'!14:14) -> 0 | FV127: =LOOKUP(FV10,'Model Parameters'!13:13,'Model Parameters'!14:14) -> 0 | FW127: =LOOKUP(FW10,'Model Parameters'!13:13,'Model Parameters'!14:14) -> 0 | FX127: =LOOKUP(FX10,'Model Parameters'!13:13,'Model Parameters'!14:14) -> 0 | FY127: =LOOKUP(FY10,'Model Parameters'!13:13,'Model Parameters'!14:14) -> 0 | FZ127: =LOOKUP(FZ10,'Model Parameters'!13:13,'Model Parameters'!14:14) -> 0 | GA127: =LOOKUP(GA10,'Model Parameters'!13:13,'Model Parameters'!14:14) -> 0 | GB127: =LOOKUP(GB10,'Model Parameters'!13:13,'Model Parameters'!14:14) -> 0 | GC127: =LOOKUP(GC10,'Model Parameters'!13:13,'Model Parameters'!14:14) -> 0 | GD127: =LOOKUP(GD10,'Model Parameters'!13:13,'Model Parameters'!14:14) -> 0 | GE127: =LOOKUP(GE10,'Model Parameters'!13:13,'Model Parameters'!14:14) -> 0 | GF127: =LOOKUP(GF10,'Model Parameters'!13:13,'Model Parameters'!14:14) -> 0 | GG127: =LOOKUP(GG10,'Model Parameters'!13:13,'Model Parameters'!14:14) -> 0 | GH127: =LOOKUP(GH10,'Model Parameters'!13:13,'Model Parameters'!14:14) -> 0 | GI127: =LOOKUP(GI10,'Model Parameters'!13:13,'Model Parameters'!14:14) -> 0 | GJ127: =LOOKUP(GJ10,'Model Parameters'!13:13,'Model Parameters'!14:14) -> 0 | GK127: =LOOKUP(GK10,'Model Parameters'!13:13,'Model Parameters'!14:14) -> 0 | GL127: =LOOKUP(GL10,'Model Parameters'!13:13,'Model Parameters'!14:14) -> 0 | GM127: =LOOKUP(GM10,'Model Parameters'!13:13,'Model Parameters'!14:14) -> 0 | GN127: =LOOKUP(GN10,'Model Parameters'!13:13,'Model Parameters'!14:14) -> 0 | GO127: =LOOKUP(GO10,'Model Parameters'!13:13,'Model Parameters'!14:14) -> 0 | GP127: =LOOKUP(GP10,'Model Parameters'!13:13,'Model Parameters'!14:14) -> 0 | GQ127: =LOOKUP(GQ10,'Model Parameters'!13:13,'Model Parameters'!14:14) -> 0 | GR127: =LOOKUP(GR10,'Model Parameters'!13:13,'Model Parameters'!14:14) -> 0 | GS127: =LOOKUP(GS10,'Model Parameters'!13:13,'Model Parameters'!14:14) -> 0 | GT127: =LOOKUP(GT10,'Model Parameters'!13:13,'Model Parameters'!14:14) -> 0 | GU127: =LOOKUP(GU10,'Model Parameters'!13:13,'Model Parameters'!14:14) -> 0 | GV127: =LOOKUP(GV10,'Model Parameters'!13:13,'Model Parameters'!14:14) -> 0 | GW127: =LOOKUP(GW10,'Model Parameters'!13:13,'Model Parameters'!14:14) -> 0 | GX127: =LOOKUP(GX10,'Model Parameters'!13:13,'Model Parameters'!14:14) -> 0 | GY127: =LOOKUP(GY10,'Model Parameters'!13:13,'Model Parameters'!14:14) -> 0 | GZ127: =LOOKUP(GZ10,'Model Parameters'!13:13,'Model Parameters'!14:14) -> 0 | HA127: =LOOKUP(HA10,'Model Parameters'!13:13,'Model Parameters'!14:14) -> 0 | HB127: =LOOKUP(HB10,'Model Parameters'!13:13,'Model Parameters'!14:14) -> 0 | HC127: =LOOKUP(HC10,'Model Parameters'!13:13,'Model Parameters'!14:14) -> 0 | HD127: =LOOKUP(HD10,'Model Parameters'!13:13,'Model Parameters'!14:14) -> 0 | HE127: =LOOKUP(HE10,'Model Parameters'!13:13,'Model Parameters'!14:14) -> 0 | HF127: =LOOKUP(HF10,'Model Parameters'!13:13,'Model Parameters'!14:14) -> 0 | HG127: =LOOKUP(HG10,'Model Parameters'!13:13,'Model Parameters'!14:14) -> 0 | HH127: =LOOKUP(HH10,'Model Parameters'!13:13,'Model Parameters'!14:14) -> 0 | HI127: =LOOKUP(HI10,'Model Parameters'!13:13,'Model Parameters'!14:14) -> 0 | HJ127: =LOOKUP(HJ10,'Model Parameters'!13:13,'Model Parameters'!14:14) -> 0 | HK127: =LOOKUP(HK10,'Model Parameters'!13:13,'Model Parameters'!14:14) -> 0 | HL127: =LOOKUP(HL10,'Model Parameters'!13:13,'Model Parameters'!14:14) -> 0 | HM127: =LOOKUP(HM10,'Model Parameters'!13:13,'Model Parameters'!14:14) -> 0 | HN127: =LOOKUP(HN10,'Model Parameters'!13:13,'Model Parameters'!14:14) -> 0 | HO127: =LOOKUP(HO10,'Model Parameters'!13:13,'Model Parameters'!14:14) -> 0 | HP127: =LOOKUP(HP10,'Model Parameters'!13:13,'Model Parameters'!14:14) -> 0 | HQ127: =LOOKUP(HQ10,'Model Parameters'!13:13,'Model Parameters'!14:14) -> 0 | HR127: =LOOKUP(HR10,'Model Parameters'!13:13,'Model Parameters'!14:14) -> 0 | HS127: =LOOKUP(HS10,'Model Parameters'!13:13,'Model Parameters'!14:14) -> 0 | HT127: =LOOKUP(HT10,'Model Parameters'!13:13,'Model Parameters'!14:14) -> 0 | HU127: =LOOKUP(HU10,'Model Parameters'!13:13,'Model Parameters'!14:14) -> 0 | HV127: =LOOKUP(HV10,'Model Parameters'!13:13,'Model Parameters'!14:14) -> 0 | HW127: =LOOKUP(HW10,'Model Parameters'!13:13,'Model Parameters'!14:14) -> 0 | HX127: =LOOKUP(HX10,'Model Parameters'!13:13,'Model Parameters'!14:14) -> 0 | HY127: =LOOKUP(HY10,'Model Parameters'!13:13,'Model Parameters'!14:14) -> 0 | HZ127: =LOOKUP(HZ10,'Model Parameters'!13:13,'Model Parameters'!14:14) -> 0 | IA127: =LOOKUP(IA10,'Model Parameters'!13:13,'Model Parameters'!14:14) -> 0 | IB127: =LOOKUP(IB10,'Model Parameters'!13:13,'Model Parameters'!14:14) -> 0 | IC127: =LOOKUP(IC10,'Model Parameters'!13:13,'Model Parameters'!14:14) -> 0 | ID127: =LOOKUP(ID10,'Model Parameters'!13:13,'Model Parameters'!14:14) -> 0 | IE127: =LOOKUP(IE10,'Model Parameters'!13:13,'Model Parameters'!14:14) -> 0 | IF127: =LOOKUP(IF10,'Model Parameters'!13:13,'Model Parameters'!14:14) -> 0 | IG127: =LOOKUP(IG10,'Model Parameters'!13:13,'Model Parameters'!14:14) -> 0 | IH127: =LOOKUP(IH10,'Model Parameters'!13:13,'Model Parameters'!14:14) -> 0 | II127: =LOOKUP(II10,'Model Parameters'!13:13,'Model Parameters'!14:14) -> 0 | IJ127: =LOOKUP(IJ10,'Model Parameters'!13:13,'Model Parameters'!14:14) -> 0 | IK127: =LOOKUP(IK10,'Model Parameters'!13:13,'Model Parameters'!14:14) -> 0 | IL127: =LOOKUP(IL10,'Model Parameters'!13:13,'Model Parameters'!14:14) -> 0 | IM127: =LOOKUP(IM10,'Model Parameters'!13:13,'Model Parameters'!14:14) -> 0 | IN127: =LOOKUP(IN10,'Model Parameters'!13:13,'Model Parameters'!14:14) -> 0 | IO127: =LOOKUP(IO10,'Model Parameters'!13:13,'Model Parameters'!14:14) -> 0 | IP127: =LOOKUP(IP10,'Model Parameters'!13:13,'Model Parameters'!14:14) -> 0 | IQ127: =LOOKUP(IQ10,'Model Parameters'!13:13,'Model Parameters'!14:14) -> 0 | IR127: =LOOKUP(IR10,'Model Parameters'!13:13,'Model Parameters'!14:14) -> 0 | IS127: =LOOKUP(IS10,'Model Parameters'!13:13,'Model Parameters'!14:14) -> 0
D128: Periodic Price Increase | F128: % p.p. | I128: =(1+I127)^(I5/12)-1 -> 0.01 | J128: 0 | K128: 0 | L128: 0 | M128: 0 | N128: 0 | O128: 0 | P128: 0 | Q128: 0 | R128: 0 | S128: 0 | T128: 0 | U128: 0 | V128: 0 | W128: 0 | X128: 0 | Y128: 0 | Z128: 0 | AA128: 0 | AB128: 0 | AC128: 0 | AD128: 0 | AE128: 0 | AF128: 0 | AG128: 0 | AH128: 0 | AI128: 0 | AJ128: 0 | AK128: 0 | AL128: 0 | AM128: 0 | AN128: 0 | AO128: 0 | AP128: 0 | AQ128: 0 | AR128: 0 | AS128: 0 | AT128: 0 | AU128: 0 | AV128: 0 | AW128: 0 | AX128: 0 | AY128: 0 | AZ128: 0 | BA128: 0 | BB128: 0 | BC128: 0 | BD128: 0 | BE128: 0 | BF128: 0 | BG128: 0 | BH128: 0 | BI128: 0 | BJ128: 0 | BK128: 0 | BL128: 0 | BM128: 0 | BN128: 0 | BO128: 0 | BP128: 0 | BQ128: 0 | BR128: 0 | BS128: 0 | BT128: 0 | BU128: =(1+BU127)^(BU5/12)-1 -> 0 | BV128: 0 | BW128: 0 | BX128: 0 | BY128: 0 | BZ128: 0 | CA128: 0 | CB128: 0 | CC128: 0 | CD128: 0 | CE128: 0 | CF128: 0 | CG128: 0 | CH128: 0 | CI128: 0 | CJ128: 0 | CK128: 0 | CL128: 0 | CM128: 0 | CN128: 0 | CO128: 0 | CP128: 0 | CQ128: 0 | CR128: 0 | CS128: 0 | CT128: 0 | CU128: 0 | CV128: 0 | CW128: 0 | CX128: 0 | CY128: 0 | CZ128: 0 | DA128: 0 | DB128: 0 | DC128: 0 | DD128: 0 | DE128: 0 | DF128: 0 | DG128: 0 | DH128: 0 | DI128: 0 | DJ128: 0 | DK128: 0 | DL128: 0 | DM128: 0 | DN128: 0 | DO128: 0 | DP128: 0 | DQ128: 0 | DR128: 0 | DS128: 0 | DT128: 0 | DU128: 0 | DV128: 0 | DW128: 0 | DX128: 0 | DY128: 0 | DZ128: 0 | EA128: 0 | EB128: 0 | EC128: 0 | ED128: 0 | EE128: 0 | EF128: 0 | EG128: =(1+EG127)^(EG5/12)-1 -> 0 | EH128: 0 | EI128: 0 | EJ128: 0 | EK128: 0 | EL128: 0 | EM128: 0 | EN128: 0 | EO128: 0 | EP128: 0 | EQ128: 0 | ER128: 0 | ES128: 0 | ET128: 0 | EU128: 0 | EV128: 0 | EW128: 0 | EX128: 0 | EY128: 0 | EZ128: 0 | FA128: 0 | FB128: 0 | FC128: 0 | FD128: 0 | FE128: 0 | FF128: 0 | FG128: 0 | FH128: 0 | FI128: 0 | FJ128: 0 | FK128: 0 | FL128: 0 | FM128: 0 | FN128: 0 | FO128: 0 | FP128: 0 | FQ128: 0 | FR128: 0 | FS128: 0 | FT128: 0 | FU128: 0 | FV128: 0 | FW128: 0 | FX128: 0 | FY128: 0 | FZ128: 0 | GA128: 0 | GB128: 0 | GC128: 0 | GD128: 0 | GE128: 0 | GF128: 0 | GG128: 0 | GH128: 0 | GI128: 0 | GJ128: 0 | GK128: 0 | GL128: 0 | GM128: 0 | GN128: 0 | GO128: 0 | GP128: 0 | GQ128: 0 | GR128: 0 | GS128: =(1+GS127)^(GS5/12)-1 -> 0 | GT128: 0 | GU128: 0 | GV128: 0 | GW128: 0 | GX128: 0 | GY128: 0 | GZ128: 0 | HA128: 0 | HB128: 0 | HC128: 0 | HD128: 0 | HE128: 0 | HF128: 0 | HG128: 0 | HH128: 0 | HI128: 0 | HJ128: 0 | HK128: 0 | HL128: 0 | HM128: 0 | HN128: 0 | HO128: 0 | HP128: 0 | HQ128: 0 | HR128: 0 | HS128: 0 | HT128: 0 | HU128: 0 | HV128: 0 | HW128: 0 | HX128: 0 | HY128: 0 | HZ128: 0 | IA128: 0 | IB128: 0 | IC128: 0 | ID128: 0 | IE128: 0 | IF128: 0 | IG128: 0 | IH128: 0 | II128: 0 | IJ128: 0 | IK128: 0 | IL128: 0 | IM128: 0 | IN128: 0 | IO128: 0 | IP128: 0 | IQ128: 0 | IR128: 0 | IS128: 0
D129: Price Index | H129: 1 | I129: =H129*(1+I128) -> 1.01 | J129: =I129*(1+J128) -> 1.01 | K129: 1.01 | L129: 1.01 | M129: 1.01 | N129: 1.01 | O129: 1.01 | P129: 1.01 | Q129: 1.01 | R129: 1.01 | S129: 1.01 | T129: 1.01 | U129: 1.01 | V129: 1.01 | W129: 1.01 | X129: 1.01 | Y129: 1.01 | Z129: 1.01 | AA129: 1.01 | AB129: 1.01 | AC129: 1.01 | AD129: 1.01 | AE129: 1.01 | AF129: 1.01 | AG129: 1.01 | AH129: 1.01 | AI129: 1.01 | AJ129: 1.01 | AK129: 1.01 | AL129: 1.01 | AM129: 1.01 | AN129: 1.01 | AO129: 1.01 | AP129: 1.01 | AQ129: 1.01 | AR129: 1.01 | AS129: 1.01 | AT129: 1.01 | AU129: 1.01 | AV129: 1.01 | AW129: 1.01 | AX129: 1.01 | AY129: 1.01 | AZ129: 1.01 | BA129: 1.01 | BB129: 1.01 | BC129: 1.01 | BD129: 1.01 | BE129: 1.01 | BF129: 1.01 | BG129: 1.01 | BH129: 1.01 | BI129: 1.01 | BJ129: 1.01 | BK129: 1.01 | BL129: 1.01 | BM129: 1.01 | BN129: 1.01 | BO129: 1.01 | BP129: 1.01 | BQ129: 1.01 | BR129: 1.01 | BS129: 1.01 | BT129: 1.01 | BU129: 1.01 | BV129: =BU129*(1+BV128) -> 1.01 | BW129: 1.01 | BX129: 1.01 | BY129: 1.01 | BZ129: 1.01 | CA129: 1.01 | CB129: 1.01 | CC129: 1.01 | CD129: 1.01 | CE129: 1.01 | CF129: 1.01 | CG129: 1.01 | CH129: 1.01 | CI129: 1.01 | CJ129: 1.01 | CK129: 1.01 | CL129: 1.01 | CM129: 1.01 | CN129: 1.01 | CO129: 1.01 | CP129: 1.01 | CQ129: 1.01 | CR129: 1.01 | CS129: 1.01 | CT129: 1.01 | CU129: 1.01 | CV129: 1.01 | CW129: 1.01 | CX129: 1.01 | CY129: 1.01 | CZ129: 1.01 | DA129: 1.01 | DB129: 1.01 | DC129: 1.01 | DD129: 1.01 | DE129: 1.01 | DF129: 1.01 | DG129: 1.01 | DH129: 1.01 | DI129: 1.01 | DJ129: 1.01 | DK129: 1.01 | DL129: 1.01 | DM129: 1.01 | DN129: 1.01 | DO129: 1.01 | DP129: 1.01 | DQ129: 1.01 | DR129: 1.01 | DS129: 1.01 | DT129: 1.01 | DU129: 1.01 | DV129: 1.01 | DW129: 1.01 | DX129: 1.01 | DY129: 1.01 | DZ129: 1.01 | EA129: 1.01 | EB129: 1.01 | EC129: 1.01 | ED129: 1.01 | EE129: 1.01 | EF129: 1.01 | EG129: 1.01 | EH129: =EG129*(1+EH128) -> 1.01 | EI129: 1.01 | EJ129: 1.01 | EK129: 1.01 | EL129: 1.01 | EM129: 1.01 | EN129: 1.01 | EO129: 1.01 | EP129: 1.01 | EQ129: 1.01 | ER129: 1.01 | ES129: 1.01 | ET129: 1.01 | EU129: 1.01 | EV129: 1.01 | EW129: 1.01 | EX129: 1.01 | EY129: 1.01 | EZ129: 1.01 | FA129: 1.01 | FB129: 1.01 | FC129: 1.01 | FD129: 1.01 | FE129: 1.01 | FF129: 1.01 | FG129: 1.01 | FH129: 1.01 | FI129: 1.01 | FJ129: 1.01 | FK129: 1.01 | FL129: 1.01 | FM129: 1.01 | FN129: 1.01 | FO129: 1.01 | FP129: 1.01 | FQ129: 1.01 | FR129: 1.01 | FS129: 1.01 | FT129: 1.01 | FU129: 1.01 | FV129: 1.01 | FW129: 1.01 | FX129: 1.01 | FY129: 1.01 | FZ129: 1.01 | GA129: 1.01 | GB129: 1.01 | GC129: 1.01 | GD129: 1.01 | GE129: 1.01 | GF129: 1.01 | GG129: 1.01 | GH129: 1.01 | GI129: 1.01 | GJ129: 1.01 | GK129: 1.01 | GL129: 1.01 | GM129: 1.01 | GN129: 1.01 | GO129: 1.01 | GP129: 1.01 | GQ129: 1.01 | GR129: 1.01 | GS129: 1.01 | GT129: =GS129*(1+GT128) -> 1.01 | GU129: 1.01 | GV129: 1.01 | GW129: 1.01 | GX129: 1.01 | GY129: 1.01 | GZ129: 1.01 | HA129: 1.01 | HB129: 1.01 | HC129: 1.01 | HD129: 1.01 | HE129: 1.01 | HF129: 1.01 | HG129: 1.01 | HH129: 1.01 | HI129: 1.01 | HJ129: 1.01 | HK129: 1.01 | HL129: 1.01 | HM129: 1.01 | HN129: 1.01 | HO129: 1.01 | HP129: 1.01 | HQ129: 1.01 | HR129: 1.01 | HS129: 1.01 | HT129: 1.01 | HU129: 1.01 | HV129: 1.01 | HW129: 1.01 | HX129: 1.01 | HY129: 1.01 | HZ129: 1.01 | IA129: 1.01 | IB129: 1.01 | IC129: 1.01 | ID129: 1.01 | IE129: 1.01 | IF129: 1.01 | IG129: 1.01 | IH129: 1.01 | II129: 1.01 | IJ129: 1.01 | IK129: 1.01 | IL129: 1.01 | IM129: 1.01 | IN129: 1.01 | IO129: 1.01 | IP129: 1.01 | IQ129: 1.01 | IR129: 1.01 | IS129: 1.01
D130: Applied Price | F130: USD/Unit | I130: =I129*I126 -> 10.1 | J130: =J129*J126 -> 10.1 | K130: 10.1 | L130: 10.1 | M130: 10.1 | N130: 10.1 | O130: 10.1 | P130: 10.1 | Q130: 10.1 | R130: 10.1 | S130: 10.1 | T130: 10.1 | U130: 10.1 | V130: 10.1 | W130: 10.1 | X130: 10.1 | Y130: 10.1 | Z130: 10.1 | AA130: 10.1 | AB130: 10.1 | AC130: 10.1 | AD130: 10.1 | AE130: 10.1 | AF130: 10.1 | AG130: 10.1 | AH130: 10.1 | AI130: 10.1 | AJ130: 10.1 | AK130: 10.1 | AL130: 10.1 | AM130: 10.1 | AN130: 10.1 | AO130: 10.1 | AP130: 10.1 | AQ130: 10.1 | AR130: 10.1 | AS130: 10.1 | AT130: 10.1 | AU130: 10.1 | AV130: 10.1 | AW130: 10.1 | AX130: 10.1 | AY130: 10.1 | AZ130: 10.1 | BA130: 10.1 | BB130: 10.1 | BC130: 10.1 | BD130: 10.1 | BE130: 10.1 | BF130: 10.1 | BG130: 10.1 | BH130: 10.1 | BI130: 10.1 | BJ130: 10.1 | BK130: 10.1 | BL130: 10.1 | BM130: 10.1 | BN130: 10.1 | BO130: 10.1 | BP130: 10.1 | BQ130: 10.1 | BR130: 10.1 | BS130: =BS129*BS126 -> 10.1 | BT130: =BT129*BT126 -> 10.1 | BU130: =BU129*BU126 -> 10.1 | BV130: =BV129*BV126 -> 10.1 | BW130: =BW129*BW126 -> 10.1 | BX130: =BX129*BX126 -> 10.1 | BY130: =BY129*BY126 -> 10.1 | BZ130: =BZ129*BZ126 -> 10.1 | CA130: =CA129*CA126 -> 10.1 | CB130: =CB129*CB126 -> 10.1 | CC130: =CC129*CC126 -> 10.1 | CD130: =CD129*CD126 -> 10.1 | CE130: =CE129*CE126 -> 10.1 | CF130: =CF129*CF126 -> 10.1 | CG130: =CG129*CG126 -> 10.1 | CH130: =CH129*CH126 -> 10.1 | CI130: =CI129*CI126 -> 10.1 | CJ130: =CJ129*CJ126 -> 10.1 | CK130: =CK129*CK126 -> 10.1 | CL130: =CL129*CL126 -> 10.1 | CM130: =CM129*CM126 -> 10.1 | CN130: =CN129*CN126 -> 10.1 | CO130: =CO129*CO126 -> 10.1 | CP130: =CP129*CP126 -> 10.1 | CQ130: =CQ129*CQ126 -> 10.1 | CR130: =CR129*CR126 -> 10.1 | CS130: =CS129*CS126 -> 10.1 | CT130: 10.1 | CU130: 10.1 | CV130: 10.1 | CW130: 10.1 | CX130: 10.1 | CY130: 10.1 | CZ130: 10.1 | DA130: 10.1 | DB130: 10.1 | DC130: 10.1 | DD130: 10.1 | DE130: 10.1 | DF130: 10.1 | DG130: 10.1 | DH130: =DH129*DH126 -> 10.1 | DI130: 10.1 | DJ130: 10.1 | DK130: 10.1 | DL130: 10.1 | DM130: 10.1 | DN130: 10.1 | DO130: 10.1 | DP130: 10.1 | DQ130: 10.1 | DR130: 10.1 | DS130: 10.1 | DT130: 10.1 | DU130: 10.1 | DV130: 10.1 | DW130: 10.1 | DX130: 10.1 | DY130: 10.1 | DZ130: 10.1 | EA130: =EA129*EA126 -> 10.1 | EB130: 10.1 | EC130: 10.1 | ED130: 10.1 | EE130: 10.1 | EF130: 10.1 | EG130: 10.1 | EH130: 10.1 | EI130: 10.1 | EJ130: 10.1 | EK130: 10.1 | EL130: =EL129*EL126 -> 10.1 | EM130: 10.1 | EN130: 10.1 | EO130: 10.1 | EP130: 10.1 | EQ130: 10.1 | ER130: 10.1 | ES130: 10.1 | ET130: 10.1 | EU130: 10.1 | EV130: 10.1 | EW130: 10.1 | EX130: 10.1 | EY130: 10.1 | EZ130: 10.1 | FA130: 10.1 | FB130: 10.1 | FC130: 10.1 | FD130: 10.1 | FE130: 10.1 | FF130: 10.1 | FG130: 10.1 | FH130: 10.1 | FI130: 10.1 | FJ130: 10.1 | FK130: 10.1 | FL130: 10.1 | FM130: 10.1 | FN130: 10.1 | FO130: 10.1 | FP130: 10.1 | FQ130: 10.1 | FR130: 10.1 | FS130: 10.1 | FT130: 10.1 | FU130: 10.1 | FV130: 10.1 | FW130: 10.1 | FX130: 10.1 | FY130: 10.1 | FZ130: 10.1 | GA130: 10.1 | GB130: 10.1 | GC130: 10.1 | GD130: 10.1 | GE130: 10.1 | GF130: 10.1 | GG130: 10.1 | GH130: 10.1 | GI130: 10.1 | GJ130: 10.1 | GK130: 10.1 | GL130: 10.1 | GM130: 10.1 | GN130: 10.1 | GO130: 10.1 | GP130: 10.1 | GQ130: 10.1 | GR130: 10.1 | GS130: 10.1 | GT130: 10.1 | GU130: 10.1 | GV130: 10.1 | GW130: 10.1 | GX130: =GX129*GX126 -> 10.1 | GY130: 10.1 | GZ130: 10.1 | HA130: 10.1 | HB130: 10.1 | HC130: 10.1 | HD130: 10.1 | HE130: 10.1 | HF130: 10.1 | HG130: 10.1 | HH130: 10.1 | HI130: 10.1 | HJ130: 10.1 | HK130: 10.1 | HL130: 10.1 | HM130: 10.1 | HN130: 10.1 | HO130: 10.1 | HP130: 10.1 | HQ130: 10.1 | HR130: 10.1 | HS130: 10.1 | HT130: 10.1 | HU130: 10.1 | HV130: 10.1 | HW130: 10.1 | HX130: 10.1 | HY130: 10.1 | HZ130: 10.1 | IA130: 10.1 | IB130: 10.1 | IC130: 10.1 | ID130: 10.1 | IE130: 10.1 | IF130: 10.1 | IG130: 10.1 | IH130: 10.1 | II130: 10.1 | IJ130: 10.1 | IK130: 10.1 | IL130: 10.1 | IM130: 10.1 | IN130: 10.1 | IO130: 10.1 | IP130: 10.1 | IQ130: 10.1 | IR130: 10.1 | IS130: 10.1
D132: Unit Sales Growth | F132: % p.a. | I132: =LOOKUP(I8,Scenarios!8:8,Scenarios!22:22) -> 0 | J132: =LOOKUP(J8,Scenarios!8:8,Scenarios!22:22) -> 0 | K132: =LOOKUP(K8,Scenarios!8:8,Scenarios!22:22) -> 0 | L132: =LOOKUP(L8,Scenarios!8:8,Scenarios!22:22) -> 0 | M132: =LOOKUP(M8,Scenarios!8:8,Scenarios!22:22) -> 0 | N132: =LOOKUP(N8,Scenarios!8:8,Scenarios!22:22) -> -0.7 | O132: =LOOKUP(O8,Scenarios!8:8,Scenarios!22:22) -> -0.2 | P132: =LOOKUP(P8,Scenarios!8:8,Scenarios!22:22) -> 0 | Q132: =LOOKUP(Q8,Scenarios!8:8,Scenarios!22:22) -> 0 | R132: =LOOKUP(R8,Scenarios!8:8,Scenarios!22:22) -> 0.2 | S132: =LOOKUP(S8,Scenarios!8:8,Scenarios!22:22) -> 0.2 | T132: =LOOKUP(T8,Scenarios!8:8,Scenarios!22:22) -> 0.2 | U132: =LOOKUP(U8,Scenarios!8:8,Scenarios!22:22) -> 0.2 | V132: =LOOKUP(V8,Scenarios!8:8,Scenarios!22:22) -> 0.2 | W132: =LOOKUP(W8,Scenarios!8:8,Scenarios!22:22) -> 0.2 | X132: =LOOKUP(X8,Scenarios!8:8,Scenarios!22:22) -> 0.2 | Y132: =LOOKUP(Y8,Scenarios!8:8,Scenarios!22:22) -> 0.04 | Z132: =LOOKUP(Z8,Scenarios!8:8,Scenarios!22:22) -> 0.04 | AA132: =LOOKUP(AA8,Scenarios!8:8,Scenarios!22:22) -> 0.04 | AB132: =LOOKUP(AB8,Scenarios!8:8,Scenarios!22:22) -> 0.04 | AC132: =LOOKUP(AC8,Scenarios!8:8,Scenarios!22:22) -> 0.04 | AD132: =LOOKUP(AD8,Scenarios!8:8,Scenarios!22:22) -> 0.02 | AE132: =LOOKUP(AE8,Scenarios!8:8,Scenarios!22:22) -> 0.02 | AF132: =LOOKUP(AF8,Scenarios!8:8,Scenarios!22:22) -> 0.02 | AG132: =LOOKUP(AG8,Scenarios!8:8,Scenarios!22:22) -> 0.02 | AH132: =LOOKUP(AH8,Scenarios!8:8,Scenarios!22:22) -> 0.02 | AI132: =LOOKUP(AI8,Scenarios!8:8,Scenarios!22:22) -> 0.02 | AJ132: =LOOKUP(AJ8,Scenarios!8:8,Scenarios!22:22) -> 0.02 | AK132: =LOOKUP(AK8,Scenarios!8:8,Scenarios!22:22) -> 0.02 | AL132: =LOOKUP(AL8,Scenarios!8:8,Scenarios!22:22) -> 0.02 | AM132: =LOOKUP(AM8,Scenarios!8:8,Scenarios!22:22) -> 0.02 | AN132: =LOOKUP(AN8,Scenarios!8:8,Scenarios!22:22) -> 0.02 | AO132: =LOOKUP(AO8,Scenarios!8:8,Scenarios!22:22) -> 0.02 | AP132: =LOOKUP(AP8,Scenarios!8:8,Scenarios!22:22) -> 0.02 | AQ132: =LOOKUP(AQ8,Scenarios!8:8,Scenarios!22:22) -> 0.02 | AR132: =LOOKUP(AR8,Scenarios!8:8,Scenarios!22:22) -> 0.02 | AS132: =LOOKUP(AS8,Scenarios!8:8,Scenarios!22:22) -> 0.02 | AT132: =LOOKUP(AT8,Scenarios!8:8,Scenarios!22:22) -> 0.01 | AU132: =LOOKUP(AU8,Scenarios!8:8,Scenarios!22:22) -> 0.01 | AV132: =LOOKUP(AV8,Scenarios!8:8,Scenarios!22:22) -> 0.01 | AW132: =LOOKUP(AW8,Scenarios!8:8,Scenarios!22:22) -> 0.01 | AX132: =LOOKUP(AX8,Scenarios!8:8,Scenarios!22:22) -> 0.01 | AY132: =LOOKUP(AY8,Scenarios!8:8,Scenarios!22:22) -> 0.01 | AZ132: =LOOKUP(AZ8,Scenarios!8:8,Scenarios!22:22) -> 0.01 | BA132: =LOOKUP(BA8,Scenarios!8:8,Scenarios!22:22) -> 0.01 | BB132: =LOOKUP(BB8,Scenarios!8:8,Scenarios!22:22) -> 0.01 | BC132: =LOOKUP(BC8,Scenarios!8:8,Scenarios!22:22) -> 0.01 | BD132: =LOOKUP(BD8,Scenarios!8:8,Scenarios!22:22) -> 0.01 | BE132: =LOOKUP(BE8,Scenarios!8:8,Scenarios!22:22) -> 0.01 | BF132: =LOOKUP(BF8,Scenarios!8:8,Scenarios!22:22) -> 0.01 | BG132: =LOOKUP(BG8,Scenarios!8:8,Scenarios!22:22) -> 0.01 | BH132: =LOOKUP(BH8,Scenarios!8:8,Scenarios!22:22) -> 0.01 | BI132: =LOOKUP(BI8,Scenarios!8:8,Scenarios!22:22) -> 0.01 | BJ132: =LOOKUP(BJ8,Scenarios!8:8,Scenarios!22:22) -> 0.01 | BK132: =LOOKUP(BK8,Scenarios!8:8,Scenarios!22:22) -> 0.01 | BL132: =LOOKUP(BL8,Scenarios!8:8,Scenarios!22:22) -> 0.01 | BM132: =LOOKUP(BM8,Scenarios!8:8,Scenarios!22:22) -> 0.01 | BN132: =LOOKUP(BN8,Scenarios!8:8,Scenarios!22:22) -> 0.01 | BO132: =LOOKUP(BO8,Scenarios!8:8,Scenarios!22:22) -> 0.01 | BP132: =LOOKUP(BP8,Scenarios!8:8,Scenarios!22:22) -> 0.01 | BQ132: =LOOKUP(BQ8,Scenarios!8:8,Scenarios!22:22) -> 0.01 | BR132: =LOOKUP(BR8,Scenarios!8:8,Scenarios!22:22) -> 0.01 | BS132: =LOOKUP(BS8,Scenarios!8:8,Scenarios!22:22) -> 0.01 | BT132: =LOOKUP(BT8,Scenarios!8:8,Scenarios!22:22) -> 0.01 | BU132: =LOOKUP(BU8,Scenarios!8:8,Scenarios!22:22) -> 0.01 | BV132: =LOOKUP(BV8,Scenarios!8:8,Scenarios!22:22) -> 0.01 | BW132: =LOOKUP(BW8,Scenarios!8:8,Scenarios!22:22) -> 0.01 | BX132: =LOOKUP(BX8,Scenarios!8:8,Scenarios!22:22) -> 0.01 | BY132: =LOOKUP(BY8,Scenarios!8:8,Scenarios!22:22) -> 0.01 | BZ132: =LOOKUP(BZ8,Scenarios!8:8,Scenarios!22:22) -> 0.01 | CA132: =LOOKUP(CA8,Scenarios!8:8,Scenarios!22:22) -> 0.01 | CB132: =LOOKUP(CB8,Scenarios!8:8,Scenarios!22:22) -> 0.01 | CC132: =LOOKUP(CC8,Scenarios!8:8,Scenarios!22:22) -> 0.01 | CD132: =LOOKUP(CD8,Scenarios!8:8,Scenarios!22:22) -> 0.015 | CE132: =LOOKUP(CE8,Scenarios!8:8,Scenarios!22:22) -> 0.015 | CF132: =LOOKUP(CF8,Scenarios!8:8,Scenarios!22:22) -> 0.015 | CG132: =LOOKUP(CG8,Scenarios!8:8,Scenarios!22:22) -> 0.015 | CH132: =LOOKUP(CH8,Scenarios!8:8,Scenarios!22:22) -> 0.015 | CI132: =LOOKUP(CI8,Scenarios!8:8,Scenarios!22:22) -> 0.015 | CJ132: =LOOKUP(CJ8,Scenarios!8:8,Scenarios!22:22) -> 0.015 | CK132: =LOOKUP(CK8,Scenarios!8:8,Scenarios!22:22) -> 0.015 | CL132: =LOOKUP(CL8,Scenarios!8:8,Scenarios!22:22) -> 0.015 | CM132: =LOOKUP(CM8,Scenarios!8:8,Scenarios!22:22) -> 0.015 | CN132: =LOOKUP(CN8,Scenarios!8:8,Scenarios!22:22) -> 0.015 | CO132: =LOOKUP(CO8,Scenarios!8:8,Scenarios!22:22) -> 0.015 | CP132: =LOOKUP(CP8,Scenarios!8:8,Scenarios!22:22) -> 0.015 | CQ132: =LOOKUP(CQ8,Scenarios!8:8,Scenarios!22:22) -> 0.015 | CR132: =LOOKUP(CR8,Scenarios!8:8,Scenarios!22:22) -> 0.015 | CS132: =LOOKUP(CS8,Scenarios!8:8,Scenarios!22:22) -> 0.015 | CT132: =LOOKUP(CT8,Scenarios!8:8,Scenarios!22:22) -> 0.015 | CU132: =LOOKUP(CU8,Scenarios!8:8,Scenarios!22:22) -> 0.015 | CV132: =LOOKUP(CV8,Scenarios!8:8,Scenarios!22:22) -> 0.015 | CW132: =LOOKUP(CW8,Scenarios!8:8,Scenarios!22:22) -> 0.015 | CX132: =LOOKUP(CX8,Scenarios!8:8,Scenarios!22:22) -> 0.015 | CY132: =LOOKUP(CY8,Scenarios!8:8,Scenarios!22:22) -> 0.015 | CZ132: =LOOKUP(CZ8,Scenarios!8:8,Scenarios!22:22) -> 0.015 | DA132: =LOOKUP(DA8,Scenarios!8:8,Scenarios!22:22) -> 0.015 | DB132: =LOOKUP(DB8,Scenarios!8:8,Scenarios!22:22) -> 0.018 | DC132: =LOOKUP(DC8,Scenarios!8:8,Scenarios!22:22) -> 0.018 | DD132: =LOOKUP(DD8,Scenarios!8:8,Scenarios!22:22) -> 0.018 | DE132: =LOOKUP(DE8,Scenarios!8:8,Scenarios!22:22) -> 0.018 | DF132: =LOOKUP(DF8,Scenarios!8:8,Scenarios!22:22) -> 0.018 | DG132: =LOOKUP(DG8,Scenarios!8:8,Scenarios!22:22) -> 0.018 | DH132: =LOOKUP(DH8,Scenarios!8:8,Scenarios!22:22) -> 0.018 | DI132: =LOOKUP(DI8,Scenarios!8:8,Scenarios!22:22) -> 0.018 | DJ132: =LOOKUP(DJ8,Scenarios!8:8,Scenarios!22:22) -> 0.018 | DK132: =LOOKUP(DK8,Scenarios!8:8,Scenarios!22:22) -> 0.018 | DL132: =LOOKUP(DL8,Scenarios!8:8,Scenarios!22:22) -> 0.018 | DM132: =LOOKUP(DM8,Scenarios!8:8,Scenarios!22:22) -> 0.018 | DN132: =LOOKUP(DN8,Scenarios!8:8,Scenarios!22:22) -> 0.015 | DO132: =LOOKUP(DO8,Scenarios!8:8,Scenarios!22:22) -> 0.015 | DP132: =LOOKUP(DP8,Scenarios!8:8,Scenarios!22:22) -> 0.015 | DQ132: =LOOKUP(DQ8,Scenarios!8:8,Scenarios!22:22) -> 0.015 | DR132: =LOOKUP(DR8,Scenarios!8:8,Scenarios!22:22) -> 0.015 | DS132: =LOOKUP(DS8,Scenarios!8:8,Scenarios!22:22) -> 0.015 | DT132: =LOOKUP(DT8,Scenarios!8:8,Scenarios!22:22) -> 0.015 | DU132: =LOOKUP(DU8,Scenarios!8:8,Scenarios!22:22) -> 0.015 | DV132: =LOOKUP(DV8,Scenarios!8:8,Scenarios!22:22) -> 0.015 | DW132: =LOOKUP(DW8,Scenarios!8:8,Scenarios!22:22) -> 0.015 | DX132: =LOOKUP(DX8,Scenarios!8:8,Scenarios!22:22) -> 0.015 | DY132: =LOOKUP(DY8,Scenarios!8:8,Scenarios!22:22) -> 0.015 | DZ132: =LOOKUP(DZ8,Scenarios!8:8,Scenarios!22:22) -> 0.015 | EA132: =LOOKUP(EA8,Scenarios!8:8,Scenarios!22:22) -> 0.015 | EB132: =LOOKUP(EB8,Scenarios!8:8,Scenarios!22:22) -> 0.015 | EC132: =LOOKUP(EC8,Scenarios!8:8,Scenarios!22:22) -> 0.015 | ED132: =LOOKUP(ED8,Scenarios!8:8,Scenarios!22:22) -> 0.015 | EE132: =LOOKUP(EE8,Scenarios!8:8,Scenarios!22:22) -> 0.015 | EF132: =LOOKUP(EF8,Scenarios!8:8,Scenarios!22:22) -> 0.015 | EG132: =LOOKUP(EG8,Scenarios!8:8,Scenarios!22:22) -> 0.015 | EH132: =LOOKUP(EH8,Scenarios!8:8,Scenarios!22:22) -> 0.015 | EI132: =LOOKUP(EI8,Scenarios!8:8,Scenarios!22:22) -> 0.015 | EJ132: =LOOKUP(EJ8,Scenarios!8:8,Scenarios!22:22) -> 0.015 | EK132: =LOOKUP(EK8,Scenarios!8:8,Scenarios!22:22) -> 0.015 | EL132: =LOOKUP(EL8,Scenarios!8:8,Scenarios!22:22) -> 0.015 | EM132: =LOOKUP(EM8,Scenarios!8:8,Scenarios!22:22) -> 0.015 | EN132: =LOOKUP(EN8,Scenarios!8:8,Scenarios!22:22) -> 0.015 | EO132: =LOOKUP(EO8,Scenarios!8:8,Scenarios!22:22) -> 0.015 | EP132: =LOOKUP(EP8,Scenarios!8:8,Scenarios!22:22) -> 0.015 | EQ132: =LOOKUP(EQ8,Scenarios!8:8,Scenarios!22:22) -> 0.015 | ER132: =LOOKUP(ER8,Scenarios!8:8,Scenarios!22:22) -> 0.015 | ES132: =LOOKUP(ES8,Scenarios!8:8,Scenarios!22:22) -> 0.015 | ET132: =LOOKUP(ET8,Scenarios!8:8,Scenarios!22:22) -> 0.015 | EU132: =LOOKUP(EU8,Scenarios!8:8,Scenarios!22:22) -> 0.015 | EV132: =LOOKUP(EV8,Scenarios!8:8,Scenarios!22:22) -> 0.015 | EW132: =LOOKUP(EW8,Scenarios!8:8,Scenarios!22:22) -> 0.015 | EX132: =LOOKUP(EX8,Scenarios!8:8,Scenarios!22:22) -> 0.015 | EY132: =LOOKUP(EY8,Scenarios!8:8,Scenarios!22:22) -> 0.015 | EZ132: =LOOKUP(EZ8,Scenarios!8:8,Scenarios!22:22) -> 0.015 | FA132: =LOOKUP(FA8,Scenarios!8:8,Scenarios!22:22) -> 0.015 | FB132: =LOOKUP(FB8,Scenarios!8:8,Scenarios!22:22) -> 0.015 | FC132: =LOOKUP(FC8,Scenarios!8:8,Scenarios!22:22) -> 0.015 | FD132: =LOOKUP(FD8,Scenarios!8:8,Scenarios!22:22) -> 0.015 | FE132: =LOOKUP(FE8,Scenarios!8:8,Scenarios!22:22) -> 0.015 | FF132: =LOOKUP(FF8,Scenarios!8:8,Scenarios!22:22) -> 0.015 | FG132: =LOOKUP(FG8,Scenarios!8:8,Scenarios!22:22) -> 0.015 | FH132: =LOOKUP(FH8,Scenarios!8:8,Scenarios!22:22) -> 0.015 | FI132: =LOOKUP(FI8,Scenarios!8:8,Scenarios!22:22) -> 0.015 | FJ132: =LOOKUP(FJ8,Scenarios!8:8,Scenarios!22:22) -> 0.015 | FK132: =LOOKUP(FK8,Scenarios!8:8,Scenarios!22:22) -> 0.015 | FL132: =LOOKUP(FL8,Scenarios!8:8,Scenarios!22:22) -> 0.015 | FM132: =LOOKUP(FM8,Scenarios!8:8,Scenarios!22:22) -> 0.015 | FN132: =LOOKUP(FN8,Scenarios!8:8,Scenarios!22:22) -> 0.015 | FO132: =LOOKUP(FO8,Scenarios!8:8,Scenarios!22:22) -> 0.015 | FP132: =LOOKUP(FP8,Scenarios!8:8,Scenarios!22:22) -> 0.015 | FQ132: =LOOKUP(FQ8,Scenarios!8:8,Scenarios!22:22) -> 0.015 | FR132: =LOOKUP(FR8,Scenarios!8:8,Scenarios!22:22) -> 0.015 | FS132: =LOOKUP(FS8,Scenarios!8:8,Scenarios!22:22) -> 0.015 | FT132: =LOOKUP(FT8,Scenarios!8:8,Scenarios!22:22) -> 0.015 | FU132: =LOOKUP(FU8,Scenarios!8:8,Scenarios!22:22) -> 0.015 | FV132: =LOOKUP(FV8,Scenarios!8:8,Scenarios!22:22) -> -0.005 | FW132: =LOOKUP(FW8,Scenarios!8:8,Scenarios!22:22) -> -0.005 | FX132: =LOOKUP(FX8,Scenarios!8:8,Scenarios!22:22) -> -0.005 | FY132: =LOOKUP(FY8,Scenarios!8:8,Scenarios!22:22) -> -0.005 | FZ132: =LOOKUP(FZ8,Scenarios!8:8,Scenarios!22:22) -> -0.005 | GA132: =LOOKUP(GA8,Scenarios!8:8,Scenarios!22:22) -> -0.005 | GB132: =LOOKUP(GB8,Scenarios!8:8,Scenarios!22:22) -> -0.005 | GC132: =LOOKUP(GC8,Scenarios!8:8,Scenarios!22:22) -> -0.005 | GD132: =LOOKUP(GD8,Scenarios!8:8,Scenarios!22:22) -> -0.005 | GE132: =LOOKUP(GE8,Scenarios!8:8,Scenarios!22:22) -> -0.005 | GF132: =LOOKUP(GF8,Scenarios!8:8,Scenarios!22:22) -> -0.005 | GG132: =LOOKUP(GG8,Scenarios!8:8,Scenarios!22:22) -> -0.005 | GH132: =LOOKUP(GH8,Scenarios!8:8,Scenarios!22:22) -> -0.005 | GI132: =LOOKUP(GI8,Scenarios!8:8,Scenarios!22:22) -> -0.005 | GJ132: =LOOKUP(GJ8,Scenarios!8:8,Scenarios!22:22) -> -0.005 | GK132: =LOOKUP(GK8,Scenarios!8:8,Scenarios!22:22) -> -0.005 | GL132: =LOOKUP(GL8,Scenarios!8:8,Scenarios!22:22) -> -0.005 | GM132: =LOOKUP(GM8,Scenarios!8:8,Scenarios!22:22) -> -0.005 | GN132: =LOOKUP(GN8,Scenarios!8:8,Scenarios!22:22) -> -0.005 | GO132: =LOOKUP(GO8,Scenarios!8:8,Scenarios!22:22) -> -0.005 | GP132: =LOOKUP(GP8,Scenarios!8:8,Scenarios!22:22) -> -0.005 | GQ132: =LOOKUP(GQ8,Scenarios!8:8,Scenarios!22:22) -> -0.005 | GR132: =LOOKUP(GR8,Scenarios!8:8,Scenarios!22:22) -> -0.005 | GS132: =LOOKUP(GS8,Scenarios!8:8,Scenarios!22:22) -> -0.005 | GT132: =LOOKUP(GT8,Scenarios!8:8,Scenarios!22:22) -> -0.005 | GU132: =LOOKUP(GU8,Scenarios!8:8,Scenarios!22:22) -> -0.005 | GV132: =LOOKUP(GV8,Scenarios!8:8,Scenarios!22:22) -> -0.005 | GW132: =LOOKUP(GW8,Scenarios!8:8,Scenarios!22:22) -> -0.005 | GX132: =LOOKUP(GX8,Scenarios!8:8,Scenarios!22:22) -> -0.005 | GY132: =LOOKUP(GY8,Scenarios!8:8,Scenarios!22:22) -> -0.005 | GZ132: =LOOKUP(GZ8,Scenarios!8:8,Scenarios!22:22) -> -0.005 | HA132: =LOOKUP(HA8,Scenarios!8:8,Scenarios!22:22) -> -0.005 | HB132: =LOOKUP(HB8,Scenarios!8:8,Scenarios!22:22) -> -0.005 | HC132: =LOOKUP(HC8,Scenarios!8:8,Scenarios!22:22) -> -0.005 | HD132: =LOOKUP(HD8,Scenarios!8:8,Scenarios!22:22) -> -0.005 | HE132: =LOOKUP(HE8,Scenarios!8:8,Scenarios!22:22) -> -0.005 | HF132: =LOOKUP(HF8,Scenarios!8:8,Scenarios!22:22) -> -0.005 | HG132: =LOOKUP(HG8,Scenarios!8:8,Scenarios!22:22) -> -0.005 | HH132: =LOOKUP(HH8,Scenarios!8:8,Scenarios!22:22) -> -0.005 | HI132: =LOOKUP(HI8,Scenarios!8:8,Scenarios!22:22) -> -0.005 | HJ132: =LOOKUP(HJ8,Scenarios!8:8,Scenarios!22:22) -> -0.005 | HK132: =LOOKUP(HK8,Scenarios!8:8,Scenarios!22:22) -> -0.005 | HL132: =LOOKUP(HL8,Scenarios!8:8,Scenarios!22:22) -> -0.005 | HM132: =LOOKUP(HM8,Scenarios!8:8,Scenarios!22:22) -> -0.005 | HN132: =LOOKUP(HN8,Scenarios!8:8,Scenarios!22:22) -> -0.005 | HO132: =LOOKUP(HO8,Scenarios!8:8,Scenarios!22:22) -> -0.005 | HP132: =LOOKUP(HP8,Scenarios!8:8,Scenarios!22:22) -> -0.005 | HQ132: =LOOKUP(HQ8,Scenarios!8:8,Scenarios!22:22) -> -0.005 | HR132: =LOOKUP(HR8,Scenarios!8:8,Scenarios!22:22) -> -0.005 | HS132: =LOOKUP(HS8,Scenarios!8:8,Scenarios!22:22) -> -0.005 | HT132: =LOOKUP(HT8,Scenarios!8:8,Scenarios!22:22) -> -0.005 | HU132: =LOOKUP(HU8,Scenarios!8:8,Scenarios!22:22) -> -0.005 | HV132: =LOOKUP(HV8,Scenarios!8:8,Scenarios!22:22) -> -0.005 | HW132: =LOOKUP(HW8,Scenarios!8:8,Scenarios!22:22) -> -0.005 | HX132: =LOOKUP(HX8,Scenarios!8:8,Scenarios!22:22) -> -0.005 | HY132: =LOOKUP(HY8,Scenarios!8:8,Scenarios!22:22) -> -0.005 | HZ132: =LOOKUP(HZ8,Scenarios!8:8,Scenarios!22:22) -> -0.005 | IA132: =LOOKUP(IA8,Scenarios!8:8,Scenarios!22:22) -> -0.005 | IB132: =LOOKUP(IB8,Scenarios!8:8,Scenarios!22:22) -> -0.005 | IC132: =LOOKUP(IC8,Scenarios!8:8,Scenarios!22:22) -> -0.005 | ID132: =LOOKUP(ID8,Scenarios!8:8,Scenarios!22:22) -> -0.005 | IE132: =LOOKUP(IE8,Scenarios!8:8,Scenarios!22:22) -> -0.005 | IF132: =LOOKUP(IF8,Scenarios!8:8,Scenarios!22:22) -> -0.005 | IG132: =LOOKUP(IG8,Scenarios!8:8,Scenarios!22:22) -> -0.005 | IH132: =LOOKUP(IH8,Scenarios!8:8,Scenarios!22:22) -> -0.005 | II132: =LOOKUP(II8,Scenarios!8:8,Scenarios!22:22) -> -0.005 | IJ132: =LOOKUP(IJ8,Scenarios!8:8,Scenarios!22:22) -> -0.005 | IK132: =LOOKUP(IK8,Scenarios!8:8,Scenarios!22:22) -> -0.005 | IL132: =LOOKUP(IL8,Scenarios!8:8,Scenarios!22:22) -> -0.005 | IM132: =LOOKUP(IM8,Scenarios!8:8,Scenarios!22:22) -> -0.005 | IN132: =LOOKUP(IN8,Scenarios!8:8,Scenarios!22:22) -> -0.005 | IO132: =LOOKUP(IO8,Scenarios!8:8,Scenarios!22:22) -> -0.005 | IP132: =LOOKUP(IP8,Scenarios!8:8,Scenarios!22:22) -> -0.005 | IQ132: =LOOKUP(IQ8,Scenarios!8:8,Scenarios!22:22) -> -0.005 | IR132: =LOOKUP(IR8,Scenarios!8:8,Scenarios!22:22) -> -0.005 | IS132: =LOOKUP(IS8,Scenarios!8:8,Scenarios!22:22) -> -0.005
D133: Unit Sales Growth - Interpolate | F133: % p.p. | I133: =IFERROR(interpolate_look_up(I8,Scenarios!8:8,Scenarios!22:22),F133) -> 0 | J133: =IFERROR(interpolate_look_up(J8,Scenarios!8:8,Scenarios!22:22),I133) -> 0 | K133: =IFERROR(interpolate_look_up(K8,Scenarios!8:8,Scenarios!22:22),J133) -> 0 | L133: =IFERROR(interpolate_look_up(L8,Scenarios!8:8,Scenarios!22:22),K133) -> 0 | M133: =IFERROR(interpolate_look_up(M8,Scenarios!8:8,Scenarios!22:22),L133) -> 0 | N133: =IFERROR(interpolate_look_up(N8,Scenarios!8:8,Scenarios!22:22),M133) -> -0.7 | O133: =IFERROR(interpolate_look_up(O8,Scenarios!8:8,Scenarios!22:22),N133) -> -0.2 | P133: =IFERROR(interpolate_look_up(P8,Scenarios!8:8,Scenarios!22:22),O133) -> 0 | Q133: =IFERROR(interpolate_look_up(Q8,Scenarios!8:8,Scenarios!22:22),P133) -> 0 | R133: =IFERROR(interpolate_look_up(R8,Scenarios!8:8,Scenarios!22:22),Q133) -> 0.8 | S133: =IFERROR(interpolate_look_up(S8,Scenarios!8:8,Scenarios!22:22),R133) -> 0.158060051 | T133: =IFERROR(interpolate_look_up(T8,Scenarios!8:8,Scenarios!22:22),S133) -> 0.1258668223 | U133: =IFERROR(interpolate_look_up(U8,Scenarios!8:8,Scenarios!22:22),T133) -> 0.09947258177 | V133: =IFERROR(interpolate_look_up(V8,Scenarios!8:8,Scenarios!22:22),U133) -> 0.07921228481 | W133: =IFERROR(interpolate_look_up(W8,Scenarios!8:8,Scenarios!22:22),V133) -> 0.06260148888 | X133: =IFERROR(interpolate_look_up(X8,Scenarios!8:8,Scenarios!22:22),W133) -> 0.04947397262 | Y133: =IFERROR(interpolate_look_up(Y8,Scenarios!8:8,Scenarios!22:22),X133) -> 0.04 | Z133: =IFERROR(interpolate_look_up(Z8,Scenarios!8:8,Scenarios!22:22),Y133) -> 0.03475897696 | AA133: =IFERROR(interpolate_look_up(AA8,Scenarios!8:8,Scenarios!22:22),Z133) -> 0.03034181083 | AB133: =IFERROR(interpolate_look_up(AB8,Scenarios!8:8,Scenarios!22:22),AA133) -> 0.02636625759 | AC133: =IFERROR(interpolate_look_up(AC8,Scenarios!8:8,Scenarios!22:22),AB133) -> 0.02301563711 | AD133: =IFERROR(interpolate_look_up(AD8,Scenarios!8:8,Scenarios!22:22),AC133) -> 0.02 | AE133: =IFERROR(interpolate_look_up(AE8,Scenarios!8:8,Scenarios!22:22),AD133) -> 0.01913673849 | AF133: =IFERROR(interpolate_look_up(AF8,Scenarios!8:8,Scenarios!22:22),AE133) -> 0.01833681822 | AG133: =IFERROR(interpolate_look_up(AG8,Scenarios!8:8,Scenarios!22:22),AF133) -> 0.01754534475 | AH133: =IFERROR(interpolate_look_up(AH8,Scenarios!8:8,Scenarios!22:22),AG133) -> 0.01681194513 | AI133: =IFERROR(interpolate_look_up(AI8,Scenarios!8:8,Scenarios!22:22),AH133) -> 0.01608628987 | AJ133: =IFERROR(interpolate_look_up(AJ8,Scenarios!8:8,Scenarios!22:22),AI133) -> 0.01539195612 | AK133: =IFERROR(interpolate_look_up(AK8,Scenarios!8:8,Scenarios!22:22),AJ133) -> 0.01479061175 | AL133: =IFERROR(interpolate_look_up(AL8,Scenarios!8:8,Scenarios!22:22),AK133) -> 0.01415220346 | AM133: =IFERROR(interpolate_look_up(AM8,Scenarios!8:8,Scenarios!22:22),AL133) -> 0.01356063796 | AN133: =IFERROR(interpolate_look_up(AN8,Scenarios!8:8,Scenarios!22:22),AM133) -> 0.01297531911 | AO133: =IFERROR(interpolate_look_up(AO8,Scenarios!8:8,Scenarios!22:22),AN133) -> 0.01243294766 | AP133: =IFERROR(interpolate_look_up(AP8,Scenarios!8:8,Scenarios!22:22),AO133) -> 0.0118963034 | AQ133: =IFERROR(interpolate_look_up(AQ8,Scenarios!8:8,Scenarios!22:22),AP133) -> 0.01138282235 | AR133: =IFERROR(interpolate_look_up(AR8,Scenarios!8:8,Scenarios!22:22),AQ133) -> 0.01090701765 | AS133: =IFERROR(interpolate_look_up(AS8,Scenarios!8:8,Scenarios!22:22),AR133) -> 0.01043623722 | AT133: =IFERROR(interpolate_look_up(AT8,Scenarios!8:8,Scenarios!22:22),AS133) -> 0.01 | AU133: =IFERROR(interpolate_look_up(AU8,Scenarios!8:8,Scenarios!22:22),AT133) -> 0.01011534462 | AV133: =IFERROR(interpolate_look_up(AV8,Scenarios!8:8,Scenarios!22:22),AU133) -> 0.01023201968 | AW133: =IFERROR(interpolate_look_up(AW8,Scenarios!8:8,Scenarios!22:22),AV133) -> 0.01033855991 | AX133: =IFERROR(interpolate_look_up(AX8,Scenarios!8:8,Scenarios!22:22),AW133) -> 0.01045780964 | AY133: =IFERROR(interpolate_look_up(AY8,Scenarios!8:8,Scenarios!22:22),AX133) -> 0.01057452208 | AZ133: =IFERROR(interpolate_look_up(AZ8,Scenarios!8:8,Scenarios!22:22),AY133) -> 0.0106964935 | BA133: =IFERROR(interpolate_look_up(BA8,Scenarios!8:8,Scenarios!22:22),AZ133) -> 0.01081586973 | BB133: =IFERROR(interpolate_look_up(BB8,Scenarios!8:8,Scenarios!22:22),BA133) -> 0.01094062497 | BC133: =IFERROR(interpolate_look_up(BC8,Scenarios!8:8,Scenarios!22:22),BB133) -> 0.0110668192 | BD133: =IFERROR(interpolate_look_up(BD8,Scenarios!8:8,Scenarios!22:22),BC133) -> 0.01119032838 | BE133: =IFERROR(interpolate_look_up(BE8,Scenarios!8:8,Scenarios!22:22),BD133) -> 0.0113194028 | BF133: =IFERROR(interpolate_look_up(BF8,Scenarios!8:8,Scenarios!22:22),BE133) -> 0.01144573089 | BG133: =IFERROR(interpolate_look_up(BG8,Scenarios!8:8,Scenarios!22:22),BF133) -> 0.01157775124 | BH133: =IFERROR(interpolate_look_up(BH8,Scenarios!8:8,Scenarios!22:22),BG133) -> 0.01171129437 | BI133: =IFERROR(interpolate_look_up(BI8,Scenarios!8:8,Scenarios!22:22),BH133) -> 0.01183761596 | BJ133: =IFERROR(interpolate_look_up(BJ8,Scenarios!8:8,Scenarios!22:22),BI133) -> 0.0119741565 | BK133: =IFERROR(interpolate_look_up(BK8,Scenarios!8:8,Scenarios!22:22),BJ133) -> 0.01210779185 | BL133: =IFERROR(interpolate_look_up(BL8,Scenarios!8:8,Scenarios!22:22),BK133) -> 0.01224744871 | BM133: =IFERROR(interpolate_look_up(BM8,Scenarios!8:8,Scenarios!22:22),BL133) -> 0.01238413409 | BN133: =IFERROR(interpolate_look_up(BN8,Scenarios!8:8,Scenarios!22:22),BM133) -> 0.01252697842 | BO133: =IFERROR(interpolate_look_up(BO8,Scenarios!8:8,Scenarios!22:22),BN133) -> 0.01267147038 | BP133: =IFERROR(interpolate_look_up(BP8,Scenarios!8:8,Scenarios!22:22),BO133) -> 0.01281288797 | BQ133: =IFERROR(interpolate_look_up(BQ8,Scenarios!8:8,Scenarios!22:22),BP133) -> 0.01296067774 | BR133: =IFERROR(interpolate_look_up(BR8,Scenarios!8:8,Scenarios!22:22),BQ133) -> 0.01310532298 | BS133: =IFERROR(interpolate_look_up(BS8,Scenarios!8:8,Scenarios!22:22),BR133) -> 0.01325648583 | BT133: =IFERROR(interpolate_look_up(BT8,Scenarios!8:8,Scenarios!22:22),BS133) -> 0.01340939226 | BU133: =IFERROR(interpolate_look_up(BU8,Scenarios!8:8,Scenarios!22:22),BT133) -> 0.01354901667 | BV133: =IFERROR(interpolate_look_up(BV8,Scenarios!8:8,Scenarios!22:22),BU133) -> 0.01370529729 | BW133: =IFERROR(interpolate_look_up(BW8,Scenarios!8:8,Scenarios!22:22),BV133) -> 0.01385825271 | BX133: =IFERROR(interpolate_look_up(BX8,Scenarios!8:8,Scenarios!22:22),BW133) -> 0.01401810021 | BY133: =IFERROR(interpolate_look_up(BY8,Scenarios!8:8,Scenarios!22:22),BX133) -> 0.01417454661 | BZ133: =IFERROR(interpolate_look_up(BZ8,Scenarios!8:8,Scenarios!22:22),BY133) -> 0.01433804238 | CA133: =IFERROR(interpolate_look_up(CA8,Scenarios!8:8,Scenarios!22:22),BZ133) -> 0.01450342399 | CB133: =IFERROR(interpolate_look_up(CB8,Scenarios!8:8,Scenarios!22:22),CA133) -> 0.01466528676 | CC133: =IFERROR(interpolate_look_up(CC8,Scenarios!8:8,Scenarios!22:22),CB133) -> 0.01483444295 | CD133: =IFERROR(interpolate_look_up(CD8,Scenarios!8:8,Scenarios!22:22),CC133) -> 0.015 | CE133: =IFERROR(interpolate_look_up(CE8,Scenarios!8:8,Scenarios!22:22),CD133) -> 0.01511658708 | CF133: =IFERROR(interpolate_look_up(CF8,Scenarios!8:8,Scenarios!22:22),CE133) -> 0.01523408034 | CG133: =IFERROR(interpolate_look_up(CG8,Scenarios!8:8,Scenarios!22:22),CF133) -> 0.01534098801 | CH133: =IFERROR(interpolate_look_up(CH8,Scenarios!8:8,Scenarios!22:22),CG133) -> 0.01546022541 | CI133: =IFERROR(interpolate_look_up(CI8,Scenarios!8:8,Scenarios!22:22),CH133) -> 0.01557649879 | CJ133: =IFERROR(interpolate_look_up(CJ8,Scenarios!8:8,Scenarios!22:22),CI133) -> 0.01569756669 | CK133: =IFERROR(interpolate_look_up(CK8,Scenarios!8:8,Scenarios!22:22),CJ133) -> 0.01581562506 | CL133: =IFERROR(interpolate_look_up(CL8,Scenarios!8:8,Scenarios!22:22),CK133) -> 0.01593855157 | CM133: =IFERROR(interpolate_look_up(CM8,Scenarios!8:8,Scenarios!22:22),CL133) -> 0.01606243352 | CN133: =IFERROR(interpolate_look_up(CN8,Scenarios!8:8,Scenarios!22:22),CM133) -> 0.01618323598 | CO133: =IFERROR(interpolate_look_up(CO8,Scenarios!8:8,Scenarios!22:22),CN133) -> 0.01630901974 | CP133: =IFERROR(interpolate_look_up(CP8,Scenarios!8:8,Scenarios!22:22),CO133) -> 0.01643167673 | CQ133: =IFERROR(interpolate_look_up(CQ8,Scenarios!8:8,Scenarios!22:22),CP133) -> 0.01655939148 | CR133: =IFERROR(interpolate_look_up(CR8,Scenarios!8:8,Scenarios!22:22),CQ133) -> 0.01668809889 | CS133: =IFERROR(interpolate_look_up(CS8,Scenarios!8:8,Scenarios!22:22),CR133) -> 0.01680521037 | CT133: =IFERROR(interpolate_look_up(CT8,Scenarios!8:8,Scenarios!22:22),CS133) -> 0.01693582841 | CU133: =IFERROR(interpolate_look_up(CU8,Scenarios!8:8,Scenarios!22:22),CT133) -> 0.0170631995 | CV133: =IFERROR(interpolate_look_up(CV8,Scenarios!8:8,Scenarios!22:22),CU133) -> 0.01719582275 | CW133: =IFERROR(interpolate_look_up(CW8,Scenarios!8:8,Scenarios!22:22),CV133) -> 0.01732514921 | CX133: =IFERROR(interpolate_look_up(CX8,Scenarios!8:8,Scenarios!22:22),CW133) -> 0.01745980846 | CY133: =IFERROR(interpolate_look_up(CY8,Scenarios!8:8,Scenarios!22:22),CX133) -> 0.01759551433 | CZ133: =IFERROR(interpolate_look_up(CZ8,Scenarios!8:8,Scenarios!22:22),CY133) -> 0.0177278468 | DA133: =IFERROR(interpolate_look_up(DA8,Scenarios!8:8,Scenarios!22:22),CZ133) -> 0.017865636 | DB133: =IFERROR(interpolate_look_up(DB8,Scenarios!8:8,Scenarios!22:22),DA133) -> 0.018 | DC133: =IFERROR(interpolate_look_up(DC8,Scenarios!8:8,Scenarios!22:22),DB133) -> 0.01772416959 | DD133: =IFERROR(interpolate_look_up(DD8,Scenarios!8:8,Scenarios!22:22),DC133) -> 0.01745256598 | DE133: =IFERROR(interpolate_look_up(DE8,Scenarios!8:8,Scenarios!22:22),DD133) -> 0.01720225435 | DF133: =IFERROR(interpolate_look_up(DF8,Scenarios!8:8,Scenarios!22:22),DE133) -> 0.01693864852 | DG133: =IFERROR(interpolate_look_up(DG8,Scenarios!8:8,Scenarios!22:22),DF133) -> 0.01668739286 | DH133: =IFERROR(interpolate_look_up(DH8,Scenarios!8:8,Scenarios!22:22),DG133) -> 0.01643167673 | DI133: =IFERROR(interpolate_look_up(DI8,Scenarios!8:8,Scenarios!22:22),DH133) -> 0.01618794112 | DJ133: =IFERROR(interpolate_look_up(DJ8,Scenarios!8:8,Scenarios!22:22),DI133) -> 0.01593987854 | DK133: =IFERROR(interpolate_look_up(DK8,Scenarios!8:8,Scenarios!22:22),DJ133) -> 0.01569561725 | DL133: =IFERROR(interpolate_look_up(DL8,Scenarios!8:8,Scenarios!22:22),DK133) -> 0.01546279981 | DM133: =IFERROR(interpolate_look_up(DM8,Scenarios!8:8,Scenarios!22:22),DL133) -> 0.01522584923 | DN133: =IFERROR(interpolate_look_up(DN8,Scenarios!8:8,Scenarios!22:22),DM133) -> 0.015 | DO133: =IFERROR(interpolate_look_up(DO8,Scenarios!8:8,Scenarios!22:22),DN133) -> 0.015 | DP133: =IFERROR(interpolate_look_up(DP8,Scenarios!8:8,Scenarios!22:22),DO133) -> 0.015 | DQ133: =IFERROR(interpolate_look_up(DQ8,Scenarios!8:8,Scenarios!22:22),DP133) -> 0.015 | DR133: =IFERROR(interpolate_look_up(DR8,Scenarios!8:8,Scenarios!22:22),DQ133) -> 0.015 | DS133: =IFERROR(interpolate_look_up(DS8,Scenarios!8:8,Scenarios!22:22),DR133) -> 0.015 | DT133: =IFERROR(interpolate_look_up(DT8,Scenarios!8:8,Scenarios!22:22),DS133) -> 0.015 | DU133: =IFERROR(interpolate_look_up(DU8,Scenarios!8:8,Scenarios!22:22),DT133) -> 0.015 | DV133: =IFERROR(interpolate_look_up(DV8,Scenarios!8:8,Scenarios!22:22),DU133) -> 0.015 | DW133: =IFERROR(interpolate_look_up(DW8,Scenarios!8:8,Scenarios!22:22),DV133) -> 0.015 | DX133: =IFERROR(interpolate_look_up(DX8,Scenarios!8:8,Scenarios!22:22),DW133) -> 0.015 | DY133: =IFERROR(interpolate_look_up(DY8,Scenarios!8:8,Scenarios!22:22),DX133) -> 0.015 | DZ133: =IFERROR(interpolate_look_up(DZ8,Scenarios!8:8,Scenarios!22:22),DY133) -> 0.015 | EA133: =IFERROR(interpolate_look_up(EA8,Scenarios!8:8,Scenarios!22:22),DZ133) -> 0.015 | EB133: =IFERROR(interpolate_look_up(EB8,Scenarios!8:8,Scenarios!22:22),EA133) -> 0.015 | EC133: =IFERROR(interpolate_look_up(EC8,Scenarios!8:8,Scenarios!22:22),EB133) -> 0.015 | ED133: =IFERROR(interpolate_look_up(ED8,Scenarios!8:8,Scenarios!22:22),EC133) -> 0.015 | EE133: =IFERROR(interpolate_look_up(EE8,Scenarios!8:8,Scenarios!22:22),ED133) -> 0.015 | EF133: =IFERROR(interpolate_look_up(EF8,Scenarios!8:8,Scenarios!22:22),EE133) -> 0.015 | EG133: =IFERROR(interpolate_look_up(EG8,Scenarios!8:8,Scenarios!22:22),EF133) -> 0.015 | EH133: =IFERROR(interpolate_look_up(EH8,Scenarios!8:8,Scenarios!22:22),EG133) -> 0.015 | EI133: =IFERROR(interpolate_look_up(EI8,Scenarios!8:8,Scenarios!22:22),EH133) -> 0.015 | EJ133: =IFERROR(interpolate_look_up(EJ8,Scenarios!8:8,Scenarios!22:22),EI133) -> 0.015 | EK133: =IFERROR(interpolate_look_up(EK8,Scenarios!8:8,Scenarios!22:22),EJ133) -> 0.015 | EL133: =IFERROR(interpolate_look_up(EL8,Scenarios!8:8,Scenarios!22:22),EK133) -> 0.015 | EM133: =IFERROR(interpolate_look_up(EM8,Scenarios!8:8,Scenarios!22:22),EL133) -> 0.015 | EN133: =IFERROR(interpolate_look_up(EN8,Scenarios!8:8,Scenarios!22:22),EM133) -> 0.015 | EO133: =IFERROR(interpolate_look_up(EO8,Scenarios!8:8,Scenarios!22:22),EN133) -> 0.015 | EP133: =IFERROR(interpolate_look_up(EP8,Scenarios!8:8,Scenarios!22:22),EO133) -> 0.015 | EQ133: =IFERROR(interpolate_look_up(EQ8,Scenarios!8:8,Scenarios!22:22),EP133) -> 0.015 | ER133: =IFERROR(interpolate_look_up(ER8,Scenarios!8:8,Scenarios!22:22),EQ133) -> 0.015 | ES133: =IFERROR(interpolate_look_up(ES8,Scenarios!8:8,Scenarios!22:22),ER133) -> 0.015 | ET133: =IFERROR(interpolate_look_up(ET8,Scenarios!8:8,Scenarios!22:22),ES133) -> 0.015 | EU133: =IFERROR(interpolate_look_up(EU8,Scenarios!8:8,Scenarios!22:22),ET133) -> 0.015 | EV133: =IFERROR(interpolate_look_up(EV8,Scenarios!8:8,Scenarios!22:22),EU133) -> 0.015 | EW133: =IFERROR(interpolate_look_up(EW8,Scenarios!8:8,Scenarios!22:22),EV133) -> 0.015 | EX133: =IFERROR(interpolate_look_up(EX8,Scenarios!8:8,Scenarios!22:22),EW133) -> 0.015 | EY133: =IFERROR(interpolate_look_up(EY8,Scenarios!8:8,Scenarios!22:22),EX133) -> 0.015 | EZ133: =IFERROR(interpolate_look_up(EZ8,Scenarios!8:8,Scenarios!22:22),EY133) -> 0.015 | FA133: =IFERROR(interpolate_look_up(FA8,Scenarios!8:8,Scenarios!22:22),EZ133) -> 0.015 | FB133: =IFERROR(interpolate_look_up(FB8,Scenarios!8:8,Scenarios!22:22),FA133) -> 0.015 | FC133: =IFERROR(interpolate_look_up(FC8,Scenarios!8:8,Scenarios!22:22),FB133) -> 0.015 | FD133: =IFERROR(interpolate_look_up(FD8,Scenarios!8:8,Scenarios!22:22),FC133) -> 0.015 | FE133: =IFERROR(interpolate_look_up(FE8,Scenarios!8:8,Scenarios!22:22),FD133) -> 0.015 | FF133: =IFERROR(interpolate_look_up(FF8,Scenarios!8:8,Scenarios!22:22),FE133) -> 0.015 | FG133: =IFERROR(interpolate_look_up(FG8,Scenarios!8:8,Scenarios!22:22),FF133) -> 0.015 | FH133: =IFERROR(interpolate_look_up(FH8,Scenarios!8:8,Scenarios!22:22),FG133) -> 0.015 | FI133: =IFERROR(interpolate_look_up(FI8,Scenarios!8:8,Scenarios!22:22),FH133) -> 0.015 | FJ133: =IFERROR(interpolate_look_up(FJ8,Scenarios!8:8,Scenarios!22:22),FI133) -> 0.015 | FK133: =IFERROR(interpolate_look_up(FK8,Scenarios!8:8,Scenarios!22:22),FJ133) -> 0.015 | FL133: =IFERROR(interpolate_look_up(FL8,Scenarios!8:8,Scenarios!22:22),FK133) -> 0.015 | FM133: =IFERROR(interpolate_look_up(FM8,Scenarios!8:8,Scenarios!22:22),FL133) -> 0.015 | FN133: =IFERROR(interpolate_look_up(FN8,Scenarios!8:8,Scenarios!22:22),FM133) -> 0.015 | FO133: =IFERROR(interpolate_look_up(FO8,Scenarios!8:8,Scenarios!22:22),FN133) -> 0.015 | FP133: =IFERROR(interpolate_look_up(FP8,Scenarios!8:8,Scenarios!22:22),FO133) -> 0.015 | FQ133: =IFERROR(interpolate_look_up(FQ8,Scenarios!8:8,Scenarios!22:22),FP133) -> 0.015 | FR133: =IFERROR(interpolate_look_up(FR8,Scenarios!8:8,Scenarios!22:22),FQ133) -> 0.015 | FS133: =IFERROR(interpolate_look_up(FS8,Scenarios!8:8,Scenarios!22:22),FR133) -> 0.015 | FT133: =IFERROR(interpolate_look_up(FT8,Scenarios!8:8,Scenarios!22:22),FS133) -> 0.015 | FU133: =IFERROR(interpolate_look_up(FU8,Scenarios!8:8,Scenarios!22:22),FT133) -> 0.015 | FV133: =IFERROR(interpolate_look_up(FV8,Scenarios!8:8,Scenarios!22:22),FU133) -> -0.005 | FW133: =IFERROR(interpolate_look_up(FW8,Scenarios!8:8,Scenarios!22:22),FV133) -> -0.005 | FX133: =IFERROR(interpolate_look_up(FX8,Scenarios!8:8,Scenarios!22:22),FW133) -> -0.005 | FY133: =IFERROR(interpolate_look_up(FY8,Scenarios!8:8,Scenarios!22:22),FX133) -> -0.005 | FZ133: =IFERROR(interpolate_look_up(FZ8,Scenarios!8:8,Scenarios!22:22),FY133) -> -0.005 | GA133: =IFERROR(interpolate_look_up(GA8,Scenarios!8:8,Scenarios!22:22),FZ133) -> -0.005 | GB133: =IFERROR(interpolate_look_up(GB8,Scenarios!8:8,Scenarios!22:22),GA133) -> -0.005 | GC133: =IFERROR(interpolate_look_up(GC8,Scenarios!8:8,Scenarios!22:22),GB133) -> -0.005 | GD133: =IFERROR(interpolate_look_up(GD8,Scenarios!8:8,Scenarios!22:22),GC133) -> -0.005 | GE133: =IFERROR(interpolate_look_up(GE8,Scenarios!8:8,Scenarios!22:22),GD133) -> -0.005 | GF133: =IFERROR(interpolate_look_up(GF8,Scenarios!8:8,Scenarios!22:22),GE133) -> -0.005 | GG133: =IFERROR(interpolate_look_up(GG8,Scenarios!8:8,Scenarios!22:22),GF133) -> -0.005 | GH133: =IFERROR(interpolate_look_up(GH8,Scenarios!8:8,Scenarios!22:22),GG133) -> -0.005 | GI133: =IFERROR(interpolate_look_up(GI8,Scenarios!8:8,Scenarios!22:22),GH133) -> -0.005 | GJ133: =IFERROR(interpolate_look_up(GJ8,Scenarios!8:8,Scenarios!22:22),GI133) -> -0.005 | GK133: =IFERROR(interpolate_look_up(GK8,Scenarios!8:8,Scenarios!22:22),GJ133) -> -0.005 | GL133: =IFERROR(interpolate_look_up(GL8,Scenarios!8:8,Scenarios!22:22),GK133) -> -0.005 | GM133: =IFERROR(interpolate_look_up(GM8,Scenarios!8:8,Scenarios!22:22),GL133) -> -0.005 | GN133: =IFERROR(interpolate_look_up(GN8,Scenarios!8:8,Scenarios!22:22),GM133) -> -0.005 | GO133: =IFERROR(interpolate_look_up(GO8,Scenarios!8:8,Scenarios!22:22),GN133) -> -0.005 | GP133: =IFERROR(interpolate_look_up(GP8,Scenarios!8:8,Scenarios!22:22),GO133) -> -0.005 | GQ133: =IFERROR(interpolate_look_up(GQ8,Scenarios!8:8,Scenarios!22:22),GP133) -> -0.005 | GR133: =IFERROR(interpolate_look_up(GR8,Scenarios!8:8,Scenarios!22:22),GQ133) -> -0.005 | GS133: =IFERROR(interpolate_look_up(GS8,Scenarios!8:8,Scenarios!22:22),GR133) -> -0.005 | GT133: =IFERROR(interpolate_look_up(GT8,Scenarios!8:8,Scenarios!22:22),GS133) -> -0.005 | GU133: =IFERROR(interpolate_look_up(GU8,Scenarios!8:8,Scenarios!22:22),GT133) -> -0.005 | GV133: =IFERROR(interpolate_look_up(GV8,Scenarios!8:8,Scenarios!22:22),GU133) -> -0.005 | GW133: =IFERROR(interpolate_look_up(GW8,Scenarios!8:8,Scenarios!22:22),GV133) -> -0.005 | GX133: =IFERROR(interpolate_look_up(GX8,Scenarios!8:8,Scenarios!22:22),GW133) -> -0.005 | GY133: =IFERROR(interpolate_look_up(GY8,Scenarios!8:8,Scenarios!22:22),GX133) -> -0.005 | GZ133: =IFERROR(interpolate_look_up(GZ8,Scenarios!8:8,Scenarios!22:22),GY133) -> -0.005 | HA133: =IFERROR(interpolate_look_up(HA8,Scenarios!8:8,Scenarios!22:22),GZ133) -> -0.005 | HB133: =IFERROR(interpolate_look_up(HB8,Scenarios!8:8,Scenarios!22:22),HA133) -> -0.005 | HC133: =IFERROR(interpolate_look_up(HC8,Scenarios!8:8,Scenarios!22:22),HB133) -> -0.005 | HD133: =IFERROR(interpolate_look_up(HD8,Scenarios!8:8,Scenarios!22:22),HC133) -> -0.005 | HE133: =IFERROR(interpolate_look_up(HE8,Scenarios!8:8,Scenarios!22:22),HD133) -> -0.005 | HF133: =IFERROR(interpolate_look_up(HF8,Scenarios!8:8,Scenarios!22:22),HE133) -> -0.005 | HG133: =IFERROR(interpolate_look_up(HG8,Scenarios!8:8,Scenarios!22:22),HF133) -> -0.005 | HH133: =IFERROR(interpolate_look_up(HH8,Scenarios!8:8,Scenarios!22:22),HG133) -> -0.005 | HI133: =IFERROR(interpolate_look_up(HI8,Scenarios!8:8,Scenarios!22:22),HH133) -> -0.005 | HJ133: =IFERROR(interpolate_look_up(HJ8,Scenarios!8:8,Scenarios!22:22),HI133) -> -0.005 | HK133: =IFERROR(interpolate_look_up(HK8,Scenarios!8:8,Scenarios!22:22),HJ133) -> -0.005 | HL133: =IFERROR(interpolate_look_up(HL8,Scenarios!8:8,Scenarios!22:22),HK133) -> -0.005 | HM133: =IFERROR(interpolate_look_up(HM8,Scenarios!8:8,Scenarios!22:22),HL133) -> -0.005 | HN133: =IFERROR(interpolate_look_up(HN8,Scenarios!8:8,Scenarios!22:22),HM133) -> -0.005 | HO133: =IFERROR(interpolate_look_up(HO8,Scenarios!8:8,Scenarios!22:22),HN133) -> -0.005 | HP133: =IFERROR(interpolate_look_up(HP8,Scenarios!8:8,Scenarios!22:22),HO133) -> -0.005 | HQ133: =IFERROR(interpolate_look_up(HQ8,Scenarios!8:8,Scenarios!22:22),HP133) -> -0.005 | HR133: =IFERROR(interpolate_look_up(HR8,Scenarios!8:8,Scenarios!22:22),HQ133) -> -0.005 | HS133: =IFERROR(interpolate_look_up(HS8,Scenarios!8:8,Scenarios!22:22),HR133) -> -0.005 | HT133: =IFERROR(interpolate_look_up(HT8,Scenarios!8:8,Scenarios!22:22),HS133) -> -0.005 | HU133: =IFERROR(interpolate_look_up(HU8,Scenarios!8:8,Scenarios!22:22),HT133) -> -0.005 | HV133: =IFERROR(interpolate_look_up(HV8,Scenarios!8:8,Scenarios!22:22),HU133) -> -0.005 | HW133: =IFERROR(interpolate_look_up(HW8,Scenarios!8:8,Scenarios!22:22),HV133) -> -0.005 | HX133: =IFERROR(interpolate_look_up(HX8,Scenarios!8:8,Scenarios!22:22),HW133) -> -0.005 | HY133: =IFERROR(interpolate_look_up(HY8,Scenarios!8:8,Scenarios!22:22),HX133) -> -0.005 | HZ133: =IFERROR(interpolate_look_up(HZ8,Scenarios!8:8,Scenarios!22:22),HY133) -> -0.005 | IA133: =IFERROR(interpolate_look_up(IA8,Scenarios!8:8,Scenarios!22:22),HZ133) -> -0.005 | IB133: =IFERROR(interpolate_look_up(IB8,Scenarios!8:8,Scenarios!22:22),IA133) -> -0.005 | IC133: =IFERROR(interpolate_look_up(IC8,Scenarios!8:8,Scenarios!22:22),IB133) -> -0.005 | ID133: =IFERROR(interpolate_look_up(ID8,Scenarios!8:8,Scenarios!22:22),IC133) -> -0.005 | IE133: =IFERROR(interpolate_look_up(IE8,Scenarios!8:8,Scenarios!22:22),ID133) -> -0.005 | IF133: =IFERROR(interpolate_look_up(IF8,Scenarios!8:8,Scenarios!22:22),IE133) -> -0.005 | IG133: =IFERROR(interpolate_look_up(IG8,Scenarios!8:8,Scenarios!22:22),IF133) -> -0.005 | IH133: =IFERROR(interpolate_look_up(IH8,Scenarios!8:8,Scenarios!22:22),IG133) -> -0.005 | II133: =IFERROR(interpolate_look_up(II8,Scenarios!8:8,Scenarios!22:22),IH133) -> -0.005 | IJ133: =IFERROR(interpolate_look_up(IJ8,Scenarios!8:8,Scenarios!22:22),II133) -> -0.005 | IK133: =IFERROR(interpolate_look_up(IK8,Scenarios!8:8,Scenarios!22:22),IJ133) -> -0.005 | IL133: =IFERROR(interpolate_look_up(IL8,Scenarios!8:8,Scenarios!22:22),IK133) -> -0.005 | IM133: =IFERROR(interpolate_look_up(IM8,Scenarios!8:8,Scenarios!22:22),IL133) -> -0.005 | IN133: =IFERROR(interpolate_look_up(IN8,Scenarios!8:8,Scenarios!22:22),IM133) -> -0.005 | IO133: =IFERROR(interpolate_look_up(IO8,Scenarios!8:8,Scenarios!22:22),IN133) -> -0.005 | IP133: =IFERROR(interpolate_look_up(IP8,Scenarios!8:8,Scenarios!22:22),IO133) -> -0.005 | IQ133: =IFERROR(interpolate_look_up(IQ8,Scenarios!8:8,Scenarios!22:22),IP133) -> -0.005 | IR133: =IFERROR(interpolate_look_up(IR8,Scenarios!8:8,Scenarios!22:22),IQ133) -> -0.005 | IS133: =IFERROR(interpolate_look_up(IS8,Scenarios!8:8,Scenarios!22:22),IR133) -> -0.005
D134: Annual Growth Flag | F134: Period | I134: =LOOKUP(I8,'Model Parameters'!48:48,'Model Parameters'!49:49) -> 1 | J134: =LOOKUP(J8,'Model Parameters'!48:48,'Model Parameters'!49:49) -> 1 | K134: =LOOKUP(K8,'Model Parameters'!48:48,'Model Parameters'!49:49) -> 1 | L134: =LOOKUP(L8,'Model Parameters'!48:48,'Model Parameters'!49:49) -> 1 | M134: =LOOKUP(M8,'Model Parameters'!48:48,'Model Parameters'!49:49) -> 1 | N134: =LOOKUP(N8,'Model Parameters'!48:48,'Model Parameters'!49:49) -> 1 | O134: =LOOKUP(O8,'Model Parameters'!48:48,'Model Parameters'!49:49) -> 1 | P134: =LOOKUP(P8,'Model Parameters'!48:48,'Model Parameters'!49:49) -> 1 | Q134: =LOOKUP(Q8,'Model Parameters'!48:48,'Model Parameters'!49:49) -> 1 | R134: =LOOKUP(R8,'Model Parameters'!48:48,'Model Parameters'!49:49) -> 1 | S134: =LOOKUP(S8,'Model Parameters'!48:48,'Model Parameters'!49:49) -> 1 | T134: =LOOKUP(T8,'Model Parameters'!48:48,'Model Parameters'!49:49) -> 1 | U134: =LOOKUP(U8,'Model Parameters'!48:48,'Model Parameters'!49:49) -> 1 | V134: =LOOKUP(V8,'Model Parameters'!48:48,'Model Parameters'!49:49) -> 1 | W134: =LOOKUP(W8,'Model Parameters'!48:48,'Model Parameters'!49:49) -> 1 | X134: =LOOKUP(X8,'Model Parameters'!48:48,'Model Parameters'!49:49) -> 1 | Y134: =LOOKUP(Y8,'Model Parameters'!48:48,'Model Parameters'!49:49) -> 1 | Z134: =LOOKUP(Z8,'Model Parameters'!48:48,'Model Parameters'!49:49) -> 1 | AA134: =LOOKUP(AA8,'Model Parameters'!48:48,'Model Parameters'!49:49) -> 1 | AB134: =LOOKUP(AB8,'Model Parameters'!48:48,'Model Parameters'!49:49) -> 1 | AC134: =LOOKUP(AC8,'Model Parameters'!48:48,'Model Parameters'!49:49) -> 1 | AD134: =LOOKUP(AD8,'Model Parameters'!48:48,'Model Parameters'!49:49) -> 0 | AE134: =LOOKUP(AE8,'Model Parameters'!48:48,'Model Parameters'!49:49) -> 0 | AF134: =LOOKUP(AF8,'Model Parameters'!48:48,'Model Parameters'!49:49) -> 0 | AG134: =LOOKUP(AG8,'Model Parameters'!48:48,'Model Parameters'!49:49) -> 0 | AH134: =LOOKUP(AH8,'Model Parameters'!48:48,'Model Parameters'!49:49) -> 0 | AI134: =LOOKUP(AI8,'Model Parameters'!48:48,'Model Parameters'!49:49) -> 0 | AJ134: =LOOKUP(AJ8,'Model Parameters'!48:48,'Model Parameters'!49:49) -> 0 | AK134: =LOOKUP(AK8,'Model Parameters'!48:48,'Model Parameters'!49:49) -> 0 | AL134: =LOOKUP(AL8,'Model Parameters'!48:48,'Model Parameters'!49:49) -> 0 | AM134: =LOOKUP(AM8,'Model Parameters'!48:48,'Model Parameters'!49:49) -> 0 | AN134: =LOOKUP(AN8,'Model Parameters'!48:48,'Model Parameters'!49:49) -> 0 | AO134: =LOOKUP(AO8,'Model Parameters'!48:48,'Model Parameters'!49:49) -> 0 | AP134: =LOOKUP(AP8,'Model Parameters'!48:48,'Model Parameters'!49:49) -> 0 | AQ134: =LOOKUP(AQ8,'Model Parameters'!48:48,'Model Parameters'!49:49) -> 0 | AR134: =LOOKUP(AR8,'Model Parameters'!48:48,'Model Parameters'!49:49) -> 0 | AS134: =LOOKUP(AS8,'Model Parameters'!48:48,'Model Parameters'!49:49) -> 0 | AT134: =LOOKUP(AT8,'Model Parameters'!48:48,'Model Parameters'!49:49) -> 0 | AU134: =LOOKUP(AU8,'Model Parameters'!48:48,'Model Parameters'!49:49) -> 0 | AV134: =LOOKUP(AV8,'Model Parameters'!48:48,'Model Parameters'!49:49) -> 0 | AW134: =LOOKUP(AW8,'Model Parameters'!48:48,'Model Parameters'!49:49) -> 0 | AX134: =LOOKUP(AX8,'Model Parameters'!48:48,'Model Parameters'!49:49) -> 0 | AY134: =LOOKUP(AY8,'Model Parameters'!48:48,'Model Parameters'!49:49) -> 0 | AZ134: =LOOKUP(AZ8,'Model Parameters'!48:48,'Model Parameters'!49:49) -> 0 | BA134: =LOOKUP(BA8,'Model Parameters'!48:48,'Model Parameters'!49:49) -> 0 | BB134: =LOOKUP(BB8,'Model Parameters'!48:48,'Model Parameters'!49:49) -> 0 | BC134: =LOOKUP(BC8,'Model Parameters'!48:48,'Model Parameters'!49:49) -> 0 | BD134: =LOOKUP(BD8,'Model Parameters'!48:48,'Model Parameters'!49:49) -> 0 | BE134: =LOOKUP(BE8,'Model Parameters'!48:48,'Model Parameters'!49:49) -> 0 | BF134: =LOOKUP(BF8,'Model Parameters'!48:48,'Model Parameters'!49:49) -> 0 | BG134: =LOOKUP(BG8,'Model Parameters'!48:48,'Model Parameters'!49:49) -> 0 | BH134: =LOOKUP(BH8,'Model Parameters'!48:48,'Model Parameters'!49:49) -> 0 | BI134: =LOOKUP(BI8,'Model Parameters'!48:48,'Model Parameters'!49:49) -> 0 | BJ134: =LOOKUP(BJ8,'Model Parameters'!48:48,'Model Parameters'!49:49) -> 0 | BK134: =LOOKUP(BK8,'Model Parameters'!48:48,'Model Parameters'!49:49) -> 0 | BL134: =LOOKUP(BL8,'Model Parameters'!48:48,'Model Parameters'!49:49) -> 0 | BM134: =LOOKUP(BM8,'Model Parameters'!48:48,'Model Parameters'!49:49) -> 0 | BN134: =LOOKUP(BN8,'Model Parameters'!48:48,'Model Parameters'!49:49) -> 0 | BO134: =LOOKUP(BO8,'Model Parameters'!48:48,'Model Parameters'!49:49) -> 0 | BP134: =LOOKUP(BP8,'Model Parameters'!48:48,'Model Parameters'!49:49) -> 0 | BQ134: =LOOKUP(BQ8,'Model Parameters'!48:48,'Model Parameters'!49:49) -> 0 | BR134: =LOOKUP(BR8,'Model Parameters'!48:48,'Model Parameters'!49:49) -> 0 | BS134: =LOOKUP(BS8,'Model Parameters'!48:48,'Model Parameters'!49:49) -> 0 | BT134: =LOOKUP(BT8,'Model Parameters'!48:48,'Model Parameters'!49:49) -> 0 | BU134: =LOOKUP(BU8,'Model Parameters'!48:48,'Model Parameters'!49:49) -> 0 | BV134: =LOOKUP(BV8,'Model Parameters'!48:48,'Model Parameters'!49:49) -> 0 | BW134: =LOOKUP(BW8,'Model Parameters'!48:48,'Model Parameters'!49:49) -> 0 | BX134: =LOOKUP(BX8,'Model Parameters'!48:48,'Model Parameters'!49:49) -> 0 | BY134: =LOOKUP(BY8,'Model Parameters'!48:48,'Model Parameters'!49:49) -> 0 | BZ134: =LOOKUP(BZ8,'Model Parameters'!48:48,'Model Parameters'!49:49) -> 0 | CA134: =LOOKUP(CA8,'Model Parameters'!48:48,'Model Parameters'!49:49) -> 0 | CB134: =LOOKUP(CB8,'Model Parameters'!48:48,'Model Parameters'!49:49) -> 0 | CC134: =LOOKUP(CC8,'Model Parameters'!48:48,'Model Parameters'!49:49) -> 0 | CD134: =LOOKUP(CD8,'Model Parameters'!48:48,'Model Parameters'!49:49) -> 0 | CE134: =LOOKUP(CE8,'Model Parameters'!48:48,'Model Parameters'!49:49) -> 0 | CF134: =LOOKUP(CF8,'Model Parameters'!48:48,'Model Parameters'!49:49) -> 0 | CG134: =LOOKUP(CG8,'Model Parameters'!48:48,'Model Parameters'!49:49) -> 0 | CH134: =LOOKUP(CH8,'Model Parameters'!48:48,'Model Parameters'!49:49) -> 0 | CI134: =LOOKUP(CI8,'Model Parameters'!48:48,'Model Parameters'!49:49) -> 0 | CJ134: =LOOKUP(CJ8,'Model Parameters'!48:48,'Model Parameters'!49:49) -> 0 | CK134: =LOOKUP(CK8,'Model Parameters'!48:48,'Model Parameters'!49:49) -> 0 | CL134: =LOOKUP(CL8,'Model Parameters'!48:48,'Model Parameters'!49:49) -> 0 | CM134: =LOOKUP(CM8,'Model Parameters'!48:48,'Model Parameters'!49:49) -> 0 | CN134: =LOOKUP(CN8,'Model Parameters'!48:48,'Model Parameters'!49:49) -> 0 | CO134: =LOOKUP(CO8,'Model Parameters'!48:48,'Model Parameters'!49:49) -> 0 | CP134: =LOOKUP(CP8,'Model Parameters'!48:48,'Model Parameters'!49:49) -> 0 | CQ134: =LOOKUP(CQ8,'Model Parameters'!48:48,'Model Parameters'!49:49) -> 0 | CR134: =LOOKUP(CR8,'Model Parameters'!48:48,'Model Parameters'!49:49) -> 0 | CS134: =LOOKUP(CS8,'Model Parameters'!48:48,'Model Parameters'!49:49) -> 0 | CT134: =LOOKUP(CT8,'Model Parameters'!48:48,'Model Parameters'!49:49) -> 0 | CU134: =LOOKUP(CU8,'Model Parameters'!48:48,'Model Parameters'!49:49) -> 0 | CV134: =LOOKUP(CV8,'Model Parameters'!48:48,'Model Parameters'!49:49) -> 0 | CW134: =LOOKUP(CW8,'Model Parameters'!48:48,'Model Parameters'!49:49) -> 0 | CX134: =LOOKUP(CX8,'Model Parameters'!48:48,'Model Parameters'!49:49) -> 0 | CY134: =LOOKUP(CY8,'Model Parameters'!48:48,'Model Parameters'!49:49) -> 0 | CZ134: =LOOKUP(CZ8,'Model Parameters'!48:48,'Model Parameters'!49:49) -> 0 | DA134: =LOOKUP(DA8,'Model Parameters'!48:48,'Model Parameters'!49:49) -> 0 | DB134: =LOOKUP(DB8,'Model Parameters'!48:48,'Model Parameters'!49:49) -> 0 | DC134: =LOOKUP(DC8,'Model Parameters'!48:48,'Model Parameters'!49:49) -> 0 | DD134: =LOOKUP(DD8,'Model Parameters'!48:48,'Model Parameters'!49:49) -> 0 | DE134: =LOOKUP(DE8,'Model Parameters'!48:48,'Model Parameters'!49:49) -> 0 | DF134: =LOOKUP(DF8,'Model Parameters'!48:48,'Model Parameters'!49:49) -> 0 | DG134: =LOOKUP(DG8,'Model Parameters'!48:48,'Model Parameters'!49:49) -> 0 | DH134: =LOOKUP(DH8,'Model Parameters'!48:48,'Model Parameters'!49:49) -> 0 | DI134: =LOOKUP(DI8,'Model Parameters'!48:48,'Model Parameters'!49:49) -> 0 | DJ134: =LOOKUP(DJ8,'Model Parameters'!48:48,'Model Parameters'!49:49) -> 0 | DK134: =LOOKUP(DK8,'Model Parameters'!48:48,'Model Parameters'!49:49) -> 0 | DL134: =LOOKUP(DL8,'Model Parameters'!48:48,'Model Parameters'!49:49) -> 0 | DM134: =LOOKUP(DM8,'Model Parameters'!48:48,'Model Parameters'!49:49) -> 0 | DN134: =LOOKUP(DN8,'Model Parameters'!48:48,'Model Parameters'!49:49) -> 0 | DO134: =LOOKUP(DO8,'Model Parameters'!48:48,'Model Parameters'!49:49) -> 0 | DP134: =LOOKUP(DP8,'Model Parameters'!48:48,'Model Parameters'!49:49) -> 0 | DQ134: =LOOKUP(DQ8,'Model Parameters'!48:48,'Model Parameters'!49:49) -> 0 | DR134: =LOOKUP(DR8,'Model Parameters'!48:48,'Model Parameters'!49:49) -> 0 | DS134: =LOOKUP(DS8,'Model Parameters'!48:48,'Model Parameters'!49:49) -> 0 | DT134: =LOOKUP(DT8,'Model Parameters'!48:48,'Model Parameters'!49:49) -> 0 | DU134: =LOOKUP(DU8,'Model Parameters'!48:48,'Model Parameters'!49:49) -> 0 | DV134: =LOOKUP(DV8,'Model Parameters'!48:48,'Model Parameters'!49:49) -> 0 | DW134: =LOOKUP(DW8,'Model Parameters'!48:48,'Model Parameters'!49:49) -> 0 | DX134: =LOOKUP(DX8,'Model Parameters'!48:48,'Model Parameters'!49:49) -> 0 | DY134: =LOOKUP(DY8,'Model Parameters'!48:48,'Model Parameters'!49:49) -> 0 | DZ134: =LOOKUP(DZ8,'Model Parameters'!48:48,'Model Parameters'!49:49) -> 0 | EA134: =LOOKUP(EA8,'Model Parameters'!48:48,'Model Parameters'!49:49) -> 0 | EB134: =LOOKUP(EB8,'Model Parameters'!48:48,'Model Parameters'!49:49) -> 0 | EC134: =LOOKUP(EC8,'Model Parameters'!48:48,'Model Parameters'!49:49) -> 0 | ED134: =LOOKUP(ED8,'Model Parameters'!48:48,'Model Parameters'!49:49) -> 0 | EE134: =LOOKUP(EE8,'Model Parameters'!48:48,'Model Parameters'!49:49) -> 0 | EF134: =LOOKUP(EF8,'Model Parameters'!48:48,'Model Parameters'!49:49) -> 0 | EG134: =LOOKUP(EG8,'Model Parameters'!48:48,'Model Parameters'!49:49) -> 0 | EH134: =LOOKUP(EH8,'Model Parameters'!48:48,'Model Parameters'!49:49) -> 0 | EI134: =LOOKUP(EI8,'Model Parameters'!48:48,'Model Parameters'!49:49) -> 0 | EJ134: =LOOKUP(EJ8,'Model Parameters'!48:48,'Model Parameters'!49:49) -> 0 | EK134: =LOOKUP(EK8,'Model Parameters'!48:48,'Model Parameters'!49:49) -> 0 | EL134: =LOOKUP(EL8,'Model Parameters'!48:48,'Model Parameters'!49:49) -> 0 | EM134: =LOOKUP(EM8,'Model Parameters'!48:48,'Model Parameters'!49:49) -> 0 | EN134: =LOOKUP(EN8,'Model Parameters'!48:48,'Model Parameters'!49:49) -> 0 | EO134: =LOOKUP(EO8,'Model Parameters'!48:48,'Model Parameters'!49:49) -> 0 | EP134: =LOOKUP(EP8,'Model Parameters'!48:48,'Model Parameters'!49:49) -> 0 | EQ134: =LOOKUP(EQ8,'Model Parameters'!48:48,'Model Parameters'!49:49) -> 0 | ER134: =LOOKUP(ER8,'Model Parameters'!48:48,'Model Parameters'!49:49) -> 0 | ES134: =LOOKUP(ES8,'Model Parameters'!48:48,'Model Parameters'!49:49) -> 0 | ET134: =LOOKUP(ET8,'Model Parameters'!48:48,'Model Parameters'!49:49) -> 0 | EU134: =LOOKUP(EU8,'Model Parameters'!48:48,'Model Parameters'!49:49) -> 0 | EV134: =LOOKUP(EV8,'Model Parameters'!48:48,'Model Parameters'!49:49) -> 0 | EW134: =LOOKUP(EW8,'Model Parameters'!48:48,'Model Parameters'!49:49) -> 0 | EX134: =LOOKUP(EX8,'Model Parameters'!48:48,'Model Parameters'!49:49) -> 0 | EY134: =LOOKUP(EY8,'Model Parameters'!48:48,'Model Parameters'!49:49) -> 0 | EZ134: =LOOKUP(EZ8,'Model Parameters'!48:48,'Model Parameters'!49:49) -> 0 | FA134: =LOOKUP(FA8,'Model Parameters'!48:48,'Model Parameters'!49:49) -> 0 | FB134: =LOOKUP(FB8,'Model Parameters'!48:48,'Model Parameters'!49:49) -> 0 | FC134: =LOOKUP(FC8,'Model Parameters'!48:48,'Model Parameters'!49:49) -> 0 | FD134: =LOOKUP(FD8,'Model Parameters'!48:48,'Model Parameters'!49:49) -> 0 | FE134: =LOOKUP(FE8,'Model Parameters'!48:48,'Model Parameters'!49:49) -> 0 | FF134: =LOOKUP(FF8,'Model Parameters'!48:48,'Model Parameters'!49:49) -> 0 | FG134: =LOOKUP(FG8,'Model Parameters'!48:48,'Model Parameters'!49:49) -> 0 | FH134: =LOOKUP(FH8,'Model Parameters'!48:48,'Model Parameters'!49:49) -> 0 | FI134: =LOOKUP(FI8,'Model Parameters'!48:48,'Model Parameters'!49:49) -> 0 | FJ134: =LOOKUP(FJ8,'Model Parameters'!48:48,'Model Parameters'!49:49) -> 0 | FK134: =LOOKUP(FK8,'Model Parameters'!48:48,'Model Parameters'!49:49) -> 0 | FL134: =LOOKUP(FL8,'Model Parameters'!48:48,'Model Parameters'!49:49) -> 0 | FM134: =LOOKUP(FM8,'Model Parameters'!48:48,'Model Parameters'!49:49) -> 0 | FN134: =LOOKUP(FN8,'Model Parameters'!48:48,'Model Parameters'!49:49) -> 0 | FO134: =LOOKUP(FO8,'Model Parameters'!48:48,'Model Parameters'!49:49) -> 0 | FP134: =LOOKUP(FP8,'Model Parameters'!48:48,'Model Parameters'!49:49) -> 0 | FQ134: =LOOKUP(FQ8,'Model Parameters'!48:48,'Model Parameters'!49:49) -> 0 | FR134: =LOOKUP(FR8,'Model Parameters'!48:48,'Model Parameters'!49:49) -> 0 | FS134: =LOOKUP(FS8,'Model Parameters'!48:48,'Model Parameters'!49:49) -> 0 | FT134: =LOOKUP(FT8,'Model Parameters'!48:48,'Model Parameters'!49:49) -> 0 | FU134: =LOOKUP(FU8,'Model Parameters'!48:48,'Model Parameters'!49:49) -> 0 | FV134: =LOOKUP(FV8,'Model Parameters'!48:48,'Model Parameters'!49:49) -> 0 | FW134: =LOOKUP(FW8,'Model Parameters'!48:48,'Model Parameters'!49:49) -> 0 | FX134: =LOOKUP(FX8,'Model Parameters'!48:48,'Model Parameters'!49:49) -> 0 | FY134: =LOOKUP(FY8,'Model Parameters'!48:48,'Model Parameters'!49:49) -> 0 | FZ134: =LOOKUP(FZ8,'Model Parameters'!48:48,'Model Parameters'!49:49) -> 0 | GA134: =LOOKUP(GA8,'Model Parameters'!48:48,'Model Parameters'!49:49) -> 0 | GB134: =LOOKUP(GB8,'Model Parameters'!48:48,'Model Parameters'!49:49) -> 0 | GC134: =LOOKUP(GC8,'Model Parameters'!48:48,'Model Parameters'!49:49) -> 0 | GD134: =LOOKUP(GD8,'Model Parameters'!48:48,'Model Parameters'!49:49) -> 0 | GE134: =LOOKUP(GE8,'Model Parameters'!48:48,'Model Parameters'!49:49) -> 0 | GF134: =LOOKUP(GF8,'Model Parameters'!48:48,'Model Parameters'!49:49) -> 0 | GG134: =LOOKUP(GG8,'Model Parameters'!48:48,'Model Parameters'!49:49) -> 0 | GH134: =LOOKUP(GH8,'Model Parameters'!48:48,'Model Parameters'!49:49) -> 0 | GI134: =LOOKUP(GI8,'Model Parameters'!48:48,'Model Parameters'!49:49) -> 0 | GJ134: =LOOKUP(GJ8,'Model Parameters'!48:48,'Model Parameters'!49:49) -> 0 | GK134: =LOOKUP(GK8,'Model Parameters'!48:48,'Model Parameters'!49:49) -> 0 | GL134: =LOOKUP(GL8,'Model Parameters'!48:48,'Model Parameters'!49:49) -> 0 | GM134: =LOOKUP(GM8,'Model Parameters'!48:48,'Model Parameters'!49:49) -> 0 | GN134: =LOOKUP(GN8,'Model Parameters'!48:48,'Model Parameters'!49:49) -> 0 | GO134: =LOOKUP(GO8,'Model Parameters'!48:48,'Model Parameters'!49:49) -> 0 | GP134: =LOOKUP(GP8,'Model Parameters'!48:48,'Model Parameters'!49:49) -> 0 | GQ134: =LOOKUP(GQ8,'Model Parameters'!48:48,'Model Parameters'!49:49) -> 0 | GR134: =LOOKUP(GR8,'Model Parameters'!48:48,'Model Parameters'!49:49) -> 0 | GS134: =LOOKUP(GS8,'Model Parameters'!48:48,'Model Parameters'!49:49) -> 0 | GT134: =LOOKUP(GT8,'Model Parameters'!48:48,'Model Parameters'!49:49) -> 0 | GU134: =LOOKUP(GU8,'Model Parameters'!48:48,'Model Parameters'!49:49) -> 0 | GV134: =LOOKUP(GV8,'Model Parameters'!48:48,'Model Parameters'!49:49) -> 0 | GW134: =LOOKUP(GW8,'Model Parameters'!48:48,'Model Parameters'!49:49) -> 0 | GX134: =LOOKUP(GX8,'Model Parameters'!48:48,'Model Parameters'!49:49) -> 0 | GY134: =LOOKUP(GY8,'Model Parameters'!48:48,'Model Parameters'!49:49) -> 0 | GZ134: =LOOKUP(GZ8,'Model Parameters'!48:48,'Model Parameters'!49:49) -> 0 | HA134: =LOOKUP(HA8,'Model Parameters'!48:48,'Model Parameters'!49:49) -> 0 | HB134: =LOOKUP(HB8,'Model Parameters'!48:48,'Model Parameters'!49:49) -> 0 | HC134: =LOOKUP(HC8,'Model Parameters'!48:48,'Model Parameters'!49:49) -> 0 | HD134: =LOOKUP(HD8,'Model Parameters'!48:48,'Model Parameters'!49:49) -> 0 | HE134: =LOOKUP(HE8,'Model Parameters'!48:48,'Model Parameters'!49:49) -> 0 | HF134: =LOOKUP(HF8,'Model Parameters'!48:48,'Model Parameters'!49:49) -> 0 | HG134: =LOOKUP(HG8,'Model Parameters'!48:48,'Model Parameters'!49:49) -> 0 | HH134: =LOOKUP(HH8,'Model Parameters'!48:48,'Model Parameters'!49:49) -> 0 | HI134: =LOOKUP(HI8,'Model Parameters'!48:48,'Model Parameters'!49:49) -> 0 | HJ134: =LOOKUP(HJ8,'Model Parameters'!48:48,'Model Parameters'!49:49) -> 0 | HK134: =LOOKUP(HK8,'Model Parameters'!48:48,'Model Parameters'!49:49) -> 0 | HL134: =LOOKUP(HL8,'Model Parameters'!48:48,'Model Parameters'!49:49) -> 0 | HM134: =LOOKUP(HM8,'Model Parameters'!48:48,'Model Parameters'!49:49) -> 0 | HN134: =LOOKUP(HN8,'Model Parameters'!48:48,'Model Parameters'!49:49) -> 0 | HO134: =LOOKUP(HO8,'Model Parameters'!48:48,'Model Parameters'!49:49) -> 0 | HP134: =LOOKUP(HP8,'Model Parameters'!48:48,'Model Parameters'!49:49) -> 0 | HQ134: =LOOKUP(HQ8,'Model Parameters'!48:48,'Model Parameters'!49:49) -> 0 | HR134: =LOOKUP(HR8,'Model Parameters'!48:48,'Model Parameters'!49:49) -> 0 | HS134: =LOOKUP(HS8,'Model Parameters'!48:48,'Model Parameters'!49:49) -> 0 | HT134: =LOOKUP(HT8,'Model Parameters'!48:48,'Model Parameters'!49:49) -> 0 | HU134: =LOOKUP(HU8,'Model Parameters'!48:48,'Model Parameters'!49:49) -> 0 | HV134: =LOOKUP(HV8,'Model Parameters'!48:48,'Model Parameters'!49:49) -> 0 | HW134: =LOOKUP(HW8,'Model Parameters'!48:48,'Model Parameters'!49:49) -> 0 | HX134: =LOOKUP(HX8,'Model Parameters'!48:48,'Model Parameters'!49:49) -> 0 | HY134: =LOOKUP(HY8,'Model Parameters'!48:48,'Model Parameters'!49:49) -> 0 | HZ134: =LOOKUP(HZ8,'Model Parameters'!48:48,'Model Parameters'!49:49) -> 0 | IA134: =LOOKUP(IA8,'Model Parameters'!48:48,'Model Parameters'!49:49) -> 0 | IB134: =LOOKUP(IB8,'Model Parameters'!48:48,'Model Parameters'!49:49) -> 0 | IC134: =LOOKUP(IC8,'Model Parameters'!48:48,'Model Parameters'!49:49) -> 0 | ID134: =LOOKUP(ID8,'Model Parameters'!48:48,'Model Parameters'!49:49) -> 0 | IE134: =LOOKUP(IE8,'Model Parameters'!48:48,'Model Parameters'!49:49) -> 0 | IF134: =LOOKUP(IF8,'Model Parameters'!48:48,'Model Parameters'!49:49) -> 0 | IG134: =LOOKUP(IG8,'Model Parameters'!48:48,'Model Parameters'!49:49) -> 0 | IH134: =LOOKUP(IH8,'Model Parameters'!48:48,'Model Parameters'!49:49) -> 0 | II134: =LOOKUP(II8,'Model Parameters'!48:48,'Model Parameters'!49:49) -> 0 | IJ134: =LOOKUP(IJ8,'Model Parameters'!48:48,'Model Parameters'!49:49) -> 0 | IK134: =LOOKUP(IK8,'Model Parameters'!48:48,'Model Parameters'!49:49) -> 0 | IL134: =LOOKUP(IL8,'Model Parameters'!48:48,'Model Parameters'!49:49) -> 0 | IM134: =LOOKUP(IM8,'Model Parameters'!48:48,'Model Parameters'!49:49) -> 0 | IN134: =LOOKUP(IN8,'Model Parameters'!48:48,'Model Parameters'!49:49) -> 0 | IO134: =LOOKUP(IO8,'Model Parameters'!48:48,'Model Parameters'!49:49) -> 0 | IP134: =LOOKUP(IP8,'Model Parameters'!48:48,'Model Parameters'!49:49) -> 0 | IQ134: =LOOKUP(IQ8,'Model Parameters'!48:48,'Model Parameters'!49:49) -> 0 | IR134: =LOOKUP(IR8,'Model Parameters'!48:48,'Model Parameters'!49:49) -> 0 | IS134: =LOOKUP(IS8,'Model Parameters'!48:48,'Model Parameters'!49:49) -> 0
D135: Periodic Sales Growth | F135: % p.a. | I135: =IF(I134,I133,(1+I133)^(I5/12)-1) -> 0 | J135: 0 | K135: 0 | L135: 0 | M135: 0 | N135: -0.7 | O135: -0.2 | P135: 0 | Q135: 0 | R135: 0.8 | S135: 0.158060051 | T135: 0.1258668223 | U135: 0.09947258177 | V135: 0.07921228481 | W135: 0.06260148888 | X135: 0.04947397262 | Y135: 0.04 | Z135: 0.03475897696 | AA135: 0.03034181083 | AB135: 0.02636625759 | AC135: 0.02301563711 | AD135: 0.001651581302 | AE135: 0.0015809095 | AF135: 0.001515374196 | AG135: 0.001450484454 | AH135: 0.001390314642 | AI135: 0.001330741028 | AJ135: 0.001273702272 | AK135: 0.001224273593 | AL135: 0.00117176898 | AM135: 0.001123089808 | AN135: 0.001074899025 | AO135: 0.00103022142 | AP135: 0.000985993991 | AQ135: 0.0009436554206 | AR135: 0.0009044058231 | AS135: 0.0008655540128 | AT135: 0.0008295381143 | AU135: 0.0008390623934 | AV135: 0.0008486955157 | AW135: 0.0008574909781 | AX135: 0.0008673346691 | AY135: 0.0008769678841 | AZ135: 0.0008870340754 | BA135: 0.0008968850093 | BB135: 0.00090717868 | BC135: 0.000917589898 | BD135: 0.0009277784424 | BE135: 0.0009384248567 | BF135: 0.0009488435404 | BG135: 0.0009597304082 | BH135: 0.0009707415252 | BI135: 0.0009811559736 | BJ135: 0.0009924115716 | BK135: 0.001003426335 | BL135: 0.001014935992 | BM135: 0.001026199348 | BN135: 0.001037968733 | BO135: 0.001049872324 | BP135: 0.001061521133 | BQ135: 0.001073693236 | BR135: 0.001085604777 | BS135: 0.001098051377 | BT135: 0.001110639811 | BU135: =IF(BU134,BU133,(1+BU133)^(BU5/12)-1) -> 0.001122133246 | BV135: 0.001134996045 | BW135: 0.001147583402 | BX135: 0.001160736076 | BY135: 0.001173607059 | BZ135: 0.001187056056 | CA135: 0.001200658158 | CB135: 0.001213968878 | CC135: 0.001227877291 | CD135: 0.001241487716 | CE135: 0.001251071106 | CF135: 0.001260727961 | CG135: 0.001269513889 | CH135: 0.001279312104 | CI135: 0.001288865737 | CJ135: 0.001298812249 | CK135: 0.001308510461 | CL135: 0.001318607482 | CM135: 0.001328781848 | CN135: 0.001338702202 | CO135: 0.001349030474 | CP135: 0.001359100874 | CQ135: 0.001369585344 | CR135: 0.001380150082 | CS135: 0.001389761922 | CT135: 0.001400481106 | CU135: 0.001410932614 | CV135: 0.001421813815 | CW135: 0.001432423276 | CX135: 0.001443468905 | CY135: 0.00145459903 | CZ135: 0.00146545117 | DA135: 0.001476749423 | DB135: 0.001487765471 | DC135: 0.001465149631 | DD135: 0.001442874864 | DE135: 0.001422341469 | DF135: 0.001400712525 | DG135: 0.001380092132 | DH135: 0.001359100874 | DI135: 0.001339088568 | DJ135: 0.001318716471 | DK135: 0.001298652098 | DL135: 0.001279523641 | DM135: 0.001260051474 | DN135: 0.001241487716 | DO135: 0.001241487716 | DP135: 0.001241487716 | DQ135: 0.001241487716 | DR135: 0.001241487716 | DS135: 0.001241487716 | DT135: 0.001241487716 | DU135: 0.001241487716 | DV135: 0.001241487716 | DW135: 0.001241487716 | DX135: 0.001241487716 | DY135: 0.001241487716 | DZ135: 0.001241487716 | EA135: 0.001241487716 | EB135: 0.001241487716 | EC135: 0.001241487716 | ED135: 0.001241487716 | EE135: 0.001241487716 | EF135: 0.001241487716 | EG135: =IF(EG134,EG133,(1+EG133)^(EG5/12)-1) -> 0.001241487716 | EH135: 0.001241487716 | EI135: 0.001241487716 | EJ135: 0.001241487716 | EK135: 0.001241487716 | EL135: 0.001241487716 | EM135: 0.001241487716 | EN135: 0.001241487716 | EO135: 0.001241487716 | EP135: 0.001241487716 | EQ135: 0.001241487716 | ER135: 0.001241487716 | ES135: 0.001241487716 | ET135: 0.001241487716 | EU135: 0.001241487716 | EV135: 0.001241487716 | EW135: 0.001241487716 | EX135: 0.001241487716 | EY135: 0.001241487716 | EZ135: 0.001241487716 | FA135: 0.001241487716 | FB135: 0.001241487716 | FC135: 0.001241487716 | FD135: 0.001241487716 | FE135: 0.001241487716 | FF135: 0.001241487716 | FG135: 0.001241487716 | FH135: 0.001241487716 | FI135: 0.001241487716 | FJ135: 0.001241487716 | FK135: 0.001241487716 | FL135: 0.001241487716 | FM135: 0.001241487716 | FN135: 0.001241487716 | FO135: 0.001241487716 | FP135: 0.001241487716 | FQ135: 0.001241487716 | FR135: 0.001241487716 | FS135: 0.001241487716 | FT135: 0.001241487716 | FU135: 0.001241487716 | FV135: -0.0004176245892 | FW135: -0.0004176245892 | FX135: -0.0004176245892 | FY135: -0.0004176245892 | FZ135: -0.0004176245892 | GA135: -0.0004176245892 | GB135: -0.0004176245892 | GC135: -0.0004176245892 | GD135: -0.0004176245892 | GE135: -0.0004176245892 | GF135: -0.0004176245892 | GG135: -0.0004176245892 | GH135: -0.0004176245892 | GI135: -0.0004176245892 | GJ135: -0.0004176245892 | GK135: -0.0004176245892 | GL135: -0.0004176245892 | GM135: -0.0004176245892 | GN135: -0.0004176245892 | GO135: -0.0004176245892 | GP135: -0.0004176245892 | GQ135: -0.0004176245892 | GR135: -0.0004176245892 | GS135: =IF(GS134,GS133,(1+GS133)^(GS5/12)-1) -> -0.0004176245892 | GT135: -0.0004176245892 | GU135: -0.0004176245892 | GV135: -0.0004176245892 | GW135: -0.0004176245892 | GX135: -0.0004176245892 | GY135: -0.0004176245892 | GZ135: -0.0004176245892 | HA135: -0.0004176245892 | HB135: -0.0004176245892 | HC135: -0.0004176245892 | HD135: -0.0004176245892 | HE135: -0.0004176245892 | HF135: -0.0004176245892 | HG135: -0.0004176245892 | HH135: -0.0004176245892 | HI135: -0.0004176245892 | HJ135: -0.0004176245892 | HK135: -0.0004176245892 | HL135: -0.0004176245892 | HM135: -0.0004176245892 | HN135: -0.0004176245892 | HO135: -0.0004176245892 | HP135: -0.0004176245892 | HQ135: -0.0004176245892 | HR135: -0.0004176245892 | HS135: -0.0004176245892 | HT135: -0.0004176245892 | HU135: -0.0004176245892 | HV135: -0.0004176245892 | HW135: -0.0004176245892 | HX135: -0.0004176245892 | HY135: -0.0004176245892 | HZ135: -0.0004176245892 | IA135: -0.0004176245892 | IB135: -0.0004176245892 | IC135: -0.0004176245892 | ID135: -0.0004176245892 | IE135: -0.0004176245892 | IF135: -0.0004176245892 | IG135: -0.0004176245892 | IH135: -0.0004176245892 | II135: -0.0004176245892 | IJ135: -0.0004176245892 | IK135: -0.0004176245892 | IL135: -0.0004176245892 | IM135: -0.0004176245892 | IN135: -0.0004176245892 | IO135: -0.0004176245892 | IP135: -0.0004176245892 | IQ135: -0.0004176245892 | IR135: -0.0004176245892 | IS135: -0.0004176245892
D137: Historic Revenues | F137: USD 000 | H137: =SUM(I137:IS137) -> 129570000 | I137: =IF(I4,I13) -> 27080000 | J137: 25780000 | K137: 25640000 | L137: 25740000 | M137: 25330000 | N137: FALSE | O137: FALSE | P137: FALSE | Q137: FALSE | R137: FALSE | S137: FALSE | T137: FALSE | U137: FALSE | V137: FALSE | W137: FALSE | X137: FALSE | Y137: FALSE | Z137: FALSE | AA137: FALSE | AB137: FALSE | AC137: FALSE | AD137: FALSE | AE137: FALSE | AF137: FALSE | AG137: FALSE | AH137: FALSE | AI137: FALSE | AJ137: FALSE | AK137: FALSE | AL137: FALSE | AM137: FALSE | AN137: FALSE | AO137: FALSE | AP137: FALSE | AQ137: FALSE | AR137: FALSE | AS137: FALSE | AT137: FALSE | AU137: FALSE | AV137: FALSE | AW137: FALSE | AX137: FALSE | AY137: FALSE | AZ137: FALSE | BA137: FALSE | BB137: FALSE | BC137: FALSE | BD137: FALSE | BE137: FALSE | BF137: FALSE | BG137: FALSE | BH137: FALSE | BI137: FALSE | BJ137: FALSE | BK137: FALSE | BL137: FALSE | BM137: FALSE | BN137: FALSE | BO137: FALSE | BP137: FALSE | BQ137: FALSE | BR137: FALSE | BS137: FALSE | BT137: FALSE | BU137: =IF(BU4,BU13) -> FALSE | BV137: FALSE | BW137: FALSE | BX137: FALSE | BY137: FALSE | BZ137: FALSE | CA137: FALSE | CB137: FALSE | CC137: FALSE | CD137: FALSE | CE137: FALSE | CF137: FALSE | CG137: FALSE | CH137: FALSE | CI137: FALSE | CJ137: FALSE | CK137: FALSE | CL137: FALSE | CM137: FALSE | CN137: FALSE | CO137: FALSE | CP137: FALSE | CQ137: FALSE | CR137: FALSE | CS137: FALSE | CT137: FALSE | CU137: FALSE | CV137: FALSE | CW137: FALSE | CX137: FALSE | CY137: FALSE | CZ137: FALSE | DA137: FALSE | DB137: FALSE | DC137: FALSE | DD137: FALSE | DE137: FALSE | DF137: FALSE | DG137: FALSE | DH137: FALSE | DI137: FALSE | DJ137: FALSE | DK137: FALSE | DL137: FALSE | DM137: FALSE | DN137: FALSE | DO137: FALSE | DP137: FALSE | DQ137: FALSE | DR137: FALSE | DS137: FALSE | DT137: FALSE | DU137: FALSE | DV137: FALSE | DW137: FALSE | DX137: FALSE | DY137: FALSE | DZ137: FALSE | EA137: FALSE | EB137: FALSE | EC137: FALSE | ED137: FALSE | EE137: FALSE | EF137: FALSE | EG137: =IF(EG4,EG13) -> FALSE | EH137: FALSE | EI137: FALSE | EJ137: FALSE | EK137: FALSE | EL137: FALSE | EM137: FALSE | EN137: FALSE | EO137: FALSE | EP137: FALSE | EQ137: FALSE | ER137: FALSE | ES137: FALSE | ET137: FALSE | EU137: FALSE | EV137: FALSE | EW137: FALSE | EX137: FALSE | EY137: FALSE | EZ137: FALSE | FA137: FALSE | FB137: FALSE | FC137: FALSE | FD137: FALSE | FE137: FALSE | FF137: FALSE | FG137: FALSE | FH137: FALSE | FI137: FALSE | FJ137: FALSE | FK137: FALSE | FL137: FALSE | FM137: FALSE | FN137: FALSE | FO137: FALSE | FP137: FALSE | FQ137: FALSE | FR137: FALSE | FS137: FALSE | FT137: FALSE | FU137: FALSE | FV137: FALSE | FW137: FALSE | FX137: FALSE | FY137: FALSE | FZ137: FALSE | GA137: FALSE | GB137: FALSE | GC137: FALSE | GD137: FALSE | GE137: FALSE | GF137: FALSE | GG137: FALSE | GH137: FALSE | GI137: FALSE | GJ137: FALSE | GK137: FALSE | GL137: FALSE | GM137: FALSE | GN137: FALSE | GO137: FALSE | GP137: FALSE | GQ137: FALSE | GR137: FALSE | GS137: =IF(GS4,GS13) -> FALSE | GT137: FALSE | GU137: FALSE | GV137: FALSE | GW137: FALSE | GX137: FALSE | GY137: FALSE | GZ137: FALSE | HA137: FALSE | HB137: FALSE | HC137: FALSE | HD137: FALSE | HE137: FALSE | HF137: FALSE | HG137: FALSE | HH137: FALSE | HI137: FALSE | HJ137: FALSE | HK137: FALSE | HL137: FALSE | HM137: FALSE | HN137: FALSE | HO137: FALSE | HP137: FALSE | HQ137: FALSE | HR137: FALSE | HS137: FALSE | HT137: FALSE | HU137: FALSE | HV137: FALSE | HW137: FALSE | HX137: FALSE | HY137: FALSE | HZ137: FALSE | IA137: FALSE | IB137: FALSE | IC137: FALSE | ID137: FALSE | IE137: FALSE | IF137: FALSE | IG137: FALSE | IH137: FALSE | II137: FALSE | IJ137: FALSE | IK137: FALSE | IL137: FALSE | IM137: FALSE | IN137: FALSE | IO137: FALSE | IP137: FALSE | IQ137: FALSE | IR137: FALSE | IS137: FALSE
D138: Historic Sales in Units | F138: Units p.a. | H138: =SUM(I138:IS138) -> 12828712.87 | I138: =I137/I130 -> 2681188.119 | J138: =J137/J130 -> 2552475.248 | K138: 2538613.861 | L138: 2548514.851 | M138: 2507920.792 | N138: 0 | O138: 0 | P138: 0 | Q138: 0 | R138: 0 | S138: 0 | T138: 0 | U138: 0 | V138: 0 | W138: 0 | X138: 0 | Y138: 0 | Z138: 0 | AA138: 0 | AB138: 0 | AC138: 0 | AD138: 0 | AE138: 0 | AF138: 0 | AG138: 0 | AH138: 0 | AI138: 0 | AJ138: 0 | AK138: 0 | AL138: 0 | AM138: 0 | AN138: 0 | AO138: 0 | AP138: 0 | AQ138: 0 | AR138: 0 | AS138: 0 | AT138: 0 | AU138: 0 | AV138: 0 | AW138: 0 | AX138: 0 | AY138: 0 | AZ138: 0 | BA138: 0 | BB138: 0 | BC138: 0 | BD138: 0 | BE138: 0 | BF138: 0 | BG138: 0 | BH138: 0 | BI138: 0 | BJ138: 0 | BK138: 0 | BL138: 0 | BM138: 0 | BN138: 0 | BO138: 0 | BP138: 0 | BQ138: 0 | BR138: 0 | BS138: =BS137/BS130 -> 0 | BT138: =BT137/BT130 -> 0 | BU138: =BU137/BU130 -> 0 | BV138: =BV137/BV130 -> 0 | BW138: =BW137/BW130 -> 0 | BX138: =BX137/BX130 -> 0 | BY138: =BY137/BY130 -> 0 | BZ138: =BZ137/BZ130 -> 0 | CA138: =CA137/CA130 -> 0 | CB138: =CB137/CB130 -> 0 | CC138: =CC137/CC130 -> 0 | CD138: =CD137/CD130 -> 0 | CE138: =CE137/CE130 -> 0 | CF138: =CF137/CF130 -> 0 | CG138: =CG137/CG130 -> 0 | CH138: =CH137/CH130 -> 0 | CI138: =CI137/CI130 -> 0 | CJ138: =CJ137/CJ130 -> 0 | CK138: =CK137/CK130 -> 0 | CL138: =CL137/CL130 -> 0 | CM138: =CM137/CM130 -> 0 | CN138: =CN137/CN130 -> 0 | CO138: =CO137/CO130 -> 0 | CP138: =CP137/CP130 -> 0 | CQ138: =CQ137/CQ130 -> 0 | CR138: =CR137/CR130 -> 0 | CS138: =CS137/CS130 -> 0 | CT138: 0 | CU138: 0 | CV138: 0 | CW138: 0 | CX138: 0 | CY138: 0 | CZ138: 0 | DA138: 0 | DB138: 0 | DC138: 0 | DD138: 0 | DE138: 0 | DF138: 0 | DG138: 0 | DH138: =DH137/DH130 -> 0 | DI138: 0 | DJ138: 0 | DK138: 0 | DL138: 0 | DM138: 0 | DN138: 0 | DO138: 0 | DP138: 0 | DQ138: 0 | DR138: 0 | DS138: 0 | DT138: 0 | DU138: 0 | DV138: 0 | DW138: 0 | DX138: 0 | DY138: 0 | DZ138: 0 | EA138: =EA137/EA130 -> 0 | EB138: 0 | EC138: 0 | ED138: 0 | EE138: 0 | EF138: 0 | EG138: 0 | EH138: 0 | EI138: 0 | EJ138: 0 | EK138: 0 | EL138: =EL137/EL130 -> 0 | EM138: 0 | EN138: 0 | EO138: 0 | EP138: 0 | EQ138: 0 | ER138: 0 | ES138: 0 | ET138: 0 | EU138: 0 | EV138: 0 | EW138: 0 | EX138: 0 | EY138: 0 | EZ138: 0 | FA138: 0 | FB138: 0 | FC138: 0 | FD138: 0 | FE138: 0 | FF138: 0 | FG138: 0 | FH138: 0 | FI138: 0 | FJ138: 0 | FK138: 0 | FL138: 0 | FM138: 0 | FN138: 0 | FO138: 0 | FP138: 0 | FQ138: 0 | FR138: 0 | FS138: 0 | FT138: 0 | FU138: 0 | FV138: 0 | FW138: 0 | FX138: 0 | FY138: 0 | FZ138: 0 | GA138: 0 | GB138: 0 | GC138: 0 | GD138: 0 | GE138: 0 | GF138: 0 | GG138: 0 | GH138: 0 | GI138: 0 | GJ138: 0 | GK138: 0 | GL138: 0 | GM138: 0 | GN138: 0 | GO138: 0 | GP138: 0 | GQ138: 0 | GR138: 0 | GS138: 0 | GT138: 0 | GU138: 0 | GV138: 0 | GW138: 0 | GX138: =GX137/GX130 -> 0 | GY138: 0 | GZ138: 0 | HA138: 0 | HB138: 0 | HC138: 0 | HD138: 0 | HE138: 0 | HF138: 0 | HG138: 0 | HH138: 0 | HI138: 0 | HJ138: 0 | HK138: 0 | HL138: 0 | HM138: 0 | HN138: 0 | HO138: 0 | HP138: 0 | HQ138: 0 | HR138: 0 | HS138: 0 | HT138: 0 | HU138: 0 | HV138: 0 | HW138: 0 | HX138: 0 | HY138: 0 | HZ138: 0 | IA138: 0 | IB138: 0 | IC138: 0 | ID138: 0 | IE138: 0 | IF138: 0 | IG138: 0 | IH138: 0 | II138: 0 | IJ138: 0 | IK138: 0 | IL138: 0 | IM138: 0 | IN138: 0 | IO138: 0 | IP138: 0 | IQ138: 0 | IR138: 0 | IS138: 0
D139: Historic Sales in Units | F139: Units p.m. | H139: =SUM(I139:IS139) -> 48602476.35 | I139: =IF(I4,I138/12,G139*(1+I135)) -> 223432.3432 | J139: =IF(J4,J138/12,I139*(1+J135)) -> 212706.2706 | K139: 211551.1551 | L139: 212376.2376 | M139: 208993.3993 | N139: 62698.0198 | O139: 50158.41584 | P139: 50158.41584 | Q139: 50158.41584 | R139: 90285.14851 | S139: 104555.6237 | T139: 117715.7078 | U139: 129425.1932 | V139: 139677.2584 | W139: 148421.2628 | X139: 155764.2523 | Y139: 161994.8224 | Z139: 167625.5967 | AA139: 172711.6608 | AB139: 177265.4209 | AC139: 181345.2975 | AD139: 181644.804 | AE139: 181931.968 | AF139: 182207.663 | AG139: 182471.9524 | AH139: 182725.6459 | AI139: 182968.8064 | AJ139: 183201.8542 | AK139: 183426.1433 | AL139: 183641.0764 | AM139: 183847.3218 | AN139: 184044.9391 | AO139: 184234.5462 | AP139: 184416.2003 | AQ139: 184590.2257 | AR139: 184757.1702 | AS139: 184917.0875 | AT139: 185070.4832 | AU139: 185225.7689 | AV139: 185382.9692 | AW139: 185541.9334 | AX139: 185702.8604 | AY139: 185865.7158 | AZ139: 186030.585 | BA139: 186197.4331 | BB139: 186366.3474 | BC139: 186537.3553 | BD139: 186710.4206 | BE139: 186885.6343 | BF139: 187062.9596 | BG139: 187242.4896 | BH139: 187424.2536 | BI139: 187608.1461 | BJ139: 187794.3306 | BK139: 187982.7683 | BL139: 188173.5588 | BM139: 188366.6624 | BN139: 188562.1811 | BO139: 188760.1473 | BP139: 188960.5202 | BQ139: 189163.4058 | BR139: 189368.7625 | BS139: 189576.6992 | BT139: 189787.2506 | BU139: 190000.2172 | BV139: =IF(BV4,BV138/12,BU139*(1+BV135)) -> 190215.8667 | BW139: 190434.1552 | BX139: 190655.199 | BY139: 190878.9533 | BZ139: 191105.5373 | CA139: 191334.9898 | CB139: 191567.2645 | CC139: 191802.4856 | CD139: 192040.606 | CE139: 192280.8625 | CF139: 192523.2763 | CG139: 192767.6873 | CH139: 193014.2973 | CI139: 193263.0668 | CJ139: 193514.0793 | CK139: 193767.2945 | CL139: 194022.7975 | CM139: 194280.6115 | CN139: 194540.6953 | CO139: 194803.1367 | CP139: 195067.8938 | CQ139: 195335.0559 | CR139: 195604.6476 | CS139: 195876.4915 | CT139: 196150.8128 | CU139: 196427.5684 | CV139: 196706.8518 | CW139: 196988.6193 | CX139: 197272.9662 | CY139: 197559.9193 | CZ139: 197849.4337 | DA139: 198141.6078 | DB139: 198436.396 | DC139: 198727.135 | DD139: 199013.8734 | DE139: 199296.9391 | DF139: 199576.0968 | DG139: 199851.5302 | DH139: 200123.1486 | DI139: 200391.1312 | DJ139: 200655.3903 | DK139: 200915.9719 | DL139: 201173.0486 | DM139: 201426.537 | DN139: 201676.6056 | DO139: 201926.9846 | DP139: 202177.6745 | DQ139: 202428.6756 | DR139: 202679.9883 | DS139: 202931.613 | DT139: 203183.5501 | DU139: 203435.8 | DV139: 203688.363 | DW139: 203941.2396 | DX139: 204194.4302 | DY139: 204447.935 | DZ139: 204701.7546 | EA139: 204955.8894 | EB139: 205210.3396 | EC139: 205465.1057 | ED139: 205720.1881 | EE139: 205975.5872 | EF139: 206231.3033 | EG139: 206487.337 | EH139: =IF(EH4,EH138/12,EG139*(1+EH135)) -> 206743.6885 | EI139: 207000.3582 | EJ139: 207257.3466 | EK139: 207514.6541 | EL139: 207772.281 | EM139: 208030.2277 | EN139: 208288.4947 | EO139: 208547.0823 | EP139: 208805.9909 | EQ139: 209065.221 | ER139: 209324.7729 | ES139: 209584.647 | ET139: 209844.8438 | EU139: 210105.3636 | EV139: 210366.2068 | EW139: 210627.3739 | EX139: 210888.8652 | EY139: 211150.6811 | EZ139: 211412.8221 | FA139: 211675.2885 | FB139: 211938.0808 | FC139: 212201.1993 | FD139: 212464.6445 | FE139: 212728.4167 | FF139: 212992.5164 | FG139: 213256.944 | FH139: 213521.6999 | FI139: 213786.7845 | FJ139: 214052.1981 | FK139: 214317.9413 | FL139: 214584.0144 | FM139: 214850.4178 | FN139: 215117.152 | FO139: 215384.2173 | FP139: 215651.6142 | FQ139: 215919.343 | FR139: 216187.4042 | FS139: 216455.7982 | FT139: 216724.5254 | FU139: 216993.5863 | FV139: 216902.9644 | FW139: 216812.3804 | FX139: 216721.8342 | FY139: 216631.3258 | FZ139: 216540.8553 | GA139: 216450.4225 | GB139: 216360.0275 | GC139: 216269.6702 | GD139: 216179.3507 | GE139: 216089.0688 | GF139: 215998.8247 | GG139: 215908.6183 | GH139: 215818.4496 | GI139: 215728.3185 | GJ139: 215638.225 | GK139: 215548.1692 | GL139: 215458.151 | GM139: 215368.1704 | GN139: 215278.2273 | GO139: 215188.3218 | GP139: 215098.4539 | GQ139: 215008.6235 | GR139: 214918.8306 | GS139: 214829.0752 | GT139: =IF(GT4,GT138/12,GS139*(1+GT135)) -> 214739.3573 | GU139: 214649.6769 | GV139: 214560.0339 | GW139: 214470.4284 | GX139: 214380.8602 | GY139: 214291.3295 | GZ139: 214201.8362 | HA139: 214112.3802 | HB139: 214022.9616 | HC139: 213933.5804 | HD139: 213844.2365 | HE139: 213754.9299 | HF139: 213665.6605 | HG139: 213576.4285 | HH139: 213487.2337 | HI139: 213398.0762 | HJ139: 213308.9559 | HK139: 213219.8729 | HL139: 213130.827 | HM139: 213041.8183 | HN139: 212952.8468 | HO139: 212863.9125 | HP139: 212775.0153 | HQ139: 212686.1552 | HR139: 212597.3322 | HS139: 212508.5464 | HT139: 212419.7976 | HU139: 212331.0858 | HV139: 212242.4112 | HW139: 212153.7735 | HX139: 212065.1729 | HY139: 211976.6092 | HZ139: 211888.0826 | IA139: 211799.5929 | IB139: 211711.1402 | IC139: 211622.7244 | ID139: 211534.3456 | IE139: 211446.0036 | IF139: 211357.6986 | IG139: 211269.4304 | IH139: 211181.1991 | II139: 211093.0046 | IJ139: 211004.847 | IK139: 210916.7262 | IL139: 210828.6422 | IM139: 210740.595 | IN139: 210652.5845 | IO139: 210564.6108 | IP139: 210476.6738 | IQ139: 210388.7736 | IR139: 210300.9101 | IS139: 210213.0833
D140: Periodic Sales in Units | F140: Units | H140: =SUM(I140:IS140) -> 60362129.82 | I140: =IF(I4,I138,I139) -> 2681188.119 | J140: 2552475.248 | K140: 2538613.861 | L140: 2548514.851 | M140: 2507920.792 | N140: 62698.0198 | O140: 50158.41584 | P140: 50158.41584 | Q140: 50158.41584 | R140: 90285.14851 | S140: 104555.6237 | T140: 117715.7078 | U140: 129425.1932 | V140: 139677.2584 | W140: 148421.2628 | X140: 155764.2523 | Y140: 161994.8224 | Z140: 167625.5967 | AA140: 172711.6608 | AB140: 177265.4209 | AC140: 181345.2975 | AD140: 181644.804 | AE140: 181931.968 | AF140: 182207.663 | AG140: 182471.9524 | AH140: 182725.6459 | AI140: 182968.8064 | AJ140: 183201.8542 | AK140: 183426.1433 | AL140: 183641.0764 | AM140: 183847.3218 | AN140: 184044.9391 | AO140: 184234.5462 | AP140: 184416.2003 | AQ140: 184590.2257 | AR140: 184757.1702 | AS140: 184917.0875 | AT140: 185070.4832 | AU140: 185225.7689 | AV140: 185382.9692 | AW140: 185541.9334 | AX140: 185702.8604 | AY140: 185865.7158 | AZ140: 186030.585 | BA140: 186197.4331 | BB140: 186366.3474 | BC140: 186537.3553 | BD140: 186710.4206 | BE140: 186885.6343 | BF140: 187062.9596 | BG140: 187242.4896 | BH140: 187424.2536 | BI140: 187608.1461 | BJ140: 187794.3306 | BK140: 187982.7683 | BL140: 188173.5588 | BM140: 188366.6624 | BN140: 188562.1811 | BO140: 188760.1473 | BP140: 188960.5202 | BQ140: 189163.4058 | BR140: 189368.7625 | BS140: 189576.6992 | BT140: 189787.2506 | BU140: =IF(BU4,BU138,BU139) -> 190000.2172 | BV140: 190215.8667 | BW140: 190434.1552 | BX140: 190655.199 | BY140: 190878.9533 | BZ140: 191105.5373 | CA140: 191334.9898 | CB140: 191567.2645 | CC140: 191802.4856 | CD140: 192040.606 | CE140: 192280.8625 | CF140: 192523.2763 | CG140: 192767.6873 | CH140: 193014.2973 | CI140: 193263.0668 | CJ140: 193514.0793 | CK140: 193767.2945 | CL140: 194022.7975 | CM140: 194280.6115 | CN140: 194540.6953 | CO140: 194803.1367 | CP140: 195067.8938 | CQ140: 195335.0559 | CR140: 195604.6476 | CS140: 195876.4915 | CT140: 196150.8128 | CU140: 196427.5684 | CV140: 196706.8518 | CW140: 196988.6193 | CX140: 197272.9662 | CY140: 197559.9193 | CZ140: 197849.4337 | DA140: 198141.6078 | DB140: 198436.396 | DC140: 198727.135 | DD140: 199013.8734 | DE140: 199296.9391 | DF140: 199576.0968 | DG140: 199851.5302 | DH140: 200123.1486 | DI140: 200391.1312 | DJ140: 200655.3903 | DK140: 200915.9719 | DL140: 201173.0486 | DM140: 201426.537 | DN140: 201676.6056 | DO140: 201926.9846 | DP140: 202177.6745 | DQ140: 202428.6756 | DR140: 202679.9883 | DS140: 202931.613 | DT140: 203183.5501 | DU140: 203435.8 | DV140: 203688.363 | DW140: 203941.2396 | DX140: 204194.4302 | DY140: 204447.935 | DZ140: 204701.7546 | EA140: 204955.8894 | EB140: 205210.3396 | EC140: 205465.1057 | ED140: 205720.1881 | EE140: 205975.5872 | EF140: 206231.3033 | EG140: =IF(EG4,EG138,EG139) -> 206487.337 | EH140: 206743.6885 | EI140: 207000.3582 | EJ140: 207257.3466 | EK140: 207514.6541 | EL140: 207772.281 | EM140: 208030.2277 | EN140: 208288.4947 | EO140: 208547.0823 | EP140: 208805.9909 | EQ140: 209065.221 | ER140: 209324.7729 | ES140: 209584.647 | ET140: 209844.8438 | EU140: 210105.3636 | EV140: 210366.2068 | EW140: 210627.3739 | EX140: 210888.8652 | EY140: 211150.6811 | EZ140: 211412.8221 | FA140: 211675.2885 | FB140: 211938.0808 | FC140: 212201.1993 | FD140: 212464.6445 | FE140: 212728.4167 | FF140: 212992.5164 | FG140: 213256.944 | FH140: 213521.6999 | FI140: 213786.7845 | FJ140: 214052.1981 | FK140: 214317.9413 | FL140: 214584.0144 | FM140: 214850.4178 | FN140: 215117.152 | FO140: 215384.2173 | FP140: 215651.6142 | FQ140: 215919.343 | FR140: 216187.4042 | FS140: 216455.7982 | FT140: 216724.5254 | FU140: 216993.5863 | FV140: 216902.9644 | FW140: 216812.3804 | FX140: 216721.8342 | FY140: 216631.3258 | FZ140: 216540.8553 | GA140: 216450.4225 | GB140: 216360.0275 | GC140: 216269.6702 | GD140: 216179.3507 | GE140: 216089.0688 | GF140: 215998.8247 | GG140: 215908.6183 | GH140: 215818.4496 | GI140: 215728.3185 | GJ140: 215638.225 | GK140: 215548.1692 | GL140: 215458.151 | GM140: 215368.1704 | GN140: 215278.2273 | GO140: 215188.3218 | GP140: 215098.4539 | GQ140: 215008.6235 | GR140: 214918.8306 | GS140: =IF(GS4,GS138,GS139) -> 214829.0752 | GT140: 214739.3573 | GU140: 214649.6769 | GV140: 214560.0339 | GW140: 214470.4284 | GX140: 214380.8602 | GY140: 214291.3295 | GZ140: 214201.8362 | HA140: 214112.3802 | HB140: 214022.9616 | HC140: 213933.5804 | HD140: 213844.2365 | HE140: 213754.9299 | HF140: 213665.6605 | HG140: 213576.4285 | HH140: 213487.2337 | HI140: 213398.0762 | HJ140: 213308.9559 | HK140: 213219.8729 | HL140: 213130.827 | HM140: 213041.8183 | HN140: 212952.8468 | HO140: 212863.9125 | HP140: 212775.0153 | HQ140: 212686.1552 | HR140: 212597.3322 | HS140: 212508.5464 | HT140: 212419.7976 | HU140: 212331.0858 | HV140: 212242.4112 | HW140: 212153.7735 | HX140: 212065.1729 | HY140: 211976.6092 | HZ140: 211888.0826 | IA140: 211799.5929 | IB140: 211711.1402 | IC140: 211622.7244 | ID140: 211534.3456 | IE140: 211446.0036 | IF140: 211357.6986 | IG140: 211269.4304 | IH140: 211181.1991 | II140: 211093.0046 | IJ140: 211004.847 | IK140: 210916.7262 | IL140: 210828.6422 | IM140: 210740.595 | IN140: 210652.5845 | IO140: 210564.6108 | IP140: 210476.6738 | IQ140: 210388.7736 | IR140: 210300.9101 | IS140: 210213.0833
D142: Periodic Revenues | F142: USD 000 | H142: =SUM(I142:IS142) -> 609657511.2 | I142: =I140*I130 -> 27080000 | J142: =J140*J130 -> 25780000 | K142: 25640000 | L142: 25740000 | M142: 25330000 | N142: 633250 | O142: 506600 | P142: 506600 | Q142: 506600 | R142: 911880 | S142: 1056011.799 | T142: 1188928.649 | U142: 1307194.451 | V142: 1410740.31 | W142: 1499054.754 | X142: 1573218.948 | Y142: 1636147.706 | Z142: 1693018.526 | AA142: 1744387.774 | AB142: 1790380.751 | AC142: 1831587.505 | AD142: 1834612.521 | AE142: 1837512.877 | AF142: 1840297.397 | AG142: 1842966.72 | AH142: 1845529.023 | AI142: 1847984.944 | AJ142: 1850338.727 | AK142: 1852604.048 | AL142: 1854774.872 | AM142: 1856857.95 | AN142: 1858853.885 | AO142: 1860768.916 | AP142: 1862603.623 | AQ142: 1864361.279 | AR142: 1866047.419 | AS142: 1867662.583 | AT142: 1869211.881 | AU142: 1870780.266 | AV142: 1872367.989 | AW142: 1873973.528 | AX142: 1875598.89 | AY142: 1877243.73 | AZ142: 1878908.909 | BA142: 1880594.074 | BB142: 1882300.109 | BC142: 1884027.289 | BD142: 1885775.248 | BE142: 1887544.907 | BF142: 1889335.892 | BG142: 1891149.145 | BH142: 1892984.962 | BI142: 1894842.275 | BJ142: 1896722.739 | BK142: 1898625.96 | BL142: 1900552.944 | BM142: 1902503.29 | BN142: 1904478.029 | BO142: 1906477.488 | BP142: 1908501.254 | BQ142: 1910550.399 | BR142: 1912624.502 | BS142: 1914724.662 | BT142: 1916851.231 | BU142: 1919002.193 | BV142: =BV140*BV130 -> 1921180.253 | BW142: 1923384.968 | BX142: 1925617.51 | BY142: 1927877.429 | BZ142: 1930165.927 | CA142: 1932483.397 | CB142: 1934829.371 | CC142: 1937205.104 | CD142: 1939610.121 | CE142: 1942036.711 | CF142: 1944485.091 | CG142: 1946953.642 | CH142: 1949444.403 | CI142: 1951956.975 | CJ142: 1954492.201 | CK142: 1957049.674 | CL142: 1959630.255 | CM142: 1962234.176 | CN142: 1964861.023 | CO142: 1967511.68 | CP142: 1970185.727 | CQ142: 1972884.065 | CR142: 1975606.941 | CS142: 1978352.564 | CT142: =CT140*CT130 -> 1981123.209 | CU142: 1983918.441 | CV142: 1986739.203 | CW142: 1989585.055 | CX142: 1992456.959 | CY142: 1995355.185 | CZ142: 1998279.281 | DA142: 2001230.238 | DB142: 2004207.6 | DC142: 2007144.064 | DD142: 2010040.121 | DE142: 2012899.085 | DF142: 2015718.578 | DG142: 2018500.455 | DH142: =DH140*DH130 -> 2021243.801 | DI142: 2023950.425 | DJ142: 2026619.442 | DK142: 2029251.316 | DL142: 2031847.791 | DM142: 2034408.024 | DN142: 2036933.716 | DO142: 2039462.544 | DP142: 2041994.512 | DQ142: 2044529.623 | DR142: 2047067.882 | DS142: 2049609.291 | DT142: 2052153.856 | DU142: 2054701.58 | DV142: 2057252.466 | DW142: 2059806.52 | DX142: 2062363.745 | DY142: 2064924.144 | DZ142: 2067487.722 | EA142: =EA140*EA130 -> 2070054.482 | EB142: 2072624.43 | EC142: 2075197.567 | ED142: 2077773.9 | EE142: 2080353.431 | EF142: 2082936.164 | EG142: 2085522.103 | EH142: 2088111.253 | EI142: 2090703.618 | EJ142: 2093299.201 | EK142: 2095898.006 | EL142: =EL140*EL130 -> 2098500.038 | EM142: 2101105.3 | EN142: 2103713.796 | EO142: 2106325.531 | EP142: 2108940.508 | EQ142: 2111558.732 | ER142: 2114180.206 | ES142: 2116804.935 | ET142: 2119432.922 | EU142: 2122064.172 | EV142: 2124698.689 | EW142: 2127336.476 | EX142: 2129977.538 | EY142: 2132621.879 | EZ142: 2135269.503 | FA142: 2137920.414 | FB142: 2140574.616 | FC142: 2143232.113 | FD142: 2145892.909 | FE142: 2148557.009 | FF142: 2151224.416 | FG142: 2153895.135 | FH142: 2156569.169 | FI142: 2159246.523 | FJ142: 2161927.201 | FK142: 2164611.207 | FL142: 2167298.546 | FM142: 2169989.22 | FN142: 2172683.235 | FO142: 2175380.595 | FP142: 2178081.303 | FQ142: 2180785.364 | FR142: 2183492.782 | FS142: 2186203.562 | FT142: 2188917.707 | FU142: 2191635.221 | FV142: 2190719.94 | FW142: 2189805.042 | FX142: 2188890.525 | FY142: 2187976.391 | FZ142: 2187062.638 | GA142: 2186149.267 | GB142: 2185236.277 | GC142: 2184323.669 | GD142: 2183411.442 | GE142: 2182499.595 | GF142: 2181588.13 | GG142: 2180677.045 | GH142: 2179766.341 | GI142: 2178856.017 | GJ142: 2177946.073 | GK142: 2177036.509 | GL142: 2176127.325 | GM142: 2175218.521 | GN142: 2174310.096 | GO142: 2173402.051 | GP142: 2172494.384 | GQ142: 2171587.097 | GR142: 2170680.189 | GS142: 2169773.66 | GT142: 2168867.509 | GU142: 2167961.737 | GV142: 2167056.342 | GW142: 2166151.326 | GX142: =GX140*GX130 -> 2165246.688 | GY142: 2164342.428 | GZ142: 2163438.545 | HA142: 2162535.04 | HB142: 2161631.913 | HC142: 2160729.162 | HD142: 2159826.788 | HE142: 2158924.791 | HF142: 2158023.171 | HG142: 2157121.928 | HH142: 2156221.061 | HI142: 2155320.57 | HJ142: 2154420.455 | HK142: 2153520.716 | HL142: 2152621.353 | HM142: 2151722.365 | HN142: 2150823.753 | HO142: 2149925.516 | HP142: 2149027.654 | HQ142: 2148130.168 | HR142: 2147233.056 | HS142: 2146336.318 | HT142: 2145439.955 | HU142: 2144543.967 | HV142: 2143648.353 | HW142: 2142753.112 | HX142: 2141858.246 | HY142: 2140963.753 | HZ142: 2140069.634 | IA142: 2139175.889 | IB142: 2138282.516 | IC142: 2137389.517 | ID142: 2136496.89 | IE142: 2135604.637 | IF142: 2134712.756 | IG142: 2133821.247 | IH142: 2132930.111 | II142: 2132039.347 | IJ142: 2131148.955 | IK142: 2130258.935 | IL142: 2129369.286 | IM142: 2128480.009 | IN142: 2127591.103 | IO142: 2126702.569 | IP142: 2125814.406 | IQ142: 2124926.613 | IR142: 2124039.192 | IS142: 2123152.141
D144: Revenue Growth | F144: % | J144: =J142/I142-1 -> -0.04800590842 | K144: =K142/J142-1 -> -0.00543056633 | L144: 0.003900156006 | M144: -0.01592851593 | N144: -0.975 | O144: -0.2 | P144: 0 | Q144: 0 | R144: 0.8 | S144: 0.158060051 | T144: 0.1258668223 | U144: 0.09947258177 | V144: 0.07921228481 | W144: 0.06260148888 | X144: 0.04947397262 | Y144: 0.04 | Z144: 0.03475897696 | AA144: 0.03034181083 | AB144: 0.02636625759 | AC144: 0.02301563711 | AD144: 0.001651581302 | AE144: 0.0015809095 | AF144: 0.001515374196 | AG144: 0.001450484454 | AH144: 0.001390314642 | AI144: 0.001330741028 | AJ144: 0.001273702272 | AK144: 0.001224273593 | AL144: 0.00117176898 | AM144: 0.001123089808 | AN144: 0.001074899025 | AO144: 0.00103022142 | AP144: 0.000985993991 | AQ144: 0.0009436554206 | AR144: 0.0009044058231 | AS144: 0.0008655540128 | AT144: 0.0008295381143 | AU144: 0.0008390623934 | AV144: 0.0008486955157 | AW144: 0.0008574909781 | AX144: 0.0008673346691 | AY144: 0.0008769678841 | AZ144: 0.0008870340754 | BA144: 0.0008968850093 | BB144: 0.00090717868 | BC144: 0.000917589898 | BD144: 0.0009277784424 | BE144: 0.0009384248567 | BF144: 0.0009488435404 | BG144: 0.0009597304082 | BH144: 0.0009707415252 | BI144: 0.0009811559736 | BJ144: 0.0009924115716 | BK144: 0.001003426335 | BL144: 0.001014935992 | BM144: 0.001026199348 | BN144: 0.001037968733 | BO144: 0.001049872324 | BP144: 0.001061521133 | BQ144: 0.001073693236 | BR144: 0.001085604777 | BS144: 0.001098051377 | BT144: 0.001110639811 | BU144: 0.001122133246 | BV144: 0.001134996045 | BW144: =BW142/BV142-1 -> 0.001147583402 | BX144: 0.001160736076 | BY144: 0.001173607059 | BZ144: 0.001187056056 | CA144: 0.001200658158 | CB144: 0.001213968878 | CC144: 0.001227877291 | CD144: 0.001241487716 | CE144: 0.001251071106 | CF144: 0.001260727961 | CG144: 0.001269513889 | CH144: 0.001279312104 | CI144: 0.001288865737 | CJ144: 0.001298812249 | CK144: 0.001308510461 | CL144: 0.001318607482 | CM144: 0.001328781848 | CN144: 0.001338702202 | CO144: 0.001349030474 | CP144: 0.001359100874 | CQ144: 0.001369585344 | CR144: 0.001380150082 | CS144: 0.001389761922 | CT144: 0.001400481106 | CU144: 0.001410932614 | CV144: 0.001421813815 | CW144: 0.001432423276 | CX144: 0.001443468905 | CY144: 0.00145459903 | CZ144: 0.00146545117 | DA144: 0.001476749423 | DB144: 0.001487765471 | DC144: 0.001465149631 | DD144: 0.001442874864 | DE144: 0.001422341469 | DF144: 0.001400712525 | DG144: 0.001380092132 | DH144: 0.001359100874 | DI144: 0.001339088568 | DJ144: 0.001318716471 | DK144: 0.001298652098 | DL144: 0.001279523641 | DM144: 0.001260051474 | DN144: 0.001241487716 | DO144: 0.001241487716 | DP144: 0.001241487716 | DQ144: 0.001241487716 | DR144: 0.001241487716 | DS144: 0.001241487716 | DT144: 0.001241487716 | DU144: 0.001241487716 | DV144: 0.001241487716 | DW144: 0.001241487716 | DX144: 0.001241487716 | DY144: 0.001241487716 | DZ144: 0.001241487716 | EA144: 0.001241487716 | EB144: 0.001241487716 | EC144: 0.001241487716 | ED144: 0.001241487716 | EE144: 0.001241487716 | EF144: 0.001241487716 | EG144: 0.001241487716 | EH144: 0.001241487716 | EI144: =EI142/EH142-1 -> 0.001241487716 | EJ144: 0.001241487716 | EK144: 0.001241487716 | EL144: 0.001241487716 | EM144: 0.001241487716 | EN144: 0.001241487716 | EO144: 0.001241487716 | EP144: 0.001241487716 | EQ144: 0.001241487716 | ER144: 0.001241487716 | ES144: 0.001241487716 | ET144: 0.001241487716 | EU144: 0.001241487716 | EV144: 0.001241487716 | EW144: 0.001241487716 | EX144: 0.001241487716 | EY144: 0.001241487716 | EZ144: 0.001241487716 | FA144: 0.001241487716 | FB144: 0.001241487716 | FC144: 0.001241487716 | FD144: 0.001241487716 | FE144: 0.001241487716 | FF144: 0.001241487716 | FG144: 0.001241487716 | FH144: 0.001241487716 | FI144: 0.001241487716 | FJ144: 0.001241487716 | FK144: 0.001241487716 | FL144: 0.001241487716 | FM144: 0.001241487716 | FN144: 0.001241487716 | FO144: 0.001241487716 | FP144: 0.001241487716 | FQ144: 0.001241487716 | FR144: 0.001241487716 | FS144: 0.001241487716 | FT144: 0.001241487716 | FU144: 0.001241487716 | FV144: -0.0004176245892 | FW144: -0.0004176245892 | FX144: -0.0004176245892 | FY144: -0.0004176245892 | FZ144: -0.0004176245892 | GA144: -0.0004176245892 | GB144: -0.0004176245892 | GC144: -0.0004176245892 | GD144: -0.0004176245892 | GE144: -0.0004176245892 | GF144: -0.0004176245892 | GG144: -0.0004176245892 | GH144: -0.0004176245892 | GI144: -0.0004176245892 | GJ144: -0.0004176245892 | GK144: -0.0004176245892 | GL144: -0.0004176245892 | GM144: -0.0004176245892 | GN144: -0.0004176245892 | GO144: -0.0004176245892 | GP144: -0.0004176245892 | GQ144: -0.0004176245892 | GR144: -0.0004176245892 | GS144: -0.0004176245892 | GT144: -0.0004176245892 | GU144: =GU142/GT142-1 -> -0.0004176245892 | GV144: -0.0004176245892 | GW144: -0.0004176245892 | GX144: -0.0004176245892 | GY144: -0.0004176245892 | GZ144: -0.0004176245892 | HA144: -0.0004176245892 | HB144: -0.0004176245892 | HC144: -0.0004176245892 | HD144: -0.0004176245892 | HE144: -0.0004176245892 | HF144: -0.0004176245892 | HG144: -0.0004176245892 | HH144: -0.0004176245892 | HI144: -0.0004176245892 | HJ144: -0.0004176245892 | HK144: -0.0004176245892 | HL144: -0.0004176245892 | HM144: -0.0004176245892 | HN144: -0.0004176245892 | HO144: -0.0004176245892 | HP144: -0.0004176245892 | HQ144: -0.0004176245892 | HR144: -0.0004176245892 | HS144: -0.0004176245892 | HT144: -0.0004176245892 | HU144: -0.0004176245892 | HV144: -0.0004176245892 | HW144: -0.0004176245892 | HX144: -0.0004176245892 | HY144: -0.0004176245892 | HZ144: -0.0004176245892 | IA144: -0.0004176245892 | IB144: -0.0004176245892 | IC144: -0.0004176245892 | ID144: -0.0004176245892 | IE144: -0.0004176245892 | IF144: -0.0004176245892 | IG144: -0.0004176245892 | IH144: -0.0004176245892 | II144: -0.0004176245892 | IJ144: -0.0004176245892 | IK144: -0.0004176245892 | IL144: -0.0004176245892 | IM144: -0.0004176245892 | IN144: -0.0004176245892 | IO144: -0.0004176245892 | IP144: -0.0004176245892 | IQ144: -0.0004176245892 | IR144: -0.0004176245892 | IS144: -0.0004176245892
D145: Units Sold Growth | J145: =J140/I140-1 -> -0.04800590842 | K145: =K140/J140-1 -> -0.00543056633 | L145: 0.003900156006 | M145: -0.01592851593 | N145: -0.975 | O145: -0.2 | P145: 0 | Q145: 0 | R145: 0.8 | S145: 0.158060051 | T145: 0.1258668223 | U145: 0.09947258177 | V145: 0.07921228481 | W145: 0.06260148888 | X145: 0.04947397262 | Y145: 0.04 | Z145: 0.03475897696 | AA145: 0.03034181083 | AB145: 0.02636625759 | AC145: 0.02301563711 | AD145: 0.001651581302 | AE145: 0.0015809095 | AF145: 0.001515374196 | AG145: 0.001450484454 | AH145: 0.001390314642 | AI145: 0.001330741028 | AJ145: 0.001273702272 | AK145: 0.001224273593 | AL145: 0.00117176898 | AM145: 0.001123089808 | AN145: 0.001074899025 | AO145: 0.00103022142 | AP145: 0.000985993991 | AQ145: 0.0009436554206 | AR145: 0.0009044058231 | AS145: 0.0008655540128 | AT145: 0.0008295381143 | AU145: 0.0008390623934 | AV145: 0.0008486955157 | AW145: 0.0008574909781 | AX145: 0.0008673346691 | AY145: 0.0008769678841 | AZ145: 0.0008870340754 | BA145: 0.0008968850093 | BB145: 0.00090717868 | BC145: 0.000917589898 | BD145: 0.0009277784424 | BE145: 0.0009384248567 | BF145: 0.0009488435404 | BG145: 0.0009597304082 | BH145: 0.0009707415252 | BI145: 0.0009811559736 | BJ145: 0.0009924115716 | BK145: 0.001003426335 | BL145: 0.001014935992 | BM145: 0.001026199348 | BN145: 0.001037968733 | BO145: 0.001049872324 | BP145: 0.001061521133 | BQ145: 0.001073693236 | BR145: 0.001085604777 | BS145: 0.001098051377 | BT145: 0.001110639811 | BU145: 0.001122133246 | BV145: 0.001134996045 | BW145: =BW140/BV140-1 -> 0.001147583402 | BX145: 0.001160736076 | BY145: 0.001173607059 | BZ145: 0.001187056056 | CA145: 0.001200658158 | CB145: 0.001213968878 | CC145: 0.001227877291 | CD145: 0.001241487716 | CE145: 0.001251071106 | CF145: 0.001260727961 | CG145: 0.001269513889 | CH145: 0.001279312104 | CI145: 0.001288865737 | CJ145: 0.001298812249 | CK145: 0.001308510461 | CL145: 0.001318607482 | CM145: 0.001328781848 | CN145: 0.001338702202 | CO145: 0.001349030474 | CP145: 0.001359100874 | CQ145: 0.001369585344 | CR145: 0.001380150082 | CS145: 0.001389761922 | CT145: 0.001400481106 | CU145: 0.001410932614 | CV145: 0.001421813815 | CW145: 0.001432423276 | CX145: 0.001443468905 | CY145: 0.00145459903 | CZ145: 0.00146545117 | DA145: 0.001476749423 | DB145: 0.001487765471 | DC145: 0.001465149631 | DD145: 0.001442874864 | DE145: 0.001422341469 | DF145: 0.001400712525 | DG145: 0.001380092132 | DH145: 0.001359100874 | DI145: 0.001339088568 | DJ145: 0.001318716471 | DK145: 0.001298652098 | DL145: 0.001279523641 | DM145: 0.001260051474 | DN145: 0.001241487716 | DO145: 0.001241487716 | DP145: 0.001241487716 | DQ145: 0.001241487716 | DR145: 0.001241487716 | DS145: 0.001241487716 | DT145: 0.001241487716 | DU145: 0.001241487716 | DV145: 0.001241487716 | DW145: 0.001241487716 | DX145: 0.001241487716 | DY145: 0.001241487716 | DZ145: 0.001241487716 | EA145: 0.001241487716 | EB145: 0.001241487716 | EC145: 0.001241487716 | ED145: 0.001241487716 | EE145: 0.001241487716 | EF145: 0.001241487716 | EG145: 0.001241487716 | EH145: 0.001241487716 | EI145: =EI140/EH140-1 -> 0.001241487716 | EJ145: 0.001241487716 | EK145: 0.001241487716 | EL145: 0.001241487716 | EM145: 0.001241487716 | EN145: 0.001241487716 | EO145: 0.001241487716 | EP145: 0.001241487716 | EQ145: 0.001241487716 | ER145: 0.001241487716 | ES145: 0.001241487716 | ET145: 0.001241487716 | EU145: 0.001241487716 | EV145: 0.001241487716 | EW145: 0.001241487716 | EX145: 0.001241487716 | EY145: 0.001241487716 | EZ145: 0.001241487716 | FA145: 0.001241487716 | FB145: 0.001241487716 | FC145: 0.001241487716 | FD145: 0.001241487716 | FE145: 0.001241487716 | FF145: 0.001241487716 | FG145: 0.001241487716 | FH145: 0.001241487716 | FI145: 0.001241487716 | FJ145: 0.001241487716 | FK145: 0.001241487716 | FL145: 0.001241487716 | FM145: 0.001241487716 | FN145: 0.001241487716 | FO145: 0.001241487716 | FP145: 0.001241487716 | FQ145: 0.001241487716 | FR145: 0.001241487716 | FS145: 0.001241487716 | FT145: 0.001241487716 | FU145: 0.001241487716 | FV145: -0.0004176245892 | FW145: -0.0004176245892 | FX145: -0.0004176245892 | FY145: -0.0004176245892 | FZ145: -0.0004176245892 | GA145: -0.0004176245892 | GB145: -0.0004176245892 | GC145: -0.0004176245892 | GD145: -0.0004176245892 | GE145: -0.0004176245892 | GF145: -0.0004176245892 | GG145: -0.0004176245892 | GH145: -0.0004176245892 | GI145: -0.0004176245892 | GJ145: -0.0004176245892 | GK145: -0.0004176245892 | GL145: -0.0004176245892 | GM145: -0.0004176245892 | GN145: -0.0004176245892 | GO145: -0.0004176245892 | GP145: -0.0004176245892 | GQ145: -0.0004176245892 | GR145: -0.0004176245892 | GS145: -0.0004176245892 | GT145: -0.0004176245892 | GU145: =GU140/GT140-1 -> -0.0004176245892 | GV145: -0.0004176245892 | GW145: -0.0004176245892 | GX145: -0.0004176245892 | GY145: -0.0004176245892 | GZ145: -0.0004176245892 | HA145: -0.0004176245892 | HB145: -0.0004176245892 | HC145: -0.0004176245892 | HD145: -0.0004176245892 | HE145: -0.0004176245892 | HF145: -0.0004176245892 | HG145: -0.0004176245892 | HH145: -0.0004176245892 | HI145: -0.0004176245892 | HJ145: -0.0004176245892 | HK145: -0.0004176245892 | HL145: -0.0004176245892 | HM145: -0.0004176245892 | HN145: -0.0004176245892 | HO145: -0.0004176245892 | HP145: -0.0004176245892 | HQ145: -0.0004176245892 | HR145: -0.0004176245892 | HS145: -0.0004176245892 | HT145: -0.0004176245892 | HU145: -0.0004176245892 | HV145: -0.0004176245892 | HW145: -0.0004176245892 | HX145: -0.0004176245892 | HY145: -0.0004176245892 | HZ145: -0.0004176245892 | IA145: -0.0004176245892 | IB145: -0.0004176245892 | IC145: -0.0004176245892 | ID145: -0.0004176245892 | IE145: -0.0004176245892 | IF145: -0.0004176245892 | IG145: -0.0004176245892 | IH145: -0.0004176245892 | II145: -0.0004176245892 | IJ145: -0.0004176245892 | IK145: -0.0004176245892 | IL145: -0.0004176245892 | IM145: -0.0004176245892 | IN145: -0.0004176245892 | IO145: -0.0004176245892 | IP145: -0.0004176245892 | IQ145: -0.0004176245892 | IR145: -0.0004176245892 | IS145: -0.0004176245892
B147: Cost of Goods Sold and Inventory
D148: Historic Cost of Goods Sold | F148: USD 000 | H148: =SUM(I148:IS148) -> 77690000 | I148: =IF(I4,I14) -> 16500000 | J148: 15620000 | K148: 15180000 | L148: 15220000 | M148: 15170000 | N148: FALSE | O148: FALSE | P148: FALSE | Q148: FALSE | R148: FALSE | S148: FALSE | T148: FALSE | U148: FALSE | V148: FALSE | W148: FALSE | X148: FALSE | Y148: FALSE | Z148: FALSE | AA148: FALSE | AB148: FALSE | AC148: FALSE | AD148: FALSE | AE148: FALSE | AF148: FALSE | AG148: FALSE | AH148: FALSE | AI148: FALSE | AJ148: FALSE | AK148: FALSE | AL148: FALSE | AM148: FALSE | AN148: FALSE | AO148: FALSE | AP148: FALSE | AQ148: FALSE | AR148: FALSE | AS148: FALSE | AT148: FALSE | AU148: FALSE | AV148: FALSE | AW148: FALSE | AX148: FALSE | AY148: FALSE | AZ148: FALSE | BA148: FALSE | BB148: FALSE | BC148: FALSE | BD148: FALSE | BE148: FALSE | BF148: FALSE | BG148: FALSE | BH148: FALSE | BI148: FALSE | BJ148: FALSE | BK148: FALSE | BL148: FALSE | BM148: FALSE | BN148: FALSE | BO148: FALSE | BP148: FALSE | BQ148: FALSE | BR148: FALSE | BS148: FALSE | BT148: FALSE | BU148: =IF(BU4,BU14) -> FALSE | BV148: FALSE | BW148: FALSE | BX148: FALSE | BY148: FALSE | BZ148: FALSE | CA148: FALSE | CB148: FALSE | CC148: FALSE | CD148: FALSE | CE148: FALSE | CF148: FALSE | CG148: FALSE | CH148: FALSE | CI148: FALSE | CJ148: FALSE | CK148: FALSE | CL148: FALSE | CM148: FALSE | CN148: FALSE | CO148: FALSE | CP148: FALSE | CQ148: FALSE | CR148: FALSE | CS148: FALSE | CT148: FALSE | CU148: FALSE | CV148: FALSE | CW148: FALSE | CX148: FALSE | CY148: FALSE | CZ148: FALSE | DA148: FALSE | DB148: FALSE | DC148: FALSE | DD148: FALSE | DE148: FALSE | DF148: FALSE | DG148: FALSE | DH148: FALSE | DI148: FALSE | DJ148: FALSE | DK148: FALSE | DL148: FALSE | DM148: FALSE | DN148: FALSE | DO148: FALSE | DP148: FALSE | DQ148: FALSE | DR148: FALSE | DS148: FALSE | DT148: FALSE | DU148: FALSE | DV148: FALSE | DW148: FALSE | DX148: FALSE | DY148: FALSE | DZ148: FALSE | EA148: FALSE | EB148: FALSE | EC148: FALSE | ED148: FALSE | EE148: FALSE | EF148: FALSE | EG148: =IF(EG4,EG14) -> FALSE | EH148: FALSE | EI148: FALSE | EJ148: FALSE | EK148: FALSE | EL148: FALSE | EM148: FALSE | EN148: FALSE | EO148: FALSE | EP148: FALSE | EQ148: FALSE | ER148: FALSE | ES148: FALSE | ET148: FALSE | EU148: FALSE | EV148: FALSE | EW148: FALSE | EX148: FALSE | EY148: FALSE | EZ148: FALSE | FA148: FALSE | FB148: FALSE | FC148: FALSE | FD148: FALSE | FE148: FALSE | FF148: FALSE | FG148: FALSE | FH148: FALSE | FI148: FALSE | FJ148: FALSE | FK148: FALSE | FL148: FALSE | FM148: FALSE | FN148: FALSE | FO148: FALSE | FP148: FALSE | FQ148: FALSE | FR148: FALSE | FS148: FALSE | FT148: FALSE | FU148: FALSE | FV148: FALSE | FW148: FALSE | FX148: FALSE | FY148: FALSE | FZ148: FALSE | GA148: FALSE | GB148: FALSE | GC148: FALSE | GD148: FALSE | GE148: FALSE | GF148: FALSE | GG148: FALSE | GH148: FALSE | GI148: FALSE | GJ148: FALSE | GK148: FALSE | GL148: FALSE | GM148: FALSE | GN148: FALSE | GO148: FALSE | GP148: FALSE | GQ148: FALSE | GR148: FALSE | GS148: =IF(GS4,GS14) -> FALSE | GT148: FALSE | GU148: FALSE | GV148: FALSE | GW148: FALSE | GX148: FALSE | GY148: FALSE | GZ148: FALSE | HA148: FALSE | HB148: FALSE | HC148: FALSE | HD148: FALSE | HE148: FALSE | HF148: FALSE | HG148: FALSE | HH148: FALSE | HI148: FALSE | HJ148: FALSE | HK148: FALSE | HL148: FALSE | HM148: FALSE | HN148: FALSE | HO148: FALSE | HP148: FALSE | HQ148: FALSE | HR148: FALSE | HS148: FALSE | HT148: FALSE | HU148: FALSE | HV148: FALSE | HW148: FALSE | HX148: FALSE | HY148: FALSE | HZ148: FALSE | IA148: FALSE | IB148: FALSE | IC148: FALSE | ID148: FALSE | IE148: FALSE | IF148: FALSE | IG148: FALSE | IH148: FALSE | II148: FALSE | IJ148: FALSE | IK148: FALSE | IL148: FALSE | IM148: FALSE | IN148: FALSE | IO148: FALSE | IP148: FALSE | IQ148: FALSE | IR148: FALSE | IS148: FALSE
D149: Cost of Goods Sold Percent | F149: % | G149: ='Model Parameters'!$G$15 -> 0.592 | I149: =IFERROR(I148/I137,$G$149) -> 0.6093057607 | J149: =IFERROR(J148/J137,$G$149) -> 0.6058960434 | K149: 0.5920436817 | L149: 0.5912975913 | M149: 0.5988945914 | N149: 0.592 | O149: 0.592 | P149: 0.592 | Q149: 0.592 | R149: 0.592 | S149: 0.592 | T149: 0.592 | U149: 0.592 | V149: 0.592 | W149: 0.592 | X149: 0.592 | Y149: 0.592 | Z149: 0.592 | AA149: 0.592 | AB149: 0.592 | AC149: 0.592 | AD149: 0.592 | AE149: 0.592 | AF149: 0.592 | AG149: 0.592 | AH149: 0.592 | AI149: 0.592 | AJ149: 0.592 | AK149: 0.592 | AL149: 0.592 | AM149: 0.592 | AN149: 0.592 | AO149: 0.592 | AP149: 0.592 | AQ149: 0.592 | AR149: 0.592 | AS149: 0.592 | AT149: 0.592 | AU149: 0.592 | AV149: 0.592 | AW149: 0.592 | AX149: 0.592 | AY149: 0.592 | AZ149: 0.592 | BA149: 0.592 | BB149: 0.592 | BC149: 0.592 | BD149: 0.592 | BE149: 0.592 | BF149: 0.592 | BG149: 0.592 | BH149: 0.592 | BI149: 0.592 | BJ149: 0.592 | BK149: 0.592 | BL149: 0.592 | BM149: 0.592 | BN149: 0.592 | BO149: 0.592 | BP149: 0.592 | BQ149: 0.592 | BR149: 0.592 | BS149: 0.592 | BT149: 0.592 | BU149: 0.592 | BV149: =IFERROR(BV148/BV137,$G$149) -> 0.592 | BW149: 0.592 | BX149: 0.592 | BY149: 0.592 | BZ149: 0.592 | CA149: 0.592 | CB149: 0.592 | CC149: 0.592 | CD149: 0.592 | CE149: 0.592 | CF149: 0.592 | CG149: 0.592 | CH149: 0.592 | CI149: 0.592 | CJ149: 0.592 | CK149: 0.592 | CL149: 0.592 | CM149: 0.592 | CN149: 0.592 | CO149: 0.592 | CP149: 0.592 | CQ149: 0.592 | CR149: 0.592 | CS149: 0.592 | CT149: 0.592 | CU149: 0.592 | CV149: 0.592 | CW149: 0.592 | CX149: 0.592 | CY149: 0.592 | CZ149: 0.592 | DA149: 0.592 | DB149: 0.592 | DC149: 0.592 | DD149: 0.592 | DE149: 0.592 | DF149: 0.592 | DG149: 0.592 | DH149: 0.592 | DI149: 0.592 | DJ149: 0.592 | DK149: 0.592 | DL149: 0.592 | DM149: 0.592 | DN149: 0.592 | DO149: 0.592 | DP149: 0.592 | DQ149: 0.592 | DR149: 0.592 | DS149: 0.592 | DT149: 0.592 | DU149: 0.592 | DV149: 0.592 | DW149: 0.592 | DX149: 0.592 | DY149: 0.592 | DZ149: 0.592 | EA149: 0.592 | EB149: 0.592 | EC149: 0.592 | ED149: 0.592 | EE149: 0.592 | EF149: 0.592 | EG149: 0.592 | EH149: =IFERROR(EH148/EH137,$G$149) -> 0.592 | EI149: 0.592 | EJ149: 0.592 | EK149: 0.592 | EL149: 0.592 | EM149: 0.592 | EN149: 0.592 | EO149: 0.592 | EP149: 0.592 | EQ149: 0.592 | ER149: 0.592 | ES149: 0.592 | ET149: 0.592 | EU149: 0.592 | EV149: 0.592 | EW149: 0.592 | EX149: 0.592 | EY149: 0.592 | EZ149: 0.592 | FA149: 0.592 | FB149: 0.592 | FC149: 0.592 | FD149: 0.592 | FE149: 0.592 | FF149: 0.592 | FG149: 0.592 | FH149: 0.592 | FI149: 0.592 | FJ149: 0.592 | FK149: 0.592 | FL149: 0.592 | FM149: 0.592 | FN149: 0.592 | FO149: 0.592 | FP149: 0.592 | FQ149: 0.592 | FR149: 0.592 | FS149: 0.592 | FT149: 0.592 | FU149: 0.592 | FV149: 0.592 | FW149: 0.592 | FX149: 0.592 | FY149: 0.592 | FZ149: 0.592 | GA149: 0.592 | GB149: 0.592 | GC149: 0.592 | GD149: 0.592 | GE149: 0.592 | GF149: 0.592 | GG149: 0.592 | GH149: 0.592 | GI149: 0.592 | GJ149: 0.592 | GK149: 0.592 | GL149: 0.592 | GM149: 0.592 | GN149: 0.592 | GO149: 0.592 | GP149: 0.592 | GQ149: 0.592 | GR149: 0.592 | GS149: 0.592 | GT149: =IFERROR(GT148/GT137,$G$149) -> 0.592 | GU149: 0.592 | GV149: 0.592 | GW149: 0.592 | GX149: 0.592 | GY149: 0.592 | GZ149: 0.592 | HA149: 0.592 | HB149: 0.592 | HC149: 0.592 | HD149: 0.592 | HE149: 0.592 | HF149: 0.592 | HG149: 0.592 | HH149: 0.592 | HI149: 0.592 | HJ149: 0.592 | HK149: 0.592 | HL149: 0.592 | HM149: 0.592 | HN149: 0.592 | HO149: 0.592 | HP149: 0.592 | HQ149: 0.592 | HR149: 0.592 | HS149: 0.592 | HT149: 0.592 | HU149: 0.592 | HV149: 0.592 | HW149: 0.592 | HX149: 0.592 | HY149: 0.592 | HZ149: 0.592 | IA149: 0.592 | IB149: 0.592 | IC149: 0.592 | ID149: 0.592 | IE149: 0.592 | IF149: 0.592 | IG149: 0.592 | IH149: 0.592 | II149: 0.592 | IJ149: 0.592 | IK149: 0.592 | IL149: 0.592 | IM149: 0.592 | IN149: 0.592 | IO149: 0.592 | IP149: 0.592 | IQ149: 0.592 | IR149: 0.592 | IS149: 0.592
D150: Cost per Unit | F150: USD 000 | I150: =I149*I130 -> 6.153988183 | J150: 6.119550039 | K150: 5.979641186 | L150: 5.972105672 | M150: 6.048835373 | N150: 5.9792 | O150: 5.9792 | P150: 5.9792 | Q150: 5.9792 | R150: 5.9792 | S150: 5.9792 | T150: 5.9792 | U150: 5.9792 | V150: 5.9792 | W150: 5.9792 | X150: 5.9792 | Y150: 5.9792 | Z150: 5.9792 | AA150: 5.9792 | AB150: 5.9792 | AC150: 5.9792 | AD150: 5.9792 | AE150: 5.9792 | AF150: 5.9792 | AG150: 5.9792 | AH150: 5.9792 | AI150: 5.9792 | AJ150: 5.9792 | AK150: 5.9792 | AL150: 5.9792 | AM150: 5.9792 | AN150: 5.9792 | AO150: 5.9792 | AP150: 5.9792 | AQ150: 5.9792 | AR150: 5.9792 | AS150: 5.9792 | AT150: 5.9792 | AU150: 5.9792 | AV150: 5.9792 | AW150: 5.9792 | AX150: 5.9792 | AY150: 5.9792 | AZ150: 5.9792 | BA150: 5.9792 | BB150: 5.9792 | BC150: 5.9792 | BD150: 5.9792 | BE150: 5.9792 | BF150: 5.9792 | BG150: 5.9792 | BH150: 5.9792 | BI150: 5.9792 | BJ150: 5.9792 | BK150: 5.9792 | BL150: 5.9792 | BM150: 5.9792 | BN150: 5.9792 | BO150: 5.9792 | BP150: 5.9792 | BQ150: 5.9792 | BR150: 5.9792 | BS150: 5.9792 | BT150: 5.9792 | BU150: =BU149*BU130 -> 5.9792 | BV150: 5.9792 | BW150: 5.9792 | BX150: 5.9792 | BY150: 5.9792 | BZ150: 5.9792 | CA150: 5.9792 | CB150: 5.9792 | CC150: 5.9792 | CD150: 5.9792 | CE150: 5.9792 | CF150: 5.9792 | CG150: 5.9792 | CH150: 5.9792 | CI150: 5.9792 | CJ150: 5.9792 | CK150: 5.9792 | CL150: 5.9792 | CM150: 5.9792 | CN150: 5.9792 | CO150: 5.9792 | CP150: 5.9792 | CQ150: 5.9792 | CR150: 5.9792 | CS150: 5.9792 | CT150: 5.9792 | CU150: 5.9792 | CV150: 5.9792 | CW150: 5.9792 | CX150: 5.9792 | CY150: 5.9792 | CZ150: 5.9792 | DA150: 5.9792 | DB150: 5.9792 | DC150: 5.9792 | DD150: 5.9792 | DE150: 5.9792 | DF150: 5.9792 | DG150: 5.9792 | DH150: 5.9792 | DI150: 5.9792 | DJ150: 5.9792 | DK150: 5.9792 | DL150: 5.9792 | DM150: 5.9792 | DN150: 5.9792 | DO150: 5.9792 | DP150: 5.9792 | DQ150: 5.9792 | DR150: 5.9792 | DS150: 5.9792 | DT150: 5.9792 | DU150: 5.9792 | DV150: 5.9792 | DW150: 5.9792 | DX150: 5.9792 | DY150: 5.9792 | DZ150: 5.9792 | EA150: 5.9792 | EB150: 5.9792 | EC150: 5.9792 | ED150: 5.9792 | EE150: 5.9792 | EF150: 5.9792 | EG150: =EG149*EG130 -> 5.9792 | EH150: 5.9792 | EI150: 5.9792 | EJ150: 5.9792 | EK150: 5.9792 | EL150: 5.9792 | EM150: 5.9792 | EN150: 5.9792 | EO150: 5.9792 | EP150: 5.9792 | EQ150: 5.9792 | ER150: 5.9792 | ES150: 5.9792 | ET150: 5.9792 | EU150: 5.9792 | EV150: 5.9792 | EW150: 5.9792 | EX150: 5.9792 | EY150: 5.9792 | EZ150: 5.9792 | FA150: 5.9792 | FB150: 5.9792 | FC150: 5.9792 | FD150: 5.9792 | FE150: 5.9792 | FF150: 5.9792 | FG150: 5.9792 | FH150: 5.9792 | FI150: 5.9792 | FJ150: 5.9792 | FK150: 5.9792 | FL150: 5.9792 | FM150: 5.9792 | FN150: 5.9792 | FO150: 5.9792 | FP150: 5.9792 | FQ150: 5.9792 | FR150: 5.9792 | FS150: 5.9792 | FT150: 5.9792 | FU150: 5.9792 | FV150: 5.9792 | FW150: 5.9792 | FX150: 5.9792 | FY150: 5.9792 | FZ150: 5.9792 | GA150: 5.9792 | GB150: 5.9792 | GC150: 5.9792 | GD150: 5.9792 | GE150: 5.9792 | GF150: 5.9792 | GG150: 5.9792 | GH150: 5.9792 | GI150: 5.9792 | GJ150: 5.9792 | GK150: 5.9792 | GL150: 5.9792 | GM150: 5.9792 | GN150: 5.9792 | GO150: 5.9792 | GP150: 5.9792 | GQ150: 5.9792 | GR150: 5.9792 | GS150: =GS149*GS130 -> 5.9792 | GT150: 5.9792 | GU150: 5.9792 | GV150: 5.9792 | GW150: 5.9792 | GX150: 5.9792 | GY150: 5.9792 | GZ150: 5.9792 | HA150: 5.9792 | HB150: 5.9792 | HC150: 5.9792 | HD150: 5.9792 | HE150: 5.9792 | HF150: 5.9792 | HG150: 5.9792 | HH150: 5.9792 | HI150: 5.9792 | HJ150: 5.9792 | HK150: 5.9792 | HL150: 5.9792 | HM150: 5.9792 | HN150: 5.9792 | HO150: 5.9792 | HP150: 5.9792 | HQ150: 5.9792 | HR150: 5.9792 | HS150: 5.9792 | HT150: 5.9792 | HU150: 5.9792 | HV150: 5.9792 | HW150: 5.9792 | HX150: 5.9792 | HY150: 5.9792 | HZ150: 5.9792 | IA150: 5.9792 | IB150: 5.9792 | IC150: 5.9792 | ID150: 5.9792 | IE150: 5.9792 | IF150: 5.9792 | IG150: 5.9792 | IH150: 5.9792 | II150: 5.9792 | IJ150: 5.9792 | IK150: 5.9792 | IL150: 5.9792 | IM150: 5.9792 | IN150: 5.9792 | IO150: 5.9792 | IP150: 5.9792 | IQ150: 5.9792 | IR150: 5.9792 | IS150: 5.9792
D152: Simple Inventory Method
E153: Historic Inventory | F153: USD 000 | I153: =IF(I4,I96) -> 5510000 | J153: 5400000 | K153: 5180000 | L153: 5260000 | M153: 5190000 | N153: FALSE | O153: FALSE | P153: FALSE | Q153: FALSE | R153: FALSE | S153: FALSE | T153: FALSE | U153: FALSE | V153: FALSE | W153: FALSE | X153: FALSE | Y153: FALSE | Z153: FALSE | AA153: FALSE | AB153: FALSE | AC153: FALSE | AD153: FALSE | AE153: FALSE | AF153: FALSE | AG153: FALSE | AH153: FALSE | AI153: FALSE | AJ153: FALSE | AK153: FALSE | AL153: FALSE | AM153: FALSE | AN153: FALSE | AO153: FALSE | AP153: FALSE | AQ153: FALSE | AR153: FALSE | AS153: FALSE | AT153: FALSE | AU153: FALSE | AV153: FALSE | AW153: FALSE | AX153: FALSE | AY153: FALSE | AZ153: FALSE | BA153: FALSE | BB153: FALSE | BC153: FALSE | BD153: FALSE | BE153: FALSE | BF153: FALSE | BG153: FALSE | BH153: FALSE | BI153: FALSE | BJ153: FALSE | BK153: FALSE | BL153: FALSE | BM153: FALSE | BN153: FALSE | BO153: FALSE | BP153: FALSE | BQ153: FALSE | BR153: FALSE | BS153: FALSE | BT153: FALSE | BU153: =IF(BU4,BU96) -> FALSE | BV153: FALSE | BW153: FALSE | BX153: FALSE | BY153: FALSE | BZ153: FALSE | CA153: FALSE | CB153: FALSE | CC153: FALSE | CD153: FALSE | CE153: FALSE | CF153: FALSE | CG153: FALSE | CH153: FALSE | CI153: FALSE | CJ153: FALSE | CK153: FALSE | CL153: FALSE | CM153: FALSE | CN153: FALSE | CO153: FALSE | CP153: FALSE | CQ153: FALSE | CR153: FALSE | CS153: FALSE | CT153: FALSE | CU153: FALSE | CV153: FALSE | CW153: FALSE | CX153: FALSE | CY153: FALSE | CZ153: FALSE | DA153: FALSE | DB153: FALSE | DC153: FALSE | DD153: FALSE | DE153: FALSE | DF153: FALSE | DG153: FALSE | DH153: FALSE | DI153: FALSE | DJ153: FALSE | DK153: FALSE | DL153: FALSE | DM153: FALSE | DN153: FALSE | DO153: FALSE | DP153: FALSE | DQ153: FALSE | DR153: FALSE | DS153: FALSE | DT153: FALSE | DU153: FALSE | DV153: FALSE | DW153: FALSE | DX153: FALSE | DY153: FALSE | DZ153: FALSE | EA153: FALSE | EB153: FALSE | EC153: FALSE | ED153: FALSE | EE153: FALSE | EF153: FALSE | EG153: =IF(EG4,EG96) -> FALSE | EH153: FALSE | EI153: FALSE | EJ153: FALSE | EK153: FALSE | EL153: FALSE | EM153: FALSE | EN153: FALSE | EO153: FALSE | EP153: FALSE | EQ153: FALSE | ER153: FALSE | ES153: FALSE | ET153: FALSE | EU153: FALSE | EV153: FALSE | EW153: FALSE | EX153: FALSE | EY153: FALSE | EZ153: FALSE | FA153: FALSE | FB153: FALSE | FC153: FALSE | FD153: FALSE | FE153: FALSE | FF153: FALSE | FG153: FALSE | FH153: FALSE | FI153: FALSE | FJ153: FALSE | FK153: FALSE | FL153: FALSE | FM153: FALSE | FN153: FALSE | FO153: FALSE | FP153: FALSE | FQ153: FALSE | FR153: FALSE | FS153: FALSE | FT153: FALSE | FU153: FALSE | FV153: FALSE | FW153: FALSE | FX153: FALSE | FY153: FALSE | FZ153: FALSE | GA153: FALSE | GB153: FALSE | GC153: FALSE | GD153: FALSE | GE153: FALSE | GF153: FALSE | GG153: FALSE | GH153: FALSE | GI153: FALSE | GJ153: FALSE | GK153: FALSE | GL153: FALSE | GM153: FALSE | GN153: FALSE | GO153: FALSE | GP153: FALSE | GQ153: FALSE | GR153: FALSE | GS153: =IF(GS4,GS96) -> FALSE | GT153: FALSE | GU153: FALSE | GV153: FALSE | GW153: FALSE | GX153: FALSE | GY153: FALSE | GZ153: FALSE | HA153: FALSE | HB153: FALSE | HC153: FALSE | HD153: FALSE | HE153: FALSE | HF153: FALSE | HG153: FALSE | HH153: FALSE | HI153: FALSE | HJ153: FALSE | HK153: FALSE | HL153: FALSE | HM153: FALSE | HN153: FALSE | HO153: FALSE | HP153: FALSE | HQ153: FALSE | HR153: FALSE | HS153: FALSE | HT153: FALSE | HU153: FALSE | HV153: FALSE | HW153: FALSE | HX153: FALSE | HY153: FALSE | HZ153: FALSE | IA153: FALSE | IB153: FALSE | IC153: FALSE | ID153: FALSE | IE153: FALSE | IF153: FALSE | IG153: FALSE | IH153: FALSE | II153: FALSE | IJ153: FALSE | IK153: FALSE | IL153: FALSE | IM153: FALSE | IN153: FALSE | IO153: FALSE | IP153: FALSE | IQ153: FALSE | IR153: FALSE | IS153: FALSE
E154: Inventory as Percent of Cost of Goods Sold | F154: % | G154: =LOOKUP(G4,3:3,154:154) -> 0.3421226104 | I154: =IF(I4,I153/I148,$G$154*12/I5) -> 0.3339393939 | J154: 0.3457106274 | K154: 0.3412384717 | L154: 0.3455978975 | M154: 0.3421226104 | N154: 4.105471325 | O154: 4.105471325 | P154: 4.105471325 | Q154: 4.105471325 | R154: 4.105471325 | S154: 4.105471325 | T154: 4.105471325 | U154: 4.105471325 | V154: 4.105471325 | W154: 4.105471325 | X154: 4.105471325 | Y154: 4.105471325 | Z154: 4.105471325 | AA154: 4.105471325 | AB154: 4.105471325 | AC154: 4.105471325 | AD154: 4.105471325 | AE154: 4.105471325 | AF154: 4.105471325 | AG154: 4.105471325 | AH154: 4.105471325 | AI154: 4.105471325 | AJ154: 4.105471325 | AK154: 4.105471325 | AL154: 4.105471325 | AM154: 4.105471325 | AN154: 4.105471325 | AO154: 4.105471325 | AP154: 4.105471325 | AQ154: 4.105471325 | AR154: 4.105471325 | AS154: 4.105471325 | AT154: 4.105471325 | AU154: 4.105471325 | AV154: 4.105471325 | AW154: 4.105471325 | AX154: 4.105471325 | AY154: 4.105471325 | AZ154: 4.105471325 | BA154: 4.105471325 | BB154: 4.105471325 | BC154: 4.105471325 | BD154: 4.105471325 | BE154: 4.105471325 | BF154: 4.105471325 | BG154: 4.105471325 | BH154: 4.105471325 | BI154: 4.105471325 | BJ154: 4.105471325 | BK154: 4.105471325 | BL154: 4.105471325 | BM154: 4.105471325 | BN154: 4.105471325 | BO154: 4.105471325 | BP154: 4.105471325 | BQ154: 4.105471325 | BR154: 4.105471325 | BS154: 4.105471325 | BT154: 4.105471325 | BU154: =IF(BU4,BU153/BU148,$G$154*12/BU5) -> 4.105471325 | BV154: 4.105471325 | BW154: 4.105471325 | BX154: 4.105471325 | BY154: 4.105471325 | BZ154: 4.105471325 | CA154: 4.105471325 | CB154: 4.105471325 | CC154: 4.105471325 | CD154: 4.105471325 | CE154: 4.105471325 | CF154: 4.105471325 | CG154: 4.105471325 | CH154: 4.105471325 | CI154: 4.105471325 | CJ154: 4.105471325 | CK154: 4.105471325 | CL154: 4.105471325 | CM154: 4.105471325 | CN154: 4.105471325 | CO154: 4.105471325 | CP154: 4.105471325 | CQ154: 4.105471325 | CR154: 4.105471325 | CS154: 4.105471325 | CT154: 4.105471325 | CU154: 4.105471325 | CV154: 4.105471325 | CW154: 4.105471325 | CX154: 4.105471325 | CY154: 4.105471325 | CZ154: 4.105471325 | DA154: 4.105471325 | DB154: 4.105471325 | DC154: 4.105471325 | DD154: 4.105471325 | DE154: 4.105471325 | DF154: 4.105471325 | DG154: 4.105471325 | DH154: 4.105471325 | DI154: 4.105471325 | DJ154: 4.105471325 | DK154: 4.105471325 | DL154: 4.105471325 | DM154: 4.105471325 | DN154: 4.105471325 | DO154: 4.105471325 | DP154: 4.105471325 | DQ154: 4.105471325 | DR154: 4.105471325 | DS154: 4.105471325 | DT154: 4.105471325 | DU154: 4.105471325 | DV154: 4.105471325 | DW154: 4.105471325 | DX154: 4.105471325 | DY154: 4.105471325 | DZ154: 4.105471325 | EA154: 4.105471325 | EB154: 4.105471325 | EC154: 4.105471325 | ED154: 4.105471325 | EE154: 4.105471325 | EF154: 4.105471325 | EG154: =IF(EG4,EG153/EG148,$G$154*12/EG5) -> 4.105471325 | EH154: 4.105471325 | EI154: 4.105471325 | EJ154: 4.105471325 | EK154: 4.105471325 | EL154: 4.105471325 | EM154: 4.105471325 | EN154: 4.105471325 | EO154: 4.105471325 | EP154: 4.105471325 | EQ154: 4.105471325 | ER154: 4.105471325 | ES154: 4.105471325 | ET154: 4.105471325 | EU154: 4.105471325 | EV154: 4.105471325 | EW154: 4.105471325 | EX154: 4.105471325 | EY154: 4.105471325 | EZ154: 4.105471325 | FA154: 4.105471325 | FB154: 4.105471325 | FC154: 4.105471325 | FD154: 4.105471325 | FE154: 4.105471325 | FF154: 4.105471325 | FG154: 4.105471325 | FH154: 4.105471325 | FI154: 4.105471325 | FJ154: 4.105471325 | FK154: 4.105471325 | FL154: 4.105471325 | FM154: 4.105471325 | FN154: 4.105471325 | FO154: 4.105471325 | FP154: 4.105471325 | FQ154: 4.105471325 | FR154: 4.105471325 | FS154: 4.105471325 | FT154: 4.105471325 | FU154: 4.105471325 | FV154: 4.105471325 | FW154: 4.105471325 | FX154: 4.105471325 | FY154: 4.105471325 | FZ154: 4.105471325 | GA154: 4.105471325 | GB154: 4.105471325 | GC154: 4.105471325 | GD154: 4.105471325 | GE154: 4.105471325 | GF154: 4.105471325 | GG154: 4.105471325 | GH154: 4.105471325 | GI154: 4.105471325 | GJ154: 4.105471325 | GK154: 4.105471325 | GL154: 4.105471325 | GM154: 4.105471325 | GN154: 4.105471325 | GO154: 4.105471325 | GP154: 4.105471325 | GQ154: 4.105471325 | GR154: 4.105471325 | GS154: =IF(GS4,GS153/GS148,$G$154*12/GS5) -> 4.105471325 | GT154: 4.105471325 | GU154: 4.105471325 | GV154: 4.105471325 | GW154: 4.105471325 | GX154: 4.105471325 | GY154: 4.105471325 | GZ154: 4.105471325 | HA154: 4.105471325 | HB154: 4.105471325 | HC154: 4.105471325 | HD154: 4.105471325 | HE154: 4.105471325 | HF154: 4.105471325 | HG154: 4.105471325 | HH154: 4.105471325 | HI154: 4.105471325 | HJ154: 4.105471325 | HK154: 4.105471325 | HL154: 4.105471325 | HM154: 4.105471325 | HN154: 4.105471325 | HO154: 4.105471325 | HP154: 4.105471325 | HQ154: 4.105471325 | HR154: 4.105471325 | HS154: 4.105471325 | HT154: 4.105471325 | HU154: 4.105471325 | HV154: 4.105471325 | HW154: 4.105471325 | HX154: 4.105471325 | HY154: 4.105471325 | HZ154: 4.105471325 | IA154: 4.105471325 | IB154: 4.105471325 | IC154: 4.105471325 | ID154: 4.105471325 | IE154: 4.105471325 | IF154: 4.105471325 | IG154: 4.105471325 | IH154: 4.105471325 | II154: 4.105471325 | IJ154: 4.105471325 | IK154: 4.105471325 | IL154: 4.105471325 | IM154: 4.105471325 | IN154: 4.105471325 | IO154: 4.105471325 | IP154: 4.105471325 | IQ154: 4.105471325 | IR154: 4.105471325 | IS154: 4.105471325
E155: Inventory Days | F155: Days | I155: =I154*365 -> 121.8878788 | J155: =J154*365 -> 126.184379 | K155: 124.5520422 | L155: 126.1432326 | M155: 124.8747528 | N155: 1498.497034 | O155: 1498.497034 | P155: 1498.497034 | Q155: 1498.497034 | R155: 1498.497034 | S155: 1498.497034 | T155: 1498.497034 | U155: 1498.497034 | V155: 1498.497034 | W155: 1498.497034 | X155: 1498.497034 | Y155: 1498.497034 | Z155: 1498.497034 | AA155: 1498.497034 | AB155: 1498.497034 | AC155: 1498.497034 | AD155: 1498.497034 | AE155: 1498.497034 | AF155: 1498.497034 | AG155: 1498.497034 | AH155: 1498.497034 | AI155: 1498.497034 | AJ155: 1498.497034 | AK155: 1498.497034 | AL155: 1498.497034 | AM155: 1498.497034 | AN155: 1498.497034 | AO155: 1498.497034 | AP155: 1498.497034 | AQ155: 1498.497034 | AR155: 1498.497034 | AS155: 1498.497034 | AT155: 1498.497034 | AU155: 1498.497034 | AV155: 1498.497034 | AW155: 1498.497034 | AX155: 1498.497034 | AY155: 1498.497034 | AZ155: 1498.497034 | BA155: 1498.497034 | BB155: 1498.497034 | BC155: 1498.497034 | BD155: 1498.497034 | BE155: 1498.497034 | BF155: 1498.497034 | BG155: 1498.497034 | BH155: 1498.497034 | BI155: 1498.497034 | BJ155: 1498.497034 | BK155: 1498.497034 | BL155: 1498.497034 | BM155: 1498.497034 | BN155: 1498.497034 | BO155: 1498.497034 | BP155: 1498.497034 | BQ155: 1498.497034 | BR155: 1498.497034 | BS155: =BS154*365 -> 1498.497034 | BT155: =BT154*365 -> 1498.497034 | BU155: =BU154*365 -> 1498.497034 | BV155: =BV154*365 -> 1498.497034 | BW155: =BW154*365 -> 1498.497034 | BX155: =BX154*365 -> 1498.497034 | BY155: =BY154*365 -> 1498.497034 | BZ155: =BZ154*365 -> 1498.497034 | CA155: =CA154*365 -> 1498.497034 | CB155: =CB154*365 -> 1498.497034 | CC155: =CC154*365 -> 1498.497034 | CD155: =CD154*365 -> 1498.497034 | CE155: =CE154*365 -> 1498.497034 | CF155: =CF154*365 -> 1498.497034 | CG155: =CG154*365 -> 1498.497034 | CH155: =CH154*365 -> 1498.497034 | CI155: =CI154*365 -> 1498.497034 | CJ155: =CJ154*365 -> 1498.497034 | CK155: =CK154*365 -> 1498.497034 | CL155: =CL154*365 -> 1498.497034 | CM155: =CM154*365 -> 1498.497034 | CN155: =CN154*365 -> 1498.497034 | CO155: =CO154*365 -> 1498.497034 | CP155: =CP154*365 -> 1498.497034 | CQ155: =CQ154*365 -> 1498.497034 | CR155: =CR154*365 -> 1498.497034 | CS155: =CS154*365 -> 1498.497034 | CT155: 1498.497034 | CU155: 1498.497034 | CV155: 1498.497034 | CW155: 1498.497034 | CX155: 1498.497034 | CY155: 1498.497034 | CZ155: 1498.497034 | DA155: 1498.497034 | DB155: 1498.497034 | DC155: 1498.497034 | DD155: 1498.497034 | DE155: 1498.497034 | DF155: 1498.497034 | DG155: 1498.497034 | DH155: =DH154*365 -> 1498.497034 | DI155: 1498.497034 | DJ155: 1498.497034 | DK155: 1498.497034 | DL155: 1498.497034 | DM155: 1498.497034 | DN155: 1498.497034 | DO155: 1498.497034 | DP155: 1498.497034 | DQ155: 1498.497034 | DR155: 1498.497034 | DS155: 1498.497034 | DT155: 1498.497034 | DU155: 1498.497034 | DV155: 1498.497034 | DW155: 1498.497034 | DX155: 1498.497034 | DY155: 1498.497034 | DZ155: 1498.497034 | EA155: =EA154*365 -> 1498.497034 | EB155: 1498.497034 | EC155: 1498.497034 | ED155: 1498.497034 | EE155: 1498.497034 | EF155: 1498.497034 | EG155: 1498.497034 | EH155: 1498.497034 | EI155: 1498.497034 | EJ155: 1498.497034 | EK155: 1498.497034 | EL155: =EL154*365 -> 1498.497034 | EM155: 1498.497034 | EN155: 1498.497034 | EO155: 1498.497034 | EP155: 1498.497034 | EQ155: 1498.497034 | ER155: 1498.497034 | ES155: 1498.497034 | ET155: 1498.497034 | EU155: 1498.497034 | EV155: 1498.497034 | EW155: 1498.497034 | EX155: 1498.497034 | EY155: 1498.497034 | EZ155: 1498.497034 | FA155: 1498.497034 | FB155: 1498.497034 | FC155: 1498.497034 | FD155: 1498.497034 | FE155: 1498.497034 | FF155: 1498.497034 | FG155: 1498.497034 | FH155: 1498.497034 | FI155: 1498.497034 | FJ155: 1498.497034 | FK155: 1498.497034 | FL155: 1498.497034 | FM155: 1498.497034 | FN155: 1498.497034 | FO155: 1498.497034 | FP155: 1498.497034 | FQ155: 1498.497034 | FR155: 1498.497034 | FS155: 1498.497034 | FT155: 1498.497034 | FU155: 1498.497034 | FV155: 1498.497034 | FW155: 1498.497034 | FX155: 1498.497034 | FY155: 1498.497034 | FZ155: 1498.497034 | GA155: 1498.497034 | GB155: 1498.497034 | GC155: 1498.497034 | GD155: 1498.497034 | GE155: 1498.497034 | GF155: 1498.497034 | GG155: 1498.497034 | GH155: 1498.497034 | GI155: 1498.497034 | GJ155: 1498.497034 | GK155: 1498.497034 | GL155: 1498.497034 | GM155: 1498.497034 | GN155: 1498.497034 | GO155: 1498.497034 | GP155: 1498.497034 | GQ155: 1498.497034 | GR155: 1498.497034 | GS155: 1498.497034 | GT155: 1498.497034 | GU155: 1498.497034 | GV155: 1498.497034 | GW155: 1498.497034 | GX155: =GX154*365 -> 1498.497034 | GY155: 1498.497034 | GZ155: 1498.497034 | HA155: 1498.497034 | HB155: 1498.497034 | HC155: 1498.497034 | HD155: 1498.497034 | HE155: 1498.497034 | HF155: 1498.497034 | HG155: 1498.497034 | HH155: 1498.497034 | HI155: 1498.497034 | HJ155: 1498.497034 | HK155: 1498.497034 | HL155: 1498.497034 | HM155: 1498.497034 | HN155: 1498.497034 | HO155: 1498.497034 | HP155: 1498.497034 | HQ155: 1498.497034 | HR155: 1498.497034 | HS155: 1498.497034 | HT155: 1498.497034 | HU155: 1498.497034 | HV155: 1498.497034 | HW155: 1498.497034 | HX155: 1498.497034 | HY155: 1498.497034 | HZ155: 1498.497034 | IA155: 1498.497034 | IB155: 1498.497034 | IC155: 1498.497034 | ID155: 1498.497034 | IE155: 1498.497034 | IF155: 1498.497034 | IG155: 1498.497034 | IH155: 1498.497034 | II155: 1498.497034 | IJ155: 1498.497034 | IK155: 1498.497034 | IL155: 1498.497034 | IM155: 1498.497034 | IN155: 1498.497034 | IO155: 1498.497034 | IP155: 1498.497034 | IQ155: 1498.497034 | IR155: 1498.497034 | IS155: 1498.497034
E156: Inventory Months | F156: Months | I156: =I155/30.42 -> 4.006833622 | J156: =J155/30.42 -> 4.148072945 | K156: 4.094412957 | L156: 4.146720335 | M156: 4.10502146 | N156: 49.26025752 | O156: 49.26025752 | P156: 49.26025752 | Q156: 49.26025752 | R156: 49.26025752 | S156: 49.26025752 | T156: 49.26025752 | U156: 49.26025752 | V156: 49.26025752 | W156: 49.26025752 | X156: 49.26025752 | Y156: 49.26025752 | Z156: 49.26025752 | AA156: 49.26025752 | AB156: 49.26025752 | AC156: 49.26025752 | AD156: 49.26025752 | AE156: 49.26025752 | AF156: 49.26025752 | AG156: 49.26025752 | AH156: 49.26025752 | AI156: 49.26025752 | AJ156: 49.26025752 | AK156: 49.26025752 | AL156: 49.26025752 | AM156: 49.26025752 | AN156: 49.26025752 | AO156: 49.26025752 | AP156: 49.26025752 | AQ156: 49.26025752 | AR156: 49.26025752 | AS156: 49.26025752 | AT156: 49.26025752 | AU156: 49.26025752 | AV156: 49.26025752 | AW156: 49.26025752 | AX156: 49.26025752 | AY156: 49.26025752 | AZ156: 49.26025752 | BA156: 49.26025752 | BB156: 49.26025752 | BC156: 49.26025752 | BD156: 49.26025752 | BE156: 49.26025752 | BF156: 49.26025752 | BG156: 49.26025752 | BH156: 49.26025752 | BI156: 49.26025752 | BJ156: 49.26025752 | BK156: 49.26025752 | BL156: 49.26025752 | BM156: 49.26025752 | BN156: 49.26025752 | BO156: 49.26025752 | BP156: 49.26025752 | BQ156: 49.26025752 | BR156: 49.26025752 | BS156: =BS155/30.42 -> 49.26025752 | BT156: =BT155/30.42 -> 49.26025752 | BU156: =BU155/30.42 -> 49.26025752 | BV156: =BV155/30.42 -> 49.26025752 | BW156: =BW155/30.42 -> 49.26025752 | BX156: =BX155/30.42 -> 49.26025752 | BY156: =BY155/30.42 -> 49.26025752 | BZ156: =BZ155/30.42 -> 49.26025752 | CA156: =CA155/30.42 -> 49.26025752 | CB156: =CB155/30.42 -> 49.26025752 | CC156: =CC155/30.42 -> 49.26025752 | CD156: =CD155/30.42 -> 49.26025752 | CE156: =CE155/30.42 -> 49.26025752 | CF156: =CF155/30.42 -> 49.26025752 | CG156: =CG155/30.42 -> 49.26025752 | CH156: =CH155/30.42 -> 49.26025752 | CI156: =CI155/30.42 -> 49.26025752 | CJ156: =CJ155/30.42 -> 49.26025752 | CK156: =CK155/30.42 -> 49.26025752 | CL156: =CL155/30.42 -> 49.26025752 | CM156: =CM155/30.42 -> 49.26025752 | CN156: =CN155/30.42 -> 49.26025752 | CO156: =CO155/30.42 -> 49.26025752 | CP156: =CP155/30.42 -> 49.26025752 | CQ156: =CQ155/30.42 -> 49.26025752 | CR156: =CR155/30.42 -> 49.26025752 | CS156: =CS155/30.42 -> 49.26025752 | CT156: 49.26025752 | CU156: 49.26025752 | CV156: 49.26025752 | CW156: 49.26025752 | CX156: 49.26025752 | CY156: 49.26025752 | CZ156: 49.26025752 | DA156: 49.26025752 | DB156: 49.26025752 | DC156: 49.26025752 | DD156: 49.26025752 | DE156: 49.26025752 | DF156: 49.26025752 | DG156: 49.26025752 | DH156: =DH155/30.42 -> 49.26025752 | DI156: 49.26025752 | DJ156: 49.26025752 | DK156: 49.26025752 | DL156: 49.26025752 | DM156: 49.26025752 | DN156: 49.26025752 | DO156: 49.26025752 | DP156: 49.26025752 | DQ156: 49.26025752 | DR156: 49.26025752 | DS156: 49.26025752 | DT156: 49.26025752 | DU156: 49.26025752 | DV156: 49.26025752 | DW156: 49.26025752 | DX156: 49.26025752 | DY156: 49.26025752 | DZ156: 49.26025752 | EA156: =EA155/30.42 -> 49.26025752 | EB156: 49.26025752 | EC156: 49.26025752 | ED156: 49.26025752 | EE156: 49.26025752 | EF156: 49.26025752 | EG156: 49.26025752 | EH156: 49.26025752 | EI156: 49.26025752 | EJ156: 49.26025752 | EK156: 49.26025752 | EL156: =EL155/30.42 -> 49.26025752 | EM156: 49.26025752 | EN156: 49.26025752 | EO156: 49.26025752 | EP156: 49.26025752 | EQ156: 49.26025752 | ER156: 49.26025752 | ES156: 49.26025752 | ET156: 49.26025752 | EU156: 49.26025752 | EV156: 49.26025752 | EW156: 49.26025752 | EX156: 49.26025752 | EY156: 49.26025752 | EZ156: 49.26025752 | FA156: 49.26025752 | FB156: 49.26025752 | FC156: 49.26025752 | FD156: 49.26025752 | FE156: 49.26025752 | FF156: 49.26025752 | FG156: 49.26025752 | FH156: 49.26025752 | FI156: 49.26025752 | FJ156: 49.26025752 | FK156: 49.26025752 | FL156: 49.26025752 | FM156: 49.26025752 | FN156: 49.26025752 | FO156: 49.26025752 | FP156: 49.26025752 | FQ156: 49.26025752 | FR156: 49.26025752 | FS156: 49.26025752 | FT156: 49.26025752 | FU156: 49.26025752 | FV156: 49.26025752 | FW156: 49.26025752 | FX156: 49.26025752 | FY156: 49.26025752 | FZ156: 49.26025752 | GA156: 49.26025752 | GB156: 49.26025752 | GC156: 49.26025752 | GD156: 49.26025752 | GE156: 49.26025752 | GF156: 49.26025752 | GG156: 49.26025752 | GH156: 49.26025752 | GI156: 49.26025752 | GJ156: 49.26025752 | GK156: 49.26025752 | GL156: 49.26025752 | GM156: 49.26025752 | GN156: 49.26025752 | GO156: 49.26025752 | GP156: 49.26025752 | GQ156: 49.26025752 | GR156: 49.26025752 | GS156: 49.26025752 | GT156: 49.26025752 | GU156: 49.26025752 | GV156: 49.26025752 | GW156: 49.26025752 | GX156: =GX155/30.42 -> 49.26025752 | GY156: 49.26025752 | GZ156: 49.26025752 | HA156: 49.26025752 | HB156: 49.26025752 | HC156: 49.26025752 | HD156: 49.26025752 | HE156: 49.26025752 | HF156: 49.26025752 | HG156: 49.26025752 | HH156: 49.26025752 | HI156: 49.26025752 | HJ156: 49.26025752 | HK156: 49.26025752 | HL156: 49.26025752 | HM156: 49.26025752 | HN156: 49.26025752 | HO156: 49.26025752 | HP156: 49.26025752 | HQ156: 49.26025752 | HR156: 49.26025752 | HS156: 49.26025752 | HT156: 49.26025752 | HU156: 49.26025752 | HV156: 49.26025752 | HW156: 49.26025752 | HX156: 49.26025752 | HY156: 49.26025752 | HZ156: 49.26025752 | IA156: 49.26025752 | IB156: 49.26025752 | IC156: 49.26025752 | ID156: 49.26025752 | IE156: 49.26025752 | IF156: 49.26025752 | IG156: 49.26025752 | IH156: 49.26025752 | II156: 49.26025752 | IJ156: 49.26025752 | IK156: 49.26025752 | IL156: 49.26025752 | IM156: 49.26025752 | IN156: 49.26025752 | IO156: 49.26025752 | IP156: 49.26025752 | IQ156: 49.26025752 | IR156: 49.26025752 | IS156: 49.26025752
E158: Total Cost of Goods Sold | F158: USD 000 | H158: =SUM(I158:IS158) -> 361901806.6 | I158: =I149*I142 -> 16500000 | J158: 15620000 | K158: 15180000 | L158: 15220000 | M158: 15170000 | N158: 374884 | O158: 299907.2 | P158: 299907.2 | Q158: 299907.2 | R158: 539832.96 | S158: 625158.9852 | T158: 703845.7601 | U158: 773859.115 | V158: 835158.2636 | W158: 887440.4144 | X158: 931345.6171 | Y158: 968599.4418 | Z158: 1002266.968 | AA158: 1032677.562 | AB158: 1059905.405 | AC158: 1084299.803 | AD158: 1086090.612 | AE158: 1087807.623 | AF158: 1089456.059 | AG158: 1091036.298 | AH158: 1092553.182 | AI158: 1094007.087 | AJ158: 1095400.526 | AK158: 1096741.596 | AL158: 1098026.724 | AM158: 1099259.907 | AN158: 1100441.5 | AO158: 1101575.198 | AP158: 1102661.345 | AQ158: 1103701.877 | AR158: 1104700.072 | AS158: 1105656.249 | AT158: 1106573.433 | AU158: 1107501.918 | AV158: 1108441.849 | AW158: 1109392.328 | AX158: 1110354.543 | AY158: 1111328.288 | AZ158: 1112314.074 | BA158: 1113311.692 | BB158: 1114321.665 | BC158: 1115344.155 | BD158: 1116378.947 | BE158: 1117426.585 | BF158: 1118486.848 | BG158: 1119560.294 | BH158: 1120647.097 | BI158: 1121746.627 | BJ158: 1122859.861 | BK158: 1123986.568 | BL158: 1125127.343 | BM158: 1126281.948 | BN158: 1127450.993 | BO158: 1128634.673 | BP158: 1129832.742 | BQ158: 1131045.836 | BR158: 1132273.705 | BS158: 1133517 | BT158: 1134775.929 | BU158: =BU149*BU142 -> 1136049.299 | BV158: 1137338.71 | BW158: 1138643.901 | BX158: 1139965.566 | BY158: 1141303.438 | BZ158: 1142658.229 | CA158: 1144030.171 | CB158: 1145418.988 | CC158: 1146825.422 | CD158: 1148249.191 | CE158: 1149685.733 | CF158: 1151135.174 | CG158: 1152596.556 | CH158: 1154071.087 | CI158: 1155558.529 | CJ158: 1157059.383 | CK158: 1158573.407 | CL158: 1160101.111 | CM158: 1161642.632 | CN158: 1163197.726 | CO158: 1164766.915 | CP158: 1166349.95 | CQ158: 1167947.366 | CR158: 1169559.309 | CS158: 1171184.718 | CT158: 1172824.94 | CU158: 1174479.717 | CV158: 1176149.608 | CW158: 1177834.353 | CX158: 1179534.52 | CY158: 1181250.27 | CZ158: 1182981.334 | DA158: 1184728.301 | DB158: 1186490.899 | DC158: 1188229.286 | DD158: 1189943.752 | DE158: 1191636.258 | DF158: 1193305.398 | DG158: 1194952.269 | DH158: 1196576.33 | DI158: 1198178.652 | DJ158: 1199758.71 | DK158: 1201316.779 | DL158: 1202853.892 | DM158: 1204369.55 | DN158: 1205864.76 | DO158: 1207361.826 | DP158: 1208860.751 | DQ158: 1210361.537 | DR158: 1211864.186 | DS158: 1213368.7 | DT158: 1214875.083 | DU158: 1216383.335 | DV158: 1217893.46 | DW158: 1219405.46 | DX158: 1220919.337 | DY158: 1222435.093 | DZ158: 1223952.731 | EA158: 1225472.254 | EB158: 1226993.662 | EC158: 1228516.96 | ED158: 1230042.149 | EE158: 1231569.231 | EF158: 1233098.209 | EG158: =EG149*EG142 -> 1234629.085 | EH158: 1236161.862 | EI158: 1237696.542 | EJ158: 1239233.127 | EK158: 1240771.62 | EL158: 1242312.022 | EM158: 1243854.337 | EN158: 1245398.567 | EO158: 1246944.714 | EP158: 1248492.781 | EQ158: 1250042.769 | ER158: 1251594.682 | ES158: 1253148.521 | ET158: 1254704.29 | EU158: 1256261.99 | EV158: 1257821.624 | EW158: 1259383.194 | EX158: 1260946.703 | EY158: 1262512.152 | EZ158: 1264079.546 | FA158: 1265648.885 | FB158: 1267220.173 | FC158: 1268793.411 | FD158: 1270368.602 | FE158: 1271945.749 | FF158: 1273524.854 | FG158: 1275105.92 | FH158: 1276688.948 | FI158: 1278273.942 | FJ158: 1279860.903 | FK158: 1281449.835 | FL158: 1283040.739 | FM158: 1284633.618 | FN158: 1286228.475 | FO158: 1287825.312 | FP158: 1289424.131 | FQ158: 1291024.936 | FR158: 1292627.727 | FS158: 1294232.509 | FT158: 1295839.282 | FU158: 1297448.051 | FV158: 1296906.205 | FW158: 1296364.585 | FX158: 1295823.191 | FY158: 1295282.023 | FZ158: 1294741.082 | GA158: 1294200.366 | GB158: 1293659.876 | GC158: 1293119.612 | GD158: 1292579.573 | GE158: 1292039.76 | GF158: 1291500.173 | GG158: 1290960.811 | GH158: 1290421.674 | GI158: 1289882.762 | GJ158: 1289344.075 | GK158: 1288805.613 | GL158: 1288267.376 | GM158: 1287729.364 | GN158: 1287191.577 | GO158: 1286654.014 | GP158: 1286116.676 | GQ158: 1285579.562 | GR158: 1285042.672 | GS158: =GS149*GS142 -> 1284506.007 | GT158: 1283969.565 | GU158: 1283433.348 | GV158: 1282897.355 | GW158: 1282361.585 | GX158: 1281826.04 | GY158: 1281290.717 | GZ158: 1280755.619 | HA158: 1280220.744 | HB158: 1279686.092 | HC158: 1279151.664 | HD158: 1278617.459 | HE158: 1278083.477 | HF158: 1277549.717 | HG158: 1277016.181 | HH158: 1276482.868 | HI158: 1275949.777 | HJ158: 1275416.909 | HK158: 1274884.264 | HL158: 1274351.841 | HM158: 1273819.64 | HN158: 1273287.662 | HO158: 1272755.906 | HP158: 1272224.371 | HQ158: 1271693.059 | HR158: 1271161.969 | HS158: 1270631.1 | HT158: 1270100.454 | HU158: 1269570.028 | HV158: 1269039.825 | HW158: 1268509.843 | HX158: 1267980.082 | HY158: 1267450.542 | HZ158: 1266921.223 | IA158: 1266392.126 | IB158: 1265863.25 | IC158: 1265334.594 | ID158: 1264806.159 | IE158: 1264277.945 | IF158: 1263749.951 | IG158: 1263222.178 | IH158: 1262694.626 | II158: 1262167.293 | IJ158: 1261640.181 | IK158: 1261113.289 | IL158: 1260586.617 | IM158: 1260060.165 | IN158: 1259533.933 | IO158: 1259007.921 | IP158: 1258482.128 | IQ158: 1257956.555 | IR158: 1257431.202 | IS158: 1256906.067
E159: Total Inventory | F159: USD 000 | I159: =I158*I154 -> 5510000 | J159: =J158*J154 -> 5400000 | K159: 5180000 | L159: 5260000 | M159: 5190000 | N159: 1539075.512 | O159: 1231260.41 | P159: 1231260.41 | Q159: 1231260.41 | R159: 2216268.738 | S159: 2566572.287 | T159: 2889618.585 | U159: 3177056.406 | V159: 3428718.303 | W159: 3643361.174 | X159: 3823612.725 | Y159: 3976557.234 | Z159: 4114778.295 | AA159: 4239628.12 | AB159: 4351411.247 | AC159: 4451561.749 | AD159: 4458913.865 | AE159: 4465963.004 | AF159: 4472730.61 | AG159: 4479218.236 | AH159: 4485445.758 | AI159: 4491414.725 | AJ159: 4497135.45 | AK159: 4502641.174 | AL159: 4507917.23 | AM159: 4512980.026 | AN159: 4517831.023 | AO159: 4522485.39 | AP159: 4526944.533 | AQ159: 4531216.409 | AR159: 4535314.467 | AS159: 4539240.027 | AT159: 4543005.5 | AU159: 4546817.365 | AV159: 4550676.228 | AW159: 4554578.392 | AX159: 4558528.736 | AY159: 4562526.419 | AZ159: 4566573.535 | BA159: 4570669.227 | BB159: 4574815.641 | BC159: 4579013.445 | BD159: 4583261.755 | BE159: 4587562.802 | BF159: 4591915.681 | BG159: 4596322.682 | BH159: 4600784.524 | BI159: 4605298.611 | BJ159: 4609868.962 | BK159: 4614494.626 | BL159: 4619178.043 | BM159: 4623918.241 | BN159: 4628717.723 | BO159: 4633577.286 | BP159: 4638495.926 | BQ159: 4643476.248 | BR159: 4648517.228 | BS159: 4653621.538 | BT159: 4658790.036 | BU159: 4664017.819 | BV159: =BV158*BV154 -> 4669311.461 | BW159: 4674669.885 | BX159: 4680095.943 | BY159: 4685588.537 | BZ159: 4691150.593 | CA159: 4696783.061 | CB159: 4702484.81 | CC159: 4708258.884 | CD159: 4714104.129 | CE159: 4720001.809 | CF159: 4725952.447 | CG159: 4731952.109 | CH159: 4738005.753 | CI159: 4744112.406 | CJ159: 4750274.118 | CK159: 4756489.901 | CL159: 4762761.844 | CM159: 4769090.516 | CN159: 4775474.908 | CO159: 4781917.169 | CP159: 4788416.277 | CQ159: 4794974.421 | CR159: 4801592.206 | CS159: 4808265.276 | CT159: =CT158*CT154 -> 4814999.16 | CU159: =CU158*CU154 -> 4821792.8 | CV159: =CV158*CV154 -> 4828648.491 | CW159: =CW158*CW154 -> 4835565.16 | CX159: =CX158*CX154 -> 4842545.148 | CY159: =CY158*CY154 -> 4849589.109 | CZ159: =CZ158*CZ154 -> 4856695.945 | DA159: =DA158*DA154 -> 4863868.068 | DB159: =DB158*DB154 -> 4871104.363 | DC159: =DC158*DC154 -> 4878241.26 | DD159: =DD158*DD154 -> 4885279.952 | DE159: =DE158*DE154 -> 4892228.488 | DF159: =DF158*DF154 -> 4899081.094 | DG159: =DG158*DG154 -> 4905842.277 | DH159: =DH158*DH154 -> 4912509.811 | DI159: =DI158*DI154 -> 4919088.097 | DJ159: =DJ158*DJ154 -> 4925574.98 | DK159: =DK158*DK154 -> 4931971.588 | DL159: =DL158*DL154 -> 4938282.162 | DM159: =DM158*DM154 -> 4944504.652 | DN159: =DN158*DN154 -> 4950643.194 | DO159: =DO158*DO154 -> 4956789.356 | DP159: =DP158*DP154 -> 4962943.15 | DQ159: =DQ158*DQ154 -> 4969104.582 | DR159: =DR158*DR154 -> 4975273.665 | DS159: =DS158*DS154 -> 4981450.406 | DT159: =DT158*DT154 -> 4987634.815 | DU159: =DU158*DU154 -> 4993826.903 | DV159: =DV158*DV154 -> 5000026.678 | DW159: =DW158*DW154 -> 5006234.149 | DX159: =DX158*DX154 -> 5012449.327 | DY159: =DY158*DY154 -> 5018672.222 | DZ159: =DZ158*DZ154 -> 5024902.842 | EA159: =EA158*EA154 -> 5031141.197 | EB159: =EB158*EB154 -> 5037387.297 | EC159: =EC158*EC154 -> 5043641.151 | ED159: =ED158*ED154 -> 5049902.77 | EE159: =EE158*EE154 -> 5056172.162 | EF159: =EF158*EF154 -> 5062449.338 | EG159: =EG158*EG154 -> 5068734.306 | EH159: =EH158*EH154 -> 5075027.078 | EI159: =EI158*EI154 -> 5081327.661 | EJ159: =EJ158*EJ154 -> 5087636.067 | EK159: =EK158*EK154 -> 5093952.305 | EL159: =EL158*EL154 -> 5100276.384 | EM159: =EM158*EM154 -> 5106608.315 | EN159: =EN158*EN154 -> 5112948.106 | EO159: =EO158*EO154 -> 5119295.768 | EP159: =EP158*EP154 -> 5125651.311 | EQ159: =EQ158*EQ154 -> 5132014.744 | ER159: =ER158*ER154 -> 5138386.078 | ES159: =ES158*ES154 -> 5144765.321 | ET159: =ET158*ET154 -> 5151152.484 | EU159: =EU158*EU154 -> 5157547.576 | EV159: =EV158*EV154 -> 5163950.608 | EW159: =EW158*EW154 -> 5170361.59 | EX159: =EX158*EX154 -> 5176780.53 | EY159: =EY158*EY154 -> 5183207.439 | EZ159: =EZ158*EZ154 -> 5189642.328 | FA159: =FA158*FA154 -> 5196085.205 | FB159: =FB158*FB154 -> 5202536.081 | FC159: =FC158*FC154 -> 5208994.966 | FD159: =FD158*FD154 -> 5215461.869 | FE159: =FE158*FE154 -> 5221936.801 | FF159: =FF158*FF154 -> 5228419.771 | FG159: =FG158*FG154 -> 5234910.79 | FH159: =FH158*FH154 -> 5241409.867 | FI159: =FI158*FI154 -> 5247917.013 | FJ159: =FJ158*FJ154 -> 5254432.238 | FK159: =FK158*FK154 -> 5260955.551 | FL159: =FL158*FL154 -> 5267486.963 | FM159: =FM158*FM154 -> 5274026.483 | FN159: =FN158*FN154 -> 5280574.122 | FO159: =FO158*FO154 -> 5287129.89 | FP159: =FP158*FP154 -> 5293693.797 | FQ159: =FQ158*FQ154 -> 5300265.853 | FR159: =FR158*FR154 -> 5306846.068 | FS159: =FS158*FS154 -> 5313434.452 | FT159: =FT158*FT154 -> 5320031.015 | FU159: =FU158*FU154 -> 5326635.769 | FV159: =FV158*FV154 -> 5324411.235 | FW159: =FW158*FW154 -> 5322187.63 | FX159: =FX158*FX154 -> 5319964.953 | FY159: =FY158*FY154 -> 5317743.205 | FZ159: =FZ158*FZ154 -> 5315522.385 | GA159: =GA158*GA154 -> 5313302.492 | GB159: =GB158*GB154 -> 5311083.526 | GC159: =GC158*GC154 -> 5308865.487 | GD159: =GD158*GD154 -> 5306648.374 | GE159: =GE158*GE154 -> 5304432.187 | GF159: =GF158*GF154 -> 5302216.926 | GG159: =GG158*GG154 -> 5300002.59 | GH159: =GH158*GH154 -> 5297789.178 | GI159: =GI158*GI154 -> 5295576.691 | GJ159: =GJ158*GJ154 -> 5293365.128 | GK159: =GK158*GK154 -> 5291154.489 | GL159: =GL158*GL154 -> 5288944.773 | GM159: =GM158*GM154 -> 5286735.979 | GN159: =GN158*GN154 -> 5284528.108 | GO159: =GO158*GO154 -> 5282321.159 | GP159: =GP158*GP154 -> 5280115.132 | GQ159: =GQ158*GQ154 -> 5277910.026 | GR159: =GR158*GR154 -> 5275705.841 | GS159: =GS158*GS154 -> 5273502.577 | GT159: =GT158*GT154 -> 5271300.233 | GU159: =GU158*GU154 -> 5269098.808 | GV159: =GV158*GV154 -> 5266898.303 | GW159: =GW158*GW154 -> 5264698.716 | GX159: =GX158*GX154 -> 5262500.049 | GY159: =GY158*GY154 -> 5260302.299 | GZ159: =GZ158*GZ154 -> 5258105.468 | HA159: =HA158*HA154 -> 5255909.554 | HB159: =HB158*HB154 -> 5253714.557 | HC159: =HC158*HC154 -> 5251520.476 | HD159: =HD158*HD154 -> 5249327.312 | HE159: =HE158*HE154 -> 5247135.064 | HF159: =HF158*HF154 -> 5244943.731 | HG159: =HG158*HG154 -> 5242753.314 | HH159: =HH158*HH154 -> 5240563.811 | HI159: =HI158*HI154 -> 5238375.223 | HJ159: =HJ158*HJ154 -> 5236187.549 | HK159: =HK158*HK154 -> 5234000.788 | HL159: =HL158*HL154 -> 5231814.94 | HM159: =HM158*HM154 -> 5229630.006 | HN159: =HN158*HN154 -> 5227445.984 | HO159: =HO158*HO154 -> 5225262.874 | HP159: =HP158*HP154 -> 5223080.676 | HQ159: =HQ158*HQ154 -> 5220899.389 | HR159: =HR158*HR154 -> 5218719.013 | HS159: =HS158*HS154 -> 5216539.547 | HT159: =HT158*HT154 -> 5214360.992 | HU159: =HU158*HU154 -> 5212183.347 | HV159: =HV158*HV154 -> 5210006.611 | HW159: =HW158*HW154 -> 5207830.784 | HX159: =HX158*HX154 -> 5205655.866 | HY159: =HY158*HY154 -> 5203481.856 | HZ159: =HZ158*HZ154 -> 5201308.754 | IA159: =IA158*IA154 -> 5199136.559 | IB159: =IB158*IB154 -> 5196965.272 | IC159: =IC158*IC154 -> 5194794.892 | ID159: =ID158*ID154 -> 5192625.418 | IE159: =IE158*IE154 -> 5190456.85 | IF159: =IF158*IF154 -> 5188289.187 | IG159: =IG158*IG154 -> 5186122.43 | IH159: =IH158*IH154 -> 5183956.578 | II159: =II158*II154 -> 5181791.63 | IJ159: =IJ158*IJ154 -> 5179627.586 | IK159: =IK158*IK154 -> 5177464.447 | IL159: =IL158*IL154 -> 5175302.21 | IM159: =IM158*IM154 -> 5173140.877 | IN159: =IN158*IN154 -> 5170980.446 | IO159: =IO158*IO154 -> 5168820.917 | IP159: =IP158*IP154 -> 5166662.291 | IQ159: =IQ158*IQ154 -> 5164504.565 | IR159: =IR158*IR154 -> 5162347.741 | IS159: =IS158*IS154 -> 5160191.818
D161: Calculation with Units
E162: Cost of Goods Sold Target Percent | I162: =I154 -> 0.3339393939 | J162: 0.3457106274 | K162: 0.3412384717 | L162: 0.3455978975 | M162: 0.3421226104 | N162: 4.105471325 | O162: 4.105471325 | P162: 4.105471325 | Q162: 4.105471325 | R162: 4.105471325 | S162: 4.105471325 | T162: 4.105471325 | U162: 4.105471325 | V162: 4.105471325 | W162: 4.105471325 | X162: 4.105471325 | Y162: 4.105471325 | Z162: 4.105471325 | AA162: 4.105471325 | AB162: 4.105471325 | AC162: 4.105471325 | AD162: 4.105471325 | AE162: 4.105471325 | AF162: 4.105471325 | AG162: 4.105471325 | AH162: 4.105471325 | AI162: 4.105471325 | AJ162: 4.105471325 | AK162: 4.105471325 | AL162: 4.105471325 | AM162: 4.105471325 | AN162: 4.105471325 | AO162: 4.105471325 | AP162: 4.105471325 | AQ162: 4.105471325 | AR162: 4.105471325 | AS162: 4.105471325 | AT162: 4.105471325 | AU162: 4.105471325 | AV162: 4.105471325 | AW162: 4.105471325 | AX162: 4.105471325 | AY162: 4.105471325 | AZ162: 4.105471325 | BA162: 4.105471325 | BB162: 4.105471325 | BC162: 4.105471325 | BD162: 4.105471325 | BE162: 4.105471325 | BF162: 4.105471325 | BG162: 4.105471325 | BH162: 4.105471325 | BI162: 4.105471325 | BJ162: 4.105471325 | BK162: 4.105471325 | BL162: 4.105471325 | BM162: 4.105471325 | BN162: 4.105471325 | BO162: 4.105471325 | BP162: 4.105471325 | BQ162: 4.105471325 | BR162: 4.105471325 | BS162: 4.105471325 | BT162: 4.105471325 | BU162: =BU154 -> 4.105471325 | BV162: 4.105471325 | BW162: 4.105471325 | BX162: 4.105471325 | BY162: 4.105471325 | BZ162: 4.105471325 | CA162: 4.105471325 | CB162: 4.105471325 | CC162: 4.105471325 | CD162: 4.105471325 | CE162: 4.105471325 | CF162: 4.105471325 | CG162: 4.105471325 | CH162: 4.105471325 | CI162: 4.105471325 | CJ162: 4.105471325 | CK162: 4.105471325 | CL162: 4.105471325 | CM162: 4.105471325 | CN162: 4.105471325 | CO162: 4.105471325 | CP162: 4.105471325 | CQ162: 4.105471325 | CR162: 4.105471325 | CS162: 4.105471325 | CT162: 4.105471325 | CU162: 4.105471325 | CV162: 4.105471325 | CW162: 4.105471325 | CX162: 4.105471325 | CY162: 4.105471325 | CZ162: 4.105471325 | DA162: 4.105471325 | DB162: 4.105471325 | DC162: 4.105471325 | DD162: 4.105471325 | DE162: 4.105471325 | DF162: 4.105471325 | DG162: 4.105471325 | DH162: 4.105471325 | DI162: 4.105471325 | DJ162: 4.105471325 | DK162: 4.105471325 | DL162: 4.105471325 | DM162: 4.105471325 | DN162: 4.105471325 | DO162: 4.105471325 | DP162: 4.105471325 | DQ162: 4.105471325 | DR162: 4.105471325 | DS162: 4.105471325 | DT162: 4.105471325 | DU162: 4.105471325 | DV162: 4.105471325 | DW162: 4.105471325 | DX162: 4.105471325 | DY162: 4.105471325 | DZ162: 4.105471325 | EA162: 4.105471325 | EB162: 4.105471325 | EC162: 4.105471325 | ED162: 4.105471325 | EE162: 4.105471325 | EF162: 4.105471325 | EG162: =EG154 -> 4.105471325 | EH162: 4.105471325 | EI162: 4.105471325 | EJ162: 4.105471325 | EK162: 4.105471325 | EL162: 4.105471325 | EM162: 4.105471325 | EN162: 4.105471325 | EO162: 4.105471325 | EP162: 4.105471325 | EQ162: 4.105471325 | ER162: 4.105471325 | ES162: 4.105471325 | ET162: 4.105471325 | EU162: 4.105471325 | EV162: 4.105471325 | EW162: 4.105471325 | EX162: 4.105471325 | EY162: 4.105471325 | EZ162: 4.105471325 | FA162: 4.105471325 | FB162: 4.105471325 | FC162: 4.105471325 | FD162: 4.105471325 | FE162: 4.105471325 | FF162: 4.105471325 | FG162: 4.105471325 | FH162: 4.105471325 | FI162: 4.105471325 | FJ162: 4.105471325 | FK162: 4.105471325 | FL162: 4.105471325 | FM162: 4.105471325 | FN162: 4.105471325 | FO162: 4.105471325 | FP162: 4.105471325 | FQ162: 4.105471325 | FR162: 4.105471325 | FS162: 4.105471325 | FT162: 4.105471325 | FU162: 4.105471325 | FV162: 4.105471325 | FW162: 4.105471325 | FX162: 4.105471325 | FY162: 4.105471325 | FZ162: 4.105471325 | GA162: 4.105471325 | GB162: 4.105471325 | GC162: 4.105471325 | GD162: 4.105471325 | GE162: 4.105471325 | GF162: 4.105471325 | GG162: 4.105471325 | GH162: 4.105471325 | GI162: 4.105471325 | GJ162: 4.105471325 | GK162: 4.105471325 | GL162: 4.105471325 | GM162: 4.105471325 | GN162: 4.105471325 | GO162: 4.105471325 | GP162: 4.105471325 | GQ162: 4.105471325 | GR162: 4.105471325 | GS162: =GS154 -> 4.105471325 | GT162: 4.105471325 | GU162: 4.105471325 | GV162: 4.105471325 | GW162: 4.105471325 | GX162: 4.105471325 | GY162: 4.105471325 | GZ162: 4.105471325 | HA162: 4.105471325 | HB162: 4.105471325 | HC162: 4.105471325 | HD162: 4.105471325 | HE162: 4.105471325 | HF162: 4.105471325 | HG162: 4.105471325 | HH162: 4.105471325 | HI162: 4.105471325 | HJ162: 4.105471325 | HK162: 4.105471325 | HL162: 4.105471325 | HM162: 4.105471325 | HN162: 4.105471325 | HO162: 4.105471325 | HP162: 4.105471325 | HQ162: 4.105471325 | HR162: 4.105471325 | HS162: 4.105471325 | HT162: 4.105471325 | HU162: 4.105471325 | HV162: 4.105471325 | HW162: 4.105471325 | HX162: 4.105471325 | HY162: 4.105471325 | HZ162: 4.105471325 | IA162: 4.105471325 | IB162: 4.105471325 | IC162: 4.105471325 | ID162: 4.105471325 | IE162: 4.105471325 | IF162: 4.105471325 | IG162: 4.105471325 | IH162: 4.105471325 | II162: 4.105471325 | IJ162: 4.105471325 | IK162: 4.105471325 | IL162: 4.105471325 | IM162: 4.105471325 | IN162: 4.105471325 | IO162: 4.105471325 | IP162: 4.105471325 | IQ162: 4.105471325 | IR162: 4.105471325 | IS162: 4.105471325
E163: Units Sold | H163: =SUM(I163:IS163) -> 60362129.82 | I163: =I140 -> 2681188.119 | J163: 2552475.248 | K163: 2538613.861 | L163: 2548514.851 | M163: 2507920.792 | N163: 62698.0198 | O163: 50158.41584 | P163: 50158.41584 | Q163: 50158.41584 | R163: 90285.14851 | S163: 104555.6237 | T163: 117715.7078 | U163: 129425.1932 | V163: 139677.2584 | W163: 148421.2628 | X163: 155764.2523 | Y163: 161994.8224 | Z163: 167625.5967 | AA163: 172711.6608 | AB163: 177265.4209 | AC163: 181345.2975 | AD163: 181644.804 | AE163: 181931.968 | AF163: 182207.663 | AG163: 182471.9524 | AH163: 182725.6459 | AI163: 182968.8064 | AJ163: 183201.8542 | AK163: 183426.1433 | AL163: 183641.0764 | AM163: 183847.3218 | AN163: 184044.9391 | AO163: 184234.5462 | AP163: 184416.2003 | AQ163: 184590.2257 | AR163: 184757.1702 | AS163: 184917.0875 | AT163: 185070.4832 | AU163: 185225.7689 | AV163: 185382.9692 | AW163: 185541.9334 | AX163: 185702.8604 | AY163: 185865.7158 | AZ163: 186030.585 | BA163: 186197.4331 | BB163: 186366.3474 | BC163: 186537.3553 | BD163: 186710.4206 | BE163: 186885.6343 | BF163: 187062.9596 | BG163: 187242.4896 | BH163: 187424.2536 | BI163: 187608.1461 | BJ163: 187794.3306 | BK163: 187982.7683 | BL163: 188173.5588 | BM163: 188366.6624 | BN163: 188562.1811 | BO163: 188760.1473 | BP163: 188960.5202 | BQ163: 189163.4058 | BR163: 189368.7625 | BS163: 189576.6992 | BT163: 189787.2506 | BU163: =BU140 -> 190000.2172 | BV163: 190215.8667 | BW163: 190434.1552 | BX163: 190655.199 | BY163: 190878.9533 | BZ163: 191105.5373 | CA163: 191334.9898 | CB163: 191567.2645 | CC163: 191802.4856 | CD163: 192040.606 | CE163: 192280.8625 | CF163: 192523.2763 | CG163: 192767.6873 | CH163: 193014.2973 | CI163: 193263.0668 | CJ163: 193514.0793 | CK163: 193767.2945 | CL163: 194022.7975 | CM163: 194280.6115 | CN163: 194540.6953 | CO163: 194803.1367 | CP163: 195067.8938 | CQ163: 195335.0559 | CR163: 195604.6476 | CS163: 195876.4915 | CT163: 196150.8128 | CU163: 196427.5684 | CV163: 196706.8518 | CW163: 196988.6193 | CX163: 197272.9662 | CY163: 197559.9193 | CZ163: 197849.4337 | DA163: 198141.6078 | DB163: 198436.396 | DC163: 198727.135 | DD163: 199013.8734 | DE163: 199296.9391 | DF163: 199576.0968 | DG163: 199851.5302 | DH163: 200123.1486 | DI163: 200391.1312 | DJ163: 200655.3903 | DK163: 200915.9719 | DL163: 201173.0486 | DM163: 201426.537 | DN163: 201676.6056 | DO163: 201926.9846 | DP163: 202177.6745 | DQ163: 202428.6756 | DR163: 202679.9883 | DS163: 202931.613 | DT163: 203183.5501 | DU163: 203435.8 | DV163: 203688.363 | DW163: 203941.2396 | DX163: 204194.4302 | DY163: 204447.935 | DZ163: 204701.7546 | EA163: 204955.8894 | EB163: 205210.3396 | EC163: 205465.1057 | ED163: 205720.1881 | EE163: 205975.5872 | EF163: 206231.3033 | EG163: =EG140 -> 206487.337 | EH163: 206743.6885 | EI163: 207000.3582 | EJ163: 207257.3466 | EK163: 207514.6541 | EL163: 207772.281 | EM163: 208030.2277 | EN163: 208288.4947 | EO163: 208547.0823 | EP163: 208805.9909 | EQ163: 209065.221 | ER163: 209324.7729 | ES163: 209584.647 | ET163: 209844.8438 | EU163: 210105.3636 | EV163: 210366.2068 | EW163: 210627.3739 | EX163: 210888.8652 | EY163: 211150.6811 | EZ163: 211412.8221 | FA163: 211675.2885 | FB163: 211938.0808 | FC163: 212201.1993 | FD163: 212464.6445 | FE163: 212728.4167 | FF163: 212992.5164 | FG163: 213256.944 | FH163: 213521.6999 | FI163: 213786.7845 | FJ163: 214052.1981 | FK163: 214317.9413 | FL163: 214584.0144 | FM163: 214850.4178 | FN163: 215117.152 | FO163: 215384.2173 | FP163: 215651.6142 | FQ163: 215919.343 | FR163: 216187.4042 | FS163: 216455.7982 | FT163: 216724.5254 | FU163: 216993.5863 | FV163: 216902.9644 | FW163: 216812.3804 | FX163: 216721.8342 | FY163: 216631.3258 | FZ163: 216540.8553 | GA163: 216450.4225 | GB163: 216360.0275 | GC163: 216269.6702 | GD163: 216179.3507 | GE163: 216089.0688 | GF163: 215998.8247 | GG163: 215908.6183 | GH163: 215818.4496 | GI163: 215728.3185 | GJ163: 215638.225 | GK163: 215548.1692 | GL163: 215458.151 | GM163: 215368.1704 | GN163: 215278.2273 | GO163: 215188.3218 | GP163: 215098.4539 | GQ163: 215008.6235 | GR163: 214918.8306 | GS163: =GS140 -> 214829.0752 | GT163: 214739.3573 | GU163: 214649.6769 | GV163: 214560.0339 | GW163: 214470.4284 | GX163: 214380.8602 | GY163: 214291.3295 | GZ163: 214201.8362 | HA163: 214112.3802 | HB163: 214022.9616 | HC163: 213933.5804 | HD163: 213844.2365 | HE163: 213754.9299 | HF163: 213665.6605 | HG163: 213576.4285 | HH163: 213487.2337 | HI163: 213398.0762 | HJ163: 213308.9559 | HK163: 213219.8729 | HL163: 213130.827 | HM163: 213041.8183 | HN163: 212952.8468 | HO163: 212863.9125 | HP163: 212775.0153 | HQ163: 212686.1552 | HR163: 212597.3322 | HS163: 212508.5464 | HT163: 212419.7976 | HU163: 212331.0858 | HV163: 212242.4112 | HW163: 212153.7735 | HX163: 212065.1729 | HY163: 211976.6092 | HZ163: 211888.0826 | IA163: 211799.5929 | IB163: 211711.1402 | IC163: 211622.7244 | ID163: 211534.3456 | IE163: 211446.0036 | IF163: 211357.6986 | IG163: 211269.4304 | IH163: 211181.1991 | II163: 211093.0046 | IJ163: 211004.847 | IK163: 210916.7262 | IL163: 210828.6422 | IM163: 210740.595 | IN163: 210652.5845 | IO163: 210564.6108 | IP163: 210476.6738 | IQ163: 210388.7736 | IR163: 210300.9101 | IS163: 210213.0833
E164: Unadjusted Closing Balance Target - Purchases x Percent | I164: =I162*I163 -> 895354.3354 | J164: =J162*J163 -> 882417.8192 | K164: =K162*K163 -> 866272.7142 | L164: 880761.3744 | M164: 858016.4081 | N164: 257404.9224 | O164: 205923.9379 | P164: 205923.9379 | Q164: 205923.9379 | R164: 370663.0883 | S164: 429250.1149 | T164: 483278.4629 | U164: 531351.4193 | V164: 573440.9793 | W164: 609339.2383 | X164: 639485.6711 | Y164: 665065.098 | Z164: 688182.0804 | AA164: 709062.7709 | AB164: 727758.1026 | AC164: 744507.919 | AD164: 745737.5343 | AE164: 746916.4779 | AF164: 748048.3358 | AG164: 749133.3683 | AH164: 750174.8994 | AI164: 751173.1879 | AJ164: 752129.9589 | AK164: 753050.7718 | AL164: 753933.1733 | AM164: 754779.908 | AN164: 755591.2201 | AO164: 756369.6464 | AP164: 757115.4223 | AQ164: 757829.8784 | AR164: 758515.2642 | AS164: 759171.8001 | AT164: 759801.562 | AU164: 760439.0829 | AV164: 761084.4642 | AW164: 761737.0872 | AX164: 762397.7682 | AY164: 763066.3666 | AZ164: 763743.2325 | BA164: 764428.2223 | BB164: 765121.6953 | BC164: 765823.7632 | BD164: 766534.278 | BE164: 767253.6128 | BF164: 767981.6165 | BG164: 768718.6718 | BH164: 769464.8989 | BI164: 770219.864 | BJ164: 770984.2391 | BK164: 771757.865 | BL164: 772541.1498 | BM164: 773333.9311 | BN164: 774136.6275 | BO164: 774949.3721 | BP164: 775771.9972 | BQ164: 776604.9384 | BR164: 777448.0244 | BS164: 778301.7023 | BT164: 779166.1152 | BU164: 780040.4434 | BV164: 780925.7862 | BW164: =BW162*BW163 -> 781821.9636 | BX164: 782729.4526 | BY164: 783648.0694 | BZ164: 784578.3036 | CA164: 785520.3139 | CB164: 786473.9112 | CC164: 787439.6046 | CD164: 788417.2012 | CE164: 789403.5672 | CF164: 790398.7903 | CG164: 791402.2126 | CH164: 792414.663 | CI164: 793435.9791 | CJ164: 794466.5035 | CK164: 795506.0712 | CL164: 796555.0315 | CM164: 797613.4793 | CN164: 798681.2463 | CO164: 799758.6916 | CP164: 800845.6443 | CQ164: 801942.4708 | CR164: 803049.2718 | CS164: 804165.3191 | CT164: =CT162*CT163 -> 805291.5374 | CU164: =CU162*CU163 -> 806427.7495 | CV164: =CV162*CV163 -> 807574.3396 | CW164: =CW162*CW163 -> 808731.1279 | CX164: =CX162*CX163 -> 809898.5061 | CY164: =CY162*CY163 -> 811076.5837 | CZ164: =CZ162*CZ163 -> 812265.1768 | DA164: =DA162*DA163 -> 813464.689 | DB164: =DB162*DB163 -> 814674.9336 | DC164: =DC162*DC163 -> 815868.5543 | DD164: =DD162*DD163 -> 817045.7505 | DE164: =DE162*DE163 -> 818207.8686 | DF164: =DF162*DF163 -> 819353.9426 | DG164: =DG162*DG163 -> 820484.7265 | DH164: =DH162*DH163 -> 821599.848 | DI164: =DI162*DI163 -> 822700.043 | DJ164: =DJ162*DJ163 -> 823784.9511 | DK164: =DK162*DK163 -> 824854.7612 | DL164: =DL162*DL163 -> 825910.1823 | DM164: =DM162*DM163 -> 826950.8717 | DN164: =DN162*DN163 -> 827977.521 | DO164: =DO162*DO163 -> 829005.4449 | DP164: =DP162*DP163 -> 830034.645 | DQ164: =DQ162*DQ163 -> 831065.1228 | DR164: =DR162*DR163 -> 832096.88 | DS164: =DS162*DS163 -> 833129.918 | DT164: =DT162*DT163 -> 834164.2386 | DU164: =DU162*DU163 -> 835199.8433 | DV164: =DV162*DV163 -> 836236.7336 | DW164: =DW162*DW163 -> 837274.9112 | DX164: =DX162*DX163 -> 838314.3777 | DY164: =DY162*DY163 -> 839355.1348 | DZ164: =DZ162*DZ163 -> 840397.1838 | EA164: =EA162*EA163 -> 841440.5266 | EB164: =EB162*EB163 -> 842485.1647 | EC164: =EC162*EC163 -> 843531.0997 | ED164: =ED162*ED163 -> 844578.3332 | EE164: =EE162*EE163 -> 845626.8668 | EF164: =EF162*EF163 -> 846676.7022 | EG164: =EG162*EG163 -> 847727.8409 | EH164: =EH162*EH163 -> 848780.2846 | EI164: =EI162*EI163 -> 849834.0349 | EJ164: =EJ162*EJ163 -> 850889.0934 | EK164: =EK162*EK163 -> 851945.4618 | EL164: =EL162*EL163 -> 853003.1416 | EM164: =EM162*EM163 -> 854062.1345 | EN164: =EN162*EN163 -> 855122.4422 | EO164: =EO162*EO163 -> 856184.0662 | EP164: =EP162*EP163 -> 857247.0082 | EQ164: =EQ162*EQ163 -> 858311.2698 | ER164: =ER162*ER163 -> 859376.8527 | ES164: =ES162*ES163 -> 860443.7585 | ET164: =ET162*ET163 -> 861511.9889 | EU164: =EU162*EU163 -> 862581.5454 | EV164: =EV162*EV163 -> 863652.4298 | EW164: =EW162*EW163 -> 864724.6437 | EX164: =EX162*EX163 -> 865798.1887 | EY164: =EY162*EY163 -> 866873.0665 | EZ164: =EZ162*EZ163 -> 867949.2788 | FA164: =FA162*FA163 -> 869026.8272 | FB164: =FB162*FB163 -> 870105.7133 | FC164: =FC162*FC163 -> 871185.9389 | FD164: =FD162*FD163 -> 872267.5055 | FE164: =FE162*FE163 -> 873350.4149 | FF164: =FF162*FF163 -> 874434.6687 | FG164: =FG162*FG163 -> 875520.2686 | FH164: =FH162*FH163 -> 876607.2163 | FI164: =FI162*FI163 -> 877695.5134 | FJ164: =FJ162*FJ163 -> 878785.1616 | FK164: =FK162*FK163 -> 879876.1625 | FL164: =FL162*FL163 -> 880968.518 | FM164: =FM162*FM163 -> 882062.2296 | FN164: =FN162*FN163 -> 883157.299 | FO164: =FO162*FO163 -> 884253.7279 | FP164: =FP162*FP163 -> 885351.5181 | FQ164: =FQ162*FQ163 -> 886450.6711 | FR164: =FR162*FR163 -> 887551.1887 | FS164: =FS162*FS163 -> 888653.0726 | FT164: =FT162*FT163 -> 889756.3245 | FU164: =FU162*FU163 -> 890860.9461 | FV164: =FV162*FV163 -> 890488.9006 | FW164: =FW162*FW163 -> 890117.0106 | FX164: =FX162*FX163 -> 889745.2758 | FY164: =FY162*FY163 -> 889373.6963 | FZ164: =FZ162*FZ163 -> 889002.272 | GA164: =GA162*GA163 -> 888631.0028 | GB164: =GB162*GB163 -> 888259.8886 | GC164: =GC162*GC163 -> 887888.9294 | GD164: =GD162*GD163 -> 887518.1252 | GE164: =GE162*GE163 -> 887147.4758 | GF164: =GF162*GF163 -> 886776.9812 | GG164: =GG162*GG163 -> 886406.6413 | GH164: =GH162*GH163 -> 886036.4561 | GI164: =GI162*GI163 -> 885666.4255 | GJ164: =GJ162*GJ163 -> 885296.5494 | GK164: =GK162*GK163 -> 884926.8278 | GL164: =GL162*GL163 -> 884557.2606 | GM164: =GM162*GM163 -> 884187.8478 | GN164: =GN162*GN163 -> 883818.5892 | GO164: =GO162*GO163 -> 883449.4848 | GP164: =GP162*GP163 -> 883080.5346 | GQ164: =GQ162*GQ163 -> 882711.7384 | GR164: =GR162*GR163 -> 882343.0963 | GS164: =GS162*GS163 -> 881974.6081 | GT164: =GT162*GT163 -> 881606.2738 | GU164: =GU162*GU163 -> 881238.0934 | GV164: =GV162*GV163 -> 880870.0667 | GW164: =GW162*GW163 -> 880502.1937 | GX164: =GX162*GX163 -> 880134.4743 | GY164: =GY162*GY163 -> 879766.9085 | GZ164: =GZ162*GZ163 -> 879399.4962 | HA164: =HA162*HA163 -> 879032.2374 | HB164: =HB162*HB163 -> 878665.1319 | HC164: =HC162*HC163 -> 878298.1797 | HD164: =HD162*HD163 -> 877931.3808 | HE164: =HE162*HE163 -> 877564.7351 | HF164: =HF162*HF163 -> 877198.2425 | HG164: =HG162*HG163 -> 876831.9029 | HH164: =HH162*HH163 -> 876465.7163 | HI164: =HI162*HI163 -> 876099.6827 | HJ164: =HJ162*HJ163 -> 875733.8019 | HK164: =HK162*HK163 -> 875368.074 | HL164: =HL162*HL163 -> 875002.4987 | HM164: =HM162*HM163 -> 874637.0762 | HN164: =HN162*HN163 -> 874271.8062 | HO164: =HO162*HO163 -> 873906.6888 | HP164: =HP162*HP163 -> 873541.7239 | HQ164: =HQ162*HQ163 -> 873176.9114 | HR164: =HR162*HR163 -> 872812.2513 | HS164: =HS162*HS163 -> 872447.7434 | HT164: =HT162*HT163 -> 872083.3878 | HU164: =HU162*HU163 -> 871719.1843 | HV164: =HV162*HV163 -> 871355.1329 | HW164: =HW162*HW163 -> 870991.2336 | HX164: =HX162*HX163 -> 870627.4862 | HY164: =HY162*HY163 -> 870263.8908 | HZ164: =HZ162*HZ163 -> 869900.4472 | IA164: =IA162*IA163 -> 869537.1554 | IB164: =IB162*IB163 -> 869174.0153 | IC164: =IC162*IC163 -> 868811.0268 | ID164: =ID162*ID163 -> 868448.19 | IE164: =IE162*IE163 -> 868085.5047 | IF164: =IF162*IF163 -> 867722.9708 | IG164: =IG162*IG163 -> 867360.5884 | IH164: =IH162*IH163 -> 866998.3573 | II164: =II162*II163 -> 866636.2774 | IJ164: =IJ162*IJ163 -> 866274.3488 | IK164: =IK162*IK163 -> 865912.5713 | IL164: =IL162*IL163 -> 865550.945 | IM164: =IM162*IM163 -> 865189.4696 | IN164: =IN162*IN163 -> 864828.1452 | IO164: =IO162*IO163 -> 864466.9717 | IP164: =IP162*IP163 -> 864105.949 | IQ164: =IQ162*IQ163 -> 863745.0772 | IR164: =IR162*IR163 -> 863384.356 | IS164: =IS162*IS163 -> 863023.7854
